Workbook

Sheet Mensaje
C10: ACTIVAR MACRO PARA ACCEDER AL CONTENIDO

Sheet PARAMETROS (hidden)
B2: Legenda | C2: Dato de entrada
C3: Celda llave
C4: Error
C5: Dato calculado
A7: Generalidades
B9: Horizonte 1 | C9: 2020
B10: Horizonte 2 | C10: 2025
B11: Horizonte 3 | C11: 2030
B12: Horizonte 4 | C12: 2035
B13: Horizonte 5 | C13: 2040
B15: Ano puesta en servicio | C15: =C9-1 -> 2019
B16: Ano base | C16: 2015
B17: Periodo de evaluacion | C17: 30 | D17: anos
B18: Ultimo ano | C18: =C15+C17 -> 2049
A21: Parametros de modelacion de trafico
B23: Coeficiente de pasaje [Periodo de modelacion => HPS] | C23: 1
B25: Coeficiente [HPS => JOB] | C25: 0.09
A27: Costos generales y provisiones para imprevistos
D29: Ratio | E29: Provisiones para imprevistos
B30: Estudios y diseños | C30: % costo de la obra | D30: 0.08 | E30: 0.1
B31: Supervision de obras | C31: % costo de la obra | D31: 0.04 | E31: 0.1
B32: Fiscalizacion del proyecto | C32: % costo de obra | D32: 0.05 | E32: 0.1
B33: % gastos de Gestión externalizados (auditores, seguros) | C33: % costo de la obra | D33: 0.03 | E33: 0.1
B34: Tramites administrativos | C34: U | D34: 600000 | E34: 0.25
B36: Capex Category Code | C36: INFRA | D36: EQUIP | E36: VEH | F36: PRED | H36: Liste: "Capex_Category_Code"
B37: Capex Category Name | C37: Infraestructura | D37: Equipamientos | E37: Vehiculos | F37: Predios
B38: % provisiones imprevistos | C38: 0.25 | D38: 0.25 | E38: 0.15 | F38: 0.25
B39: Estudios, Diseños y Supervisión | C39: Aplica | D39: Aplica | E39: Aplica | F39: No aplica
B41: Tarifa electricidad | D41: 0.084 | E41: USD / kWh | F41: Tarifa industrial maxima aplicada en Ecuador en el 2014
B43: Costo de operacion de busetas | D43: =0.05*14 -> 0.7 | E43: USD /km recorrido
B45: Costos de mantenancia (100% parte extranjera)
D46: EURO 2015 | F46: USD 2015
D47: Telecabinas | E47: 3S | F47: Telecabinas | G47: 3S
B48: Costo de materia anual | C48: Costo/m | D48: 85 | E48: 65 | F48: =D48*C83 -> 95.2 | G48: =E48*C83 -> 72.8
B49: Costo de materia para mantenancia preventiva cada 5 años | C49: Costo/m | D49: 375 | E49: 285 | F49: =375*C83 -> 420 | G49: =285*C83 -> 319.2
B51: Cambio preventivo del cable de soporte/traccion cada 5 años | C51: Costo/m | D51: 225 | E51: - | F51: =D51*C83 -> 252 | G51: -
B52: Cambio preventivo del cable de traccion cada 10 años | C52: Costo/m | D52: - | E52: 195 | F52: - | G52: =E52*C83 -> 218.4
B54: IVA | C54: 0.12
B56: Suministro | C56: LOCAL | D56: EUROPA | H56: Liste:"Suministro"
A58: Escenarios de Evaluacion socio-economica y financiera
B60: Worst case | E60: RESULTATS BSE | F60: 2
B61: Coeficiente sobre demanda | C61: 0.7 | E61: WORST CASE | F61: 1
B62: Inflacion local | C62: =B88 -> Hipotesis baja | E62: BEST CASE | F62: 2
B63: Contingencias aplicadas sobre CAPEX | C63: SI
B64: Contingencias aplicadas sobre OPEX | C64: 0.25
B66: Base case
B67: Coeficiente sobre demanda | C67: 0.8
B68: Inflacion local | C68: =B88 -> Hipotesis baja
B69: Contingencias aplicadas sobre CAPEX | C69: NO
B70: Contingencias aplicadas sobre OPEX | C70: 0
B72: Best case
B73: Coeficiente sobre demanda | C73: 1
B74: Inflacion local | C74: =B89 -> Hipotesis alta
B75: Contingencias aplicadas sobre CAPEX | C75: NO
B76: Contingencias aplicada sobre OPEX | C76: 0
A78: Parametros de Evaluacion socio-economica y financiera
B80: Año de referencia (primer año de la simulacion) | C80: =C16 -> 2015 | E80: ACTUALIZACION | F80: 0.07
B81: Divisa del modelo | C81: USD
B83: Tasa de cambio Euro/USD (2015) | C83: 1.12 | F83: el 01/03/2015
B84: Tasa de cambio Euro/USD (2012) | C84: 1.32 | F84: el 01/03/2012
B86: Tasa de inflacion anual de Ecuador
B87: Año | C87: 2015 | D87: 2016 | E87: 2017 | F87: 2018 | G87: 2019 | H87: 2020-2050
B88: Hipotesis baja | C88: 0.0255 | D88: 0.025 | E88: 0.025 | F88: 0.025 | G88: 0.025 | H88: 0.02
B89: Hipotesis alta | C89: =C88 -> 0.0255 | D89: =D88+0.02 -> 0.045 | E89: =E88+0.02 -> 0.045 | F89: 0.045 | G89: 0.045 | H89: =H88+0.02 -> 0.04
B91: Tasa de inflacion anual para el internacional (Union Europea)
B92: Año | C92: 2015 | D92: 2016 | E92: 2017 | F92: 2018 | G92: 2019 | H92: 2020
B93: Hipotesis unica | C93: 0.0117 | D93: 0.015 | E93: 0.015 | F93: 0.015 | G93: 0.015 | H93: 0.019
B96: Aumentacion anual de los salarios en Ecuador
B97: Año | C97: 2015 | D97: 2016 | E97: 2017 | F97: 2018 | G97: 2019 | H97: 2020
B98: Hipotesis baja | C98: =C88+0.005 -> 0.0305 | D98: 0.03 | E98: 0.03 | F98: 0.03 | G98: 0.03 | H98: 0.025
B99: Hipotesis alta | C99: =C89+0.005 -> 0.0305 | D99: 0.05 | E99: 0.05 | F99: 0.05 | G99: 0.05 | H99: 0.045
B101: Aumentacion anual de las tarifas de electricidad en Ecuador
B102: Año | C102: 2015 | D102: 2016 | E102: 2017 | F102: 2018 | G102: 2019 | H102: 2020
B103: Hipotesis baja | C103: =C88+0.01 -> 0.0355 | D103: 0.035 | E103: 0.035 | F103: 0.035 | G103: 0.035 | H103: 0.03
B104: Hipotesis alta | C104: =C89+0.01 -> 0.0355 | D104: 0.055 | E104: 0.055 | F104: 0.055 | G104: 0.055 | H104: 0.05

Sheet CASH_FLOWS_RECAP (hidden)
D3: MONOCABLE
D4: Tasa de Rentabilidad Interna (TRI) - 30 años
D5: Tarifa (USD 2019)
B6: Alternativa | C6: Escenario | D6: 0.6 | E6: 0.75 | F6: 1 | G6: 1.25 | H6: 1.5
B7: A | C7: Worst case | D7: -0.14 | E7: ='5_CASH_FLOW_TC_22_WORST_CASE'!D31 -> -0.1033053514 | F7: ='5_CASH_FLOW_TC_22_WORST_CASE'!E31 -> -0.06789330462 | G7: ='5_CASH_FLOW_TC_22_WORST_CASE'!F31 -> -0.038362985 | H7: ='5_CASH_FLOW_TC_22_WORST_CASE'!G31 -> -0.01715057557
B8: A | C8: Base case | D8: ='1_CASH_FLOW_TC_22_BASE'!C31 -> -0.08179119706 | E8: ='1_CASH_FLOW_TC_22_BASE'!D31 -> -0.0546803302 | F8: ='1_CASH_FLOW_TC_22_BASE'!E31 -> -0.02196015581 | G8: ='1_CASH_FLOW_TC_22_BASE'!F31 -> 0.0008750802737 | H8: ='1_CASH_FLOW_TC_22_BASE'!G31 -> 0.01872384453
B9: C | C9: Worst case | D9: ='17_CASH_FLOW_TC_13_WORST_CASE'!C31 -> -0.02870414787 | E9: ='17_CASH_FLOW_TC_13_WORST_CASE'!D31 -> -0.01306085286 | F9: ='17_CASH_FLOW_TC_13_WORST_CASE'!E31 -> 0.006706915199 | G9: ='17_CASH_FLOW_TC_13_WORST_CASE'!F31 -> 0.02185955208 | H9: ='17_CASH_FLOW_TC_13_WORST_CASE'!G31 -> 0.03420666859
B10: C | C10: Base case | D10: ='13_CASH_FLOW_TC_13_BASE'!C31 -> -0.003264556613 | E10: ='13_CASH_FLOW_TC_13_BASE'!D31 -> 0.0121885818 | F10: ='13_CASH_FLOW_TC_13_BASE'!E31 -> 0.03188146331 | G10: ='13_CASH_FLOW_TC_13_BASE'!F31 -> 0.04753258091 | H10: ='13_CASH_FLOW_TC_13_BASE'!G31 -> 0.06069722435
D13: MONOCABLE
D14: Tasa de Rentabilidad Interna (TRI) - 40 años
D15: Tarifa (USD 2019)
B16: Alternativa | C16: Escenario | D16: 0.5 | E16: 0.75 | F16: 1 | G16: 1.25 | H16: 1.45
B17: A | C17: Worst case | D17: ='5_CASH_FLOW_TC_22_WORST_CASE'!C33 ->  | E17: ='5_CASH_FLOW_TC_22_WORST_CASE'!D33 ->  | F17: ='5_CASH_FLOW_TC_22_WORST_CASE'!E33 -> -0.07825328549 | G17: ='5_CASH_FLOW_TC_22_WORST_CASE'!F33 -> -0.03655576545 | H17: ='5_CASH_FLOW_TC_22_WORST_CASE'!G33 -> -0.01142243306
B18: A | C18: Base case | D18: ='1_CASH_FLOW_TC_22_BASE'!C33 -> -0.09852634328 | E18: ='1_CASH_FLOW_TC_22_BASE'!D33 -> -0.0583268989 | F18: ='1_CASH_FLOW_TC_22_BASE'!E33 -> -0.01694062522 | G18: ='1_CASH_FLOW_TC_22_BASE'!F33 -> 0.008209443707 | H18: ='1_CASH_FLOW_TC_22_BASE'!G33 -> 0.02656643874
B19: A | C19: Best case | D19: =#REF! ->  | E19: =#REF! ->  | F19: =#REF! ->  | G19: =#REF! ->  | H19: =#REF! -> 
B20: B | C20: Worst case | D20: =#REF! ->  | E20: =#REF! ->  | F20: =#REF! ->  | G20: =#REF! ->  | H20: =#REF! -> 
B21: B | C21: Base case | D21: =#REF! ->  | E21: =#REF! ->  | F21: =#REF! ->  | G21: =#REF! ->  | H21: =#REF! -> 
B22: B | C22: Best case | D22: =#REF! ->  | E22: =#REF! ->  | F22: =#REF! ->  | G22: =#REF! ->  | H22: =#REF! -> 
B23: C | C23: Worst case | D23: ='17_CASH_FLOW_TC_13_WORST_CASE'!C33 -> -0.0278412924 | E23: ='17_CASH_FLOW_TC_13_WORST_CASE'!D33 -> -0.008546932791 | F23: ='17_CASH_FLOW_TC_13_WORST_CASE'!E33 -> 0.01368357407 | G23: ='17_CASH_FLOW_TC_13_WORST_CASE'!F33 -> 0.02939660563 | H23: ='17_CASH_FLOW_TC_13_WORST_CASE'!G33 -> 0.04163004282
B24: C | C24: Base case | D24: ='13_CASH_FLOW_TC_13_BASE'!C33 -> 0.002770025939 | E24: ='13_CASH_FLOW_TC_13_BASE'!D33 -> 0.01945000701 | F24: ='13_CASH_FLOW_TC_13_BASE'!E33 -> 0.03930109853 | G24: ='13_CASH_FLOW_TC_13_BASE'!F33 -> 0.05452927582 | H24: ='13_CASH_FLOW_TC_13_BASE'!G33 -> 0.0671312108
B25: C | C25: Best case | D25: =#REF! ->  | E25: =#REF! ->  | F25: =#REF! ->  | G25: =#REF! ->  | H25: =#REF! -> 
B26: D | C26: Worst case | D26: =#REF! ->  | E26: =#REF! ->  | F26: =#REF! ->  | G26: =#REF! ->  | H26: =#REF! -> 
B27: D | C27: Base case | D27: =#REF! ->  | E27: =#REF! ->  | F27: =#REF! ->  | G27: =#REF! ->  | H27: =#REF! -> 
B28: D | C28: Best case | D28: =#REF! ->  | E28: =#REF! ->  | F28: =#REF! ->  | G28: =#REF! ->  | H28: =#REF! -> 
F198: =F95 -> 0

Sheet CANTIDADES (hidden)
B2: Legenda | C2: Dato de entrada
C3: Celda llave
C4: Error
C5: Dato calculado
A8: Telecabinas
A9: Numero de personas por vehiculos | B9: 10
A10: Velocidad maxima en linea (m/s) | B10: 5.5
A11: Tiempo en estacion (s) | B11: 25
A13: 3S
A14: Numero de personas por vehiculos | B14: 35
A15: Velocidad maxima en linea (m/s) | B15: 7.5
A16: Tiempo en estacion (s) | B16: 60
B19: 22 | C19: 13
A22: Longitud (m) | B22: 2200 | C22: =5950+2200 -> 8150
A24: Proteccion contra incendios (m²)
A25: Techos | B25: 0 | C25: =5*200*30*0.6 -> 18000
A26: Fachadas | B26: 0 | C26: =500*35*0.7 -> 12250
A29: N°Estaciones | B29: =B30+B31+B32 -> 2 | C29: 8
A30: Terminal | B30: 2 | C30: 4
A31: Linea | B31: 0 | C31: 2
A32: Tecnica | B32: 0 | C32: 2
A34: Terrains industriels | B34: 1 | C34: 1
A36: Distancia promedia entre estaciones de pasajeros (m) | B36: =B22/(B30+B31) -> 1100 | C36: =C22/(C30+C31) -> 1358.333333
A38: N° Estaciones intermodales con Metrovia o trenes
A39: Actual | B39: 1 | C39: 2
A40: Potencial | B40: 0 | C40: 0
A42: N° Postes
A43: Telecabinas | B43: 15 | C43: 45
A45: Fundaciones en el rio
A46: Telecabinas | B46: =ROUNDUP((2200)/B22*B43,0) -> 15 | C46: 42
A48: N°Cabinas (incluido reserva)
A49: Demande de modelo (pphpd) | B49: 630 | C49: 1345
A50: Demanda (pphpd) | B50: =B49*PARAMETROS!$C$23*1.5 -> 945 | C50: =C49*PARAMETROS!$C$23*1.5 -> 2017.5
A53: Distancia entre vehiculos
A54: Telecabinas | B54: =$B$9*3600*$B$10/B50 -> 209.5238095 | C54: =$B$9*3600*$B$10/C50 -> 98.14126394
A56: Tiempo entre las cabinas en segundas
A57: Telecabinas | B57: =B54/$B$10 -> 38.0952381 | C57: =C54/$B$10 -> 17.84386617
A59: Numero de vehiculos en linea (afuera de las estaciones)
A60: Telecabinas | B60: =ROUNDUP(B22*2/B54,0) -> 21 | C60: =ROUNDUP((C22-B22)*2/C54,0)+B60 -> 143
A62: Numero de vehiculos en operacion (incluyendo vehiculos en estaciones)
A63: Telecabinas | B63: =ROUNDUP((B60+B31*5),0) -> 21 | C63: =ROUNDUP((C60+C31*5),0) -> 153
A65: Numero de vehiculos en operacion (con margen de seguridad relativo a la demanda)
A66: Telecabinas | B66: =ROUNDUP(B63*1.1,0) -> 24 | C66: =ROUNDUP(C63*1.1,0) -> 169
A68: Numero de vehiculos en operacion y mantenimiento
A69: Telecabinas | B69: =ROUNDUP(B66*1.1,0) -> 27 | C69: =ROUNDUP(C66*1.1,0) -> 186
A71: Area del taller (m²)
A73: Zona de almacenamiento de tipo local industrial
A74: Telecabinas | B74: =14*B69 -> 378 | C74: =14*C69 -> 2604
A76: Almacen y taller
A77: Telecabinas | B77: 250 | C77: =250*2 -> 500
A79: Local de supervision
A80: Telecabinas | B80: 150 | C80: =150*2 -> 300
A82: Transporte cabinas
A83: Telecabinas | B83: =B74 -> 378 | C83: =C74 -> 2604
A85: Superficie Total
A86: Telecabinas | B86: =B74+B77+B80+B83 -> 1156 | C86: =C74+C77+C80+C83 -> 6008
A89: Tiempo de recorrido (mn)
A91: Telecabinas
A92: Tiempo de recorrido (sec) | B92: =B22/$B$10+$B$11*B29 -> 450 | C92: =C22/$B$10+$B$11*C29 -> 1681.818182
A93: Tiempo de recorrido (mn) | B93: =B92/60 -> 7.5 | C93: 28.03030303
A94: Velocidad promedia (km/h) | B94: =3600*B22/B92/1000 -> 17.6 | C94: =3600*C22/C92/1000 -> 17.44540541
A97: Consumo electrico
A99: Consumo (kW*h) | B99: =500*B22*(1.5) -> 1650000 | C99: =500*C22*(1.5) -> 6112500

Sheet PRECIOS UNITARIOS (hidden)
B2: Legenda | C2: Dato de entrada
C3: Celda llave
C4: Error
C5: Dato calculado
B7: Facteur de passage Salaire Canada / Ecuador (comparaison des salaires minimums) | C7: 0.26
G10: Proyecto de Guayaquil- Costos en USD 2015 - Precios unitarios | N10: Proyecto de Guayaquil- Costos en USD 2015 - Parte local vs Parte extranjera
C11: Categoria | D11: Unidades | E11: Suministro | G11: Monocable | N11: Monocable
G12: Materia | H12: Tasas de aduanas | I12: Transporte vial | J12: Transporte maritimo | K12: Mano de obras local | L12: TOTAL | N12: Materia | P12: Tasas de aduanas | R12: Transporte vial | T12: Transporte maritimo | V12: Mano de obras local | X12: TOTAL | Z12: REPARTICION
N13: Parte local | O13: Parte extranjera | P13: Parte local | Q13: Parte extranjera | R13: Parte local | S13: Parte extranjera | T13: Parte local | U13: Parte extranjera | V13: Parte local | W13: Parte extranjera | X13: Parte local | Y13: Parte extranjera | Z13: Parte local | AA13: Parte extranjera
B15: Compra de terrenos
B16: Terreno | C16: PRED | D16: m2 | E16: LOCAL | G16: N/A | H16: N/A | I16: N/A | J16: N/A | K16: N/A | L16: N/A | N16: N/A | O16: N/A | P16: N/A | Q16: N/A | R16: N/A | S16: N/A | T16: N/A | U16: N/A | V16: N/A | W16: N/A | X16: N/A | Y16: N/A | Z16: 1 | AA16: 0
B18: Decontaminacion y proteccion
B19: Proteccion contra incendios (techos) | C19: INFRA | D19: m2 | E19: LOCAL | G19: 117.6388172 | H19: 0 | I19: 13.07097969 | J19: 0 | K19: 33.98454719 | L19: 164.6943441 | N19: 94.11105375 | O19: 23.52776344 | P19: 0 | Q19: 0 | R19: 2.614195937 | S19: 10.45678375 | T19: 0 | U19: 0 | V19: 33.98454719 | W19: 0 | X19: 130.7097969 | Y19: 33.98454719 | Z19: 0.7936507937 | AA19: 0.2063492063
B20: Proteccion contra incendios (fachadas) | C20: INFRA | D20: m2 | E20: LOCAL | G20: 117.6388172 | H20: 0 | I20: 13.07097969 | J20: 0 | K20: 33.98454719 | L20: 164.6943441 | N20: 94.11105375 | O20: 23.52776344 | P20: 0 | Q20: 0 | R20: 2.614195937 | S20: 10.45678375 | T20: 0 | U20: 0 | V20: 33.98454719 | W20: 0 | X20: 130.7097969 | Y20: 33.98454719 | Z20: 0.7936507937 | AA20: 0.2063492063
B21: Decontaminacion de suelo | C21: INFRA | D21: U | E21: LOCAL | G21: 0 | H21: 0 | I21: 0 | J21: 0 | K21: 95156.73212 | L21: 95156.73212 | N21: 0 | O21: 0 | P21: 0 | Q21: 0 | R21: 0 | S21: 0 | T21: 0 | U21: 0 | V21: 95156.73212 | W21: 0 | X21: 95156.73212 | Y21: 0 | Z21: 1 | AA21: 0
B23: Infraestructura y estructuras de lineas
B24: Cables de soportes | C24: EQUIP | D24: ml | E24: EUROPA | G24: N/A | H24: N/A | I24: N/A | J24: N/A | K24: N/A | L24: N/A | N24: N/A | O24: N/A | P24: N/A | Q24: N/A | R24: N/A | S24: N/A | T24: N/A | U24: N/A | V24: N/A | W24: N/A | X24: N/A | Y24: N/A | Z24: N/A | AA24: N/A
B25: Cable de traccion | C25: EQUIP | D25: ml | E25: EUROPA | G25: 46.8463912 | H25: 7.261190636 | I25: 4.879832417 | J25: 4.68463912 | K25: 2.537512857 | L25: 66.20956623 | N25: 0 | O25: 46.8463912 | P25: 7.261190636 | Q25: 0 | R25: 0.9759664833 | S25: 3.903865933 | T25: 0 | U25: 4.68463912 | V25: 2.537512857 | W25: 0 | X25: 10.77466998 | Y25: 55.43489625 | Z25: 0.1627358491 | AA25: 0.8372641509
B26: Cabeza de poste (patibulo + pendulos y equipamientos) | C26: EQUIP | D26: U | E26: EUROPA | G26: 66231.19511 | H26: 10033.64524 | I26: 6743.041158 | J26: 6473.319511 | K26: 10519.14421 | L26: 100000.3452 | N26: 0 | O26: 64733.19511 | P26: 10033.64524 | Q26: 0 | R26: 1348.608232 | S26: 5394.432926 | T26: 0 | U26: 6473.319511 | V26: 10519.14421 | W26: 0 | X26: 21901.39768 | Y26: 76600.94755 | Z26: 0.2223439211 | AA26: 0.7776560789
B27: Postes y fundaciones | C27: INFRA | D27: U | E27: LOCAL | G27: 85208.90809 | H27: 0 | I27: 6430.922006 | J27: 0 | K27: 8360.198608 | L27: 100000.0287 | N27: 72026.32647 | O27: 18006.58162 | P27: 0 | Q27: 0 | R27: 1286.184401 | S27: 5144.737605 | T27: 0 | U27: 0 | V27: 8360.198608 | W27: 0 | X27: 81672.70948 | Y27: 23151.31922 | Z27: 0.7791411043 | AA27: 0.2208588957
B28: Sobrecostos para fundaciones con pilotes | C28: INFRA | D28: U | E28: LOCAL | G28: =257668.711656442*180000/300000 -> 154601.227 | H28: 0 | I28: =18404.9079754601*180000/300000 -> 11042.94479 | J28: 0 | K28: =23926.3803680982*180000/300000 -> 14355.82822 | L28: 180000 | N28: 206134.9693 | O28: 51533.74233 | P28: 0 | Q28: 0 | R28: 3680.981595 | S28: 14723.92638 | T28: 0 | U28: 0 | V28: 23926.38037 | W28: 0 | X28: 233742.3313 | Y28: 66257.66871 | Z28: 0.7791411043 | AA28: 0.2208588957
B30: Obras de via y reubicacion de redes
B31: Obras de via | C31: INFRA | D31: m2 | E31: LOCAL | G31: 141.1665806 | H31: 0 | I31: 15.68517562 | J31: 0 | K31: 40.78145662 | L31: 197.6332129 | N31: 112.9332645 | O31: 28.23331612 | P31: 0 | Q31: 0 | R31: 3.137035125 | S31: 12.5481405 | T31: 0 | U31: 0 | V31: 40.78145662 | W31: 0 | X31: 156.8517562 | Y31: 40.78145662 | Z31: 0.7936507937 | AA31: 0.2063492063
B32: Redes aereas de alta tension | C32: INFRA | D32: ml (de la red) | E32: LOCAL | G32: 398.9263001 | H32: 0 | I32: 56.98947144 | J32: 0 | K32: 177.8071509 | L32: 633.7229224 | N32: 319.14104 | O32: 79.78526001 | P32: 0 | Q32: 0 | R32: 11.39789429 | S32: 45.59157715 | T32: 0 | U32: 0 | V32: 177.8071509 | W32: 0 | X32: 508.3460852 | Y32: 125.3768372 | Z32: 0.8021582734 | AA32: 0.1978417266
B33: Redes aereas | C33: INFRA | D33: ml (de linea) | E33: LOCAL | G33: 52.5 | H33: 0 | I33: 7.5 | J33: 0 | K33: 23.4 | L33: 83.4 | N33: 42 | O33: 10.5 | P33: 0 | Q33: 0 | R33: 1.5 | S33: 6 | T33: 0 | U33: 0 | V33: 23.4 | W33: 0 | X33: 66.9 | Y33: 16.5 | Z33: 0.8021582734 | AA33: 0.1978417266
B34: Desplazamiento de lamparas | C34: INFRA | D34: U | E34: LOCAL | G34: 1307.097969 | H34: 0 | I34: 261.4195937 | J34: 0 | K34: 951.5673212 | L34: 2520.084884 | N34: 1045.678375 | O34: 261.4195937 | P34: 0 | Q34: 0 | R34: 52.28391875 | S34: 209.135675 | T34: 0 | U34: 0 | V34: 951.5673212 | W34: 0 | X34: 2049.529615 | Y34: 470.5552687 | Z34: 0.8132780083 | AA34: 0.1867219917
B35: Redes subterraneas | C35: INFRA | D35: ml (de linea) | E35: LOCAL | G35: 52.5 | H35: 0 | I35: 7.5 | J35: 0 | K35: 23.4 | L35: 83.4 | N35: 42 | O35: 10.5 | P35: 0 | Q35: 0 | R35: 1.5 | S35: 6 | T35: 0 | U35: 0 | V35: 23.4 | W35: 0 | X35: 66.9 | Y35: 16.5 | Z35: 0.8021582734 | AA35: 0.1978417266
B36: Mantenimiento de transito | C36: INFRA | D36: U | E36: LOCAL | G36: 41827.135 | H36: 0 | I36: 5228.391875 | J36: 0 | K36: 14953.20076 | L36: 62008.72764 | N36: 33461.708 | O36: 8365.427 | P36: 0 | Q36: 0 | R36: 1045.678375 | S36: 4182.7135 | T36: 0 | U36: 0 | V36: 14953.20076 | W36: 0 | X36: 49460.58714 | Y36: 12548.1405 | Z36: 0.7976391231 | AA36: 0.2023608769
B38: Cabinas
B39: Cabinas y soportes | C39: VEH | D39: U | E39: EUROPA | G39: 29981.69037 | H39: 149.9084518 | I39: 3504.606917 | J39: 2998.169037 | K39: 911.1977985 | L39: 37545.57257 | N39: 0 | O39: 29981.69037 | P39: 149.9084518 | Q39: 0 | R39: 700.9213835 | S39: 2803.685534 | T39: 0 | U39: 2998.169037 | V39: 911.1977985 | W39: 0 | X39: 1762.027634 | Y39: 35783.54494 | Z39: 0.04693037056 | AA39: 0.9530696294
B40: Equipamiento de conforte en las cabinas | C40: VEH | D40: U | E40: EUROPA | G40: 7495.422592 | H40: 37.47711296 | I40: 754.1559189 | J40: 749.5422592 | K40: 784.3221557 | L40: 9820.920039 | N40: 0 | O40: 7495.422592 | P40: 37.47711296 | Q40: 0 | R40: 150.8311838 | S40: 603.3247352 | T40: 0 | U40: 749.5422592 | V40: 784.3221557 | W40: 0 | X40: 972.6304524 | Y40: 8848.289586 | Z40: 0.09903659215 | AA40: 0.9009634078
B42: Tecnologias en las estaciones
B43: Lanzador (por ramita y por media-estacion) | C43: EQUIP | D43: U | E43: EUROPA | G43: 562156.6944 | H43: 2810.783472 | I43: 43208.69794 | J43: 56215.66944 | K43: 44937.04586 | L43: 709328.8911 | N43: 0 | O43: 562156.6944 | P43: 2810.783472 | Q43: 0 | R43: 8641.739589 | S43: 34566.95836 | T43: 0 | U43: 56215.66944 | V43: 44937.04586 | W43: 0 | X43: 56389.56892 | Y43: 652939.3222 | Z43: 0.07949707058 | AA43: 0.9205029294
B44: Cola y andenes (por numero de andenes, y/c puertas de anden) | C44: EQUIP | D44: U | E44: EUROPA | G44: 555369.2911 | H44: 2776.846456 | I44: 42720.7147 | J44: 55536.92911 | K44: 44429.54329 | L44: 700833.3247 | N44: 0 | O44: 555369.2911 | P44: 2776.846456 | Q44: 0 | R44: 8544.14294 | S44: 34176.57176 | T44: 0 | U44: 55536.92911 | V44: 44429.54329 | W44: 0 | X44: 55750.53269 | Y44: 645082.792 | Z44: 0.07954891801 | AA44: 0.920451082
B46: Equipamiento electrico
B47: Cuarto de mandos | C47: EQUIP | D47: N° de estaciones | E47: EUROPA | G47: 207614.6883 | H47: 1038.073441 | I47: 15970.36064 | J47: 20761.46883 | K47: 16609.17506 | L47: 261993.7662 | N47: 0 | O47: 207614.6883 | P47: 1038.073441 | Q47: 0 | R47: 3194.072127 | S47: 12776.28851 | T47: 0 | U47: 20761.46883 | V47: 16609.17506 | W47: 0 | X47: 20841.32063 | Y47: 241152.4456 | Z47: 0.07954891801 | AA47: 0.920451082
B48: Cuarto de electricidad (400V tres fases) | C48: EQUIP | D48: U | E48: EUROPA | G48: 138409.7922 | H48: 692.0489609 | I48: 11534.14935 | J48: 13840.97922 | K48: 14994.39415 | L48: 179471.3639 | N48: 0 | O48: 138409.7922 | P48: 692.0489609 | Q48: 0 | R48: 2306.82987 | S48: 9227.319479 | T48: 0 | U48: 13840.97922 | V48: 14994.39415 | W48: 0 | X48: 17993.27298 | Y48: 161478.0909 | Z48: 0.1002570694 | AA48: 0.8997429306
B49: Cuarto de manejo del traslado y zona de mantenimiento | C49: EQUIP | D49: U | E49: EUROPA | G49: 57670.74674 | H49: 288.3537337 | I49: 4436.211288 | J49: 5767.074674 | K49: 4613.659739 | L49: 72776.04618 | N49: 0 | O49: 57670.74674 | P49: 288.3537337 | Q49: 0 | R49: 887.2422576 | S49: 3548.96903 | T49: 0 | U49: 5767.074674 | V49: 4613.659739 | W49: 0 | X49: 5789.255731 | Y49: 66986.79045 | Z49: 0.07954891801 | AA49: 0.920451082
B50: Alimentacion de auxilio de emergencia de la estacion motrice y del centro de mando | C50: EQUIP | D50: U | E50: EUROPA | G50: 53234.53545 | H50: 266.1726773 | I50: 4436.211288 | J50: 5323.453545 | K50: 5767.074674 | L50: 69027.44764 | N50: 0 | O50: 53234.53545 | P50: 266.1726773 | Q50: 0 | R50: 887.2422576 | S50: 3548.96903 | T50: 0 | U50: 5323.453545 | V50: 5767.074674 | W50: 0 | X50: 6920.489609 | Y50: 62106.95803 | Z50: 0.1002570694 | AA50: 0.8997429306
B51: Alimentaciones auxiliarias y equipamientos electricos en las estaciones y en el taller (aire acondicionado, alumbrado, mando de las puertas de anden, etc.) | C51: EQUIP | D51: Superficies cerradas (m²) | E51: EUROPA | G51: 86.50612011 | H51: 0.4325306006 | I51: 6.654316932 | J51: 8.650612011 | K51: 6.920489609 | L51: 109.1640693 | N51: 0 | O51: 86.50612011 | P51: 0.4325306006 | Q51: 0 | R51: 1.330863386 | S51: 5.323453545 | T51: 0 | U51: 8.650612011 | V51: 6.920489609 | W51: 0 | X51: 8.683883596 | Y51: 100.4801857 | Z51: 0.07954891801 | AA51: 0.920451082
B52: Doble motorizacion, reductores y traccion del cable | C52: EQUIP | D52: U | E52: EUROPA | G52: 720884.3343 | H52: 3604.421671 | I52: 55452.6411 | J52: 72088.43343 | K52: 57670.74674 | L52: 909700.5772 | N52: 0 | O52: 720884.3343 | P52: 3604.421671 | Q52: 0 | R52: 11090.52822 | S52: 44362.11288 | T52: 0 | U52: 72088.43343 | V52: 57670.74674 | W52: 0 | X52: 72365.69663 | Y52: 837334.8806 | Z52: 0.07954891801 | AA52: 0.920451082
B53: Constitucion de una linea de reserva para la estacion motrice | C53: EQUIP | D53: U | E53: EUROPA | G53: 119777.7048 | H53: 598.8885239 | I53: 13308.63386 | J53: 11977.77048 | K53: 27681.95844 | L53: 173344.9561 | N53: 0 | O53: 119777.7048 | P53: 598.8885239 | Q53: 0 | R53: 2661.726773 | S53: 10646.90709 | T53: 0 | U53: 11977.77048 | V53: 27681.95844 | W53: 0 | X53: 30942.57373 | Y53: 142402.3823 | Z53: 0.1785028791 | AA53: 0.8214971209
B55: Telecomunicaciones y boleteria
B56: Consola de mandos y Tablero de control optico | C56: EQUIP | D56: Forfait | E56: EUROPA | G56: 63881.44255 | H56: 319.4072127 | I56: 5323.453545 | J56: 6388.144255 | K56: 6920.489609 | L56: 82832.93717 | N56: 0 | O56: 63881.44255 | P56: 319.4072127 | Q56: 0 | R56: 1064.690709 | S56: 4258.762836 | T56: 0 | U56: 6388.144255 | V56: 6920.489609 | W56: 0 | X56: 8304.587531 | Y56: 74528.34964 | Z56: 0.1002570694 | AA56: 0.8997429306
B57: Red de telefonia entre estaciones | C57: EQUIP | D57: N° de estaciones + 1 | E57: EUROPA | G57: 43918.49175 | H57: 219.5924587 | I57: 3137.035125 | J57: 4391.849175 | K57: 4078.145662 | L57: 55745.11417 | N57: 0 | O57: 43918.49175 | P57: 219.5924587 | Q57: 0 | R57: 627.407025 | S57: 2509.6281 | T57: 0 | U57: 4391.849175 | V57: 4078.145662 | W57: 0 | X57: 4925.145146 | Y57: 50819.96902 | Z57: 0.08835115363 | AA57: 0.9116488464
B58: Sonorizacion de anuncios publicos en estaciones | C58: EQUIP | D58: N° de estaciones + 1 | E58: EUROPA | G58: 33984.54719 | H58: 169.9227359 | I58: 2614.195937 | J58: 3398.454719 | K58: 4078.145662 | L58: 44245.26624 | N58: 0 | O58: 33984.54719 | P58: 169.9227359 | Q58: 0 | R58: 522.8391875 | S58: 2091.35675 | T58: 0 | U58: 3398.454719 | V58: 4078.145662 | W58: 0 | X58: 4770.907586 | Y58: 39474.35866 | Z58: 0.1078286558 | AA58: 0.8921713442
B59: Sistema de informacion a los pasajeros en las estaciones | C59: EQUIP | D59: N° de estaciones + 1 | E59: EUROPA | G59: 26617.26773 | H59: 133.0863386 | I59: 2218.105644 | J59: 2661.726773 | K59: 2883.537337 | L59: 34513.72382 | N59: 0 | O59: 26617.26773 | P59: 133.0863386 | Q59: 0 | R59: 443.6211288 | S59: 1774.484515 | T59: 0 | U59: 2661.726773 | V59: 2883.537337 | W59: 0 | X59: 3460.244805 | Y59: 31053.47902 | Z59: 0.1002570694 | AA59: 0.8997429306
B60: Sistema de supervision SCADA del centro de mando | C60: EQUIP | D60: U | E60: EUROPA | G60: 39038.65933 | H60: 195.1932967 | I60: 3548.96903 | J60: 3903.865933 | K60: 5536.391687 | L60: 52223.07928 | N60: 0 | O60: 39038.65933 | P60: 195.1932967 | Q60: 0 | R60: 709.7938061 | S60: 2839.175224 | T60: 0 | U60: 3903.865933 | V60: 5536.391687 | W60: 0 | X60: 6441.37879 | Y60: 45781.70049 | Z60: 0.123343527 | AA60: 0.876656473
B61: Cronometria, relojes marcadores | C61: EQUIP | D61: N° de estaciones + 1 | E61: LOCAL | G61: 19606.46953 | H61: 0 | I61: 1307.097969 | J61: 0 | K61: 1359.381887 | L61: 22272.94939 | N61: 15685.17562 | O61: 3921.293906 | P61: 0 | Q61: 0 | R61: 261.4195937 | S61: 1045.678375 | T61: 0 | U61: 0 | V61: 1359.381887 | W61: 0 | X61: 17305.97711 | Y61: 4966.972281 | Z61: 0.7769953052 | AA61: 0.2230046948
B62: Equipamiento embarcado en la cabinas (videocamara/interponia/DI/LCD/WIFI) | C62: EQUIP | D62: N° de cabinas + reserva | E62: LOCAL | G62: 3921.293906 | H62: 0 | I62: 261.4195937 | J62: 0 | K62: 271.8763775 | L62: 4454.589877 | N62: 3137.035125 | O62: 784.2587812 | P62: 0 | Q62: 0 | R62: 52.28391875 | S62: 209.135675 | T62: 0 | U62: 0 | V62: 271.8763775 | W62: 0 | X62: 3461.195421 | Y62: 993.3944562 | Z62: 0.7769953052 | AA62: 0.2230046948
B63: Sistema de antenas y de mando securizado WIFI | C63: EQUIP | D63: ml | E63: LOCAL | G63: 175.673967 | H63: 0 | I63: 12.5481405 | J63: 0 | K63: 16.31258265 | L63: 204.5346901 | N63: 140.5391736 | O63: 35.1347934 | P63: 0 | Q63: 0 | R63: 2.5096281 | S63: 10.0385124 | T63: 0 | U63: 0 | V63: 16.31258265 | W63: 0 | X63: 159.3613843 | Y63: 45.1733058 | Z63: 0.7791411043 | AA63: 0.2208588957
B64: Sistema de vigilancia visio + termica por postes | C64: EQUIP | D64: N° de postes + estaciones | E64: LOCAL | G64: 31108.93166 | H64: 0 | I64: 1829.937156 | J64: 0 | K64: 951.5673212 | L64: 33890.43613 | N64: 24887.14532 | O64: 6221.786331 | P64: 0 | Q64: 0 | R64: 365.9874312 | S64: 1463.949725 | T64: 0 | U64: 0 | V64: 951.5673212 | W64: 0 | X64: 26204.70008 | Y64: 7685.736056 | Z64: 0.7732181425 | AA64: 0.2267818575
B65: Sistema de vigilancia con video en estaciones | C65: EQUIP | D65: N° de estaciones + 1 | E65: LOCAL | G65: 41827.135 | H65: 0 | I65: 2614.195937 | J65: 0 | K65: 2039.072831 | L65: 46480.40377 | N65: 33461.708 | O65: 8365.427 | P65: 0 | Q65: 0 | R65: 522.8391875 | S65: 2091.35675 | T65: 0 | U65: 0 | V65: 2039.072831 | W65: 0 | X65: 36023.62002 | Y65: 10456.78375 | Z65: 0.7750281215 | AA65: 0.2249718785
B66: Sistema de deteccion incendio y de control de acceso | C66: EQUIP | D66: Forfait | E66: LOCAL | G66: 94111.05375 | H66: 0 | I66: 6274.07025 | J66: 0 | K66: 6525.03306 | L66: 106910.1571 | N66: 75288.843 | O66: 18822.21075 | P66: 0 | Q66: 0 | R66: 1254.81405 | S66: 5019.2562 | T66: 0 | U66: 0 | V66: 6525.03306 | W66: 0 | X66: 83068.69011 | Y66: 23841.46695 | Z66: 0.7769953052 | AA66: 0.2230046948
B67: Fibra de seguridad y equipos de transmision Ethernet | C67: EQUIP | D67: N° de estaciones + 1 | E67: LOCAL | G67: 83654.27 | H67: 0 | I67: 5228.391875 | J67: 0 | K67: 4078.145662 | L67: 92960.80754 | N67: 66923.416 | O67: 16730.854 | P67: 0 | Q67: 0 | R67: 1045.678375 | S67: 4182.7135 | T67: 0 | U67: 0 | V67: 4078.145662 | W67: 0 | X67: 72047.24004 | Y67: 20913.5675 | Z67: 0.7750281215 | AA67: 0.2249718785
B68: Sistema de boleteria | C68: EQUIP | D68: N° de estaciones + 1 | E68: EUROPA | G68: 28835.37337 | H68: 144.1768669 | I68: 2218.105644 | J68: 2883.537337 | K68: 2306.82987 | L68: 36388.02309 | N68: 0 | O68: 28835.37337 | P68: 144.1768669 | Q68: 0 | R68: 443.6211288 | S68: 1774.484515 | T68: 0 | U68: 2883.537337 | V68: 2306.82987 | W68: 0 | X68: 2894.627865 | Y68: 33493.39522 | Z68: 0.07954891801 | AA68: 0.920451082
B70: Estaciones
B71: Edificio - Terminal
B72: Fundaciones tipicas (edificio con piso tierra y primer piso) | C72: INFRA | D72: U | E72: LOCAL | G72: 93169.94321 | H72: 0 | I72: 15528.32387 | J72: 0 | K72: 52485.73468 | L72: 161184.0018 | N72: 74535.95457 | O72: 18633.98864 | P72: 0 | Q72: 0 | R72: 3105.664774 | S72: 12422.65909 | T72: 0 | U72: 0 | V72: 52485.73468 | W72: 0 | X72: 130127.354 | Y72: 31056.64774 | Z72: 0.8073217726 | AA72: 0.1926782274
B73: Piso tierra sobrelevado y fundaciones | C73: INFRA | D73: m2 | E73: LOCAL | G73: 1254.81405 | H73: 0 | I73: 209.135675 | J73: 0 | K73: 706.8785815 | L73: 2170.828306 | N73: 1003.85124 | O73: 250.96281 | P73: 0 | Q73: 0 | R73: 41.827135 | S73: 167.30854 | T73: 0 | U73: 0 | V73: 706.8785815 | W73: 0 | X73: 1752.556956 | Y73: 418.27135 | Z73: 0.8073217726 | AA73: 0.1926782274
B74: Superficies comerciales | C74: INFRA | D74: m2 | E74: LOCAL | G74: 404.9912346 | H74: 0 | I74: 67.49853911 | J74: 0 | K74: 228.1450622 | L74: 700.6348359 | N74: 323.9929877 | O74: 80.99824693 | P74: 0 | Q74: 0 | R74: 13.49970782 | S74: 53.99883128 | T74: 0 | U74: 0 | V74: 228.1450622 | W74: 0 | X74: 565.6377577 | Y74: 134.9970782 | Z74: 0.8073217726 | AA74: 0.1926782274
B75: Ingreso y circulaciones al piso tierra (y/c servicios, escaleras mecanicas, escaleras y ascencores) | C75: INFRA | D75: m2 | E75: LOCAL | G75: 1536.101533 | H75: 0 | I75: 118.1616564 | J75: 0 | K75: 184.3321839 | L75: 1838.595373 | N75: 1228.881226 | O75: 307.2203066 | P75: 0 | Q75: 0 | R75: 23.63233127 | S75: 94.5293251 | T75: 0 | U75: 0 | V75: 184.3321839 | W75: 0 | X75: 1436.845742 | Y75: 401.7496317 | Z75: 0.7814910026 | AA75: 0.2185089974
B76: Escaleras mecanicas, escaleras y ascencores adicionales (piso tierra sobrelevado) | C76: EQUIP | D76: U | E76: LOCAL | G76: 215625 | H76: 0 | I76: 35937.5 | J76: 0 | K76: 121468.75 | L76: 373031.25 | N76: 172500 | O76: 43125 | P76: 0 | Q76: 0 | R76: 7187.5 | S76: 28750 | T76: 0 | U76: 0 | V76: 121468.75 | W76: 0 | X76: 301156.25 | Y76: 71875 | Z76: 0.8073217726 | AA76: 0.1926782274
B77: Anden al primer piso | C77: INFRA | D77: m2 | E77: LOCAL | G77: 607.6437037 | H77: 0 | I77: 101.2739506 | J77: 0 | K77: 342.3059531 | L77: 1051.223607 | N77: 486.114963 | O77: 121.5287407 | P77: 0 | Q77: 0 | R77: 20.25479012 | S77: 81.01916049 | T77: 0 | U77: 0 | V77: 342.3059531 | W77: 0 | X77: 848.6757062 | Y77: 202.5479012 | Z77: 0.8073217726 | AA77: 0.1926782274
B78: Centro de mando + Locales tecnicos cubiertos | C78: INFRA | D78: m2 | E78: LOCAL | G78: 809.9824693 | H78: 0 | I78: 134.9970782 | J78: 0 | K78: 456.2901244 | L78: 1401.269672 | N78: 647.9859754 | O78: 161.9964939 | P78: 0 | Q78: 0 | R78: 26.99941564 | S78: 107.9976626 | T78: 0 | U78: 0 | V78: 456.2901244 | W78: 0 | X78: 1131.275515 | Y78: 269.9941564 | Z78: 0.8073217726 | AA78: 0.1926782274
B79: Locales tecnicos non cerrados | C79: INFRA | D79: m2 | E79: LOCAL | G79: 404.9912346 | H79: 0 | I79: 67.49853911 | J79: 0 | K79: 228.1450622 | L79: 700.6348359 | N79: 323.9929877 | O79: 80.99824693 | P79: 0 | Q79: 0 | R79: 13.49970782 | S79: 53.99883128 | T79: 0 | U79: 0 | V79: 228.1450622 | W79: 0 | X79: 565.6377577 | Y79: 134.9970782 | Z79: 0.8073217726 | AA79: 0.1926782274
B80: Adecuacion urbana (demolicion, reconstruccion, mobiliario urbano, paisaje) | C80: INFRA | D80: m2 | E80: LOCAL | G80: 376.444215 | H80: 0 | I80: 41.827135 | J80: 0 | K80: 108.750551 | L80: 527.021901 | N80: 301.155372 | O80: 75.288843 | P80: 0 | Q80: 0 | R80: 8.365427 | S80: 33.461708 | T80: 0 | U80: 0 | V80: 108.750551 | W80: 0 | X80: 418.27135 | Y80: 108.750551 | Z80: 0.7936507937 | AA80: 0.2063492063
B81: Pasarela | C81: INFRA | D81: m2 | E81: LOCAL | G81: 784.2587812 | H81: 0 | I81: 130.7097969 | J81: 0 | K81: 441.7991134 | L81: 1356.767692 | N81: 627.407025 | O81: 156.8517562 | P81: 0 | Q81: 0 | R81: 26.14195937 | S81: 104.5678375 | T81: 0 | U81: 0 | V81: 441.7991134 | W81: 0 | X81: 1095.348098 | Y81: 261.4195937 | Z81: 0.8073217726 | AA81: 0.1926782274
B82: Edificio - De linea
B83: Fundaciones tipicas (edificio con piso tierra y primer piso) | C83: INFRA | D83: U | E83: LOCAL | G83: 111992.154 | H83: 0 | I83: 18665.35899 | J83: 0 | K83: 63088.9134 | L83: 193746.4264 | N83: 89593.72317 | O83: 22398.43079 | P83: 0 | Q83: 0 | R83: 3733.071799 | S83: 14932.28719 | T83: 0 | U83: 0 | V83: 63088.9134 | W83: 0 | X83: 156415.7084 | Y83: 37330.71799 | Z83: 0.8073217726 | AA83: 0.1926782274
B84: Piso tierra sobrelevado y fundaciones | C84: INFRA | D84: m2 | E84: LOCAL | G84: 1254.81405 | H84: 0 | I84: 209.135675 | J84: 0 | K84: 706.8785815 | L84: 2170.828306 | N84: 1003.85124 | O84: 250.96281 | P84: 0 | Q84: 0 | R84: 41.827135 | S84: 167.30854 | T84: 0 | U84: 0 | V84: 706.8785815 | W84: 0 | X84: 1752.556956 | Y84: 418.27135 | Z84: 0.8073217726 | AA84: 0.1926782274
B85: Superficies comerciales | C85: INFRA | D85: m2 | E85: LOCAL | G85: 404.9912346 | H85: 0 | I85: 67.49853911 | J85: 0 | K85: 228.1450622 | L85: 700.6348359 | N85: 323.9929877 | O85: 80.99824693 | P85: 0 | Q85: 0 | R85: 13.49970782 | S85: 53.99883128 | T85: 0 | U85: 0 | V85: 228.1450622 | W85: 0 | X85: 565.6377577 | Y85: 134.9970782 | Z85: 0.8073217726 | AA85: 0.1926782274
B86: Ingreso y circulaciones al piso tierra (y/c servicios, escaleras mecanicas, escaleras y ascencores) | C86: INFRA | D86: m2 | E86: LOCAL | G86: 1536.101533 | H86: 0 | I86: 118.1616564 | J86: 0 | K86: 184.3321839 | L86: 1838.595373 | N86: 1228.881226 | O86: 307.2203066 | P86: 0 | Q86: 0 | R86: 23.63233127 | S86: 94.5293251 | T86: 0 | U86: 0 | V86: 184.3321839 | W86: 0 | X86: 1436.845742 | Y86: 401.7496317 | Z86: 0.7814910026 | AA86: 0.2185089974
B87: Escaleras mecanicas, escaleras y ascencores adicionales (piso tierra sobrelevado) | C87: EQUIP | D87: U | E87: LOCAL | G87: 215625 | H87: 0 | I87: 35937.5 | J87: 0 | K87: 121468.75 | L87: 373031.25 | N87: 172500 | O87: 43125 | P87: 0 | Q87: 0 | R87: 7187.5 | S87: 28750 | T87: 0 | U87: 0 | V87: 121468.75 | W87: 0 | X87: 301156.25 | Y87: 71875 | Z87: 0.8073217726 | AA87: 0.1926782274
B88: Anden al primer piso | C88: INFRA | D88: m2 | E88: LOCAL | G88: 607.6437037 | H88: 0 | I88: 101.2739506 | J88: 0 | K88: 342.3059531 | L88: 1051.223607 | N88: 486.114963 | O88: 121.5287407 | P88: 0 | Q88: 0 | R88: 20.25479012 | S88: 81.01916049 | T88: 0 | U88: 0 | V88: 342.3059531 | W88: 0 | X88: 848.6757062 | Y88: 202.5479012 | Z88: 0.8073217726 | AA88: 0.1926782274
B89: Centro de mando + Locales tecnicos cubiertos | C89: INFRA | D89: m2 | E89: LOCAL | G89: 809.9824693 | H89: 0 | I89: 134.9970782 | J89: 0 | K89: 456.2901244 | L89: 1401.269672 | N89: 647.9859754 | O89: 161.9964939 | P89: 0 | Q89: 0 | R89: 26.99941564 | S89: 107.9976626 | T89: 0 | U89: 0 | V89: 456.2901244 | W89: 0 | X89: 1131.275515 | Y89: 269.9941564 | Z89: 0.8073217726 | AA89: 0.1926782274
B90: Locales tecnicos non cerrados | C90: INFRA | D90: m2 | E90: LOCAL | G90: 404.9912346 | H90: 0 | I90: 67.49853911 | J90: 0 | K90: 228.1450622 | L90: 700.6348359 | N90: 323.9929877 | O90: 80.99824693 | P90: 0 | Q90: 0 | R90: 13.49970782 | S90: 53.99883128 | T90: 0 | U90: 0 | V90: 228.1450622 | W90: 0 | X90: 565.6377577 | Y90: 134.9970782 | Z90: 0.8073217726 | AA90: 0.1926782274
B91: Adecuacion urbana (demolicion, reconstruccion, mobiliario urbano, paisaje) | C91: INFRA | D91: m2 | E91: LOCAL | G91: 376.444215 | H91: 0 | I91: 41.827135 | J91: 0 | K91: 108.750551 | L91: 527.021901 | N91: 301.155372 | O91: 75.288843 | P91: 0 | Q91: 0 | R91: 8.365427 | S91: 33.461708 | T91: 0 | U91: 0 | V91: 108.750551 | W91: 0 | X91: 418.27135 | Y91: 108.750551 | Z91: 0.7936507937 | AA91: 0.2063492063
B92: Pasarela | C92: INFRA | D92: m2 | E92: LOCAL | G92: 784.2587812 | H92: 0 | I92: 130.7097969 | J92: 0 | K92: 441.7991134 | L92: 1356.767692 | N92: 627.407025 | O92: 156.8517562 | P92: 0 | Q92: 0 | R92: 26.14195937 | S92: 104.5678375 | T92: 0 | U92: 0 | V92: 441.7991134 | W92: 0 | X92: 1095.348098 | Y92: 261.4195937 | Z92: 0.8073217726 | AA92: 0.1926782274
B94: Centro de mantenimiento
B95: Zona de almacenamiento de tipo local industrial | C95: INFRA | D95: m2 | E95: LOCAL | G95: 404.9912346 | H95: 0 | I95: 67.49853911 | J95: 0 | K95: 228.1450622 | L95: 700.6348359 | N95: 323.9929877 | O95: 80.99824693 | P95: 0 | Q95: 0 | R95: 13.49970782 | S95: 53.99883128 | T95: 0 | U95: 0 | V95: 228.1450622 | W95: 0 | X95: 565.6377577 | Y95: 134.9970782 | Z95: 0.8073217726 | AA95: 0.1926782274
B96: Almacen y taller | C96: INFRA | D96: m2 | E96: LOCAL | G96: 573.7637244 | H96: 0 | I96: 95.62728739 | J96: 0 | K96: 323.2202314 | L96: 992.6112431 | N96: 459.0109795 | O96: 114.7527449 | P96: 0 | Q96: 0 | R96: 19.12545748 | S96: 76.50182991 | T96: 0 | U96: 0 | V96: 323.2202314 | W96: 0 | X96: 801.3566684 | Y96: 191.2545748 | Z96: 0.8073217726 | AA96: 0.1926782274
B97: Local de supervision | C97: INFRA | D97: m2 | E97: LOCAL | G97: 573.7637244 | H97: 0 | I97: 95.62728739 | J97: 0 | K97: 323.2202314 | L97: 992.6112431 | N97: 459.0109795 | O97: 114.7527449 | P97: 0 | Q97: 0 | R97: 19.12545748 | S97: 76.50182991 | T97: 0 | U97: 0 | V97: 323.2202314 | W97: 0 | X97: 801.3566684 | Y97: 191.2545748 | Z97: 0.8073217726 | AA97: 0.1926782274
B98: Transporte cabinas | C98: EQUIP | D98: m2 | E98: EUROPA | G98: 922.7319479 | H98: 4.613659739 | I98: 70.97938061 | J98: 92.27319479 | K98: 73.81855583 | L98: 1164.416739 | N98: 0 | O98: 922.7319479 | P98: 4.613659739 | Q98: 0 | R98: 14.19587612 | S98: 56.78350448 | T98: 0 | U98: 92.27319479 | V98: 73.81855583 | W98: 0 | X98: 92.62809169 | Y98: 1071.788647 | Z98: 0.07954891801 | AA98: 0.920451082
B99: Instrumentos, elevador y piezas de recambio | C99: EQUIP | D99: U | E99: EUROPA | G99: 124435.7266 | H99: 622.1786331 | I99: 7319.748625 | J99: 12443.57266 | K99: 0 | L99: 144821.2265 | N99: 0 | O99: 124435.7266 | P99: 622.1786331 | Q99: 0 | R99: 1463.949725 | S99: 5855.7989 | T99: 0 | U99: 12443.57266 | V99: 0 | W99: 0 | X99: 2086.128358 | Y99: 142735.0982 | Z99: 0.01440485216 | AA99: 0.9855951478
B100: Ascensores inclinados para las cabinas | C100: EQUIP | D100: U | E100: EUROPA | G100: 576707.4674 | H100: 2883.537337 | I100: 44362.11288 | J100: 57670.74674 | K100: 46136.59739 | L100: 727760.4618 | N100: 0 | O100: 576707.4674 | P100: 2883.537337 | Q100: 0 | R100: 8872.422576 | S100: 35489.6903 | T100: 0 | U100: 57670.74674 | V100: 46136.59739 | W100: 0 | X100: 57892.55731 | Y100: 669867.9045 | Z100: 0.07954891801 | AA100: 0.920451082
B101: Adecuacion urbana (demolicion, reconstruccion, mobiliario urbano, paisaje) | C101: INFRA | D101: m2 | E101: LOCAL | G101: 141.1665806 | H101: 0 | I101: 15.68517562 | J101: 0 | K101: 40.78145662 | L101: 197.6332129 | N101: 112.9332645 | O101: 28.23331612 | P101: 0 | Q101: 0 | R101: 3.137035125 | S101: 12.5481405 | T101: 0 | U101: 0 | V101: 40.78145662 | W101: 0 | X101: 156.8517562 | Y101: 40.78145662 | Z101: 0.7936507937 | AA101: 0.2063492063
B103: Operaciones adicionales : estacionamiento incitativo y buses
B104: Estacionamiento incitativo | C104: INFRA | D104: Plaza | E104: LOCAL | G104: 1097.962294 | H104: 0 | I104: 182.9937156 | J104: 0 | K104: 618.5187588 | L104: 1899.474768 | N104: 878.369835 | O104: 219.5924587 | P104: 0 | Q104: 0 | R104: 36.59874312 | S104: 146.3949725 | T104: 0 | U104: 0 | V104: 618.5187588 | W104: 0 | X104: 1533.487337 | Y104: 365.9874312 | Z104: 0.8073217726 | AA104: 0.1926782274
B105: Creacion de vias de acceso en Samborondon | C105: INFRA | D105: m² | E105: LOCAL | G105: 141.1665806 | H105: 0 | I105: 15.68517562 | J105: 0 | K105: 40.78145662 | L105: 197.6332129 | N105: 112.9332645 | O105: 28.23331612 | P105: 0 | Q105: 0 | R105: 3.137035125 | S105: 12.5481405 | T105: 0 | U105: 0 | V105: 40.78145662 | W105: 0 | X105: 156.8517562 | Y105: 40.78145662 | Z105: 0.7936507937 | AA105: 0.2063492063
B106: Compra de buses alimentadores para Samborondon (12 m) | C106: VEH | D106: U | E106: LOCAL | G106: 130000 | H106: 0 | I106: 0 | J106: 0 | K106: 0 | L106: 130000 | N106: 104000 | O106: 26000 | P106: 0 | Q106: 0 | R106: 0 | S106: 0 | T106: 0 | U106: 0 | V106: 0 | W106: 0 | X106: 104000 | Y106: 26000 | Z106: 0.8 | AA106: 0.2
B107: Compra de buses alimentadores para Duran (12 m) | C107: VEH | D107: U | E107: LOCAL | G107: 130000 | H107: 0 | I107: 0 | J107: 0 | K107: 0 | L107: 130000 | N107: 104000 | O107: 26000 | P107: 0 | Q107: 0 | R107: 0 | S107: 0 | T107: 0 | U107: 0 | V107: 0 | W107: 0 | X107: 104000 | Y107: 26000 | Z107: 0.8 | AA107: 0.2
B108: Creacion de paraderos en Samborondon | C108: INFRA | D108: U | E108: LOCAL | G108: 1568.517562 | H108: 0 | I108: 522.8391875 | J108: 0 | K108: 2175.01102 | L108: 4266.36777 | N108: 1254.81405 | O108: 313.7035125 | P108: 0 | Q108: 0 | R108: 104.5678375 | S108: 418.27135 | T108: 0 | U108: 0 | V108: 2175.01102 | W108: 0 | X108: 3534.392907 | Y108: 731.9748625 | Z108: 0.8284313725 | AA108: 0.1715686275
B109: Creacion de paraderos en Duran | C109: INFRA | D109: U | E109: LOCAL | G109: 1568.517562 | H109: 0 | I109: 522.8391875 | J109: 0 | K109: 2175.01102 | L109: 4266.36777 | N109: 1254.81405 | O109: 313.7035125 | P109: 0 | Q109: 0 | R109: 104.5678375 | S109: 418.27135 | T109: 0 | U109: 0 | V109: 2175.01102 | W109: 0 | X109: 3534.392907 | Y109: 731.9748625 | Z109: 0.8284313725 | AA109: 0.1715686275
B110: Modificacion de parada de bus | C110: INFRA | D110: forfait | E110: LOCAL | G110: 1568.517562 | H110: 0 | I110: 522.8391875 | J110: 0 | K110: 2175.01102 | L110: 4266.36777 | N110: 1254.81405 | O110: 313.7035125 | P110: 0 | Q110: 0 | R110: 104.5678375 | S110: 418.27135 | T110: 0 | U110: 0 | V110: 2175.01102 | W110: 0 | X110: 3534.392907 | Y110: 731.9748625 | Z110: 0.8284313725 | AA110: 0.1715686275

Sheet DEMANDA (hidden)
B2: Legenda | C2: Dato de entrada
C3: Celda llave
C4: Error
C5: Dato calculado
B8: HIPOTESIS
B10: Dias de operacion | C10: 300
B12: Escenario base | C12: % de tarifas normales | D12: =1-D13 -> 0.85
C13: % de tarifas reducidas | D13: 0.15
C15: Parqueardero gratuido
C16: Plazas necesaria | D16: 22 | E16: 200
D17: 13 | E17: 400
C19: Alimentadoras de Samborondon con tarifa integrada (gratuidas)
E20: Demanda hora pico (pphpd)
E21: Samborondon | F21: Duran
D22: 22 | E22: 0 | F22: 350
D23: 13 | E23: 200 | F23: 350
C25: Sin integracion tarifaria con el Metrovia
B30: ALTERNATIVA 22
D32: 999 | I32: =D32*AX32/AS32 -> 1080.525866 | N32: =I32*BC32/AX32 -> 1186.174936 | S32: =N32*BH32/BC32 -> 1322.539272 | X32: =S32*BM32/BH32 -> 1519.365691 | AS32: 907.76 | AX32: 981.84 | BC32: 1077.84 | BH32: 1201.75 | BM32: 1380.6
D33: =D$32*AS33/AS$32 -> 989.2054508 | I33: =I$32*AX33/AX$32 -> 1071.754792 | N33: =N$32*BC33/BC$32 -> 1173.177899 | S33: =S$32*BH33/BH$32 -> 1309.355149 | X33: =X$32*BM33/BM$32 -> 1499.743578 | AS33: 898.86 | AX33: 973.87 | BC33: 1066.03 | BH33: 1189.77 | BM33: 1362.77
D34: =D$32*AS34/AS$32 -> 976.9127413 | I34: =I$32*AX34/AX$32 -> 1055.863411 | N34: =N$32*BC34/BC$32 -> 1161.622532 | S34: =S$32*BH34/BH$32 -> 1289.369866 | X34: =X$32*BM34/BM$32 -> 1464.945415 | AS34: 887.69 | AX34: 959.43 | BC34: 1055.53 | BH34: 1171.61 | BM34: 1331.15
D35: 963.0573059 | I35: 1040.137107 | N35: 1133.944677 | S35: 1260.54748 | X35: 1441.72463 | AS35: 875.1 | AX35: 945.14 | BC35: 1030.38 | BH35: 1145.42 | BM35: 1310.05
D36: =D$32*AS36/AS$32 -> 949.6090597 | I36: =I$32*AX36/AX$32 -> 1021.637514 | N36: =N$32*BC36/BC$32 -> 1113.277078 | S36: =S$32*BH36/BH$32 -> 1237.711873 | X36: =X$32*BM36/BM$32 -> 1410.13996 | AS36: 862.88 | AX36: 928.33 | BC36: 1011.6 | BH36: 1124.67 | BM36: 1281.35
B37: JOB
B38: Año | C38: 2019 | D38: 2020 | E38: 2021 | F38: 2022 | G38: 2023 | H38: 2024 | I38: 2025 | J38: 2026 | K38: 2027 | L38: 2028 | M38: 2029 | N38: 2030 | O38: 2031 | P38: 2032 | Q38: 2033 | R38: 2034 | S38: 2035 | T38: 2036 | U38: 2037 | V38: 2038 | W38: 2039 | X38: 2040 | Y38: 2041 | Z38: 2042 | AA38: 2043 | AB38: 2044 | AC38: 2045 | AD38: 2046 | AE38: 2047 | AF38: 2048 | AG38: 2049 | AH38: 2050 | AI38: 2051 | AJ38: 2052 | AK38: 2053 | AL38: 2054 | AM38: 2055 | AN38: 2056 | AO38: 2057 | AP38: 2058 | AQ38: 2059
B39: Tarifa 1 | C39: =D39-0.25*D39 -> 8325 | D39: =D32*PARAMETROS!$C$23/PARAMETROS!$C$25 -> 11100 | E39: =D39+($I39-$D39)/5 -> 11281.16859 | F39: =E39+($I39-$D39)/5 -> 11462.33718 | G39: 11643.50577 | H39: 11824.67436 | I39: =I32*PARAMETROS!$C$23/PARAMETROS!$C$25 -> 12005.84295 | J39: =I39+($N39-$I39)/5 -> 12240.61867 | K39: =J39+($N39-$I39)/5 -> 12475.39438 | L39: 12710.17009 | M39: 12944.9458 | N39: =N32*PARAMETROS!$C$23/PARAMETROS!$C$25 -> 13179.72151 | O39: =N39+($S39-$N39)/5 -> 13482.75337 | P39: =O39+($S39-$N39)/5 -> 13785.78523 | Q39: 14088.81709 | R39: 14391.84895 | S39: =S32*PARAMETROS!$C$23/PARAMETROS!$C$25 -> 14694.88081 | T39: =S39+($X39-$S39)/5 -> 15132.27285 | U39: =T39+($X39-$S39)/5 -> 15569.66489 | V39: =U39+($X39-$S39)/5 -> 16007.05693 | W39: 16444.44897 | X39: =X32*PARAMETROS!$C$23/PARAMETROS!$C$25 -> 16881.84102 | Y39: =$X39 -> 16881.84102 | Z39: =$X39 -> 16881.84102 | AA39: 16881.84102 | AB39: 16881.84102 | AC39: 16881.84102 | AD39: 16881.84102 | AE39: 16881.84102 | AF39: 16881.84102 | AG39: 16881.84102 | AH39: 16881.84102 | AI39: 16881.84102 | AJ39: 16881.84102 | AK39: 16881.84102 | AL39: 16881.84102 | AM39: 16881.84102 | AN39: 16881.84102 | AO39: 16881.84102 | AP39: 16881.84102 | AQ39: 16881.84102
B40: Tarifa 2 | C40: =D40-0.25*D40 -> 8243.378756 | D40: =D33*PARAMETROS!$C$23/PARAMETROS!$C$25 -> 10991.17168 | E40: =D40+($I40-$D40)/5 -> 11174.61466 | F40: 11358.05764 | G40: 11541.50062 | H40: 11724.9436 | I40: =I33*PARAMETROS!$C$23/PARAMETROS!$C$25 -> 11908.38658 | J40: =I40+($N40-$I40)/5 -> 12133.77126 | K40: 12359.15594 | L40: 12584.54063 | M40: 12809.92531 | N40: =N33*PARAMETROS!$C$23/PARAMETROS!$C$25 -> 13035.30999 | O40: =N40+($S40-$N40)/5 -> 13337.9261 | P40: 13640.54221 | Q40: 13943.15832 | R40: 14245.77443 | S40: =S33*PARAMETROS!$C$23/PARAMETROS!$C$25 -> 14548.39054 | T40: =S40+($X40-$S40)/5 -> 14971.47594 | U40: 15394.56134 | V40: 15817.64673 | W40: 16240.73213 | X40: =X33*PARAMETROS!$C$23/PARAMETROS!$C$25 -> 16663.81753 | Y40: =$X40 -> 16663.81753 | Z40: 16663.81753 | AA40: 16663.81753 | AB40: 16663.81753 | AC40: 16663.81753 | AD40: 16663.81753 | AE40: 16663.81753 | AF40: 16663.81753 | AG40: 16663.81753 | AH40: 16663.81753 | AI40: 16663.81753 | AJ40: 16663.81753 | AK40: 16663.81753 | AL40: 16663.81753 | AM40: 16663.81753 | AN40: 16663.81753 | AO40: 16663.81753 | AP40: 16663.81753 | AQ40: 16663.81753
B41: Tarifa 3 | C41: 8140.93951 | D41: =D34*PARAMETROS!$C$23/PARAMETROS!$C$25 -> 10854.58601 | E41: =D41+($I41-$D41)/5 -> 11030.03195 | F41: 11205.47788 | G41: 11380.92381 | H41: 11556.36975 | I41: =I34*PARAMETROS!$C$23/PARAMETROS!$C$25 -> 11731.81568 | J41: =I41+($N41-$I41)/5 -> 11966.83595 | K41: 12201.85622 | L41: 12436.87649 | M41: 12671.89676 | N41: =N34*PARAMETROS!$C$23/PARAMETROS!$C$25 -> 12906.91703 | O41: =N41+($S41-$N41)/5 -> 13190.79999 | P41: 13474.68296 | Q41: 13758.56592 | R41: 14042.44889 | S41: =S34*PARAMETROS!$C$23/PARAMETROS!$C$25 -> 14326.33185 | T41: =S41+($X41-$S41)/5 -> 14716.49974 | U41: 15106.66762 | V41: 15496.83551 | W41: 15887.00339 | X41: =X34*PARAMETROS!$C$23/PARAMETROS!$C$25 -> 16277.17128 | Y41: 16277.17128 | Z41: 16277.17128 | AA41: 16277.17128 | AB41: 16277.17128 | AC41: 16277.17128 | AD41: 16277.17128 | AE41: 16277.17128 | AF41: 16277.17128 | AG41: 16277.17128 | AH41: 16277.17128 | AI41: 16277.17128 | AJ41: 16277.17128 | AK41: 16277.17128 | AL41: 16277.17128 | AM41: 16277.17128 | AN41: 16277.17128 | AO41: 16277.17128 | AP41: 16277.17128 | AQ41: 16277.17128
B42: Tarifa 4 | C42: 8025.477549 | D42: =D35*PARAMETROS!$C$23/PARAMETROS!$C$25 -> 10700.63673 | E42: =D42+($I42-$D42)/5 -> 10871.92518 | F42: 11043.21362 | G42: 11214.50207 | H42: 11385.79052 | I42: =I35*PARAMETROS!$C$23/PARAMETROS!$C$25 -> 11557.07896 | J42: =I42+($N42-$I42)/5 -> 11765.54023 | K42: 11974.0015 | L42: 12182.46277 | M42: 12390.92403 | N42: =N35*PARAMETROS!$C$23/PARAMETROS!$C$25 -> 12599.3853 | O42: =N42+($S42-$N42)/5 -> 12880.72486 | P42: 13162.06442 | Q42: 13443.40398 | R42: 13724.74354 | S42: =S35*PARAMETROS!$C$23/PARAMETROS!$C$25 -> 14006.08311 | T42: =S42+($X42-$S42)/5 -> 14408.699 | U42: 14811.31488 | V42: 15213.93077 | W42: 15616.54666 | X42: =X35*PARAMETROS!$C$23/PARAMETROS!$C$25 -> 16019.16255 | Y42: 16019.16255 | Z42: 16019.16255 | AA42: 16019.16255 | AB42: 16019.16255 | AC42: 16019.16255 | AD42: 16019.16255 | AE42: 16019.16255 | AF42: 16019.16255 | AG42: 16019.16255 | AH42: 16019.16255 | AI42: 16019.16255 | AJ42: 16019.16255 | AK42: 16019.16255 | AL42: 16019.16255 | AM42: 16019.16255 | AN42: 16019.16255 | AO42: 16019.16255 | AP42: 16019.16255 | AQ42: 16019.16255
B43: Tarifa 5 | C43: 7913.408831 | D43: =D36*PARAMETROS!$C$23/PARAMETROS!$C$25 -> 10551.21177 | E43: =D43+($I43-$D43)/5 -> 10711.27501 | F43: 10871.33824 | G43: 11031.40147 | H43: 11191.4647 | I43: =I36*PARAMETROS!$C$23/PARAMETROS!$C$25 -> 11351.52794 | J43: =I43+($N43-$I43)/5 -> 11555.17141 | K43: 11758.81488 | L43: 11962.45836 | M43: 12166.10183 | N43: =N36*PARAMETROS!$C$23/PARAMETROS!$C$25 -> 12369.74531 | O43: =N43+($S43-$N43)/5 -> 12646.26707 | P43: 12922.78884 | Q43: 13199.31061 | R43: 13475.83238 | S43: =S36*PARAMETROS!$C$23/PARAMETROS!$C$25 -> 13752.35415 | T43: =S43+($X43-$S43)/5 -> 14135.52767 | U43: 14518.7012 | V43: 14901.87472 | W43: 15285.04825 | X43: =X36*PARAMETROS!$C$23/PARAMETROS!$C$25 -> 15668.22178 | Y43: 15668.22178 | Z43: 15668.22178 | AA43: 15668.22178 | AB43: 15668.22178 | AC43: 15668.22178 | AD43: 15668.22178 | AE43: 15668.22178 | AF43: 15668.22178 | AG43: 15668.22178 | AH43: 15668.22178 | AI43: 15668.22178 | AJ43: 15668.22178 | AK43: 15668.22178 | AL43: 15668.22178 | AM43: 15668.22178 | AN43: 15668.22178 | AO43: 15668.22178 | AP43: 15668.22178 | AQ43: 15668.22178
B45: Pasajeros Anuales
B46: Año | C46: 2019 | D46: 2020 | E46: 2021 | F46: 2022 | G46: 2023 | H46: 2024 | I46: 2025 | J46: 2026 | K46: 2027 | L46: 2028 | M46: 2029 | N46: 2030 | O46: 2031 | P46: 2032 | Q46: 2033 | R46: 2034 | S46: 2035 | T46: 2036 | U46: 2037 | V46: 2038 | W46: 2039 | X46: 2040 | Y46: 2041 | Z46: 2042 | AA46: 2043 | AB46: 2044 | AC46: 2045 | AD46: 2046 | AE46: 2047 | AF46: 2048 | AG46: 2049 | AH46: 2050 | AI46: 2051 | AJ46: 2052 | AK46: 2053 | AL46: 2054 | AM46: 2055 | AN46: 2056 | AO46: 2057 | AP46: 2058 | AQ46: 2059
B47: Tarifa 1 | C47: =$C$10*C39 -> 2497500 | D47: =$C$10*D39 -> 3330000 | E47: 3384350.577 | F47: 3438701.154 | G47: 3493051.732 | H47: 3547402.309 | I47: 3601752.886 | J47: 3672185.6 | K47: 3742618.313 | L47: 3813051.027 | M47: 3883483.74 | N47: 3953916.454 | O47: 4044826.011 | P47: 4135735.569 | Q47: 4226645.126 | R47: 4317554.684 | S47: 4408464.242 | T47: 4539681.854 | U47: 4670899.467 | V47: 4802117.079 | W47: 4933334.692 | X47: 5064552.305 | Y47: 5064552.305 | Z47: 5064552.305 | AA47: 5064552.305 | AB47: 5064552.305 | AC47: 5064552.305 | AD47: 5064552.305 | AE47: 5064552.305 | AF47: 5064552.305 | AG47: 5064552.305 | AH47: =$C$10*AH39 -> 5064552.305 | AI47: 5064552.305 | AJ47: 5064552.305 | AK47: 5064552.305 | AL47: 5064552.305 | AM47: 5064552.305 | AN47: 5064552.305 | AO47: 5064552.305 | AP47: 5064552.305 | AQ47: 5064552.305
B48: Tarifa 2 | C48: =$C$10*C40 -> 2473013.627 | D48: =$C$10*D40 -> 3297351.503 | E48: 3352384.397 | F48: 3407417.291 | G48: 3462450.185 | H48: 3517483.079 | I48: 3572515.973 | J48: 3640131.378 | K48: 3707746.783 | L48: 3775362.188 | M48: 3842977.593 | N48: 3910592.998 | O48: 4001377.831 | P48: 4092162.664 | Q48: 4182947.497 | R48: 4273732.33 | S48: 4364517.163 | T48: 4491442.782 | U48: 4618368.401 | V48: 4745294.02 | W48: 4872219.64 | X48: 4999145.259 | Y48: 4999145.259 | Z48: 4999145.259 | AA48: 4999145.259 | AB48: 4999145.259 | AC48: 4999145.259 | AD48: 4999145.259 | AE48: 4999145.259 | AF48: 4999145.259 | AG48: 4999145.259 | AH48: =$C$10*AH40 -> 4999145.259 | AI48: 4999145.259 | AJ48: 4999145.259 | AK48: 4999145.259 | AL48: 4999145.259 | AM48: 4999145.259 | AN48: 4999145.259 | AO48: 4999145.259 | AP48: 4999145.259 | AQ48: 4999145.259
B49: Tarifa 3 | C49: =$C$10*C41 -> 2442281.853 | D49: 3256375.804 | E49: 3309009.584 | F49: 3361643.364 | G49: 3414277.144 | H49: 3466910.924 | I49: 3519544.703 | J49: 3590050.784 | K49: 3660556.865 | L49: 3731062.946 | M49: 3801569.027 | N49: 3872075.108 | O49: 3957239.997 | P49: 4042404.887 | Q49: 4127569.776 | R49: 4212734.666 | S49: 4297899.555 | T49: 4414949.921 | U49: 4532000.286 | V49: 4649050.652 | W49: 4766101.018 | X49: 4883151.384 | Y49: 4883151.384 | Z49: 4883151.384 | AA49: 4883151.384 | AB49: 4883151.384 | AC49: 4883151.384 | AD49: 4883151.384 | AE49: 4883151.384 | AF49: 4883151.384 | AG49: 4883151.384 | AH49: =$C$10*AH41 -> 4883151.384 | AI49: 4883151.384 | AJ49: 4883151.384 | AK49: 4883151.384 | AL49: 4883151.384 | AM49: 4883151.384 | AN49: 4883151.384 | AO49: 4883151.384 | AP49: 4883151.384 | AQ49: 4883151.384
B50: Tarifa 4 | C50: 2407643.265 | D50: 3210191.02 | E50: 3261577.554 | F50: 3312964.087 | G50: 3364350.621 | H50: 3415737.155 | I50: 3467123.689 | J50: 3529662.069 | K50: 3592200.449 | L50: 3654738.83 | M50: 3717277.21 | N50: 3779815.59 | O50: 3864217.458 | P50: 3948619.327 | Q50: 4033021.195 | R50: 4117423.063 | S50: 4201824.932 | T50: 4322609.699 | U50: 4443394.465 | V50: 4564179.232 | W50: 4684963.999 | X50: 4805748.766 | Y50: 4805748.766 | Z50: 4805748.766 | AA50: 4805748.766 | AB50: 4805748.766 | AC50: 4805748.766 | AD50: 4805748.766 | AE50: 4805748.766 | AF50: 4805748.766 | AG50: 4805748.766 | AH50: =$C$10*AH42 -> 4805748.766 | AI50: 4805748.766 | AJ50: 4805748.766 | AK50: 4805748.766 | AL50: 4805748.766 | AM50: 4805748.766 | AN50: 4805748.766 | AO50: 4805748.766 | AP50: 4805748.766 | AQ50: 4805748.766
B51: Tarifa 5 | C51: 2374022.649 | D51: 3165363.532 | E51: 3213382.502 | F51: 3261401.472 | G51: 3309420.442 | H51: 3357439.411 | I51: 3405458.381 | J51: 3466551.423 | K51: 3527644.465 | L51: 3588737.508 | M51: 3649830.55 | N51: 3710923.592 | O51: 3793880.122 | P51: 3876836.653 | Q51: 3959793.183 | R51: 4042749.714 | S51: 4125706.244 | T51: 4240658.302 | U51: 4355610.36 | V51: 4470562.417 | W51: 4585514.475 | X51: 4700466.533 | Y51: 4700466.533 | Z51: 4700466.533 | AA51: 4700466.533 | AB51: 4700466.533 | AC51: 4700466.533 | AD51: 4700466.533 | AE51: 4700466.533 | AF51: 4700466.533 | AG51: 4700466.533 | AH51: =$C$10*AH43 -> 4700466.533 | AI51: 4700466.533 | AJ51: 4700466.533 | AK51: 4700466.533 | AL51: 4700466.533 | AM51: 4700466.533 | AN51: 4700466.533 | AO51: 4700466.533 | AP51: 4700466.533 | AQ51: 4700466.533
B55: ALTERNATIVA 13
D57: 5065 | I57: =D57*AX57/AS57 -> 5515.379354 | N57: =I57*BC57/AX57 -> 5959.710906 | S57: =N57*BH57/BC57 -> 6561.160259 | X57: =S57*BM57/BH57 -> 7495.909433 | AS57: 4455.47 | AX57: 4851.65 | BC57: 5242.51 | BH57: 5771.58 | BM57: 6593.84
D58: =D$57*AS58/AS$57 -> 5023.472518 | I58: =I$57*AX58/AX$57 -> 5453.162023 | N58: =N$57*BC58/BC$57 -> 5878.497566 | S58: =S$57*BH58/BH$57 -> 6468.396982 | X58: =X$57*BM58/BM$57 -> 7354.183969 | AS58: 4418.94 | AX58: 4796.92 | BC58: 5171.07 | BH58: 5689.98 | BM58: 6469.17
D59: =D$57*AS59/AS$57 -> 4933.44894 | I59: =I$57*AX59/AX$57 -> 5351.838605 | N59: =N$57*BC59/BC$57 -> 5732.111203 | S59: =S$57*BH59/BH$57 -> 6278.971186 | X59: =X$57*BM59/BM$57 -> 7148.535968 | AS59: 4339.75 | AX59: 4707.79 | BC59: 5042.3 | BH59: 5523.35 | BM59: 6288.27
D60: 4846.960826 | I60: 5247.218453 | N60: 5628.070821 | S60: 6146.283321 | X60: 6970.239492 | AS60: 4263.67 | AX60: 4615.76 | BC60: 4950.78 | BH60: 5406.63 | BM60: 6131.43
D61: 4777.43384 | I61: 5153.591204 | N61: 5518.505567 | S61: 6017.574274 | X61: 6807.846916 | AS61: 4202.51 | AX61: 4533.4 | BC61: 4854.4 | BH61: 5293.41 | BM61: 5988.58
B62: JOB
B63: Año | C63: 2019 | D63: 2020 | E63: 2021 | F63: 2022 | G63: 2023 | H63: 2024 | I63: 2025 | J63: 2026 | K63: 2027 | L63: 2028 | M63: 2029 | N63: 2030 | O63: 2031 | P63: 2032 | Q63: 2033 | R63: 2034 | S63: 2035 | T63: 2036 | U63: 2037 | V63: 2038 | W63: 2039 | X63: 2040 | Y63: 2041 | Z63: 2042 | AA63: 2043 | AB63: 2044 | AC63: 2045 | AD63: 2046 | AE63: 2047 | AF63: 2048 | AG63: 2049 | AH63: 2050 | AI63: 2051 | AJ63: 2052 | AK63: 2053 | AL63: 2054 | AM63: 2055 | AN63: 2056 | AO63: 2057 | AP63: 2058 | AQ63: 2059
B64: Tarifa 1 | C64: =D64-0.25*D64 -> 42208.33333 | D64: =D57*PARAMETROS!$C$23/PARAMETROS!$C$25 -> 56277.77778 | E64: =D64+($I64-$D64)/5 -> 57278.62079 | F64: =E64+($I64-$D64)/5 -> 58279.4638 | G64: 59280.3068 | H64: 60281.14981 | I64: =I57*PARAMETROS!$C$23/PARAMETROS!$C$25 -> 61281.99282 | J64: =I64+($N64-$I64)/5 -> 62269.39627 | K64: =J64+($N64-$I64)/5 -> 63256.79972 | L64: 64244.20317 | M64: 65231.60662 | N64: =N57*PARAMETROS!$C$23/PARAMETROS!$C$25 -> 66219.01007 | O64: =N64+($S64-$N64)/5 -> 67555.56418 | P64: =O64+($S64-$N64)/5 -> 68892.1183 | Q64: 70228.67242 | R64: 71565.22654 | S64: =S57*PARAMETROS!$C$23/PARAMETROS!$C$25 -> 72901.78066 | T64: =S64+($X64-$S64)/5 -> 74979.00104 | U64: =T64+($X64-$S64)/5 -> 77056.22143 | V64: =U64+($X64-$S64)/5 -> 79133.44181 | W64: 81210.6622 | X64: =X57*PARAMETROS!$C$23/PARAMETROS!$C$25 -> 83287.88259 | Y64: =$X64 -> 83287.88259 | Z64: =$X64 -> 83287.88259 | AA64: 83287.88259 | AB64: 83287.88259 | AC64: 83287.88259 | AD64: 83287.88259 | AE64: 83287.88259 | AF64: 83287.88259 | AG64: 83287.88259 | AH64: 83287.88259 | AI64: 83287.88259 | AJ64: 83287.88259 | AK64: 83287.88259 | AL64: 83287.88259 | AM64: 83287.88259 | AN64: 83287.88259 | AO64: 83287.88259 | AP64: 83287.88259 | AQ64: 83287.88259
B65: Tarifa 2 | C65: =D65-0.25*D65 -> 41862.27098 | D65: =D58*PARAMETROS!$C$23/PARAMETROS!$C$25 -> 55816.36131 | E65: =D65+($I65-$D65)/5 -> 56771.22688 | F65: 57726.09245 | G65: 58680.95801 | H65: 59635.82358 | I65: =I58*PARAMETROS!$C$23/PARAMETROS!$C$25 -> 60590.68915 | J65: =I65+($N65-$I65)/5 -> 61535.87924 | K65: 62481.06934 | L65: 63426.25943 | M65: 64371.44953 | N65: =N58*PARAMETROS!$C$23/PARAMETROS!$C$25 -> 65316.63962 | O65: =N65+($S65-$N65)/5 -> 66627.52721 | P65: 67938.4148 | Q65: 69249.30239 | R65: 70560.18998 | S65: =S58*PARAMETROS!$C$23/PARAMETROS!$C$25 -> 71871.07757 | T65: =S65+($X65-$S65)/5 -> 73839.4931 | U65: 75807.90863 | V65: 77776.32416 | W65: 79744.73969 | X65: =X58*PARAMETROS!$C$23/PARAMETROS!$C$25 -> 81713.15522 | Y65: =$X65 -> 81713.15522 | Z65: 81713.15522 | AA65: 81713.15522 | AB65: 81713.15522 | AC65: 81713.15522 | AD65: 81713.15522 | AE65: 81713.15522 | AF65: 81713.15522 | AG65: 81713.15522 | AH65: 81713.15522 | AI65: 81713.15522 | AJ65: 81713.15522 | AK65: 81713.15522 | AL65: 81713.15522 | AM65: 81713.15522 | AN65: 81713.15522 | AO65: 81713.15522 | AP65: 81713.15522 | AQ65: 81713.15522
B66: Tarifa 3 | C66: 41112.0745 | D66: =D59*PARAMETROS!$C$23/PARAMETROS!$C$25 -> 54816.09934 | E66: =D66+($I66-$D66)/5 -> 55745.85415 | F66: 56675.60896 | G66: 57605.36377 | H66: 58535.11858 | I66: =I59*PARAMETROS!$C$23/PARAMETROS!$C$25 -> 59464.87339 | J66: =I66+($N66-$I66)/5 -> 60309.92361 | K66: 61154.97382 | L66: 62000.02404 | M66: 62845.07426 | N66: =N59*PARAMETROS!$C$23/PARAMETROS!$C$25 -> 63690.12447 | O66: =N66+($S66-$N66)/5 -> 64905.36888 | P66: 66120.61329 | Q66: 67335.8577 | R66: 68551.1021 | S66: =S59*PARAMETROS!$C$23/PARAMETROS!$C$25 -> 69766.34651 | T66: =S66+($X66-$S66)/5 -> 71698.71269 | U66: 73631.07888 | V66: 75563.44506 | W66: 77495.81124 | X66: =X59*PARAMETROS!$C$23/PARAMETROS!$C$25 -> 79428.17742 | Y66: 79428.17742 | Z66: 79428.17742 | AA66: 79428.17742 | AB66: 79428.17742 | AC66: 79428.17742 | AD66: 79428.17742 | AE66: 79428.17742 | AF66: 79428.17742 | AG66: 79428.17742 | AH66: 79428.17742 | AI66: 79428.17742 | AJ66: 79428.17742 | AK66: 79428.17742 | AL66: 79428.17742 | AM66: 79428.17742 | AN66: 79428.17742 | AO66: 79428.17742 | AP66: 79428.17742 | AQ66: 79428.17742
B67: Tarifa 4 | C67: 40391.34021 | D67: =D60*PARAMETROS!$C$23/PARAMETROS!$C$25 -> 53855.12029 | E67: =D67+($I67-$D67)/5 -> 54744.58168 | F67: 55634.04307 | G67: 56523.50447 | H67: 57412.96586 | I67: =I60*PARAMETROS!$C$23/PARAMETROS!$C$25 -> 58302.42725 | J67: =I67+($N67-$I67)/5 -> 59148.76585 | K67: 59995.10444 | L67: 60841.44304 | M67: 61687.78164 | N67: =N60*PARAMETROS!$C$23/PARAMETROS!$C$25 -> 62534.12023 | O67: =N67+($S67-$N67)/5 -> 63685.70357 | P67: 64837.2869 | Q67: 65988.87024 | R67: 67140.45357 | S67: =S60*PARAMETROS!$C$23/PARAMETROS!$C$25 -> 68292.0369 | T67: =S67+($X67-$S67)/5 -> 70123.05062 | U67: 71954.06433 | V67: 73785.07804 | W67: 75616.09176 | X67: =X60*PARAMETROS!$C$23/PARAMETROS!$C$25 -> 77447.10547 | Y67: 77447.10547 | Z67: 77447.10547 | AA67: 77447.10547 | AB67: 77447.10547 | AC67: 77447.10547 | AD67: 77447.10547 | AE67: 77447.10547 | AF67: 77447.10547 | AG67: 77447.10547 | AH67: 77447.10547 | AI67: 77447.10547 | AJ67: 77447.10547 | AK67: 77447.10547 | AL67: 77447.10547 | AM67: 77447.10547 | AN67: 77447.10547 | AO67: 77447.10547 | AP67: 77447.10547 | AQ67: 77447.10547
B68: Tarifa 5 | C68: 39811.94866 | D68: =D61*PARAMETROS!$C$23/PARAMETROS!$C$25 -> 53082.59822 | E68: =D68+($I68-$D68)/5 -> 53918.50347 | F68: 54754.40873 | G68: 55590.31398 | H68: 56426.21923 | I68: =I61*PARAMETROS!$C$23/PARAMETROS!$C$25 -> 57262.12448 | J68: =I68+($N68-$I68)/5 -> 58073.04529 | K68: 58883.9661 | L68: 59694.88691 | M68: 60505.80772 | N68: =N61*PARAMETROS!$C$23/PARAMETROS!$C$25 -> 61316.72853 | O68: =N68+($S68-$N68)/5 -> 62425.7701 | P68: 63534.81167 | Q68: 64643.85324 | R68: 65752.89481 | S68: =S61*PARAMETROS!$C$23/PARAMETROS!$C$25 -> 66861.93638 | T68: =S68+($X68-$S68)/5 -> 68618.0978 | U68: 70374.25923 | V68: 72130.42066 | W68: 73886.58209 | X68: =X61*PARAMETROS!$C$23/PARAMETROS!$C$25 -> 75642.74351 | Y68: 75642.74351 | Z68: 75642.74351 | AA68: 75642.74351 | AB68: 75642.74351 | AC68: 75642.74351 | AD68: 75642.74351 | AE68: 75642.74351 | AF68: 75642.74351 | AG68: 75642.74351 | AH68: 75642.74351 | AI68: 75642.74351 | AJ68: 75642.74351 | AK68: 75642.74351 | AL68: 75642.74351 | AM68: 75642.74351 | AN68: 75642.74351 | AO68: 75642.74351 | AP68: 75642.74351 | AQ68: 75642.74351
B70: Pasajeros Anuales
B71: Año | C71: 2019 | D71: 2020 | E71: 2021 | F71: 2022 | G71: 2023 | H71: 2024 | I71: 2025 | J71: 2026 | K71: 2027 | L71: 2028 | M71: 2029 | N71: 2030 | O71: 2031 | P71: 2032 | Q71: 2033 | R71: 2034 | S71: 2035 | T71: 2036 | U71: 2037 | V71: 2038 | W71: 2039 | X71: 2040 | Y71: 2041 | Z71: 2042 | AA71: 2043 | AB71: 2044 | AC71: 2045 | AD71: 2046 | AE71: 2047 | AF71: 2048 | AG71: 2049 | AH71: 2050 | AI71: 2051 | AJ71: 2052 | AK71: 2053 | AL71: 2054 | AM71: 2055 | AN71: 2056 | AO71: 2057 | AP71: 2058 | AQ71: 2059
B72: Tarifa 1 | C72: =$C$10*C64 -> 12662500 | D72: =$C$10*D64 -> 16883333.33 | E72: 17183586.24 | F72: 17483839.14 | G72: 17784092.04 | H72: 18084344.94 | I72: 18384597.85 | J72: 18680818.88 | K72: 18977039.92 | L72: 19273260.95 | M72: 19569481.99 | N72: 19865703.02 | O72: 20266669.26 | P72: 20667635.49 | Q72: 21068601.73 | R72: 21469567.96 | S72: 21870534.2 | T72: 22493700.31 | U72: 23116866.43 | V72: 23740032.54 | W72: 24363198.66 | X72: 24986364.78 | Y72: 24986364.78 | Z72: 24986364.78 | AA72: 24986364.78 | AB72: 24986364.78 | AC72: 24986364.78 | AD72: 24986364.78 | AE72: 24986364.78 | AF72: 24986364.78 | AG72: 24986364.78 | AH72: =$C$10*AH64 -> 24986364.78 | AI72: 24986364.78 | AJ72: 24986364.78 | AK72: 24986364.78 | AL72: 24986364.78 | AM72: 24986364.78 | AN72: 24986364.78 | AO72: 24986364.78 | AP72: 24986364.78 | AQ72: 24986364.78
B73: Tarifa 2 | C73: =$C$10*C65 -> 12558681.3 | D73: =$C$10*D65 -> 16744908.39 | E73: 17031368.06 | F73: 17317827.73 | G73: 17604287.4 | H73: 17890747.07 | I73: 18177206.74 | J73: 18460763.77 | K73: 18744320.8 | L73: 19027877.83 | M73: 19311434.86 | N73: 19594991.89 | O73: 19988258.16 | P73: 20381524.44 | Q73: 20774790.72 | R73: 21168057 | S73: 21561323.27 | T73: 22151847.93 | U73: 22742372.59 | V73: 23332897.25 | W73: 23923421.91 | X73: 24513946.56 | Y73: 24513946.56 | Z73: 24513946.56 | AA73: 24513946.56 | AB73: 24513946.56 | AC73: 24513946.56 | AD73: 24513946.56 | AE73: 24513946.56 | AF73: 24513946.56 | AG73: 24513946.56 | AH73: =$C$10*AH65 -> 24513946.56 | AI73: 24513946.56 | AJ73: 24513946.56 | AK73: 24513946.56 | AL73: 24513946.56 | AM73: 24513946.56 | AN73: 24513946.56 | AO73: 24513946.56 | AP73: 24513946.56 | AQ73: 24513946.56
B74: Tarifa 3 | C74: =$C$10*C66 -> 12333622.35 | D74: 16444829.8 | E74: 16723756.24 | F74: 17002682.69 | G74: 17281609.13 | H74: 17560535.57 | I74: 17839462.02 | J74: 18092977.08 | K74: 18346492.15 | L74: 18600007.21 | M74: 18853522.28 | N74: 19107037.34 | O74: 19471610.66 | P74: 19836183.99 | Q74: 20200757.31 | R74: 20565330.63 | S74: 20929903.95 | T74: 21509613.81 | U74: 22089323.66 | V74: 22669033.52 | W74: 23248743.37 | X74: 23828453.23 | Y74: 23828453.23 | Z74: 23828453.23 | AA74: 23828453.23 | AB74: 23828453.23 | AC74: 23828453.23 | AD74: 23828453.23 | AE74: 23828453.23 | AF74: 23828453.23 | AG74: 23828453.23 | AH74: =$C$10*AH66 -> 23828453.23 | AI74: 23828453.23 | AJ74: 23828453.23 | AK74: 23828453.23 | AL74: 23828453.23 | AM74: 23828453.23 | AN74: 23828453.23 | AO74: 23828453.23 | AP74: 23828453.23 | AQ74: 23828453.23
B75: Tarifa 4 | C75: =$C$10*C67 -> 12117402.06 | D75: 16156536.09 | E75: 16423374.5 | F75: 16690212.92 | G75: 16957051.34 | H75: 17223889.76 | I75: 17490728.18 | J75: 17744629.75 | K75: 17998531.33 | L75: 18252432.91 | M75: 18506334.49 | N75: 18760236.07 | O75: 19105711.07 | P75: 19451186.07 | Q75: 19796661.07 | R75: 20142136.07 | S75: 20487611.07 | T75: 21036915.19 | U75: 21586219.3 | V75: 22135523.41 | W75: 22684827.53 | X75: 23234131.64 | Y75: 23234131.64 | Z75: 23234131.64 | AA75: 23234131.64 | AB75: 23234131.64 | AC75: 23234131.64 | AD75: 23234131.64 | AE75: 23234131.64 | AF75: 23234131.64 | AG75: 23234131.64 | AH75: =$C$10*AH67 -> 23234131.64 | AI75: 23234131.64 | AJ75: 23234131.64 | AK75: 23234131.64 | AL75: 23234131.64 | AM75: 23234131.64 | AN75: 23234131.64 | AO75: 23234131.64 | AP75: 23234131.64 | AQ75: 23234131.64
B76: Tarifa 5 | C76: =$C$10*C68 -> 11943584.6 | D76: 15924779.47 | E76: 16175551.04 | F76: 16426322.62 | G76: 16677094.19 | H76: 16927865.77 | I76: 17178637.35 | J76: 17421913.59 | K76: 17665189.83 | L76: 17908466.07 | M76: 18151742.32 | N76: 18395018.56 | O76: 18727731.03 | P76: 19060443.5 | Q76: 19393155.97 | R76: 19725868.44 | S76: 20058580.91 | T76: 20585429.34 | U76: 21112277.77 | V76: 21639126.2 | W76: 22165974.63 | X76: 22692823.05 | Y76: 22692823.05 | Z76: 22692823.05 | AA76: 22692823.05 | AB76: 22692823.05 | AC76: 22692823.05 | AD76: 22692823.05 | AE76: 22692823.05 | AF76: 22692823.05 | AG76: 22692823.05 | AH76: =$C$10*AH68 -> 22692823.05 | AI76: 22692823.05 | AJ76: 22692823.05 | AK76: 22692823.05 | AL76: 22692823.05 | AM76: 22692823.05 | AN76: 22692823.05 | AO76: 22692823.05 | AP76: 22692823.05 | AQ76: 22692823.05

Sheet OFERTA ALIMENTADORA (hidden)
B2: Legenda | C2: Dato de entrada
C3: Celda llave
C4: Error
C5: Dato calculado
B8: Frecuencias (mn)
B10: Samborondon | C10: 5
B11: Duran 1 | C11: 4
B12: Duran 2 | C12: 4
B14: Lineas
B16: Linea | C16: Longitud comercial (m)
B17: Samborondon | C17: =7500/2 -> 3750
B18: Duran 1 | C18: =14300/2 -> 7150
B19: Duran 2 | C19: 0
B22: Flota
B24: Linea | C24: Frecuencia en hora pico (sec) | D24: Frecuencia at hora pico (mn) | E24: Recorrido (km) | F24: Duracion de cambio sentido (mn) | G24: Objectivo de velocidad comercial (km/h) | H24: Duracion del recorrido comercial (mn) | I24: Tiempo de rotacion (mn) | J24: Flota de material rodante (trenes) | K24: Flota Total [+10% operacion *(+ 10% mantenimiento)] | L24: Flota total | N24: Recorridos diarios / bus | O24: km diarios / bus | P24: Km recorridos anualmente por la flota
B25: Samborondon | C25: =60*D25 -> 300 | D25: =$C$10 -> 5 | E25: =C17/1000 -> 3.75 | F25: =(0.1*H25)+IF(H25=0,0,5) -> 6.323529412 | G25: 17 | H25: =(60*E25)/G25 -> 13.23529412 | I25: =2*H25+2*F25 -> 39.11764706 | J25: =I25/D25 -> 7.823529412 | K25: =(J25*1.1)*1.1 -> 9.466470588 | L25: =ROUNDUP(K25,0) -> 10 | N25: =IF(I25=0,0,14*60/I25) -> 21.47368421 | O25: =C17*N25/1000 -> 80.52631579 | P25: =O25*L25*300*1.2 -> 289894.7368
B26: Duran 1 | C26: =60*D26 -> 240 | D26: =$C$11 -> 4 | E26: =C18/1000 -> 7.15 | F26: =(0.1*H26)+IF(H26=0,0,5) -> 7.523529412 | G26: 17 | H26: =(60*E26)/G26 -> 25.23529412 | I26: =2*H26+2*F26 -> 65.51764706 | J26: =I26/D26 -> 16.37941176 | K26: =(J26*1.1)*1.1 -> 19.81908824 | L26: =ROUNDUP(K26,0) -> 20 | N26: =IF(I26=0,0,14*60/I26) -> 12.82097324 | O26: =C18*N26/1000 -> 91.6699587 | P26: =O26*L26*300*1.2 -> 660023.7026
B27: Duran 2 | C27: =60*D27 -> 240 | D27: =$C$12 -> 4 | E27: =C19/1000 -> 0 | F27: 0 | G27: 17 | H27: =(60*E27)/G27 -> 0 | I27: =2*H27+2*F27 -> 0 | J27: =I27/D27 -> 0 | K27: =(J27*1.1)*1.1 -> 0 | L27: =ROUNDUP(K27,0) -> 0 | N27: 0 | O27: =C19*N27/1000 -> 0 | P27: 0
B30: Linea | C30: Frecuencia en hora pico (sec) | D30: Recorrido (km) | E30: Objectivo de velocidad comercial (km/h) | F30: Flota total
B31: Samborondon | C31: =C25 -> 300 | D31: =E25 -> 3.75 | E31: =G25 -> 17 | F31: =L25 -> 10
B32: Duran 1 | C32: =C26 -> 240 | D32: =E26 -> 7.15 | E32: =G26 -> 17 | F32: =L26 -> 20
B33: Duran 2 | C33: =C27 -> 240 | D33: =E27 -> 0 | E33: =G27 -> 17 | F33: =L27 -> 0
B38: Capacidad Maxima en personas por horas y por sentido (pphpd)
B40: =C10 -> 5 | C40: Frecuencia en horas pico (sec) | D40: Buses por hora | E40: Tipo de bus | F40: Capacidad con 4 pers./m² (pax) | G40: Carga maxima pphd (4 pers./m²)
C41: =$B$40*60 -> 300 | D41: =3600/C41 -> 12 | E41: Bus de 12m | F41: 24 | G41: =D41*F41 -> 288
B43: =C11 -> 4 | C43: Frecuencia en horas pico (sec) | D43: Buses por hora | E43: Tipo de bus | F43: Capacidad con 4 pers./m² (pax) | G43: Carga maxima pphd (4 pers./m²)
C44: =$B$43*60 -> 240 | D44: =3600/C44 -> 15 | E44: Bus de 12m | F44: 24 | G44: =D44*F44 -> 360
B46: =C12 -> 4 | C46: Frecuencia en horas pico (sec) | D46: Buses por hora | E46: Tipo de bus | F46: Capacidad con 4 pers./m² (pax) | G46: Carga maxima pphd (4 pers./m²)
C47: =$B$43*60 -> 240 | D47: =3600/C47 -> 15 | E47: Bus de 12m | F47: 80 | G47: =D47*F47 -> 1200

Sheet INGRESOS de pasajeros (hidden)
B2: Legenda | C2: Dato de entrada
C3: Celda llave
C4: Error
C5: Dato calculado
B8: HIPOTESIS
B10: Dias de operacion | C10: =DEMANDA!C10 -> 300
B12: Escenario base | C12: % de tarifas normales | D12: =1-D13 -> 0.85
C13: % de tarifas reducidas | D13: =DEMANDA!D13 -> 0.15
C15: =DEMANDA!C15 -> Parqueardero gratuido
C16: Plazas necesaria | D16: 22 | E16: =DEMANDA!E16 -> 200
D17: 13 | E17: =DEMANDA!E17 -> 400
C19: =DEMANDA!C19 -> Alimentadoras de Samborondon con tarifa integrada (gratuidas)
E20: Demanda hora pico (pphpd)
E21: Samborondon | F21: Duran
D22: 22 | E22: =DEMANDA!E22 -> 0 | F22: =DEMANDA!F22 -> 350
D23: 13 | E23: =DEMANDA!E23 -> 200 | F23: =DEMANDA!F23 -> 350
C25: =DEMANDA!C25 -> Sin integracion tarifaria con el Metrovia
C27: Ficheros fuentes | D27: =DEMANDA!D27 -> 0
D28: =DEMANDA!D28 -> 0
B31: Tarifas | C31: Tarifa con IVA | D31: Tarifa sin IVA | E31: Reducida
B32: 1 | C32: 0.6 | D32: =C32*(1-PARAMETROS!$C$54) -> 0.528 | E32: =D32/2 -> 0.264
B33: 2 | C33: 0.75 | D33: =C33*(1-PARAMETROS!$C$54) -> 0.66 | E33: =D33/2 -> 0.33
B34: 3 | C34: 1 | D34: =C34*(1-PARAMETROS!$C$54) -> 0.88 | E34: 0.44
B35: 4 | C35: 1.25 | D35: =C35*(1-PARAMETROS!$C$54) -> 1.1 | E35: 0.55
B36: 5 | C36: 1.5 | D36: =C36*(1-PARAMETROS!$C$54) -> 1.32 | E36: 0.66
B41: ALTERNATIVA 22
B43: Ingresos anuales en USD 2015
B44: Año | C44: 2019 | D44: 2020 | E44: 2021 | F44: 2022 | G44: 2023 | H44: 2024 | I44: 2025 | J44: 2026 | K44: 2027 | L44: 2028 | M44: 2029 | N44: 2030 | O44: 2031 | P44: 2032 | Q44: 2033 | R44: 2034 | S44: 2035 | T44: 2036 | U44: 2037 | V44: 2038 | W44: 2039 | X44: 2040 | Y44: 2041 | Z44: 2042 | AA44: 2043 | AB44: 2044 | AC44: 2045 | AD44: 2046 | AE44: 2047 | AF44: 2048 | AG44: 2049 | AH44: 2050 | AI44: 2051 | AJ44: 2052 | AK44: 2053 | AL44: 2054 | AM44: 2055 | AN44: 2056 | AO44: 2057 | AP44: 2058 | AQ44: 2059
B45: Tarifa 1 | C45: =$D32*DEMANDA!C47*$D$12+$E32*DEMANDA!C47*$D$13 -> 1219779 | D45: =$D32*DEMANDA!D47*$D$12+$E32*DEMANDA!D47*$D$13 -> 1626372 | E45: =$D32*DEMANDA!E47*$D$12+$E32*DEMANDA!E47*$D$13 -> 1652916.822 | F45: =$D32*DEMANDA!F47*$D$12+$E32*DEMANDA!F47*$D$13 -> 1679461.644 | G45: =$D32*DEMANDA!G47*$D$12+$E32*DEMANDA!G47*$D$13 -> 1706006.466 | H45: =$D32*DEMANDA!H47*$D$12+$E32*DEMANDA!H47*$D$13 -> 1732551.288 | I45: =$D32*DEMANDA!I47*$D$12+$E32*DEMANDA!I47*$D$13 -> 1759096.11 | J45: =$D32*DEMANDA!J47*$D$12+$E32*DEMANDA!J47*$D$13 -> 1793495.447 | K45: =$D32*DEMANDA!K47*$D$12+$E32*DEMANDA!K47*$D$13 -> 1827894.784 | L45: =$D32*DEMANDA!L47*$D$12+$E32*DEMANDA!L47*$D$13 -> 1862294.121 | M45: =$D32*DEMANDA!M47*$D$12+$E32*DEMANDA!M47*$D$13 -> 1896693.459 | N45: =$D32*DEMANDA!N47*$D$12+$E32*DEMANDA!N47*$D$13 -> 1931092.796 | O45: =$D32*DEMANDA!O47*$D$12+$E32*DEMANDA!O47*$D$13 -> 1975493.024 | P45: =$D32*DEMANDA!P47*$D$12+$E32*DEMANDA!P47*$D$13 -> 2019893.252 | Q45: =$D32*DEMANDA!Q47*$D$12+$E32*DEMANDA!Q47*$D$13 -> 2064293.48 | R45: =$D32*DEMANDA!R47*$D$12+$E32*DEMANDA!R47*$D$13 -> 2108693.708 | S45: =$D32*DEMANDA!S47*$D$12+$E32*DEMANDA!S47*$D$13 -> 2153093.936 | T45: =$D32*DEMANDA!T47*$D$12+$E32*DEMANDA!T47*$D$13 -> 2217180.618 | U45: =$D32*DEMANDA!U47*$D$12+$E32*DEMANDA!U47*$D$13 -> 2281267.3 | V45: =$D32*DEMANDA!V47*$D$12+$E32*DEMANDA!V47*$D$13 -> 2345353.982 | W45: =$D32*DEMANDA!W47*$D$12+$E32*DEMANDA!W47*$D$13 -> 2409440.664 | X45: =$D32*DEMANDA!X47*$D$12+$E32*DEMANDA!X47*$D$13 -> 2473527.346 | Y45: =$D32*DEMANDA!Y47*$D$12+$E32*DEMANDA!Y47*$D$13 -> 2473527.346 | Z45: =$D32*DEMANDA!Z47*$D$12+$E32*DEMANDA!Z47*$D$13 -> 2473527.346 | AA45: =$D32*DEMANDA!AA47*$D$12+$E32*DEMANDA!AA47*$D$13 -> 2473527.346 | AB45: =$D32*DEMANDA!AB47*$D$12+$E32*DEMANDA!AB47*$D$13 -> 2473527.346 | AC45: =$D32*DEMANDA!AC47*$D$12+$E32*DEMANDA!AC47*$D$13 -> 2473527.346 | AD45: =$D32*DEMANDA!AD47*$D$12+$E32*DEMANDA!AD47*$D$13 -> 2473527.346 | AE45: =$D32*DEMANDA!AE47*$D$12+$E32*DEMANDA!AE47*$D$13 -> 2473527.346 | AF45: =$D32*DEMANDA!AF47*$D$12+$E32*DEMANDA!AF47*$D$13 -> 2473527.346 | AG45: =$D32*DEMANDA!AG47*$D$12+$E32*DEMANDA!AG47*$D$13 -> 2473527.346 | AH45: =$D32*DEMANDA!AH47*$D$12+$E32*DEMANDA!AH47*$D$13 -> 2473527.346 | AI45: =$D32*DEMANDA!AI47*$D$12+$E32*DEMANDA!AI47*$D$13 -> 2473527.346 | AJ45: =$D32*DEMANDA!AJ47*$D$12+$E32*DEMANDA!AJ47*$D$13 -> 2473527.346 | AK45: =$D32*DEMANDA!AK47*$D$12+$E32*DEMANDA!AK47*$D$13 -> 2473527.346 | AL45: =$D32*DEMANDA!AL47*$D$12+$E32*DEMANDA!AL47*$D$13 -> 2473527.346 | AM45: =$D32*DEMANDA!AM47*$D$12+$E32*DEMANDA!AM47*$D$13 -> 2473527.346 | AN45: =$D32*DEMANDA!AN47*$D$12+$E32*DEMANDA!AN47*$D$13 -> 2473527.346 | AO45: =$D32*DEMANDA!AO47*$D$12+$E32*DEMANDA!AO47*$D$13 -> 2473527.346 | AP45: =$D32*DEMANDA!AP47*$D$12+$E32*DEMANDA!AP47*$D$13 -> 2473527.346 | AQ45: =$D32*DEMANDA!AQ47*$D$12+$E32*DEMANDA!AQ47*$D$13 -> 2473527.346
B46: Tarifa 2 | C46: =$D33*DEMANDA!C48*$D$12+$E33*DEMANDA!C48*$D$13 -> 1509774.819 | D46: =$D33*DEMANDA!D48*$D$12+$E33*DEMANDA!D48*$D$13 -> 2013033.092 | E46: =$D33*DEMANDA!E48*$D$12+$E33*DEMANDA!E48*$D$13 -> 2046630.674 | F46: =$D33*DEMANDA!F48*$D$12+$E33*DEMANDA!F48*$D$13 -> 2080228.256 | G46: =$D33*DEMANDA!G48*$D$12+$E33*DEMANDA!G48*$D$13 -> 2113825.838 | H46: =$D33*DEMANDA!H48*$D$12+$E33*DEMANDA!H48*$D$13 -> 2147423.42 | I46: =$D33*DEMANDA!I48*$D$12+$E33*DEMANDA!I48*$D$13 -> 2181021.002 | J46: =$D33*DEMANDA!J48*$D$12+$E33*DEMANDA!J48*$D$13 -> 2222300.206 | K46: =$D33*DEMANDA!K48*$D$12+$E33*DEMANDA!K48*$D$13 -> 2263579.411 | L46: =$D33*DEMANDA!L48*$D$12+$E33*DEMANDA!L48*$D$13 -> 2304858.616 | M46: =$D33*DEMANDA!M48*$D$12+$E33*DEMANDA!M48*$D$13 -> 2346137.821 | N46: =$D33*DEMANDA!N48*$D$12+$E33*DEMANDA!N48*$D$13 -> 2387417.025 | O46: =$D33*DEMANDA!O48*$D$12+$E33*DEMANDA!O48*$D$13 -> 2442841.166 | P46: =$D33*DEMANDA!P48*$D$12+$E33*DEMANDA!P48*$D$13 -> 2498265.306 | Q46: =$D33*DEMANDA!Q48*$D$12+$E33*DEMANDA!Q48*$D$13 -> 2553689.447 | R46: =$D33*DEMANDA!R48*$D$12+$E33*DEMANDA!R48*$D$13 -> 2609113.588 | S46: =$D33*DEMANDA!S48*$D$12+$E33*DEMANDA!S48*$D$13 -> 2664537.728 | T46: =$D33*DEMANDA!T48*$D$12+$E33*DEMANDA!T48*$D$13 -> 2742025.819 | U46: =$D33*DEMANDA!U48*$D$12+$E33*DEMANDA!U48*$D$13 -> 2819513.909 | V46: =$D33*DEMANDA!V48*$D$12+$E33*DEMANDA!V48*$D$13 -> 2897001.999 | W46: =$D33*DEMANDA!W48*$D$12+$E33*DEMANDA!W48*$D$13 -> 2974490.09 | X46: =$D33*DEMANDA!X48*$D$12+$E33*DEMANDA!X48*$D$13 -> 3051978.18 | Y46: =$D33*DEMANDA!Y48*$D$12+$E33*DEMANDA!Y48*$D$13 -> 3051978.18 | Z46: =$D33*DEMANDA!Z48*$D$12+$E33*DEMANDA!Z48*$D$13 -> 3051978.18 | AA46: =$D33*DEMANDA!AA48*$D$12+$E33*DEMANDA!AA48*$D$13 -> 3051978.18 | AB46: =$D33*DEMANDA!AB48*$D$12+$E33*DEMANDA!AB48*$D$13 -> 3051978.18 | AC46: =$D33*DEMANDA!AC48*$D$12+$E33*DEMANDA!AC48*$D$13 -> 3051978.18 | AD46: =$D33*DEMANDA!AD48*$D$12+$E33*DEMANDA!AD48*$D$13 -> 3051978.18 | AE46: =$D33*DEMANDA!AE48*$D$12+$E33*DEMANDA!AE48*$D$13 -> 3051978.18 | AF46: =$D33*DEMANDA!AF48*$D$12+$E33*DEMANDA!AF48*$D$13 -> 3051978.18 | AG46: =$D33*DEMANDA!AG48*$D$12+$E33*DEMANDA!AG48*$D$13 -> 3051978.18 | AH46: =$D33*DEMANDA!AH48*$D$12+$E33*DEMANDA!AH48*$D$13 -> 3051978.18 | AI46: =$D33*DEMANDA!AI48*$D$12+$E33*DEMANDA!AI48*$D$13 -> 3051978.18 | AJ46: =$D33*DEMANDA!AJ48*$D$12+$E33*DEMANDA!AJ48*$D$13 -> 3051978.18 | AK46: =$D33*DEMANDA!AK48*$D$12+$E33*DEMANDA!AK48*$D$13 -> 3051978.18 | AL46: =$D33*DEMANDA!AL48*$D$12+$E33*DEMANDA!AL48*$D$13 -> 3051978.18 | AM46: =$D33*DEMANDA!AM48*$D$12+$E33*DEMANDA!AM48*$D$13 -> 3051978.18 | AN46: =$D33*DEMANDA!AN48*$D$12+$E33*DEMANDA!AN48*$D$13 -> 3051978.18 | AO46: =$D33*DEMANDA!AO48*$D$12+$E33*DEMANDA!AO48*$D$13 -> 3051978.18 | AP46: =$D33*DEMANDA!AP48*$D$12+$E33*DEMANDA!AP48*$D$13 -> 3051978.18 | AQ46: =$D33*DEMANDA!AQ48*$D$12+$E33*DEMANDA!AQ48*$D$13 -> 3051978.18
B47: Tarifa 3 | C47: =$D34*DEMANDA!C49*$D$12+$E34*DEMANDA!C49*$D$13 -> 1988017.428 | D47: =$D34*DEMANDA!D49*$D$12+$E34*DEMANDA!D49*$D$13 -> 2650689.905 | E47: =$D34*DEMANDA!E49*$D$12+$E34*DEMANDA!E49*$D$13 -> 2693533.801 | F47: =$D34*DEMANDA!F49*$D$12+$E34*DEMANDA!F49*$D$13 -> 2736377.698 | G47: =$D34*DEMANDA!G49*$D$12+$E34*DEMANDA!G49*$D$13 -> 2779221.595 | H47: =$D34*DEMANDA!H49*$D$12+$E34*DEMANDA!H49*$D$13 -> 2822065.492 | I47: =$D34*DEMANDA!I49*$D$12+$E34*DEMANDA!I49*$D$13 -> 2864909.389 | J47: =$D34*DEMANDA!J49*$D$12+$E34*DEMANDA!J49*$D$13 -> 2922301.338 | K47: =$D34*DEMANDA!K49*$D$12+$E34*DEMANDA!K49*$D$13 -> 2979693.288 | L47: =$D34*DEMANDA!L49*$D$12+$E34*DEMANDA!L49*$D$13 -> 3037085.238 | M47: =$D34*DEMANDA!M49*$D$12+$E34*DEMANDA!M49*$D$13 -> 3094477.188 | N47: =$D34*DEMANDA!N49*$D$12+$E34*DEMANDA!N49*$D$13 -> 3151869.138 | O47: =$D34*DEMANDA!O49*$D$12+$E34*DEMANDA!O49*$D$13 -> 3221193.358 | P47: =$D34*DEMANDA!P49*$D$12+$E34*DEMANDA!P49*$D$13 -> 3290517.578 | Q47: =$D34*DEMANDA!Q49*$D$12+$E34*DEMANDA!Q49*$D$13 -> 3359841.798 | R47: =$D34*DEMANDA!R49*$D$12+$E34*DEMANDA!R49*$D$13 -> 3429166.018 | S47: =$D34*DEMANDA!S49*$D$12+$E34*DEMANDA!S49*$D$13 -> 3498490.238 | T47: =$D34*DEMANDA!T49*$D$12+$E34*DEMANDA!T49*$D$13 -> 3593769.235 | U47: =$D34*DEMANDA!U49*$D$12+$E34*DEMANDA!U49*$D$13 -> 3689048.233 | V47: =$D34*DEMANDA!V49*$D$12+$E34*DEMANDA!V49*$D$13 -> 3784327.231 | W47: =$D34*DEMANDA!W49*$D$12+$E34*DEMANDA!W49*$D$13 -> 3879606.229 | X47: =$D34*DEMANDA!X49*$D$12+$E34*DEMANDA!X49*$D$13 -> 3974885.226 | Y47: =$D34*DEMANDA!Y49*$D$12+$E34*DEMANDA!Y49*$D$13 -> 3974885.226 | Z47: =$D34*DEMANDA!Z49*$D$12+$E34*DEMANDA!Z49*$D$13 -> 3974885.226 | AA47: =$D34*DEMANDA!AA49*$D$12+$E34*DEMANDA!AA49*$D$13 -> 3974885.226 | AB47: =$D34*DEMANDA!AB49*$D$12+$E34*DEMANDA!AB49*$D$13 -> 3974885.226 | AC47: =$D34*DEMANDA!AC49*$D$12+$E34*DEMANDA!AC49*$D$13 -> 3974885.226 | AD47: =$D34*DEMANDA!AD49*$D$12+$E34*DEMANDA!AD49*$D$13 -> 3974885.226 | AE47: =$D34*DEMANDA!AE49*$D$12+$E34*DEMANDA!AE49*$D$13 -> 3974885.226 | AF47: =$D34*DEMANDA!AF49*$D$12+$E34*DEMANDA!AF49*$D$13 -> 3974885.226 | AG47: =$D34*DEMANDA!AG49*$D$12+$E34*DEMANDA!AG49*$D$13 -> 3974885.226 | AH47: =$D34*DEMANDA!AH49*$D$12+$E34*DEMANDA!AH49*$D$13 -> 3974885.226 | AI47: =$D34*DEMANDA!AI49*$D$12+$E34*DEMANDA!AI49*$D$13 -> 3974885.226 | AJ47: =$D34*DEMANDA!AJ49*$D$12+$E34*DEMANDA!AJ49*$D$13 -> 3974885.226 | AK47: =$D34*DEMANDA!AK49*$D$12+$E34*DEMANDA!AK49*$D$13 -> 3974885.226 | AL47: =$D34*DEMANDA!AL49*$D$12+$E34*DEMANDA!AL49*$D$13 -> 3974885.226 | AM47: =$D34*DEMANDA!AM49*$D$12+$E34*DEMANDA!AM49*$D$13 -> 3974885.226 | AN47: =$D34*DEMANDA!AN49*$D$12+$E34*DEMANDA!AN49*$D$13 -> 3974885.226 | AO47: =$D34*DEMANDA!AO49*$D$12+$E34*DEMANDA!AO49*$D$13 -> 3974885.226 | AP47: =$D34*DEMANDA!AP49*$D$12+$E34*DEMANDA!AP49*$D$13 -> 3974885.226 | AQ47: =$D34*DEMANDA!AQ49*$D$12+$E34*DEMANDA!AQ49*$D$13 -> 3974885.226
B48: Tarifa 4 | C48: =$D35*DEMANDA!C49*$D$12+$E35*DEMANDA!C49*$D$13 -> 2485021.786 | D48: =$D35*DEMANDA!D49*$D$12+$E35*DEMANDA!D49*$D$13 -> 3313362.381 | E48: =$D35*DEMANDA!E49*$D$12+$E35*DEMANDA!E49*$D$13 -> 3366917.252 | F48: =$D35*DEMANDA!F49*$D$12+$E35*DEMANDA!F49*$D$13 -> 3420472.123 | G48: =$D35*DEMANDA!G49*$D$12+$E35*DEMANDA!G49*$D$13 -> 3474026.994 | H48: =$D35*DEMANDA!H49*$D$12+$E35*DEMANDA!H49*$D$13 -> 3527581.865 | I48: =$D35*DEMANDA!I49*$D$12+$E35*DEMANDA!I49*$D$13 -> 3581136.736 | J48: =$D35*DEMANDA!J49*$D$12+$E35*DEMANDA!J49*$D$13 -> 3652876.673 | K48: =$D35*DEMANDA!K49*$D$12+$E35*DEMANDA!K49*$D$13 -> 3724616.61 | L48: =$D35*DEMANDA!L49*$D$12+$E35*DEMANDA!L49*$D$13 -> 3796356.548 | M48: =$D35*DEMANDA!M49*$D$12+$E35*DEMANDA!M49*$D$13 -> 3868096.485 | N48: =$D35*DEMANDA!N49*$D$12+$E35*DEMANDA!N49*$D$13 -> 3939836.422 | O48: =$D35*DEMANDA!O49*$D$12+$E35*DEMANDA!O49*$D$13 -> 4026491.697 | P48: =$D35*DEMANDA!P49*$D$12+$E35*DEMANDA!P49*$D$13 -> 4113146.972 | Q48: =$D35*DEMANDA!Q49*$D$12+$E35*DEMANDA!Q49*$D$13 -> 4199802.247 | R48: =$D35*DEMANDA!R49*$D$12+$E35*DEMANDA!R49*$D$13 -> 4286457.522 | S48: =$D35*DEMANDA!S49*$D$12+$E35*DEMANDA!S49*$D$13 -> 4373112.797 | T48: =$D35*DEMANDA!T49*$D$12+$E35*DEMANDA!T49*$D$13 -> 4492211.544 | U48: =$D35*DEMANDA!U49*$D$12+$E35*DEMANDA!U49*$D$13 -> 4611310.291 | V48: =$D35*DEMANDA!V49*$D$12+$E35*DEMANDA!V49*$D$13 -> 4730409.039 | W48: =$D35*DEMANDA!W49*$D$12+$E35*DEMANDA!W49*$D$13 -> 4849507.786 | X48: =$D35*DEMANDA!X49*$D$12+$E35*DEMANDA!X49*$D$13 -> 4968606.533 | Y48: =$D35*DEMANDA!Y49*$D$12+$E35*DEMANDA!Y49*$D$13 -> 4968606.533 | Z48: =$D35*DEMANDA!Z49*$D$12+$E35*DEMANDA!Z49*$D$13 -> 4968606.533 | AA48: =$D35*DEMANDA!AA49*$D$12+$E35*DEMANDA!AA49*$D$13 -> 4968606.533 | AB48: =$D35*DEMANDA!AB49*$D$12+$E35*DEMANDA!AB49*$D$13 -> 4968606.533 | AC48: =$D35*DEMANDA!AC49*$D$12+$E35*DEMANDA!AC49*$D$13 -> 4968606.533 | AD48: =$D35*DEMANDA!AD49*$D$12+$E35*DEMANDA!AD49*$D$13 -> 4968606.533 | AE48: =$D35*DEMANDA!AE49*$D$12+$E35*DEMANDA!AE49*$D$13 -> 4968606.533 | AF48: =$D35*DEMANDA!AF49*$D$12+$E35*DEMANDA!AF49*$D$13 -> 4968606.533 | AG48: =$D35*DEMANDA!AG49*$D$12+$E35*DEMANDA!AG49*$D$13 -> 4968606.533 | AH48: =$D35*DEMANDA!AH49*$D$12+$E35*DEMANDA!AH49*$D$13 -> 4968606.533 | AI48: =$D35*DEMANDA!AI49*$D$12+$E35*DEMANDA!AI49*$D$13 -> 4968606.533 | AJ48: =$D35*DEMANDA!AJ49*$D$12+$E35*DEMANDA!AJ49*$D$13 -> 4968606.533 | AK48: =$D35*DEMANDA!AK49*$D$12+$E35*DEMANDA!AK49*$D$13 -> 4968606.533 | AL48: =$D35*DEMANDA!AL49*$D$12+$E35*DEMANDA!AL49*$D$13 -> 4968606.533 | AM48: =$D35*DEMANDA!AM49*$D$12+$E35*DEMANDA!AM49*$D$13 -> 4968606.533 | AN48: =$D35*DEMANDA!AN49*$D$12+$E35*DEMANDA!AN49*$D$13 -> 4968606.533 | AO48: =$D35*DEMANDA!AO49*$D$12+$E35*DEMANDA!AO49*$D$13 -> 4968606.533 | AP48: =$D35*DEMANDA!AP49*$D$12+$E35*DEMANDA!AP49*$D$13 -> 4968606.533 | AQ48: =$D35*DEMANDA!AQ49*$D$12+$E35*DEMANDA!AQ49*$D$13 -> 4968606.533
B49: Tarifa 5 | C49: =$D36*DEMANDA!C49*$D$12+$E36*DEMANDA!C49*$D$13 -> 2982026.143 | D49: =$D36*DEMANDA!D49*$D$12+$E36*DEMANDA!D49*$D$13 -> 3976034.857 | E49: =$D36*DEMANDA!E49*$D$12+$E36*DEMANDA!E49*$D$13 -> 4040300.702 | F49: =$D36*DEMANDA!F49*$D$12+$E36*DEMANDA!F49*$D$13 -> 4104566.547 | G49: =$D36*DEMANDA!G49*$D$12+$E36*DEMANDA!G49*$D$13 -> 4168832.393 | H49: =$D36*DEMANDA!H49*$D$12+$E36*DEMANDA!H49*$D$13 -> 4233098.238 | I49: =$D36*DEMANDA!I49*$D$12+$E36*DEMANDA!I49*$D$13 -> 4297364.083 | J49: =$D36*DEMANDA!J49*$D$12+$E36*DEMANDA!J49*$D$13 -> 4383452.008 | K49: =$D36*DEMANDA!K49*$D$12+$E36*DEMANDA!K49*$D$13 -> 4469539.932 | L49: =$D36*DEMANDA!L49*$D$12+$E36*DEMANDA!L49*$D$13 -> 4555627.857 | M49: =$D36*DEMANDA!M49*$D$12+$E36*DEMANDA!M49*$D$13 -> 4641715.782 | N49: =$D36*DEMANDA!N49*$D$12+$E36*DEMANDA!N49*$D$13 -> 4727803.707 | O49: =$D36*DEMANDA!O49*$D$12+$E36*DEMANDA!O49*$D$13 -> 4831790.037 | P49: =$D36*DEMANDA!P49*$D$12+$E36*DEMANDA!P49*$D$13 -> 4935776.367 | Q49: =$D36*DEMANDA!Q49*$D$12+$E36*DEMANDA!Q49*$D$13 -> 5039762.697 | R49: =$D36*DEMANDA!R49*$D$12+$E36*DEMANDA!R49*$D$13 -> 5143749.027 | S49: =$D36*DEMANDA!S49*$D$12+$E36*DEMANDA!S49*$D$13 -> 5247735.357 | T49: =$D36*DEMANDA!T49*$D$12+$E36*DEMANDA!T49*$D$13 -> 5390653.853 | U49: =$D36*DEMANDA!U49*$D$12+$E36*DEMANDA!U49*$D$13 -> 5533572.35 | V49: =$D36*DEMANDA!V49*$D$12+$E36*DEMANDA!V49*$D$13 -> 5676490.846 | W49: =$D36*DEMANDA!W49*$D$12+$E36*DEMANDA!W49*$D$13 -> 5819409.343 | X49: =$D36*DEMANDA!X49*$D$12+$E36*DEMANDA!X49*$D$13 -> 5962327.839 | Y49: =$D36*DEMANDA!Y49*$D$12+$E36*DEMANDA!Y49*$D$13 -> 5962327.839 | Z49: =$D36*DEMANDA!Z49*$D$12+$E36*DEMANDA!Z49*$D$13 -> 5962327.839 | AA49: =$D36*DEMANDA!AA49*$D$12+$E36*DEMANDA!AA49*$D$13 -> 5962327.839 | AB49: =$D36*DEMANDA!AB49*$D$12+$E36*DEMANDA!AB49*$D$13 -> 5962327.839 | AC49: =$D36*DEMANDA!AC49*$D$12+$E36*DEMANDA!AC49*$D$13 -> 5962327.839 | AD49: =$D36*DEMANDA!AD49*$D$12+$E36*DEMANDA!AD49*$D$13 -> 5962327.839 | AE49: =$D36*DEMANDA!AE49*$D$12+$E36*DEMANDA!AE49*$D$13 -> 5962327.839 | AF49: =$D36*DEMANDA!AF49*$D$12+$E36*DEMANDA!AF49*$D$13 -> 5962327.839 | AG49: =$D36*DEMANDA!AG49*$D$12+$E36*DEMANDA!AG49*$D$13 -> 5962327.839 | AH49: =$D36*DEMANDA!AH49*$D$12+$E36*DEMANDA!AH49*$D$13 -> 5962327.839 | AI49: =$D36*DEMANDA!AI49*$D$12+$E36*DEMANDA!AI49*$D$13 -> 5962327.839 | AJ49: =$D36*DEMANDA!AJ49*$D$12+$E36*DEMANDA!AJ49*$D$13 -> 5962327.839 | AK49: =$D36*DEMANDA!AK49*$D$12+$E36*DEMANDA!AK49*$D$13 -> 5962327.839 | AL49: =$D36*DEMANDA!AL49*$D$12+$E36*DEMANDA!AL49*$D$13 -> 5962327.839 | AM49: =$D36*DEMANDA!AM49*$D$12+$E36*DEMANDA!AM49*$D$13 -> 5962327.839 | AN49: =$D36*DEMANDA!AN49*$D$12+$E36*DEMANDA!AN49*$D$13 -> 5962327.839 | AO49: =$D36*DEMANDA!AO49*$D$12+$E36*DEMANDA!AO49*$D$13 -> 5962327.839 | AP49: =$D36*DEMANDA!AP49*$D$12+$E36*DEMANDA!AP49*$D$13 -> 5962327.839 | AQ49: =$D36*DEMANDA!AQ49*$D$12+$E36*DEMANDA!AQ49*$D$13 -> 5962327.839
B52: Ingresos anuales en precios actualizados (hipotesis de inflacion baja)
B53: Año | C53: 2019 | D53: 2020 | E53: 2021 | F53: 2022 | G53: 2023 | H53: 2024 | I53: 2025 | J53: 2026 | K53: 2027 | L53: 2028 | M53: 2029 | N53: 2030 | O53: 2031 | P53: 2032 | Q53: 2033 | R53: 2034 | S53: 2035 | T53: 2036 | U53: 2037 | V53: 2038 | W53: 2039 | X53: 2040 | Y53: 2041 | Z53: 2042 | AA53: 2043 | AB53: 2044 | AC53: 2045 | AD53: 2046 | AE53: 2047 | AF53: 2048 | AG53: 2049 | AH53: 2050 | AI53: 2051 | AJ53: 2052 | AK53: 2053 | AL53: 2054 | AM53: 2055 | AN53: 2056 | AO53: 2057 | AP53: 2058 | AQ53: 2059
E54: 1 | F54: 2 | G54: 3 | H54: 4 | I54: 5 | J54: 6 | K54: 7 | L54: 8 | M54: 9 | N54: 10 | O54: 11 | P54: 12 | Q54: 13 | R54: 14 | S54: 15 | T54: 16 | U54: 17 | V54: 18 | W54: 19 | X54: 20 | Y54: 21 | Z54: 22 | AA54: 23 | AB54: 24 | AC54: 25 | AD54: 26 | AE54: 27 | AF54: 28 | AG54: 29 | AH54: 30 | AI54: 31 | AJ54: 32 | AK54: 33 | AL54: 34 | AM54: 35 | AN54: 36 | AO54: 37 | AP54: 38 | AQ54: 39
B55: Tarifa 1 | C55: =C45 -> 1219779 | D55: =D45*(1) -> 1626372 | E55: =E45*(1+PARAMETROS!$G$88)*(1+PARAMETROS!$H$88)^E$54 -> 1728124.537 | F55: =F45*(1+PARAMETROS!$G$88)*(1+PARAMETROS!$H$88)^(F$54-1) -> 1755877.149 | G55: =G45*(1+PARAMETROS!$G$88)*(1+PARAMETROS!$H$88)^G$54 -> 1855688.402 | H55: =H45*(1+PARAMETROS!$G$88)*(1+PARAMETROS!$H$88)^(H$54-1) -> 1884562.219 | I55: =I45*(1+PARAMETROS!$G$88)*(1+PARAMETROS!$H$88)^I$54 -> 1990738.852 | J55: =J45*(1+PARAMETROS!$G$88)*(1+PARAMETROS!$H$88)^(J$54-1) -> 2029667.991 | K55: =K45*(1+PARAMETROS!$G$88)*(1+PARAMETROS!$H$88)^K$54 -> 2152168.454 | L55: =L45*(1+PARAMETROS!$G$88)*(1+PARAMETROS!$H$88)^(L$54-1) -> 2192670.33 | M55: =M45*(1+PARAMETROS!$G$88)*(1+PARAMETROS!$H$88)^M$54 -> 2323392.364 | N55: =N45*(1+PARAMETROS!$G$88)*(1+PARAMETROS!$H$88)^(N$54-1) -> 2365530.516 | O55: =O45*(1+PARAMETROS!$G$88)*(1+PARAMETROS!$H$88)^O$54 -> 2517684.204 | P55: =P45*(1+PARAMETROS!$G$88)*(1+PARAMETROS!$H$88)^(P$54-1) -> 2574270.459 | Q55: =Q45*(1+PARAMETROS!$G$88)*(1+PARAMETROS!$H$88)^Q$54 -> 2737143.326 | R55: =R45*(1+PARAMETROS!$G$88)*(1+PARAMETROS!$H$88)^(R$54-1) -> 2796015.666 | S55: =S45*(1+PARAMETROS!$G$88)*(1+PARAMETROS!$H$88)^S$54 -> 2970225.481 | T55: =T45*(1+PARAMETROS!$G$88)*(1+PARAMETROS!$H$88)^(T$54-1) -> 3058634.023 | U55: =U45*(1+PARAMETROS!$G$88)*(1+PARAMETROS!$H$88)^U$54 -> 3274183.085 | V55: =V45*(1+PARAMETROS!$G$88)*(1+PARAMETROS!$H$88)^(V$54-1) -> 3366163.332 | W55: =W45*(1+PARAMETROS!$G$88)*(1+PARAMETROS!$H$88)^W$54 -> 3597852.58 | X55: =X45*(1+PARAMETROS!$G$88)*(1+PARAMETROS!$H$88)^(X$54-1) -> 3693548.829 | Y55: =Y45*(1+PARAMETROS!$G$88)*(1+PARAMETROS!$H$88)^Y$54 -> 3842768.202 | Z55: =Z45*(1+PARAMETROS!$G$88)*(1+PARAMETROS!$H$88)^(Z$54-1) -> 3842768.202 | AA55: =AA45*(1+PARAMETROS!$G$88)*(1+PARAMETROS!$H$88)^AA$54 -> 3998016.037 | AB55: =AB45*(1+PARAMETROS!$G$88)*(1+PARAMETROS!$H$88)^(AB$54-1) -> 3998016.037 | AC55: =AC45*(1+PARAMETROS!$G$88)*(1+PARAMETROS!$H$88)^AC$54 -> 4159535.885 | AD55: =AD45*(1+PARAMETROS!$G$88)*(1+PARAMETROS!$H$88)^(AD$54-1) -> 4159535.885 | AE55: =AE45*(1+PARAMETROS!$G$88)*(1+PARAMETROS!$H$88)^AE$54 -> 4327581.135 | AF55: =AF45*(1+PARAMETROS!$G$88)*(1+PARAMETROS!$H$88)^(AF$54-1) -> 4327581.135 | AG55: =AG45*(1+PARAMETROS!$G$88)*(1+PARAMETROS!$H$88)^AG$54 -> 4502415.413 | AH55: =AH45*(1+PARAMETROS!$G$88)*(1+PARAMETROS!$H$88)^(AH$54-1) -> 4502415.413 | AI55: =AI45*(1+PARAMETROS!$G$88)*(1+PARAMETROS!$H$88)^AI$54 -> 4684312.996 | AJ55: =AJ45*(1+PARAMETROS!$G$88)*(1+PARAMETROS!$H$88)^(AJ$54-1) -> 4684312.996 | AK55: =AK45*(1+PARAMETROS!$G$88)*(1+PARAMETROS!$H$88)^AK$54 -> 4873559.241 | AL55: =AL45*(1+PARAMETROS!$G$88)*(1+PARAMETROS!$H$88)^(AL$54-1) -> 4873559.241 | AM55: =AM45*(1+PARAMETROS!$G$88)*(1+PARAMETROS!$H$88)^AM$54 -> 5070451.034 | AN55: =AN45*(1+PARAMETROS!$G$88)*(1+PARAMETROS!$H$88)^(AN$54-1) -> 5070451.034 | AO55: =AO45*(1+PARAMETROS!$G$88)*(1+PARAMETROS!$H$88)^AO$54 -> 5275297.256 | AP55: =AP45*(1+PARAMETROS!$G$88)*(1+PARAMETROS!$H$88)^(AP$54-1) -> 5275297.256 | AQ55: =AQ45*(1+PARAMETROS!$G$88)*(1+PARAMETROS!$H$88)^AQ$54 -> 5488419.265
B56: Tarifa 2 | C56: =C46 -> 1509774.819 | D56: =D46*(1) -> 2013033.092 | E56: =E46*(1+PARAMETROS!$G$88)*(1+PARAMETROS!$H$88)^E$54 -> 2139752.37 | F56: =F46*(1+PARAMETROS!$G$88)*(1+PARAMETROS!$H$88)^(F$54-1) -> 2174878.642 | G56: =G46*(1+PARAMETROS!$G$88)*(1+PARAMETROS!$H$88)^G$54 -> 2299289.112 | H56: =H46*(1+PARAMETROS!$G$88)*(1+PARAMETROS!$H$88)^(H$54-1) -> 2335834.485 | I56: =I46*(1+PARAMETROS!$G$88)*(1+PARAMETROS!$H$88)^I$54 -> 2468224.005 | J56: =J46*(1+PARAMETROS!$G$88)*(1+PARAMETROS!$H$88)^(J$54-1) -> 2514938.972 | K56: =K46*(1+PARAMETROS!$G$88)*(1+PARAMETROS!$H$88)^K$54 -> 2665144.758 | L56: =L46*(1+PARAMETROS!$G$88)*(1+PARAMETROS!$H$88)^(L$54-1) -> 2713747.01 | M56: =M46*(1+PARAMETROS!$G$88)*(1+PARAMETROS!$H$88)^M$54 -> 2873948.171 | N56: =N46*(1+PARAMETROS!$G$88)*(1+PARAMETROS!$H$88)^(N$54-1) -> 2924513.954 | O56: =O46*(1+PARAMETROS!$G$88)*(1+PARAMETROS!$H$88)^O$54 -> 3113300.094 | P56: =P46*(1+PARAMETROS!$G$88)*(1+PARAMETROS!$H$88)^(P$54-1) -> 3183935.87 | Q56: =Q46*(1+PARAMETROS!$G$88)*(1+PARAMETROS!$H$88)^Q$54 -> 3386056.341 | R56: =R46*(1+PARAMETROS!$G$88)*(1+PARAMETROS!$H$88)^(R$54-1) -> 3459545.802 | S56: =S46*(1+PARAMETROS!$G$88)*(1+PARAMETROS!$H$88)^S$54 -> 3675769.889 | T56: =T46*(1+PARAMETROS!$G$88)*(1+PARAMETROS!$H$88)^(T$54-1) -> 3782665.875 | U56: =U46*(1+PARAMETROS!$G$88)*(1+PARAMETROS!$H$88)^U$54 -> 4046700.161 | V56: =V46*(1+PARAMETROS!$G$88)*(1+PARAMETROS!$H$88)^(V$54-1) -> 4157914.746 | W56: =W46*(1+PARAMETROS!$G$88)*(1+PARAMETROS!$H$88)^W$54 -> 4441602.155 | X56: =X46*(1+PARAMETROS!$G$88)*(1+PARAMETROS!$H$88)^(X$54-1) -> 4557309.809 | Y56: =Y46*(1+PARAMETROS!$G$88)*(1+PARAMETROS!$H$88)^Y$54 -> 4741425.126 | Z56: =Z46*(1+PARAMETROS!$G$88)*(1+PARAMETROS!$H$88)^(Z$54-1) -> 4741425.126 | AA56: =AA46*(1+PARAMETROS!$G$88)*(1+PARAMETROS!$H$88)^AA$54 -> 4932978.701 | AB56: =AB46*(1+PARAMETROS!$G$88)*(1+PARAMETROS!$H$88)^(AB$54-1) -> 4932978.701 | AC56: =AC46*(1+PARAMETROS!$G$88)*(1+PARAMETROS!$H$88)^AC$54 -> 5132271.04 | AD56: =AD46*(1+PARAMETROS!$G$88)*(1+PARAMETROS!$H$88)^(AD$54-1) -> 5132271.04 | AE56: =AE46*(1+PARAMETROS!$G$88)*(1+PARAMETROS!$H$88)^AE$54 -> 5339614.79 | AF56: =AF46*(1+PARAMETROS!$G$88)*(1+PARAMETROS!$H$88)^(AF$54-1) -> 5339614.79 | AG56: =AG46*(1+PARAMETROS!$G$88)*(1+PARAMETROS!$H$88)^AG$54 -> 5555335.228 | AH56: =AH46*(1+PARAMETROS!$G$88)*(1+PARAMETROS!$H$88)^(AH$54-1) -> 5555335.228 | AI56: =AI46*(1+PARAMETROS!$G$88)*(1+PARAMETROS!$H$88)^AI$54 -> 5779770.771 | AJ56: =AJ46*(1+PARAMETROS!$G$88)*(1+PARAMETROS!$H$88)^(AJ$54-1) -> 5779770.771 | AK56: =AK46*(1+PARAMETROS!$G$88)*(1+PARAMETROS!$H$88)^AK$54 -> 6013273.51 | AL56: =AL46*(1+PARAMETROS!$G$88)*(1+PARAMETROS!$H$88)^(AL$54-1) -> 6013273.51 | AM56: =AM46*(1+PARAMETROS!$G$88)*(1+PARAMETROS!$H$88)^AM$54 -> 6256209.76 | AN56: =AN46*(1+PARAMETROS!$G$88)*(1+PARAMETROS!$H$88)^(AN$54-1) -> 6256209.76 | AO56: =AO46*(1+PARAMETROS!$G$88)*(1+PARAMETROS!$H$88)^AO$54 -> 6508960.634 | AP56: =AP46*(1+PARAMETROS!$G$88)*(1+PARAMETROS!$H$88)^(AP$54-1) -> 6508960.634 | AQ56: =AQ46*(1+PARAMETROS!$G$88)*(1+PARAMETROS!$H$88)^AQ$54 -> 6771922.644
B57: Tarifa 3 | C57: =C47 -> 1988017.428 | D57: =D47*(1) -> 2650689.905 | E57: =E47*(1+PARAMETROS!$G$88)*(1+PARAMETROS!$H$88)^E$54 -> 2816089.589 | F57: =F47*(1+PARAMETROS!$G$88)*(1+PARAMETROS!$H$88)^(F$54-1) -> 2860882.883 | G57: =G47*(1+PARAMETROS!$G$88)*(1+PARAMETROS!$H$88)^G$54 -> 3023065.495 | H57: =H47*(1+PARAMETROS!$G$88)*(1+PARAMETROS!$H$88)^(H$54-1) -> 3069668.438 | I57: =I47*(1+PARAMETROS!$G$88)*(1+PARAMETROS!$H$88)^I$54 -> 3242168.745 | J57: =J47*(1+PARAMETROS!$G$88)*(1+PARAMETROS!$H$88)^(J$54-1) -> 3307118.229 | K57: =K47*(1+PARAMETROS!$G$88)*(1+PARAMETROS!$H$88)^K$54 -> 3508299.249 | L57: =L47*(1+PARAMETROS!$G$88)*(1+PARAMETROS!$H$88)^(L$54-1) -> 3575872.692 | M57: =M47*(1+PARAMETROS!$G$88)*(1+PARAMETROS!$H$88)^M$54 -> 3790641.358 | N57: =N47*(1+PARAMETROS!$G$88)*(1+PARAMETROS!$H$88)^(N$54-1) -> 3860944.769 | O57: =O47*(1+PARAMETROS!$G$88)*(1+PARAMETROS!$H$88)^O$54 -> 4105277.79 | P57: =P47*(1+PARAMETROS!$G$88)*(1+PARAMETROS!$H$88)^(P$54-1) -> 4193628.643 | Q57: =Q47*(1+PARAMETROS!$G$88)*(1+PARAMETROS!$H$88)^Q$54 -> 4454971.468 | R57: =R47*(1+PARAMETROS!$G$88)*(1+PARAMETROS!$H$88)^(R$54-1) -> 4546891.695 | S57: =S47*(1+PARAMETROS!$G$88)*(1+PARAMETROS!$H$88)^S$54 -> 4826219.924 | T57: =T47*(1+PARAMETROS!$G$88)*(1+PARAMETROS!$H$88)^(T$54-1) -> 4957658.735 | U57: =U47*(1+PARAMETROS!$G$88)*(1+PARAMETROS!$H$88)^U$54 -> 5294697.087 | V57: =V47*(1+PARAMETROS!$G$88)*(1+PARAMETROS!$H$88)^(V$54-1) -> 5431446.026 | W57: =W47*(1+PARAMETROS!$G$88)*(1+PARAMETROS!$H$88)^W$54 -> 5793150.041 | X57: =X47*(1+PARAMETROS!$G$88)*(1+PARAMETROS!$H$88)^(X$54-1) -> 5935423.637 | Y57: =Y47*(1+PARAMETROS!$G$88)*(1+PARAMETROS!$H$88)^Y$54 -> 6175214.752 | Z57: =Z47*(1+PARAMETROS!$G$88)*(1+PARAMETROS!$H$88)^(Z$54-1) -> 6175214.752 | AA57: =AA47*(1+PARAMETROS!$G$88)*(1+PARAMETROS!$H$88)^AA$54 -> 6424693.428 | AB57: =AB47*(1+PARAMETROS!$G$88)*(1+PARAMETROS!$H$88)^(AB$54-1) -> 6424693.428 | AC57: =AC47*(1+PARAMETROS!$G$88)*(1+PARAMETROS!$H$88)^AC$54 -> 6684251.043 | AD57: =AD47*(1+PARAMETROS!$G$88)*(1+PARAMETROS!$H$88)^(AD$54-1) -> 6684251.043 | AE57: =AE47*(1+PARAMETROS!$G$88)*(1+PARAMETROS!$H$88)^AE$54 -> 6954294.785 | AF57: =AF47*(1+PARAMETROS!$G$88)*(1+PARAMETROS!$H$88)^(AF$54-1) -> 6954294.785 | AG57: =AG47*(1+PARAMETROS!$G$88)*(1+PARAMETROS!$H$88)^AG$54 -> 7235248.294 | AH57: =AH47*(1+PARAMETROS!$G$88)*(1+PARAMETROS!$H$88)^(AH$54-1) -> 7235248.294 | AI57: =AI47*(1+PARAMETROS!$G$88)*(1+PARAMETROS!$H$88)^AI$54 -> 7527552.325 | AJ57: =AJ47*(1+PARAMETROS!$G$88)*(1+PARAMETROS!$H$88)^(AJ$54-1) -> 7527552.325 | AK57: =AK47*(1+PARAMETROS!$G$88)*(1+PARAMETROS!$H$88)^AK$54 -> 7831665.439 | AL57: =AL47*(1+PARAMETROS!$G$88)*(1+PARAMETROS!$H$88)^(AL$54-1) -> 7831665.439 | AM57: =AM47*(1+PARAMETROS!$G$88)*(1+PARAMETROS!$H$88)^AM$54 -> 8148064.723 | AN57: =AN47*(1+PARAMETROS!$G$88)*(1+PARAMETROS!$H$88)^(AN$54-1) -> 8148064.723 | AO57: =AO47*(1+PARAMETROS!$G$88)*(1+PARAMETROS!$H$88)^AO$54 -> 8477246.538 | AP57: =AP47*(1+PARAMETROS!$G$88)*(1+PARAMETROS!$H$88)^(AP$54-1) -> 8477246.538 | AQ57: =AQ47*(1+PARAMETROS!$G$88)*(1+PARAMETROS!$H$88)^AQ$54 -> 8819727.298
B58: Tarifa 4 | C58: =C48 -> 2485021.786 | D58: =D48*(1) -> 3313362.381 | E58: =E48*(1+PARAMETROS!$G$88)*(1+PARAMETROS!$H$88)^E$54 -> 3520111.987 | F58: =F48*(1+PARAMETROS!$G$88)*(1+PARAMETROS!$H$88)^(F$54-1) -> 3576103.604 | G58: =G48*(1+PARAMETROS!$G$88)*(1+PARAMETROS!$H$88)^G$54 -> 3778831.869 | H58: =H48*(1+PARAMETROS!$G$88)*(1+PARAMETROS!$H$88)^(H$54-1) -> 3837085.548 | I58: =I48*(1+PARAMETROS!$G$88)*(1+PARAMETROS!$H$88)^I$54 -> 4052710.932 | J58: =J48*(1+PARAMETROS!$G$88)*(1+PARAMETROS!$H$88)^(J$54-1) -> 4133897.786 | K58: =K48*(1+PARAMETROS!$G$88)*(1+PARAMETROS!$H$88)^K$54 -> 4385374.061 | L58: =L48*(1+PARAMETROS!$G$88)*(1+PARAMETROS!$H$88)^(L$54-1) -> 4469840.865 | M58: =M48*(1+PARAMETROS!$G$88)*(1+PARAMETROS!$H$88)^M$54 -> 4738301.698 | N58: =N48*(1+PARAMETROS!$G$88)*(1+PARAMETROS!$H$88)^(N$54-1) -> 4826180.961 | O58: =O48*(1+PARAMETROS!$G$88)*(1+PARAMETROS!$H$88)^O$54 -> 5131597.238 | P58: =P48*(1+PARAMETROS!$G$88)*(1+PARAMETROS!$H$88)^(P$54-1) -> 5242035.804 | Q58: =Q48*(1+PARAMETROS!$G$88)*(1+PARAMETROS!$H$88)^Q$54 -> 5568714.334 | R58: =R48*(1+PARAMETROS!$G$88)*(1+PARAMETROS!$H$88)^(R$54-1) -> 5683614.619 | S58: =S48*(1+PARAMETROS!$G$88)*(1+PARAMETROS!$H$88)^S$54 -> 6032774.905 | T58: =T48*(1+PARAMETROS!$G$88)*(1+PARAMETROS!$H$88)^(T$54-1) -> 6197073.419 | U58: =U48*(1+PARAMETROS!$G$88)*(1+PARAMETROS!$H$88)^U$54 -> 6618371.358 | V58: =V48*(1+PARAMETROS!$G$88)*(1+PARAMETROS!$H$88)^(V$54-1) -> 6789307.532 | W58: =W48*(1+PARAMETROS!$G$88)*(1+PARAMETROS!$H$88)^W$54 -> 7241437.552 | X58: =X48*(1+PARAMETROS!$G$88)*(1+PARAMETROS!$H$88)^(X$54-1) -> 7419279.547 | Y58: =Y48*(1+PARAMETROS!$G$88)*(1+PARAMETROS!$H$88)^Y$54 -> 7719018.44 | Z58: =Z48*(1+PARAMETROS!$G$88)*(1+PARAMETROS!$H$88)^(Z$54-1) -> 7719018.44 | AA58: =AA48*(1+PARAMETROS!$G$88)*(1+PARAMETROS!$H$88)^AA$54 -> 8030866.785 | AB58: =AB48*(1+PARAMETROS!$G$88)*(1+PARAMETROS!$H$88)^(AB$54-1) -> 8030866.785 | AC58: =AC48*(1+PARAMETROS!$G$88)*(1+PARAMETROS!$H$88)^AC$54 -> 8355313.803 | AD58: =AD48*(1+PARAMETROS!$G$88)*(1+PARAMETROS!$H$88)^(AD$54-1) -> 8355313.803 | AE58: =AE48*(1+PARAMETROS!$G$88)*(1+PARAMETROS!$H$88)^AE$54 -> 8692868.481 | AF58: =AF48*(1+PARAMETROS!$G$88)*(1+PARAMETROS!$H$88)^(AF$54-1) -> 8692868.481 | AG58: =AG48*(1+PARAMETROS!$G$88)*(1+PARAMETROS!$H$88)^AG$54 -> 9044060.368 | AH58: =AH48*(1+PARAMETROS!$G$88)*(1+PARAMETROS!$H$88)^(AH$54-1) -> 9044060.368 | AI58: =AI48*(1+PARAMETROS!$G$88)*(1+PARAMETROS!$H$88)^AI$54 -> 9409440.407 | AJ58: =AJ48*(1+PARAMETROS!$G$88)*(1+PARAMETROS!$H$88)^(AJ$54-1) -> 9409440.407 | AK58: =AK48*(1+PARAMETROS!$G$88)*(1+PARAMETROS!$H$88)^AK$54 -> 9789581.799 | AL58: =AL48*(1+PARAMETROS!$G$88)*(1+PARAMETROS!$H$88)^(AL$54-1) -> 9789581.799 | AM58: =AM48*(1+PARAMETROS!$G$88)*(1+PARAMETROS!$H$88)^AM$54 -> 10185080.9 | AN58: =AN48*(1+PARAMETROS!$G$88)*(1+PARAMETROS!$H$88)^(AN$54-1) -> 10185080.9 | AO58: =AO48*(1+PARAMETROS!$G$88)*(1+PARAMETROS!$H$88)^AO$54 -> 10596558.17 | AP58: =AP48*(1+PARAMETROS!$G$88)*(1+PARAMETROS!$H$88)^(AP$54-1) -> 10596558.17 | AQ58: =AQ48*(1+PARAMETROS!$G$88)*(1+PARAMETROS!$H$88)^AQ$54 -> 11024659.12
B59: Tarifa 5 | C59: =C49 -> 2982026.143 | D59: =D49*(1) -> 3976034.857 | E59: =E49*(1+PARAMETROS!$G$88)*(1+PARAMETROS!$H$88)^E$54 -> 4224134.384 | F59: =F49*(1+PARAMETROS!$G$88)*(1+PARAMETROS!$H$88)^(F$54-1) -> 4291324.325 | G59: =G49*(1+PARAMETROS!$G$88)*(1+PARAMETROS!$H$88)^G$54 -> 4534598.243 | H59: =H49*(1+PARAMETROS!$G$88)*(1+PARAMETROS!$H$88)^(H$54-1) -> 4604502.658 | I59: =I49*(1+PARAMETROS!$G$88)*(1+PARAMETROS!$H$88)^I$54 -> 4863253.118 | J59: =J49*(1+PARAMETROS!$G$88)*(1+PARAMETROS!$H$88)^(J$54-1) -> 4960677.344 | K59: =K49*(1+PARAMETROS!$G$88)*(1+PARAMETROS!$H$88)^K$54 -> 5262448.873 | L59: =L49*(1+PARAMETROS!$G$88)*(1+PARAMETROS!$H$88)^(L$54-1) -> 5363809.037 | M59: =M49*(1+PARAMETROS!$G$88)*(1+PARAMETROS!$H$88)^M$54 -> 5685962.038 | N59: =N49*(1+PARAMETROS!$G$88)*(1+PARAMETROS!$H$88)^(N$54-1) -> 5791417.153 | O59: =O49*(1+PARAMETROS!$G$88)*(1+PARAMETROS!$H$88)^O$54 -> 6157916.685 | P59: =P49*(1+PARAMETROS!$G$88)*(1+PARAMETROS!$H$88)^(P$54-1) -> 6290442.965 | Q59: =Q49*(1+PARAMETROS!$G$88)*(1+PARAMETROS!$H$88)^Q$54 -> 6682457.201 | R59: =R49*(1+PARAMETROS!$G$88)*(1+PARAMETROS!$H$88)^(R$54-1) -> 6820337.542 | S59: =S49*(1+PARAMETROS!$G$88)*(1+PARAMETROS!$H$88)^S$54 -> 7239329.886 | T59: =T49*(1+PARAMETROS!$G$88)*(1+PARAMETROS!$H$88)^(T$54-1) -> 7436488.102 | U59: =U49*(1+PARAMETROS!$G$88)*(1+PARAMETROS!$H$88)^U$54 -> 7942045.63 | V59: =V49*(1+PARAMETROS!$G$88)*(1+PARAMETROS!$H$88)^(V$54-1) -> 8147169.039 | W59: =W49*(1+PARAMETROS!$G$88)*(1+PARAMETROS!$H$88)^W$54 -> 8689725.062 | X59: =X49*(1+PARAMETROS!$G$88)*(1+PARAMETROS!$H$88)^(X$54-1) -> 8903135.456 | Y59: =Y49*(1+PARAMETROS!$G$88)*(1+PARAMETROS!$H$88)^Y$54 -> 9262822.128 | Z59: =Z49*(1+PARAMETROS!$G$88)*(1+PARAMETROS!$H$88)^(Z$54-1) -> 9262822.128 | AA59: =AA49*(1+PARAMETROS!$G$88)*(1+PARAMETROS!$H$88)^AA$54 -> 9637040.142 | AB59: =AB49*(1+PARAMETROS!$G$88)*(1+PARAMETROS!$H$88)^(AB$54-1) -> 9637040.142 | AC59: =AC49*(1+PARAMETROS!$G$88)*(1+PARAMETROS!$H$88)^AC$54 -> 10026376.56 | AD59: =AD49*(1+PARAMETROS!$G$88)*(1+PARAMETROS!$H$88)^(AD$54-1) -> 10026376.56 | AE59: =AE49*(1+PARAMETROS!$G$88)*(1+PARAMETROS!$H$88)^AE$54 -> 10431442.18 | AF59: =AF49*(1+PARAMETROS!$G$88)*(1+PARAMETROS!$H$88)^(AF$54-1) -> 10431442.18 | AG59: =AG49*(1+PARAMETROS!$G$88)*(1+PARAMETROS!$H$88)^AG$54 -> 10852872.44 | AH59: =AH49*(1+PARAMETROS!$G$88)*(1+PARAMETROS!$H$88)^(AH$54-1) -> 10852872.44 | AI59: =AI49*(1+PARAMETROS!$G$88)*(1+PARAMETROS!$H$88)^AI$54 -> 11291328.49 | AJ59: =AJ49*(1+PARAMETROS!$G$88)*(1+PARAMETROS!$H$88)^(AJ$54-1) -> 11291328.49 | AK59: =AK49*(1+PARAMETROS!$G$88)*(1+PARAMETROS!$H$88)^AK$54 -> 11747498.16 | AL59: =AL49*(1+PARAMETROS!$G$88)*(1+PARAMETROS!$H$88)^(AL$54-1) -> 11747498.16 | AM59: =AM49*(1+PARAMETROS!$G$88)*(1+PARAMETROS!$H$88)^AM$54 -> 12222097.08 | AN59: =AN49*(1+PARAMETROS!$G$88)*(1+PARAMETROS!$H$88)^(AN$54-1) -> 12222097.08 | AO59: =AO49*(1+PARAMETROS!$G$88)*(1+PARAMETROS!$H$88)^AO$54 -> 12715869.81 | AP59: =AP49*(1+PARAMETROS!$G$88)*(1+PARAMETROS!$H$88)^(AP$54-1) -> 12715869.81 | AQ59: =AQ49*(1+PARAMETROS!$G$88)*(1+PARAMETROS!$H$88)^AQ$54 -> 13229590.95
B62: Ingresos anuales en precios actualizados (hipotesis de inflacion alta)
B63: Año | C63: 2019 | D63: 2020 | E63: 2021 | F63: 2022 | G63: 2023 | H63: 2024 | I63: 2025 | J63: 2026 | K63: 2027 | L63: 2028 | M63: 2029 | N63: 2030 | O63: 2031 | P63: 2032 | Q63: 2033 | R63: 2034 | S63: 2035 | T63: 2036 | U63: 2037 | V63: 2038 | W63: 2039 | X63: 2040 | Y63: 2041 | Z63: 2042 | AA63: 2043 | AB63: 2044 | AC63: 2045 | AD63: 2046 | AE63: 2047 | AF63: 2048 | AG63: 2049 | AH63: 2050 | AI63: 2051 | AJ63: 2052 | AK63: 2053 | AL63: 2054 | AM63: 2055 | AN63: 2056 | AO63: 2057 | AP63: 2058 | AQ63: 2059
E64: 1 | F64: 2 | G64: 3 | H64: 4 | I64: 5 | J64: 6 | K64: 7 | L64: 8 | M64: 9 | N64: 10 | O64: 11 | P64: 12 | Q64: 13 | R64: 14 | S64: 15 | T64: 16 | U64: 17 | V64: 18 | W64: 19 | X64: 20 | Y64: 21 | Z64: 22 | AA64: 23 | AB64: 24 | AC64: 25 | AD64: 26 | AE64: 27 | AF64: 28 | AG64: 29 | AH64: 30 | AI64: 31 | AJ64: 32 | AK64: 33 | AL64: 34 | AM64: 35 | AN64: 36 | AO64: 37 | AP64: 38 | AQ64: 39
B65: Tarifa 1 | C65: =C45 -> 1219779 | D65: =D45*(1) -> 1626372 | E65: =E45*(1+PARAMETROS!$G$89)*(1+PARAMETROS!$H$89)^E$64 -> 1796390.002 | F65: =F45*(1+PARAMETROS!$G$89)*(1+PARAMETROS!$H$89)^(F$64-1) -> 1825238.915 | G65: =G45*(1+PARAMETROS!$G$89)*(1+PARAMETROS!$H$89)^G$64 -> 2005381.394 | H65: =H45*(1+PARAMETROS!$G$89)*(1+PARAMETROS!$H$89)^(H$64-1) -> 2036584.377 | I65: =I45*(1+PARAMETROS!$G$89)*(1+PARAMETROS!$H$89)^I$64 -> 2236518.81 | J65: =J45*(1+PARAMETROS!$G$89)*(1+PARAMETROS!$H$89)^(J$64-1) -> 2280254.206 | K65: =K45*(1+PARAMETROS!$G$89)*(1+PARAMETROS!$H$89)^K$64 -> 2513627.153 | L65: =L45*(1+PARAMETROS!$G$89)*(1+PARAMETROS!$H$89)^(L$64-1) -> 2560931.357 | M65: =M45*(1+PARAMETROS!$G$89)*(1+PARAMETROS!$H$89)^M$64 -> 2821067.584 | N65: =N45*(1+PARAMETROS!$G$89)*(1+PARAMETROS!$H$89)^(N$64-1) -> 2872231.811 | O65: =O45*(1+PARAMETROS!$G$89)*(1+PARAMETROS!$H$89)^O$64 -> 3178033.883 | P65: =P45*(1+PARAMETROS!$G$89)*(1+PARAMETROS!$H$89)^(P$64-1) -> 3249461.839 | Q65: =Q45*(1+PARAMETROS!$G$89)*(1+PARAMETROS!$H$89)^Q$64 -> 3591874.402 | R65: =R45*(1+PARAMETROS!$G$89)*(1+PARAMETROS!$H$89)^(R$64-1) -> 3669130.879 | S65: =S45*(1+PARAMETROS!$G$89)*(1+PARAMETROS!$H$89)^S$64 -> 4052092.564 | T65: =T45*(1+PARAMETROS!$G$89)*(1+PARAMETROS!$H$89)^(T$64-1) -> 4172702.8 | U65: =U45*(1+PARAMETROS!$G$89)*(1+PARAMETROS!$H$89)^U$64 -> 4643647.38 | V65: =V45*(1+PARAMETROS!$G$89)*(1+PARAMETROS!$H$89)^(V$64-1) -> 4774099.411 | W65: =W45*(1+PARAMETROS!$G$89)*(1+PARAMETROS!$H$89)^W$64 -> 5304762.84 | X65: =X45*(1+PARAMETROS!$G$89)*(1+PARAMETROS!$H$89)^(X$64-1) -> 5445859.757 | Y65: =Y45*(1+PARAMETROS!$G$89)*(1+PARAMETROS!$H$89)^Y$64 -> 5890241.913 | Z65: =Z45*(1+PARAMETROS!$G$89)*(1+PARAMETROS!$H$89)^(Z$64-1) -> 5890241.913 | AA65: =AA45*(1+PARAMETROS!$G$89)*(1+PARAMETROS!$H$89)^AA$64 -> 6370885.653 | AB65: =AB45*(1+PARAMETROS!$G$89)*(1+PARAMETROS!$H$89)^(AB$64-1) -> 6370885.653 | AC65: =AC45*(1+PARAMETROS!$G$89)*(1+PARAMETROS!$H$89)^AC$64 -> 6890749.923 | AD65: =AD45*(1+PARAMETROS!$G$89)*(1+PARAMETROS!$H$89)^(AD$64-1) -> 6890749.923 | AE65: =AE45*(1+PARAMETROS!$G$89)*(1+PARAMETROS!$H$89)^AE$64 -> 7453035.116 | AF65: =AF45*(1+PARAMETROS!$G$89)*(1+PARAMETROS!$H$89)^(AF$64-1) -> 7453035.116 | AG65: =AG45*(1+PARAMETROS!$G$89)*(1+PARAMETROS!$H$89)^AG$64 -> 8061202.782 | AH65: =AH45*(1+PARAMETROS!$G$89)*(1+PARAMETROS!$H$89)^(AH$64-1) -> 8061202.782 | AI65: =AI45*(1+PARAMETROS!$G$89)*(1+PARAMETROS!$H$89)^AI$64 -> 8718996.929 | AJ65: =AJ45*(1+PARAMETROS!$G$89)*(1+PARAMETROS!$H$89)^(AJ$64-1) -> 8718996.929 | AK65: =AK45*(1+PARAMETROS!$G$89)*(1+PARAMETROS!$H$89)^AK$64 -> 9430467.078 | AL65: =AL45*(1+PARAMETROS!$G$89)*(1+PARAMETROS!$H$89)^(AL$64-1) -> 9430467.078 | AM65: =AM45*(1+PARAMETROS!$G$89)*(1+PARAMETROS!$H$89)^AM$64 -> 10199993.19 | AN65: =AN45*(1+PARAMETROS!$G$89)*(1+PARAMETROS!$H$89)^(AN$64-1) -> 10199993.19 | AO65: =AO45*(1+PARAMETROS!$G$89)*(1+PARAMETROS!$H$89)^AO$64 -> 11032312.64 | AP65: =AP45*(1+PARAMETROS!$G$89)*(1+PARAMETROS!$H$89)^(AP$64-1) -> 11032312.64 | AQ65: =AQ45*(1+PARAMETROS!$G$89)*(1+PARAMETROS!$H$89)^AQ$64 -> 11932549.35
B66: Tarifa 2 | C66: =C46 -> 1509774.819 | D66: =D46*(1) -> 2013033.092 | E66: =E46*(1+PARAMETROS!$G$89)*(1+PARAMETROS!$H$89)^E$64 -> 2224278.217 | F66: =F46*(1+PARAMETROS!$G$89)*(1+PARAMETROS!$H$89)^(F$64-1) -> 2260792.069 | G66: =G46*(1+PARAMETROS!$G$89)*(1+PARAMETROS!$H$89)^G$64 -> 2484766.084 | H66: =H46*(1+PARAMETROS!$G$89)*(1+PARAMETROS!$H$89)^(H$64-1) -> 2524259.466 | I66: =I46*(1+PARAMETROS!$G$89)*(1+PARAMETROS!$H$89)^I$64 -> 2772955.081 | J66: =J46*(1+PARAMETROS!$G$89)*(1+PARAMETROS!$H$89)^(J$64-1) -> 2825437.556 | K66: =K46*(1+PARAMETROS!$G$89)*(1+PARAMETROS!$H$89)^K$64 -> 3112758.306 | L66: =L46*(1+PARAMETROS!$G$89)*(1+PARAMETROS!$H$89)^(L$64-1) -> 3169523.351 | M66: =M46*(1+PARAMETROS!$G$89)*(1+PARAMETROS!$H$89)^M$64 -> 3489553.529 | N66: =N46*(1+PARAMETROS!$G$89)*(1+PARAMETROS!$H$89)^(N$64-1) -> 3550950.602 | O66: =O46*(1+PARAMETROS!$G$89)*(1+PARAMETROS!$H$89)^O$64 -> 3929870.62 | P66: =P46*(1+PARAMETROS!$G$89)*(1+PARAMETROS!$H$89)^(P$64-1) -> 4019033.069 | Q66: =Q46*(1+PARAMETROS!$G$89)*(1+PARAMETROS!$H$89)^Q$64 -> 4443424.273 | R66: =R46*(1+PARAMETROS!$G$89)*(1+PARAMETROS!$H$89)^(R$64-1) -> 4539862.378 | S66: =S46*(1+PARAMETROS!$G$89)*(1+PARAMETROS!$H$89)^S$64 -> 5014622.603 | T66: =T46*(1+PARAMETROS!$G$89)*(1+PARAMETROS!$H$89)^(T$64-1) -> 5160454.101 | U66: =U46*(1+PARAMETROS!$G$89)*(1+PARAMETROS!$H$89)^U$64 -> 5739278.505 | V66: =V46*(1+PARAMETROS!$G$89)*(1+PARAMETROS!$H$89)^(V$64-1) -> 5897009.854 | W66: =W46*(1+PARAMETROS!$G$89)*(1+PARAMETROS!$H$89)^W$64 -> 6548808.085 | X66: =X46*(1+PARAMETROS!$G$89)*(1+PARAMETROS!$H$89)^(X$64-1) -> 6719410.312 | Y66: =Y46*(1+PARAMETROS!$G$89)*(1+PARAMETROS!$H$89)^Y$64 -> 7267714.193 | Z66: =Z46*(1+PARAMETROS!$G$89)*(1+PARAMETROS!$H$89)^(Z$64-1) -> 7267714.193 | AA66: =AA46*(1+PARAMETROS!$G$89)*(1+PARAMETROS!$H$89)^AA$64 -> 7860759.671 | AB66: =AB46*(1+PARAMETROS!$G$89)*(1+PARAMETROS!$H$89)^(AB$64-1) -> 7860759.671 | AC66: =AC46*(1+PARAMETROS!$G$89)*(1+PARAMETROS!$H$89)^AC$64 -> 8502197.66 | AD66: =AD46*(1+PARAMETROS!$G$89)*(1+PARAMETROS!$H$89)^(AD$64-1) -> 8502197.66 | AE66: =AE46*(1+PARAMETROS!$G$89)*(1+PARAMETROS!$H$89)^AE$64 -> 9195976.99 | AF66: =AF46*(1+PARAMETROS!$G$89)*(1+PARAMETROS!$H$89)^(AF$64-1) -> 9195976.99 | AG66: =AG46*(1+PARAMETROS!$G$89)*(1+PARAMETROS!$H$89)^AG$64 -> 9946368.712 | AH66: =AH46*(1+PARAMETROS!$G$89)*(1+PARAMETROS!$H$89)^(AH$64-1) -> 9946368.712 | AI66: =AI46*(1+PARAMETROS!$G$89)*(1+PARAMETROS!$H$89)^AI$64 -> 10757992.4 | AJ66: =AJ46*(1+PARAMETROS!$G$89)*(1+PARAMETROS!$H$89)^(AJ$64-1) -> 10757992.4 | AK66: =AK46*(1+PARAMETROS!$G$89)*(1+PARAMETROS!$H$89)^AK$64 -> 11635844.58 | AL66: =AL46*(1+PARAMETROS!$G$89)*(1+PARAMETROS!$H$89)^(AL$64-1) -> 11635844.58 | AM66: =AM46*(1+PARAMETROS!$G$89)*(1+PARAMETROS!$H$89)^AM$64 -> 12585329.5 | AN66: =AN46*(1+PARAMETROS!$G$89)*(1+PARAMETROS!$H$89)^(AN$64-1) -> 12585329.5 | AO66: =AO46*(1+PARAMETROS!$G$89)*(1+PARAMETROS!$H$89)^AO$64 -> 13612292.38 | AP66: =AP46*(1+PARAMETROS!$G$89)*(1+PARAMETROS!$H$89)^(AP$64-1) -> 13612292.38 | AQ66: =AQ46*(1+PARAMETROS!$G$89)*(1+PARAMETROS!$H$89)^AQ$64 -> 14723055.44
B67: Tarifa 3 | C67: =C47 -> 1988017.428 | D67: =D47*(1) -> 2650689.905 | E67: =E47*(1+PARAMETROS!$G$89)*(1+PARAMETROS!$H$89)^E$64 -> 2927332.535 | F67: =F47*(1+PARAMETROS!$G$89)*(1+PARAMETROS!$H$89)^(F$64-1) -> 2973895.282 | G67: =G47*(1+PARAMETROS!$G$89)*(1+PARAMETROS!$H$89)^G$64 -> 3266927.405 | H67: =H47*(1+PARAMETROS!$G$89)*(1+PARAMETROS!$H$89)^(H$64-1) -> 3317289.672 | I67: =I47*(1+PARAMETROS!$G$89)*(1+PARAMETROS!$H$89)^I$64 -> 3642452.337 | J67: =J47*(1+PARAMETROS!$G$89)*(1+PARAMETROS!$H$89)^(J$64-1) -> 3715420.593 | K67: =K47*(1+PARAMETROS!$G$89)*(1+PARAMETROS!$H$89)^K$64 -> 4097521.38 | L67: =L47*(1+PARAMETROS!$G$89)*(1+PARAMETROS!$H$89)^(L$64-1) -> 4176443.845 | M67: =M47*(1+PARAMETROS!$G$89)*(1+PARAMETROS!$H$89)^M$64 -> 4602604.202 | N67: =N47*(1+PARAMETROS!$G$89)*(1+PARAMETROS!$H$89)^(N$64-1) -> 4687966.741 | O67: =O47*(1+PARAMETROS!$G$89)*(1+PARAMETROS!$H$89)^O$64 -> 5182028.744 | P67: =P47*(1+PARAMETROS!$G$89)*(1+PARAMETROS!$H$89)^(P$64-1) -> 5293552.661 | Q67: =Q47*(1+PARAMETROS!$G$89)*(1+PARAMETROS!$H$89)^Q$64 -> 5846130.827 | R67: =R47*(1+PARAMETROS!$G$89)*(1+PARAMETROS!$H$89)^(R$64-1) -> 5966755.095 | S67: =S47*(1+PARAMETROS!$G$89)*(1+PARAMETROS!$H$89)^S$64 -> 6584109.52 | T67: =T47*(1+PARAMETROS!$G$89)*(1+PARAMETROS!$H$89)^(T$64-1) -> 6763423.256 | U67: =U47*(1+PARAMETROS!$G$89)*(1+PARAMETROS!$H$89)^U$64 -> 7509264.331 | V67: =V47*(1+PARAMETROS!$G$89)*(1+PARAMETROS!$H$89)^(V$64-1) -> 7703210.068 | W67: =W47*(1+PARAMETROS!$G$89)*(1+PARAMETROS!$H$89)^W$64 -> 8541563.719 | X67: =X47*(1+PARAMETROS!$G$89)*(1+PARAMETROS!$H$89)^(X$64-1) -> 8751335.429 | Y67: =Y47*(1+PARAMETROS!$G$89)*(1+PARAMETROS!$H$89)^Y$64 -> 9465444.399 | Z67: =Z47*(1+PARAMETROS!$G$89)*(1+PARAMETROS!$H$89)^(Z$64-1) -> 9465444.399 | AA67: =AA47*(1+PARAMETROS!$G$89)*(1+PARAMETROS!$H$89)^AA$64 -> 10237824.66 | AB67: =AB47*(1+PARAMETROS!$G$89)*(1+PARAMETROS!$H$89)^(AB$64-1) -> 10237824.66 | AC67: =AC47*(1+PARAMETROS!$G$89)*(1+PARAMETROS!$H$89)^AC$64 -> 11073231.15 | AD67: =AD47*(1+PARAMETROS!$G$89)*(1+PARAMETROS!$H$89)^(AD$64-1) -> 11073231.15 | AE67: =AE47*(1+PARAMETROS!$G$89)*(1+PARAMETROS!$H$89)^AE$64 -> 11976806.82 | AF67: =AF47*(1+PARAMETROS!$G$89)*(1+PARAMETROS!$H$89)^(AF$64-1) -> 11976806.82 | AG67: =AG47*(1+PARAMETROS!$G$89)*(1+PARAMETROS!$H$89)^AG$64 -> 12954114.25 | AH67: =AH47*(1+PARAMETROS!$G$89)*(1+PARAMETROS!$H$89)^(AH$64-1) -> 12954114.25 | AI67: =AI47*(1+PARAMETROS!$G$89)*(1+PARAMETROS!$H$89)^AI$64 -> 14011169.98 | AJ67: =AJ47*(1+PARAMETROS!$G$89)*(1+PARAMETROS!$H$89)^(AJ$64-1) -> 14011169.98 | AK67: =AK47*(1+PARAMETROS!$G$89)*(1+PARAMETROS!$H$89)^AK$64 -> 15154481.45 | AL67: =AL47*(1+PARAMETROS!$G$89)*(1+PARAMETROS!$H$89)^(AL$64-1) -> 15154481.45 | AM67: =AM47*(1+PARAMETROS!$G$89)*(1+PARAMETROS!$H$89)^AM$64 -> 16391087.13 | AN67: =AN47*(1+PARAMETROS!$G$89)*(1+PARAMETROS!$H$89)^(AN$64-1) -> 16391087.13 | AO67: =AO47*(1+PARAMETROS!$G$89)*(1+PARAMETROS!$H$89)^AO$64 -> 17728599.84 | AP67: =AP47*(1+PARAMETROS!$G$89)*(1+PARAMETROS!$H$89)^(AP$64-1) -> 17728599.84 | AQ67: =AQ47*(1+PARAMETROS!$G$89)*(1+PARAMETROS!$H$89)^AQ$64 -> 19175253.59
B68: Tarifa 4 | C68: =C48 -> 2485021.786 | D68: =D48*(1) -> 3313362.381 | E68: =E48*(1+PARAMETROS!$G$89)*(1+PARAMETROS!$H$89)^E$64 -> 3659165.669 | F68: =F48*(1+PARAMETROS!$G$89)*(1+PARAMETROS!$H$89)^(F$64-1) -> 3717369.103 | G68: =G48*(1+PARAMETROS!$G$89)*(1+PARAMETROS!$H$89)^G$64 -> 4083659.256 | H68: =H48*(1+PARAMETROS!$G$89)*(1+PARAMETROS!$H$89)^(H$64-1) -> 4146612.09 | I68: =I48*(1+PARAMETROS!$G$89)*(1+PARAMETROS!$H$89)^I$64 -> 4553065.422 | J68: =J48*(1+PARAMETROS!$G$89)*(1+PARAMETROS!$H$89)^(J$64-1) -> 4644275.742 | K68: =K48*(1+PARAMETROS!$G$89)*(1+PARAMETROS!$H$89)^K$64 -> 5121901.724 | L68: =L48*(1+PARAMETROS!$G$89)*(1+PARAMETROS!$H$89)^(L$64-1) -> 5220554.807 | M68: =M48*(1+PARAMETROS!$G$89)*(1+PARAMETROS!$H$89)^M$64 -> 5753255.253 | N68: =N48*(1+PARAMETROS!$G$89)*(1+PARAMETROS!$H$89)^(N$64-1) -> 5859958.426 | O68: =O48*(1+PARAMETROS!$G$89)*(1+PARAMETROS!$H$89)^O$64 -> 6477535.93 | P68: =P48*(1+PARAMETROS!$G$89)*(1+PARAMETROS!$H$89)^(P$64-1) -> 6616940.826 | Q68: =Q48*(1+PARAMETROS!$G$89)*(1+PARAMETROS!$H$89)^Q$64 -> 7307663.533 | R68: =R48*(1+PARAMETROS!$G$89)*(1+PARAMETROS!$H$89)^(R$64-1) -> 7458443.869 | S68: =S48*(1+PARAMETROS!$G$89)*(1+PARAMETROS!$H$89)^S$64 -> 8230136.9 | T68: =T48*(1+PARAMETROS!$G$89)*(1+PARAMETROS!$H$89)^(T$64-1) -> 8454279.07 | U68: =U48*(1+PARAMETROS!$G$89)*(1+PARAMETROS!$H$89)^U$64 -> 9386580.414 | V68: =V48*(1+PARAMETROS!$G$89)*(1+PARAMETROS!$H$89)^(V$64-1) -> 9629012.585 | W68: =W48*(1+PARAMETROS!$G$89)*(1+PARAMETROS!$H$89)^W$64 -> 10676954.65 | X68: =X48*(1+PARAMETROS!$G$89)*(1+PARAMETROS!$H$89)^(X$64-1) -> 10939169.29 | Y68: =Y48*(1+PARAMETROS!$G$89)*(1+PARAMETROS!$H$89)^Y$64 -> 11831805.5 | Z68: =Z48*(1+PARAMETROS!$G$89)*(1+PARAMETROS!$H$89)^(Z$64-1) -> 11831805.5 | AA68: =AA48*(1+PARAMETROS!$G$89)*(1+PARAMETROS!$H$89)^AA$64 -> 12797280.83 | AB68: =AB48*(1+PARAMETROS!$G$89)*(1+PARAMETROS!$H$89)^(AB$64-1) -> 12797280.83 | AC68: =AC48*(1+PARAMETROS!$G$89)*(1+PARAMETROS!$H$89)^AC$64 -> 13841538.94 | AD68: =AD48*(1+PARAMETROS!$G$89)*(1+PARAMETROS!$H$89)^(AD$64-1) -> 13841538.94 | AE68: =AE48*(1+PARAMETROS!$G$89)*(1+PARAMETROS!$H$89)^AE$64 -> 14971008.52 | AF68: =AF48*(1+PARAMETROS!$G$89)*(1+PARAMETROS!$H$89)^(AF$64-1) -> 14971008.52 | AG68: =AG48*(1+PARAMETROS!$G$89)*(1+PARAMETROS!$H$89)^AG$64 -> 16192642.82 | AH68: =AH48*(1+PARAMETROS!$G$89)*(1+PARAMETROS!$H$89)^(AH$64-1) -> 16192642.82 | AI68: =AI48*(1+PARAMETROS!$G$89)*(1+PARAMETROS!$H$89)^AI$64 -> 17513962.47 | AJ68: =AJ48*(1+PARAMETROS!$G$89)*(1+PARAMETROS!$H$89)^(AJ$64-1) -> 17513962.47 | AK68: =AK48*(1+PARAMETROS!$G$89)*(1+PARAMETROS!$H$89)^AK$64 -> 18943101.81 | AL68: =AL48*(1+PARAMETROS!$G$89)*(1+PARAMETROS!$H$89)^(AL$64-1) -> 18943101.81 | AM68: =AM48*(1+PARAMETROS!$G$89)*(1+PARAMETROS!$H$89)^AM$64 -> 20488858.92 | AN68: =AN48*(1+PARAMETROS!$G$89)*(1+PARAMETROS!$H$89)^(AN$64-1) -> 20488858.92 | AO68: =AO48*(1+PARAMETROS!$G$89)*(1+PARAMETROS!$H$89)^AO$64 -> 22160749.8 | AP68: =AP48*(1+PARAMETROS!$G$89)*(1+PARAMETROS!$H$89)^(AP$64-1) -> 22160749.8 | AQ68: =AQ48*(1+PARAMETROS!$G$89)*(1+PARAMETROS!$H$89)^AQ$64 -> 23969066.99
B69: Tarifa 5 | C69: =C49 -> 2982026.143 | D69: =D49*(1) -> 3976034.857 | E69: =E49*(1+PARAMETROS!$G$89)*(1+PARAMETROS!$H$89)^E$64 -> 4390998.803 | F69: =F49*(1+PARAMETROS!$G$89)*(1+PARAMETROS!$H$89)^(F$64-1) -> 4460842.924 | G69: =G49*(1+PARAMETROS!$G$89)*(1+PARAMETROS!$H$89)^G$64 -> 4900391.107 | H69: =H49*(1+PARAMETROS!$G$89)*(1+PARAMETROS!$H$89)^(H$64-1) -> 4975934.508 | I69: =I49*(1+PARAMETROS!$G$89)*(1+PARAMETROS!$H$89)^I$64 -> 5463678.506 | J69: =J49*(1+PARAMETROS!$G$89)*(1+PARAMETROS!$H$89)^(J$64-1) -> 5573130.89 | K69: =K49*(1+PARAMETROS!$G$89)*(1+PARAMETROS!$H$89)^K$64 -> 6146282.069 | L69: =L49*(1+PARAMETROS!$G$89)*(1+PARAMETROS!$H$89)^(L$64-1) -> 6264665.768 | M69: =M49*(1+PARAMETROS!$G$89)*(1+PARAMETROS!$H$89)^M$64 -> 6903906.303 | N69: =N49*(1+PARAMETROS!$G$89)*(1+PARAMETROS!$H$89)^(N$64-1) -> 7031950.112 | O69: =O49*(1+PARAMETROS!$G$89)*(1+PARAMETROS!$H$89)^O$64 -> 7773043.116 | P69: =P49*(1+PARAMETROS!$G$89)*(1+PARAMETROS!$H$89)^(P$64-1) -> 7940328.992 | Q69: =Q49*(1+PARAMETROS!$G$89)*(1+PARAMETROS!$H$89)^Q$64 -> 8769196.24 | R69: =R49*(1+PARAMETROS!$G$89)*(1+PARAMETROS!$H$89)^(R$64-1) -> 8950132.643 | S69: =S49*(1+PARAMETROS!$G$89)*(1+PARAMETROS!$H$89)^S$64 -> 9876164.28 | T69: =T49*(1+PARAMETROS!$G$89)*(1+PARAMETROS!$H$89)^(T$64-1) -> 10145134.88 | U69: =U49*(1+PARAMETROS!$G$89)*(1+PARAMETROS!$H$89)^U$64 -> 11263896.5 | V69: =V49*(1+PARAMETROS!$G$89)*(1+PARAMETROS!$H$89)^(V$64-1) -> 11554815.1 | W69: =W49*(1+PARAMETROS!$G$89)*(1+PARAMETROS!$H$89)^W$64 -> 12812345.58 | X69: =X49*(1+PARAMETROS!$G$89)*(1+PARAMETROS!$H$89)^(X$64-1) -> 13127003.14 | Y69: =Y49*(1+PARAMETROS!$G$89)*(1+PARAMETROS!$H$89)^Y$64 -> 14198166.6 | Z69: =Z49*(1+PARAMETROS!$G$89)*(1+PARAMETROS!$H$89)^(Z$64-1) -> 14198166.6 | AA69: =AA49*(1+PARAMETROS!$G$89)*(1+PARAMETROS!$H$89)^AA$64 -> 15356736.99 | AB69: =AB49*(1+PARAMETROS!$G$89)*(1+PARAMETROS!$H$89)^(AB$64-1) -> 15356736.99 | AC69: =AC49*(1+PARAMETROS!$G$89)*(1+PARAMETROS!$H$89)^AC$64 -> 16609846.73 | AD69: =AD49*(1+PARAMETROS!$G$89)*(1+PARAMETROS!$H$89)^(AD$64-1) -> 16609846.73 | AE69: =AE49*(1+PARAMETROS!$G$89)*(1+PARAMETROS!$H$89)^AE$64 -> 17965210.23 | AF69: =AF49*(1+PARAMETROS!$G$89)*(1+PARAMETROS!$H$89)^(AF$64-1) -> 17965210.23 | AG69: =AG49*(1+PARAMETROS!$G$89)*(1+PARAMETROS!$H$89)^AG$64 -> 19431171.38 | AH69: =AH49*(1+PARAMETROS!$G$89)*(1+PARAMETROS!$H$89)^(AH$64-1) -> 19431171.38 | AI69: =AI49*(1+PARAMETROS!$G$89)*(1+PARAMETROS!$H$89)^AI$64 -> 21016754.96 | AJ69: =AJ49*(1+PARAMETROS!$G$89)*(1+PARAMETROS!$H$89)^(AJ$64-1) -> 21016754.96 | AK69: =AK49*(1+PARAMETROS!$G$89)*(1+PARAMETROS!$H$89)^AK$64 -> 22731722.17 | AL69: =AL49*(1+PARAMETROS!$G$89)*(1+PARAMETROS!$H$89)^(AL$64-1) -> 22731722.17 | AM69: =AM49*(1+PARAMETROS!$G$89)*(1+PARAMETROS!$H$89)^AM$64 -> 24586630.7 | AN69: =AN49*(1+PARAMETROS!$G$89)*(1+PARAMETROS!$H$89)^(AN$64-1) -> 24586630.7 | AO69: =AO49*(1+PARAMETROS!$G$89)*(1+PARAMETROS!$H$89)^AO$64 -> 26592899.76 | AP69: =AP49*(1+PARAMETROS!$G$89)*(1+PARAMETROS!$H$89)^(AP$64-1) -> 26592899.76 | AQ69: =AQ49*(1+PARAMETROS!$G$89)*(1+PARAMETROS!$H$89)^AQ$64 -> 28762880.38
B73: ALTERNATIVA 13
B75: Ingresos en USD 2015
B76: Año | C76: 2019 | D76: 2020 | E76: 2021 | F76: 2022 | G76: 2023 | H76: 2024 | I76: 2025 | J76: 2026 | K76: 2027 | L76: 2028 | M76: 2029 | N76: 2030 | O76: 2031 | P76: 2032 | Q76: 2033 | R76: 2034 | S76: 2035 | T76: 2036 | U76: 2037 | V76: 2038 | W76: 2039 | X76: 2040 | Y76: 2041 | Z76: 2042 | AA76: 2043 | AB76: 2044 | AC76: 2045 | AD76: 2046 | AE76: 2047 | AF76: 2048 | AG76: 2049 | AH76: 2050 | AI76: 2051 | AJ76: 2052 | AK76: 2053 | AL76: 2054 | AM76: 2055 | AN76: 2056 | AO76: 2057 | AP76: 2058 | AQ76: 2059
B77: Tarifa 1 | C77: =$D32*DEMANDA!C72*$D$12+$E32*DEMANDA!C72*$D$13 -> 6184365 | D77: =$D32*DEMANDA!D72*$D$12+$E32*DEMANDA!D72*$D$13 -> 8245820 | E77: =$D32*DEMANDA!E72*$D$12+$E32*DEMANDA!E72*$D$13 -> 8392463.518 | F77: =$D32*DEMANDA!F72*$D$12+$E32*DEMANDA!F72*$D$13 -> 8539107.035 | G77: =$D32*DEMANDA!G72*$D$12+$E32*DEMANDA!G72*$D$13 -> 8685750.553 | H77: =$D32*DEMANDA!H72*$D$12+$E32*DEMANDA!H72*$D$13 -> 8832394.071 | I77: =$D32*DEMANDA!I72*$D$12+$E32*DEMANDA!I72*$D$13 -> 8979037.588 | J77: =$D32*DEMANDA!J72*$D$12+$E32*DEMANDA!J72*$D$13 -> 9123711.942 | K77: =$D32*DEMANDA!K72*$D$12+$E32*DEMANDA!K72*$D$13 -> 9268386.295 | L77: =$D32*DEMANDA!L72*$D$12+$E32*DEMANDA!L72*$D$13 -> 9413060.648 | M77: =$D32*DEMANDA!M72*$D$12+$E32*DEMANDA!M72*$D$13 -> 9557735.002 | N77: =$D32*DEMANDA!N72*$D$12+$E32*DEMANDA!N72*$D$13 -> 9702409.355 | O77: =$D32*DEMANDA!O72*$D$12+$E32*DEMANDA!O72*$D$13 -> 9898241.264 | P77: =$D32*DEMANDA!P72*$D$12+$E32*DEMANDA!P72*$D$13 -> 10094073.17 | Q77: =$D32*DEMANDA!Q72*$D$12+$E32*DEMANDA!Q72*$D$13 -> 10289905.08 | R77: =$D32*DEMANDA!R72*$D$12+$E32*DEMANDA!R72*$D$13 -> 10485736.99 | S77: =$D32*DEMANDA!S72*$D$12+$E32*DEMANDA!S72*$D$13 -> 10681568.9 | T77: =$D32*DEMANDA!T72*$D$12+$E32*DEMANDA!T72*$D$13 -> 10985923.23 | U77: =$D32*DEMANDA!U72*$D$12+$E32*DEMANDA!U72*$D$13 -> 11290277.56 | V77: =$D32*DEMANDA!V72*$D$12+$E32*DEMANDA!V72*$D$13 -> 11594631.89 | W77: =$D32*DEMANDA!W72*$D$12+$E32*DEMANDA!W72*$D$13 -> 11898986.23 | X77: =$D32*DEMANDA!X72*$D$12+$E32*DEMANDA!X72*$D$13 -> 12203340.56 | Y77: =$D32*DEMANDA!Y72*$D$12+$E32*DEMANDA!Y72*$D$13 -> 12203340.56 | Z77: =$D32*DEMANDA!Z72*$D$12+$E32*DEMANDA!Z72*$D$13 -> 12203340.56 | AA77: =$D32*DEMANDA!AA72*$D$12+$E32*DEMANDA!AA72*$D$13 -> 12203340.56 | AB77: =$D32*DEMANDA!AB72*$D$12+$E32*DEMANDA!AB72*$D$13 -> 12203340.56 | AC77: =$D32*DEMANDA!AC72*$D$12+$E32*DEMANDA!AC72*$D$13 -> 12203340.56 | AD77: =$D32*DEMANDA!AD72*$D$12+$E32*DEMANDA!AD72*$D$13 -> 12203340.56 | AE77: =$D32*DEMANDA!AE72*$D$12+$E32*DEMANDA!AE72*$D$13 -> 12203340.56 | AF77: =$D32*DEMANDA!AF72*$D$12+$E32*DEMANDA!AF72*$D$13 -> 12203340.56 | AG77: =$D32*DEMANDA!AG72*$D$12+$E32*DEMANDA!AG72*$D$13 -> 12203340.56 | AH77: =$D32*DEMANDA!AH72*$D$12+$E32*DEMANDA!AH72*$D$13 -> 12203340.56 | AI77: =$D32*DEMANDA!AI72*$D$12+$E32*DEMANDA!AI72*$D$13 -> 12203340.56 | AJ77: =$D32*DEMANDA!AJ72*$D$12+$E32*DEMANDA!AJ72*$D$13 -> 12203340.56 | AK77: =$D32*DEMANDA!AK72*$D$12+$E32*DEMANDA!AK72*$D$13 -> 12203340.56 | AL77: =$D32*DEMANDA!AL72*$D$12+$E32*DEMANDA!AL72*$D$13 -> 12203340.56 | AM77: =$D32*DEMANDA!AM72*$D$12+$E32*DEMANDA!AM72*$D$13 -> 12203340.56 | AN77: =$D32*DEMANDA!AN72*$D$12+$E32*DEMANDA!AN72*$D$13 -> 12203340.56 | AO77: =$D32*DEMANDA!AO72*$D$12+$E32*DEMANDA!AO72*$D$13 -> 12203340.56 | AP77: =$D32*DEMANDA!AP72*$D$12+$E32*DEMANDA!AP72*$D$13 -> 12203340.56 | AQ77: =$D32*DEMANDA!AQ72*$D$12+$E32*DEMANDA!AQ72*$D$13 -> 12203340.56
B78: Tarifa 2 | C78: =$D33*DEMANDA!C73*$D$12+$E33*DEMANDA!C73*$D$13 -> 7667074.931 | D78: =$D33*DEMANDA!D73*$D$12+$E33*DEMANDA!D73*$D$13 -> 10222766.57 | E78: =$D33*DEMANDA!E73*$D$12+$E33*DEMANDA!E73*$D$13 -> 10397650.2 | F78: =$D33*DEMANDA!F73*$D$12+$E33*DEMANDA!F73*$D$13 -> 10572533.83 | G78: =$D33*DEMANDA!G73*$D$12+$E33*DEMANDA!G73*$D$13 -> 10747417.46 | H78: =$D33*DEMANDA!H73*$D$12+$E33*DEMANDA!H73*$D$13 -> 10922301.09 | I78: =$D33*DEMANDA!I73*$D$12+$E33*DEMANDA!I73*$D$13 -> 11097184.72 | J78: =$D33*DEMANDA!J73*$D$12+$E33*DEMANDA!J73*$D$13 -> 11270296.28 | K78: =$D33*DEMANDA!K73*$D$12+$E33*DEMANDA!K73*$D$13 -> 11443407.85 | L78: =$D33*DEMANDA!L73*$D$12+$E33*DEMANDA!L73*$D$13 -> 11616519.41 | M78: =$D33*DEMANDA!M73*$D$12+$E33*DEMANDA!M73*$D$13 -> 11789630.98 | N78: =$D33*DEMANDA!N73*$D$12+$E33*DEMANDA!N73*$D$13 -> 11962742.55 | O78: =$D33*DEMANDA!O73*$D$12+$E33*DEMANDA!O73*$D$13 -> 12202831.61 | P78: =$D33*DEMANDA!P73*$D$12+$E33*DEMANDA!P73*$D$13 -> 12442920.67 | Q78: =$D33*DEMANDA!Q73*$D$12+$E33*DEMANDA!Q73*$D$13 -> 12683009.73 | R78: =$D33*DEMANDA!R73*$D$12+$E33*DEMANDA!R73*$D$13 -> 12923098.8 | S78: =$D33*DEMANDA!S73*$D$12+$E33*DEMANDA!S73*$D$13 -> 13163187.86 | T78: =$D33*DEMANDA!T73*$D$12+$E33*DEMANDA!T73*$D$13 -> 13523703.16 | U78: =$D33*DEMANDA!U73*$D$12+$E33*DEMANDA!U73*$D$13 -> 13884218.47 | V78: =$D33*DEMANDA!V73*$D$12+$E33*DEMANDA!V73*$D$13 -> 14244733.77 | W78: =$D33*DEMANDA!W73*$D$12+$E33*DEMANDA!W73*$D$13 -> 14605249.07 | X78: =$D33*DEMANDA!X73*$D$12+$E33*DEMANDA!X73*$D$13 -> 14965764.38 | Y78: =$D33*DEMANDA!Y73*$D$12+$E33*DEMANDA!Y73*$D$13 -> 14965764.38 | Z78: =$D33*DEMANDA!Z73*$D$12+$E33*DEMANDA!Z73*$D$13 -> 14965764.38 | AA78: =$D33*DEMANDA!AA73*$D$12+$E33*DEMANDA!AA73*$D$13 -> 14965764.38 | AB78: =$D33*DEMANDA!AB73*$D$12+$E33*DEMANDA!AB73*$D$13 -> 14965764.38 | AC78: =$D33*DEMANDA!AC73*$D$12+$E33*DEMANDA!AC73*$D$13 -> 14965764.38 | AD78: =$D33*DEMANDA!AD73*$D$12+$E33*DEMANDA!AD73*$D$13 -> 14965764.38 | AE78: =$D33*DEMANDA!AE73*$D$12+$E33*DEMANDA!AE73*$D$13 -> 14965764.38 | AF78: =$D33*DEMANDA!AF73*$D$12+$E33*DEMANDA!AF73*$D$13 -> 14965764.38 | AG78: =$D33*DEMANDA!AG73*$D$12+$E33*DEMANDA!AG73*$D$13 -> 14965764.38 | AH78: =$D33*DEMANDA!AH73*$D$12+$E33*DEMANDA!AH73*$D$13 -> 14965764.38 | AI78: =$D33*DEMANDA!AI73*$D$12+$E33*DEMANDA!AI73*$D$13 -> 14965764.38 | AJ78: =$D33*DEMANDA!AJ73*$D$12+$E33*DEMANDA!AJ73*$D$13 -> 14965764.38 | AK78: =$D33*DEMANDA!AK73*$D$12+$E33*DEMANDA!AK73*$D$13 -> 14965764.38 | AL78: =$D33*DEMANDA!AL73*$D$12+$E33*DEMANDA!AL73*$D$13 -> 14965764.38 | AM78: =$D33*DEMANDA!AM73*$D$12+$E33*DEMANDA!AM73*$D$13 -> 14965764.38 | AN78: =$D33*DEMANDA!AN73*$D$12+$E33*DEMANDA!AN73*$D$13 -> 14965764.38 | AO78: =$D33*DEMANDA!AO73*$D$12+$E33*DEMANDA!AO73*$D$13 -> 14965764.38 | AP78: =$D33*DEMANDA!AP73*$D$12+$E33*DEMANDA!AP73*$D$13 -> 14965764.38 | AQ78: =$D33*DEMANDA!AQ73*$D$12+$E33*DEMANDA!AQ73*$D$13 -> 14965764.38
B79: Tarifa 3 | C79: =$D34*DEMANDA!C74*$D$12+$E34*DEMANDA!C74*$D$13 -> 10039568.59 | D79: =$D34*DEMANDA!D74*$D$12+$E34*DEMANDA!D74*$D$13 -> 13386091.46 | E79: =$D34*DEMANDA!E74*$D$12+$E34*DEMANDA!E74*$D$13 -> 13613137.58 | F79: =$D34*DEMANDA!F74*$D$12+$E34*DEMANDA!F74*$D$13 -> 13840183.71 | G79: =$D34*DEMANDA!G74*$D$12+$E34*DEMANDA!G74*$D$13 -> 14067229.83 | H79: =$D34*DEMANDA!H74*$D$12+$E34*DEMANDA!H74*$D$13 -> 14294275.96 | I79: =$D34*DEMANDA!I74*$D$12+$E34*DEMANDA!I74*$D$13 -> 14521322.08 | J79: =$D34*DEMANDA!J74*$D$12+$E34*DEMANDA!J74*$D$13 -> 14727683.34 | K79: =$D34*DEMANDA!K74*$D$12+$E34*DEMANDA!K74*$D$13 -> 14934044.61 | L79: =$D34*DEMANDA!L74*$D$12+$E34*DEMANDA!L74*$D$13 -> 15140405.87 | M79: =$D34*DEMANDA!M74*$D$12+$E34*DEMANDA!M74*$D$13 -> 15346767.13 | N79: =$D34*DEMANDA!N74*$D$12+$E34*DEMANDA!N74*$D$13 -> 15553128.4 | O79: =$D34*DEMANDA!O74*$D$12+$E34*DEMANDA!O74*$D$13 -> 15849891.08 | P79: =$D34*DEMANDA!P74*$D$12+$E34*DEMANDA!P74*$D$13 -> 16146653.77 | Q79: =$D34*DEMANDA!Q74*$D$12+$E34*DEMANDA!Q74*$D$13 -> 16443416.45 | R79: =$D34*DEMANDA!R74*$D$12+$E34*DEMANDA!R74*$D$13 -> 16740179.13 | S79: =$D34*DEMANDA!S74*$D$12+$E34*DEMANDA!S74*$D$13 -> 17036941.82 | T79: =$D34*DEMANDA!T74*$D$12+$E34*DEMANDA!T74*$D$13 -> 17508825.64 | U79: =$D34*DEMANDA!U74*$D$12+$E34*DEMANDA!U74*$D$13 -> 17980709.46 | V79: =$D34*DEMANDA!V74*$D$12+$E34*DEMANDA!V74*$D$13 -> 18452593.28 | W79: =$D34*DEMANDA!W74*$D$12+$E34*DEMANDA!W74*$D$13 -> 18924477.11 | X79: =$D34*DEMANDA!X74*$D$12+$E34*DEMANDA!X74*$D$13 -> 19396360.93 | Y79: =$D34*DEMANDA!Y74*$D$12+$E34*DEMANDA!Y74*$D$13 -> 19396360.93 | Z79: =$D34*DEMANDA!Z74*$D$12+$E34*DEMANDA!Z74*$D$13 -> 19396360.93 | AA79: =$D34*DEMANDA!AA74*$D$12+$E34*DEMANDA!AA74*$D$13 -> 19396360.93 | AB79: =$D34*DEMANDA!AB74*$D$12+$E34*DEMANDA!AB74*$D$13 -> 19396360.93 | AC79: =$D34*DEMANDA!AC74*$D$12+$E34*DEMANDA!AC74*$D$13 -> 19396360.93 | AD79: =$D34*DEMANDA!AD74*$D$12+$E34*DEMANDA!AD74*$D$13 -> 19396360.93 | AE79: =$D34*DEMANDA!AE74*$D$12+$E34*DEMANDA!AE74*$D$13 -> 19396360.93 | AF79: =$D34*DEMANDA!AF74*$D$12+$E34*DEMANDA!AF74*$D$13 -> 19396360.93 | AG79: =$D34*DEMANDA!AG74*$D$12+$E34*DEMANDA!AG74*$D$13 -> 19396360.93 | AH79: =$D34*DEMANDA!AH74*$D$12+$E34*DEMANDA!AH74*$D$13 -> 19396360.93 | AI79: =$D34*DEMANDA!AI74*$D$12+$E34*DEMANDA!AI74*$D$13 -> 19396360.93 | AJ79: =$D34*DEMANDA!AJ74*$D$12+$E34*DEMANDA!AJ74*$D$13 -> 19396360.93 | AK79: =$D34*DEMANDA!AK74*$D$12+$E34*DEMANDA!AK74*$D$13 -> 19396360.93 | AL79: =$D34*DEMANDA!AL74*$D$12+$E34*DEMANDA!AL74*$D$13 -> 19396360.93 | AM79: =$D34*DEMANDA!AM74*$D$12+$E34*DEMANDA!AM74*$D$13 -> 19396360.93 | AN79: =$D34*DEMANDA!AN74*$D$12+$E34*DEMANDA!AN74*$D$13 -> 19396360.93 | AO79: =$D34*DEMANDA!AO74*$D$12+$E34*DEMANDA!AO74*$D$13 -> 19396360.93 | AP79: =$D34*DEMANDA!AP74*$D$12+$E34*DEMANDA!AP74*$D$13 -> 19396360.93 | AQ79: =$D34*DEMANDA!AQ74*$D$12+$E34*DEMANDA!AQ74*$D$13 -> 19396360.93
B80: Tarifa 4 | C80: =$D35*DEMANDA!C75*$D$12+$E35*DEMANDA!C75*$D$13 -> 12329456.6 | D80: =$D35*DEMANDA!D75*$D$12+$E35*DEMANDA!D75*$D$13 -> 16439275.47 | E80: =$D35*DEMANDA!E75*$D$12+$E35*DEMANDA!E75*$D$13 -> 16710783.56 | F80: =$D35*DEMANDA!F75*$D$12+$E35*DEMANDA!F75*$D$13 -> 16982291.65 | G80: =$D35*DEMANDA!G75*$D$12+$E35*DEMANDA!G75*$D$13 -> 17253799.74 | H80: =$D35*DEMANDA!H75*$D$12+$E35*DEMANDA!H75*$D$13 -> 17525307.83 | I80: =$D35*DEMANDA!I75*$D$12+$E35*DEMANDA!I75*$D$13 -> 17796815.92 | J80: =$D35*DEMANDA!J75*$D$12+$E35*DEMANDA!J75*$D$13 -> 18055160.78 | K80: =$D35*DEMANDA!K75*$D$12+$E35*DEMANDA!K75*$D$13 -> 18313505.63 | L80: =$D35*DEMANDA!L75*$D$12+$E35*DEMANDA!L75*$D$13 -> 18571850.49 | M80: =$D35*DEMANDA!M75*$D$12+$E35*DEMANDA!M75*$D$13 -> 18830195.34 | N80: =$D35*DEMANDA!N75*$D$12+$E35*DEMANDA!N75*$D$13 -> 19088540.2 | O80: =$D35*DEMANDA!O75*$D$12+$E35*DEMANDA!O75*$D$13 -> 19440061.01 | P80: =$D35*DEMANDA!P75*$D$12+$E35*DEMANDA!P75*$D$13 -> 19791581.83 | Q80: =$D35*DEMANDA!Q75*$D$12+$E35*DEMANDA!Q75*$D$13 -> 20143102.64 | R80: =$D35*DEMANDA!R75*$D$12+$E35*DEMANDA!R75*$D$13 -> 20494623.45 | S80: =$D35*DEMANDA!S75*$D$12+$E35*DEMANDA!S75*$D$13 -> 20846144.27 | T80: =$D35*DEMANDA!T75*$D$12+$E35*DEMANDA!T75*$D$13 -> 21405061.2 | U80: =$D35*DEMANDA!U75*$D$12+$E35*DEMANDA!U75*$D$13 -> 21963978.14 | V80: =$D35*DEMANDA!V75*$D$12+$E35*DEMANDA!V75*$D$13 -> 22522895.07 | W80: =$D35*DEMANDA!W75*$D$12+$E35*DEMANDA!W75*$D$13 -> 23081812.01 | X80: =$D35*DEMANDA!X75*$D$12+$E35*DEMANDA!X75*$D$13 -> 23640728.94 | Y80: =$D35*DEMANDA!Y75*$D$12+$E35*DEMANDA!Y75*$D$13 -> 23640728.94 | Z80: =$D35*DEMANDA!Z75*$D$12+$E35*DEMANDA!Z75*$D$13 -> 23640728.94 | AA80: =$D35*DEMANDA!AA75*$D$12+$E35*DEMANDA!AA75*$D$13 -> 23640728.94 | AB80: =$D35*DEMANDA!AB75*$D$12+$E35*DEMANDA!AB75*$D$13 -> 23640728.94 | AC80: =$D35*DEMANDA!AC75*$D$12+$E35*DEMANDA!AC75*$D$13 -> 23640728.94 | AD80: =$D35*DEMANDA!AD75*$D$12+$E35*DEMANDA!AD75*$D$13 -> 23640728.94 | AE80: =$D35*DEMANDA!AE75*$D$12+$E35*DEMANDA!AE75*$D$13 -> 23640728.94 | AF80: =$D35*DEMANDA!AF75*$D$12+$E35*DEMANDA!AF75*$D$13 -> 23640728.94 | AG80: =$D35*DEMANDA!AG75*$D$12+$E35*DEMANDA!AG75*$D$13 -> 23640728.94 | AH80: =$D35*DEMANDA!AH75*$D$12+$E35*DEMANDA!AH75*$D$13 -> 23640728.94 | AI80: =$D35*DEMANDA!AI75*$D$12+$E35*DEMANDA!AI75*$D$13 -> 23640728.94 | AJ80: =$D35*DEMANDA!AJ75*$D$12+$E35*DEMANDA!AJ75*$D$13 -> 23640728.94 | AK80: =$D35*DEMANDA!AK75*$D$12+$E35*DEMANDA!AK75*$D$13 -> 23640728.94 | AL80: =$D35*DEMANDA!AL75*$D$12+$E35*DEMANDA!AL75*$D$13 -> 23640728.94 | AM80: =$D35*DEMANDA!AM75*$D$12+$E35*DEMANDA!AM75*$D$13 -> 23640728.94 | AN80: =$D35*DEMANDA!AN75*$D$12+$E35*DEMANDA!AN75*$D$13 -> 23640728.94 | AO80: =$D35*DEMANDA!AO75*$D$12+$E35*DEMANDA!AO75*$D$13 -> 23640728.94 | AP80: =$D35*DEMANDA!AP75*$D$12+$E35*DEMANDA!AP75*$D$13 -> 23640728.94 | AQ80: =$D35*DEMANDA!AQ75*$D$12+$E35*DEMANDA!AQ75*$D$13 -> 23640728.94
B81: Tarifa 5 | C81: =$D36*DEMANDA!C76*$D$12+$E36*DEMANDA!C76*$D$13 -> 14583116.8 | D81: =$D36*DEMANDA!D76*$D$12+$E36*DEMANDA!D76*$D$13 -> 19444155.73 | E81: =$D36*DEMANDA!E76*$D$12+$E36*DEMANDA!E76*$D$13 -> 19750347.82 | F81: =$D36*DEMANDA!F76*$D$12+$E36*DEMANDA!F76*$D$13 -> 20056539.92 | G81: =$D36*DEMANDA!G76*$D$12+$E36*DEMANDA!G76*$D$13 -> 20362732.01 | H81: =$D36*DEMANDA!H76*$D$12+$E36*DEMANDA!H76*$D$13 -> 20668924.1 | I81: =$D36*DEMANDA!I76*$D$12+$E36*DEMANDA!I76*$D$13 -> 20975116.2 | J81: =$D36*DEMANDA!J76*$D$12+$E36*DEMANDA!J76*$D$13 -> 21272156.49 | K81: =$D36*DEMANDA!K76*$D$12+$E36*DEMANDA!K76*$D$13 -> 21569196.78 | L81: =$D36*DEMANDA!L76*$D$12+$E36*DEMANDA!L76*$D$13 -> 21866237.07 | M81: =$D36*DEMANDA!M76*$D$12+$E36*DEMANDA!M76*$D$13 -> 22163277.37 | N81: =$D36*DEMANDA!N76*$D$12+$E36*DEMANDA!N76*$D$13 -> 22460317.66 | O81: =$D36*DEMANDA!O76*$D$12+$E36*DEMANDA!O76*$D$13 -> 22866559.59 | P81: =$D36*DEMANDA!P76*$D$12+$E36*DEMANDA!P76*$D$13 -> 23272801.51 | Q81: =$D36*DEMANDA!Q76*$D$12+$E36*DEMANDA!Q76*$D$13 -> 23679043.44 | R81: =$D36*DEMANDA!R76*$D$12+$E36*DEMANDA!R76*$D$13 -> 24085285.37 | S81: =$D36*DEMANDA!S76*$D$12+$E36*DEMANDA!S76*$D$13 -> 24491527.29 | T81: =$D36*DEMANDA!T76*$D$12+$E36*DEMANDA!T76*$D$13 -> 25134809.23 | U81: =$D36*DEMANDA!U76*$D$12+$E36*DEMANDA!U76*$D$13 -> 25778091.16 | V81: =$D36*DEMANDA!V76*$D$12+$E36*DEMANDA!V76*$D$13 -> 26421373.09 | W81: =$D36*DEMANDA!W76*$D$12+$E36*DEMANDA!W76*$D$13 -> 27064655.02 | X81: =$D36*DEMANDA!X76*$D$12+$E36*DEMANDA!X76*$D$13 -> 27707936.95 | Y81: =$D36*DEMANDA!Y76*$D$12+$E36*DEMANDA!Y76*$D$13 -> 27707936.95 | Z81: =$D36*DEMANDA!Z76*$D$12+$E36*DEMANDA!Z76*$D$13 -> 27707936.95 | AA81: =$D36*DEMANDA!AA76*$D$12+$E36*DEMANDA!AA76*$D$13 -> 27707936.95 | AB81: =$D36*DEMANDA!AB76*$D$12+$E36*DEMANDA!AB76*$D$13 -> 27707936.95 | AC81: =$D36*DEMANDA!AC76*$D$12+$E36*DEMANDA!AC76*$D$13 -> 27707936.95 | AD81: =$D36*DEMANDA!AD76*$D$12+$E36*DEMANDA!AD76*$D$13 -> 27707936.95 | AE81: =$D36*DEMANDA!AE76*$D$12+$E36*DEMANDA!AE76*$D$13 -> 27707936.95 | AF81: =$D36*DEMANDA!AF76*$D$12+$E36*DEMANDA!AF76*$D$13 -> 27707936.95 | AG81: =$D36*DEMANDA!AG76*$D$12+$E36*DEMANDA!AG76*$D$13 -> 27707936.95 | AH81: =$D36*DEMANDA!AH76*$D$12+$E36*DEMANDA!AH76*$D$13 -> 27707936.95 | AI81: =$D36*DEMANDA!AI76*$D$12+$E36*DEMANDA!AI76*$D$13 -> 27707936.95 | AJ81: =$D36*DEMANDA!AJ76*$D$12+$E36*DEMANDA!AJ76*$D$13 -> 27707936.95 | AK81: =$D36*DEMANDA!AK76*$D$12+$E36*DEMANDA!AK76*$D$13 -> 27707936.95 | AL81: =$D36*DEMANDA!AL76*$D$12+$E36*DEMANDA!AL76*$D$13 -> 27707936.95 | AM81: =$D36*DEMANDA!AM76*$D$12+$E36*DEMANDA!AM76*$D$13 -> 27707936.95 | AN81: =$D36*DEMANDA!AN76*$D$12+$E36*DEMANDA!AN76*$D$13 -> 27707936.95 | AO81: =$D36*DEMANDA!AO76*$D$12+$E36*DEMANDA!AO76*$D$13 -> 27707936.95 | AP81: =$D36*DEMANDA!AP76*$D$12+$E36*DEMANDA!AP76*$D$13 -> 27707936.95 | AQ81: =$D36*DEMANDA!AQ76*$D$12+$E36*DEMANDA!AQ76*$D$13 -> 27707936.95
B84: Ingresos anuales en precios actualizados (hipotesis de inflacion baja)
B85: Año | C85: 2019 | D85: 2020 | E85: 2021 | F85: 2022 | G85: 2023 | H85: 2024 | I85: 2025 | J85: 2026 | K85: 2027 | L85: 2028 | M85: 2029 | N85: 2030 | O85: 2031 | P85: 2032 | Q85: 2033 | R85: 2034 | S85: 2035 | T85: 2036 | U85: 2037 | V85: 2038 | W85: 2039 | X85: 2040 | Y85: 2041 | Z85: 2042 | AA85: 2043 | AB85: 2044 | AC85: 2045 | AD85: 2046 | AE85: 2047 | AF85: 2048 | AG85: 2049 | AH85: 2050 | AI85: 2051 | AJ85: 2052 | AK85: 2053 | AL85: 2054 | AM85: 2055 | AN85: 2056 | AO85: 2057 | AP85: 2058 | AQ85: 2059
E86: 1 | F86: 2 | G86: 3 | H86: 4 | I86: 5 | J86: 6 | K86: 7 | L86: 8 | M86: 9 | N86: 10 | O86: 11 | P86: 12 | Q86: 13 | R86: 14 | S86: 15 | T86: 16 | U86: 17 | V86: 18 | W86: 19 | X86: 20 | Y86: 21 | Z86: 22 | AA86: 23 | AB86: 24 | AC86: 25 | AD86: 26 | AE86: 27 | AF86: 28 | AG86: 29 | AH86: 30 | AI86: 31 | AJ86: 32 | AK86: 33 | AL86: 34 | AM86: 35 | AN86: 36 | AO86: 37 | AP86: 38 | AQ86: 39
B87: Tarifa 1 | C87: =C77 -> 6184365 | D87: =D77*(1) -> 8245820 | E87: =E77*(1+PARAMETROS!$G$88)*(1+PARAMETROS!$H$88)^E$54 -> 8774320.608 | F87: =F77*(1+PARAMETROS!$G$88)*(1+PARAMETROS!$H$88)^(F$54-1) -> 8927636.405 | G87: =G77*(1+PARAMETROS!$G$88)*(1+PARAMETROS!$H$88)^G$54 -> 9447822.672 | H87: =H77*(1+PARAMETROS!$G$88)*(1+PARAMETROS!$H$88)^(H$54-1) -> 9607332.428 | I87: =I77*(1+PARAMETROS!$G$88)*(1+PARAMETROS!$H$88)^I$54 -> 10161422.61 | J87: =J77*(1+PARAMETROS!$G$88)*(1+PARAMETROS!$H$88)^(J$54-1) -> 10325148.09 | K87: =K77*(1+PARAMETROS!$G$88)*(1+PARAMETROS!$H$88)^K$54 -> 10912624.06 | L87: =L77*(1+PARAMETROS!$G$88)*(1+PARAMETROS!$H$88)^(L$54-1) -> 11082964.05 | M87: =M77*(1+PARAMETROS!$G$88)*(1+PARAMETROS!$H$88)^M$54 -> 11707937.52 | N87: =N77*(1+PARAMETROS!$G$88)*(1+PARAMETROS!$H$88)^(N$54-1) -> 11885159.25 | O87: =O77*(1+PARAMETROS!$G$88)*(1+PARAMETROS!$H$88)^O$54 -> 12614899.36 | P87: =P77*(1+PARAMETROS!$G$88)*(1+PARAMETROS!$H$88)^(P$54-1) -> 12864479.03 | Q87: =Q77*(1+PARAMETROS!$G$88)*(1+PARAMETROS!$H$88)^Q$54 -> 13643866.68 | R87: =R77*(1+PARAMETROS!$G$88)*(1+PARAMETROS!$H$88)^(R$54-1) -> 13903529.37 | S87: =S77*(1+PARAMETROS!$G$88)*(1+PARAMETROS!$H$88)^S$54 -> 14735385.02 | T87: =T77*(1+PARAMETROS!$G$88)*(1+PARAMETROS!$H$88)^(T$54-1) -> 15155246.4 | U87: =U77*(1+PARAMETROS!$G$88)*(1+PARAMETROS!$H$88)^U$54 -> 16204342.14 | V87: =V77*(1+PARAMETROS!$G$88)*(1+PARAMETROS!$H$88)^(V$54-1) -> 16641165.91 | W87: =W77*(1+PARAMETROS!$G$88)*(1+PARAMETROS!$H$88)^W$54 -> 17767940.48 | X87: =X77*(1+PARAMETROS!$G$88)*(1+PARAMETROS!$H$88)^(X$54-1) -> 18222411.94 | Y87: =Y77*(1+PARAMETROS!$G$88)*(1+PARAMETROS!$H$88)^Y$54 -> 18958597.38 | Z87: =Z77*(1+PARAMETROS!$G$88)*(1+PARAMETROS!$H$88)^(Z$54-1) -> 18958597.38 | AA87: =AA77*(1+PARAMETROS!$G$88)*(1+PARAMETROS!$H$88)^AA$54 -> 19724524.71 | AB87: =AB77*(1+PARAMETROS!$G$88)*(1+PARAMETROS!$H$88)^(AB$54-1) -> 19724524.71 | AC87: =AC77*(1+PARAMETROS!$G$88)*(1+PARAMETROS!$H$88)^AC$54 -> 20521395.51 | AD87: =AD77*(1+PARAMETROS!$G$88)*(1+PARAMETROS!$H$88)^(AD$54-1) -> 20521395.51 | AE87: =AE77*(1+PARAMETROS!$G$88)*(1+PARAMETROS!$H$88)^AE$54 -> 21350459.89 | AF87: =AF77*(1+PARAMETROS!$G$88)*(1+PARAMETROS!$H$88)^(AF$54-1) -> 21350459.89 | AG87: =AG77*(1+PARAMETROS!$G$88)*(1+PARAMETROS!$H$88)^AG$54 -> 22213018.47 | AH87: =AH77*(1+PARAMETROS!$G$88)*(1+PARAMETROS!$H$88)^(AH$54-1) -> 22213018.47 | AI87: =AI77*(1+PARAMETROS!$G$88)*(1+PARAMETROS!$H$88)^AI$54 -> 23110424.42 | AJ87: =AJ77*(1+PARAMETROS!$G$88)*(1+PARAMETROS!$H$88)^(AJ$54-1) -> 23110424.42 | AK87: =AK77*(1+PARAMETROS!$G$88)*(1+PARAMETROS!$H$88)^AK$54 -> 24044085.56 | AL87: =AL77*(1+PARAMETROS!$G$88)*(1+PARAMETROS!$H$88)^(AL$54-1) -> 24044085.56 | AM87: =AM77*(1+PARAMETROS!$G$88)*(1+PARAMETROS!$H$88)^AM$54 -> 25015466.62 | AN87: =AN77*(1+PARAMETROS!$G$88)*(1+PARAMETROS!$H$88)^(AN$54-1) -> 25015466.62 | AO87: =AO77*(1+PARAMETROS!$G$88)*(1+PARAMETROS!$H$88)^AO$54 -> 26026091.47 | AP87: =AP77*(1+PARAMETROS!$G$88)*(1+PARAMETROS!$H$88)^(AP$54-1) -> 26026091.47 | AQ87: =AQ77*(1+PARAMETROS!$G$88)*(1+PARAMETROS!$H$88)^AQ$54 -> 27077545.57
B88: Tarifa 2 | C88: =C78 -> 7667074.931 | D88: =D78*(1) -> 10222766.57 | E88: =E78*(1+PARAMETROS!$G$88)*(1+PARAMETROS!$H$88)^E$54 -> 10870743.29 | F88: =F78*(1+PARAMETROS!$G$88)*(1+PARAMETROS!$H$88)^(F$54-1) -> 11053584.12 | G88: =G78*(1+PARAMETROS!$G$88)*(1+PARAMETROS!$H$88)^G$54 -> 11690376.52 | H88: =H78*(1+PARAMETROS!$G$88)*(1+PARAMETROS!$H$88)^(H$54-1) -> 11880604.13 | I88: =I78*(1+PARAMETROS!$G$88)*(1+PARAMETROS!$H$88)^I$54 -> 12558493.33 | J88: =J78*(1+PARAMETROS!$G$88)*(1+PARAMETROS!$H$88)^(J$54-1) -> 12754400.72 | K88: =K78*(1+PARAMETROS!$G$88)*(1+PARAMETROS!$H$88)^K$54 -> 13473500.55 | L88: =L78*(1+PARAMETROS!$G$88)*(1+PARAMETROS!$H$88)^(L$54-1) -> 13677322.59 | M88: =M78*(1+PARAMETROS!$G$88)*(1+PARAMETROS!$H$88)^M$54 -> 14441942.88 | N88: =N78*(1+PARAMETROS!$G$88)*(1+PARAMETROS!$H$88)^(N$54-1) -> 14653999.34 | O88: =O78*(1+PARAMETROS!$G$88)*(1+PARAMETROS!$H$88)^O$54 -> 15552004.49 | P88: =P78*(1+PARAMETROS!$G$88)*(1+PARAMETROS!$H$88)^(P$54-1) -> 15857988.08 | Q88: =Q78*(1+PARAMETROS!$G$88)*(1+PARAMETROS!$H$88)^Q$54 -> 16816996.12 | R88: =R78*(1+PARAMETROS!$G$88)*(1+PARAMETROS!$H$88)^(R$54-1) -> 17135341.45 | S88: =S78*(1+PARAMETROS!$G$88)*(1+PARAMETROS!$H$88)^S$54 -> 18158815.71 | T88: =T78*(1+PARAMETROS!$G$88)*(1+PARAMETROS!$H$88)^(T$54-1) -> 18656152 | U88: =U78*(1+PARAMETROS!$G$88)*(1+PARAMETROS!$H$88)^U$54 -> 19927289.21 | V88: =V78*(1+PARAMETROS!$G$88)*(1+PARAMETROS!$H$88)^(V$54-1) -> 20444717.89 | W88: =W78*(1+PARAMETROS!$G$88)*(1+PARAMETROS!$H$88)^W$54 -> 21809017.28 | X88: =X78*(1+PARAMETROS!$G$88)*(1+PARAMETROS!$H$88)^(X$54-1) -> 22347350.07 | Y88: =Y78*(1+PARAMETROS!$G$88)*(1+PARAMETROS!$H$88)^Y$54 -> 23250183.01 | Z88: =Z78*(1+PARAMETROS!$G$88)*(1+PARAMETROS!$H$88)^(Z$54-1) -> 23250183.01 | AA88: =AA78*(1+PARAMETROS!$G$88)*(1+PARAMETROS!$H$88)^AA$54 -> 24189490.41 | AB88: =AB78*(1+PARAMETROS!$G$88)*(1+PARAMETROS!$H$88)^(AB$54-1) -> 24189490.41 | AC88: =AC78*(1+PARAMETROS!$G$88)*(1+PARAMETROS!$H$88)^AC$54 -> 25166745.82 | AD88: =AD78*(1+PARAMETROS!$G$88)*(1+PARAMETROS!$H$88)^(AD$54-1) -> 25166745.82 | AE88: =AE78*(1+PARAMETROS!$G$88)*(1+PARAMETROS!$H$88)^AE$54 -> 26183482.35 | AF88: =AF78*(1+PARAMETROS!$G$88)*(1+PARAMETROS!$H$88)^(AF$54-1) -> 26183482.35 | AG88: =AG78*(1+PARAMETROS!$G$88)*(1+PARAMETROS!$H$88)^AG$54 -> 27241295.04 | AH88: =AH78*(1+PARAMETROS!$G$88)*(1+PARAMETROS!$H$88)^(AH$54-1) -> 27241295.04 | AI88: =AI78*(1+PARAMETROS!$G$88)*(1+PARAMETROS!$H$88)^AI$54 -> 28341843.36 | AJ88: =AJ78*(1+PARAMETROS!$G$88)*(1+PARAMETROS!$H$88)^(AJ$54-1) -> 28341843.36 | AK88: =AK78*(1+PARAMETROS!$G$88)*(1+PARAMETROS!$H$88)^AK$54 -> 29486853.83 | AL88: =AL78*(1+PARAMETROS!$G$88)*(1+PARAMETROS!$H$88)^(AL$54-1) -> 29486853.83 | AM88: =AM78*(1+PARAMETROS!$G$88)*(1+PARAMETROS!$H$88)^AM$54 -> 30678122.72 | AN88: =AN78*(1+PARAMETROS!$G$88)*(1+PARAMETROS!$H$88)^(AN$54-1) -> 30678122.72 | AO88: =AO78*(1+PARAMETROS!$G$88)*(1+PARAMETROS!$H$88)^AO$54 -> 31917518.88 | AP88: =AP78*(1+PARAMETROS!$G$88)*(1+PARAMETROS!$H$88)^(AP$54-1) -> 31917518.88 | AQ88: =AQ78*(1+PARAMETROS!$G$88)*(1+PARAMETROS!$H$88)^AQ$54 -> 33206986.64
B89: Tarifa 3 | C89: =C79 -> 10039568.59 | D89: =D79*(1) -> 13386091.46 | E89: =E79*(1+PARAMETROS!$G$88)*(1+PARAMETROS!$H$88)^E$54 -> 14232535.34 | F89: =F79*(1+PARAMETROS!$G$88)*(1+PARAMETROS!$H$88)^(F$54-1) -> 14469912.07 | G89: =G79*(1+PARAMETROS!$G$88)*(1+PARAMETROS!$H$88)^G$54 -> 15301463.26 | H89: =H79*(1+PARAMETROS!$G$88)*(1+PARAMETROS!$H$88)^(H$54-1) -> 15548430 | I89: =I79*(1+PARAMETROS!$G$88)*(1+PARAMETROS!$H$88)^I$54 -> 16433530.77 | J89: =J79*(1+PARAMETROS!$G$88)*(1+PARAMETROS!$H$88)^(J$54-1) -> 16667066.27 | K89: =K79*(1+PARAMETROS!$G$88)*(1+PARAMETROS!$H$88)^K$54 -> 17583386.08 | L89: =L79*(1+PARAMETROS!$G$88)*(1+PARAMETROS!$H$88)^(L$54-1) -> 17826356.41 | M89: =M79*(1+PARAMETROS!$G$88)*(1+PARAMETROS!$H$88)^M$54 -> 18799327.54 | N89: =N79*(1+PARAMETROS!$G$88)*(1+PARAMETROS!$H$88)^(N$54-1) -> 19052113.87 | O89: =O79*(1+PARAMETROS!$G$88)*(1+PARAMETROS!$H$88)^O$54 -> 20200031.04 | P89: =P79*(1+PARAMETROS!$G$88)*(1+PARAMETROS!$H$88)^(P$54-1) -> 20578242.82 | Q89: =Q79*(1+PARAMETROS!$G$88)*(1+PARAMETROS!$H$88)^Q$54 -> 21803095.36 | R89: =R79*(1+PARAMETROS!$G$88)*(1+PARAMETROS!$H$88)^(R$54-1) -> 22196586.89 | S89: =S79*(1+PARAMETROS!$G$88)*(1+PARAMETROS!$H$88)^S$54 -> 23502717.59 | T89: =T79*(1+PARAMETROS!$G$88)*(1+PARAMETROS!$H$88)^(T$54-1) -> 24153688.42 | U89: =U79*(1+PARAMETROS!$G$88)*(1+PARAMETROS!$H$88)^U$54 -> 25806767.49 | V89: =V79*(1+PARAMETROS!$G$88)*(1+PARAMETROS!$H$88)^(V$54-1) -> 26484037.54 | W89: =W79*(1+PARAMETROS!$G$88)*(1+PARAMETROS!$H$88)^W$54 -> 28258624.42 | X89: =X79*(1+PARAMETROS!$G$88)*(1+PARAMETROS!$H$88)^(X$54-1) -> 28963256.19 | Y89: =Y79*(1+PARAMETROS!$G$88)*(1+PARAMETROS!$H$88)^Y$54 -> 30133371.74 | Z89: =Z79*(1+PARAMETROS!$G$88)*(1+PARAMETROS!$H$88)^(Z$54-1) -> 30133371.74 | AA89: =AA79*(1+PARAMETROS!$G$88)*(1+PARAMETROS!$H$88)^AA$54 -> 31350759.96 | AB89: =AB79*(1+PARAMETROS!$G$88)*(1+PARAMETROS!$H$88)^(AB$54-1) -> 31350759.96 | AC89: =AC79*(1+PARAMETROS!$G$88)*(1+PARAMETROS!$H$88)^AC$54 -> 32617330.66 | AD89: =AD79*(1+PARAMETROS!$G$88)*(1+PARAMETROS!$H$88)^(AD$54-1) -> 32617330.66 | AE89: =AE79*(1+PARAMETROS!$G$88)*(1+PARAMETROS!$H$88)^AE$54 -> 33935070.82 | AF89: =AF79*(1+PARAMETROS!$G$88)*(1+PARAMETROS!$H$88)^(AF$54-1) -> 33935070.82 | AG89: =AG79*(1+PARAMETROS!$G$88)*(1+PARAMETROS!$H$88)^AG$54 -> 35306047.68 | AH89: =AH79*(1+PARAMETROS!$G$88)*(1+PARAMETROS!$H$88)^(AH$54-1) -> 35306047.68 | AI89: =AI79*(1+PARAMETROS!$G$88)*(1+PARAMETROS!$H$88)^AI$54 -> 36732412 | AJ89: =AJ79*(1+PARAMETROS!$G$88)*(1+PARAMETROS!$H$88)^(AJ$54-1) -> 36732412 | AK89: =AK79*(1+PARAMETROS!$G$88)*(1+PARAMETROS!$H$88)^AK$54 -> 38216401.45 | AL89: =AL79*(1+PARAMETROS!$G$88)*(1+PARAMETROS!$H$88)^(AL$54-1) -> 38216401.45 | AM89: =AM79*(1+PARAMETROS!$G$88)*(1+PARAMETROS!$H$88)^AM$54 -> 39760344.07 | AN89: =AN79*(1+PARAMETROS!$G$88)*(1+PARAMETROS!$H$88)^(AN$54-1) -> 39760344.07 | AO89: =AO79*(1+PARAMETROS!$G$88)*(1+PARAMETROS!$H$88)^AO$54 -> 41366661.97 | AP89: =AP79*(1+PARAMETROS!$G$88)*(1+PARAMETROS!$H$88)^(AP$54-1) -> 41366661.97 | AQ89: =AQ79*(1+PARAMETROS!$G$88)*(1+PARAMETROS!$H$88)^AQ$54 -> 43037875.11
B90: Tarifa 4 | C90: =C80 -> 12329456.6 | D90: =D80*(1) -> 16439275.47 | E90: =E80*(1+PARAMETROS!$G$88)*(1+PARAMETROS!$H$88)^E$54 -> 17471124.21 | F90: =F80*(1+PARAMETROS!$G$88)*(1+PARAMETROS!$H$88)^(F$54-1) -> 17754985.92 | G90: =G80*(1+PARAMETROS!$G$88)*(1+PARAMETROS!$H$88)^G$54 -> 18767617.07 | H90: =H80*(1+PARAMETROS!$G$88)*(1+PARAMETROS!$H$88)^(H$54-1) -> 19062946.79 | I90: =I80*(1+PARAMETROS!$G$88)*(1+PARAMETROS!$H$88)^I$54 -> 20140350.88 | J90: =J80*(1+PARAMETROS!$G$88)*(1+PARAMETROS!$H$88)^(J$54-1) -> 20432715.32 | K90: =K80*(1+PARAMETROS!$G$88)*(1+PARAMETROS!$H$88)^K$54 -> 21562372.98 | L90: =L80*(1+PARAMETROS!$G$88)*(1+PARAMETROS!$H$88)^(L$54-1) -> 21866548.94 | M90: =M80*(1+PARAMETROS!$G$88)*(1+PARAMETROS!$H$88)^M$54 -> 23066422.18 | N90: =N80*(1+PARAMETROS!$G$88)*(1+PARAMETROS!$H$88)^(N$54-1) -> 23382886.85 | O90: =O80*(1+PARAMETROS!$G$88)*(1+PARAMETROS!$H$88)^O$54 -> 24775554.23 | P90: =P80*(1+PARAMETROS!$G$88)*(1+PARAMETROS!$H$88)^(P$54-1) -> 25223552.97 | Q90: =Q80*(1+PARAMETROS!$G$88)*(1+PARAMETROS!$H$88)^Q$54 -> 26708682.41 | R90: =R80*(1+PARAMETROS!$G$88)*(1+PARAMETROS!$H$88)^(R$54-1) -> 27174780.31 | S90: =S80*(1+PARAMETROS!$G$88)*(1+PARAMETROS!$H$88)^S$54 -> 28757569.68 | T90: =T80*(1+PARAMETROS!$G$88)*(1+PARAMETROS!$H$88)^(T$54-1) -> 29528604 | U90: =U80*(1+PARAMETROS!$G$88)*(1+PARAMETROS!$H$88)^U$54 -> 31523743.72 | V90: =V80*(1+PARAMETROS!$G$88)*(1+PARAMETROS!$H$88)^(V$54-1) -> 32325927.82 | W90: =W80*(1+PARAMETROS!$G$88)*(1+PARAMETROS!$H$88)^W$54 -> 34466487.66 | X90: =X80*(1+PARAMETROS!$G$88)*(1+PARAMETROS!$H$88)^(X$54-1) -> 35301080 | Y90: =Y80*(1+PARAMETROS!$G$88)*(1+PARAMETROS!$H$88)^Y$54 -> 36727243.64 | Z90: =Z80*(1+PARAMETROS!$G$88)*(1+PARAMETROS!$H$88)^(Z$54-1) -> 36727243.64 | AA90: =AA80*(1+PARAMETROS!$G$88)*(1+PARAMETROS!$H$88)^AA$54 -> 38211024.28 | AB90: =AB80*(1+PARAMETROS!$G$88)*(1+PARAMETROS!$H$88)^(AB$54-1) -> 38211024.28 | AC90: =AC80*(1+PARAMETROS!$G$88)*(1+PARAMETROS!$H$88)^AC$54 -> 39754749.66 | AD90: =AD80*(1+PARAMETROS!$G$88)*(1+PARAMETROS!$H$88)^(AD$54-1) -> 39754749.66 | AE90: =AE80*(1+PARAMETROS!$G$88)*(1+PARAMETROS!$H$88)^AE$54 -> 41360841.55 | AF90: =AF80*(1+PARAMETROS!$G$88)*(1+PARAMETROS!$H$88)^(AF$54-1) -> 41360841.55 | AG90: =AG80*(1+PARAMETROS!$G$88)*(1+PARAMETROS!$H$88)^AG$54 -> 43031819.54 | AH90: =AH80*(1+PARAMETROS!$G$88)*(1+PARAMETROS!$H$88)^(AH$54-1) -> 43031819.54 | AI90: =AI80*(1+PARAMETROS!$G$88)*(1+PARAMETROS!$H$88)^AI$54 -> 44770305.05 | AJ90: =AJ80*(1+PARAMETROS!$G$88)*(1+PARAMETROS!$H$88)^(AJ$54-1) -> 44770305.05 | AK90: =AK80*(1+PARAMETROS!$G$88)*(1+PARAMETROS!$H$88)^AK$54 -> 46579025.38 | AL90: =AL80*(1+PARAMETROS!$G$88)*(1+PARAMETROS!$H$88)^(AL$54-1) -> 46579025.38 | AM90: =AM80*(1+PARAMETROS!$G$88)*(1+PARAMETROS!$H$88)^AM$54 -> 48460818 | AN90: =AN80*(1+PARAMETROS!$G$88)*(1+PARAMETROS!$H$88)^(AN$54-1) -> 48460818 | AO90: =AO80*(1+PARAMETROS!$G$88)*(1+PARAMETROS!$H$88)^AO$54 -> 50418635.05 | AP90: =AP80*(1+PARAMETROS!$G$88)*(1+PARAMETROS!$H$88)^(AP$54-1) -> 50418635.05 | AQ90: =AQ80*(1+PARAMETROS!$G$88)*(1+PARAMETROS!$H$88)^AQ$54 -> 52455547.91
B91: Tarifa 5 | C91: =C81 -> 14583116.8 | D91: =D81*(1) -> 19444155.73 | E91: =E81*(1+PARAMETROS!$G$88)*(1+PARAMETROS!$H$88)^E$54 -> 20648988.65 | F91: =F81*(1+PARAMETROS!$G$88)*(1+PARAMETROS!$H$88)^(F$54-1) -> 20969112.48 | G91: =G81*(1+PARAMETROS!$G$88)*(1+PARAMETROS!$H$88)^G$54 -> 22149321.46 | H91: =H81*(1+PARAMETROS!$G$88)*(1+PARAMETROS!$H$88)^(H$54-1) -> 22482378.3 | I91: =I81*(1+PARAMETROS!$G$88)*(1+PARAMETROS!$H$88)^I$54 -> 23737178.72 | J91: =J81*(1+PARAMETROS!$G$88)*(1+PARAMETROS!$H$88)^(J$54-1) -> 24073334.11 | K91: =K81*(1+PARAMETROS!$G$88)*(1+PARAMETROS!$H$88)^K$54 -> 25395632.89 | L91: =L81*(1+PARAMETROS!$G$88)*(1+PARAMETROS!$H$88)^(L$54-1) -> 25745368.96 | M91: =M81*(1+PARAMETROS!$G$88)*(1+PARAMETROS!$H$88)^M$54 -> 27149347.28 | N91: =N81*(1+PARAMETROS!$G$88)*(1+PARAMETROS!$H$88)^(N$54-1) -> 27513212.69 | O91: =O81*(1+PARAMETROS!$G$88)*(1+PARAMETROS!$H$88)^O$54 -> 29142485.03 | P91: =P81*(1+PARAMETROS!$G$88)*(1+PARAMETROS!$H$88)^(P$54-1) -> 29660223.57 | Q91: =Q81*(1+PARAMETROS!$G$88)*(1+PARAMETROS!$H$88)^Q$54 -> 31397151.79 | R91: =R81*(1+PARAMETROS!$G$88)*(1+PARAMETROS!$H$88)^(R$54-1) -> 31935806.97 | S91: =S81*(1+PARAMETROS!$G$88)*(1+PARAMETROS!$H$88)^S$54 -> 33786430.42 | T91: =T81*(1+PARAMETROS!$G$88)*(1+PARAMETROS!$H$88)^(T$54-1) -> 34673847.52 | U91: =U81*(1+PARAMETROS!$G$88)*(1+PARAMETROS!$H$88)^U$54 -> 36997939.72 | V91: =V81*(1+PARAMETROS!$G$88)*(1+PARAMETROS!$H$88)^(V$54-1) -> 37921208.47 | W91: =W81*(1+PARAMETROS!$G$88)*(1+PARAMETROS!$H$88)^W$54 -> 40413794.11 | X91: =X81*(1+PARAMETROS!$G$88)*(1+PARAMETROS!$H$88)^(X$54-1) -> 41374362.92 | Y91: =Y81*(1+PARAMETROS!$G$88)*(1+PARAMETROS!$H$88)^Y$54 -> 43045887.18 | Z91: =Z81*(1+PARAMETROS!$G$88)*(1+PARAMETROS!$H$88)^(Z$54-1) -> 43045887.18 | AA91: =AA81*(1+PARAMETROS!$G$88)*(1+PARAMETROS!$H$88)^AA$54 -> 44784941.02 | AB91: =AB81*(1+PARAMETROS!$G$88)*(1+PARAMETROS!$H$88)^(AB$54-1) -> 44784941.02 | AC91: =AC81*(1+PARAMETROS!$G$88)*(1+PARAMETROS!$H$88)^AC$54 -> 46594252.64 | AD91: =AD81*(1+PARAMETROS!$G$88)*(1+PARAMETROS!$H$88)^(AD$54-1) -> 46594252.64 | AE91: =AE81*(1+PARAMETROS!$G$88)*(1+PARAMETROS!$H$88)^AE$54 -> 48476660.45 | AF91: =AF81*(1+PARAMETROS!$G$88)*(1+PARAMETROS!$H$88)^(AF$54-1) -> 48476660.45 | AG91: =AG81*(1+PARAMETROS!$G$88)*(1+PARAMETROS!$H$88)^AG$54 -> 50435117.53 | AH91: =AH81*(1+PARAMETROS!$G$88)*(1+PARAMETROS!$H$88)^(AH$54-1) -> 50435117.53 | AI91: =AI81*(1+PARAMETROS!$G$88)*(1+PARAMETROS!$H$88)^AI$54 -> 52472696.28 | AJ91: =AJ81*(1+PARAMETROS!$G$88)*(1+PARAMETROS!$H$88)^(AJ$54-1) -> 52472696.28 | AK91: =AK81*(1+PARAMETROS!$G$88)*(1+PARAMETROS!$H$88)^AK$54 -> 54592593.21 | AL91: =AL81*(1+PARAMETROS!$G$88)*(1+PARAMETROS!$H$88)^(AL$54-1) -> 54592593.21 | AM91: =AM81*(1+PARAMETROS!$G$88)*(1+PARAMETROS!$H$88)^AM$54 -> 56798133.97 | AN91: =AN81*(1+PARAMETROS!$G$88)*(1+PARAMETROS!$H$88)^(AN$54-1) -> 56798133.97 | AO91: =AO81*(1+PARAMETROS!$G$88)*(1+PARAMETROS!$H$88)^AO$54 -> 59092778.58 | AP91: =AP81*(1+PARAMETROS!$G$88)*(1+PARAMETROS!$H$88)^(AP$54-1) -> 59092778.58 | AQ91: =AQ81*(1+PARAMETROS!$G$88)*(1+PARAMETROS!$H$88)^AQ$54 -> 61480126.84
B94: Ingresos anuales en precios actualizados (hipotesis de inflacion alta)
B95: Año | C95: 2019 | D95: 2020 | E95: 2021 | F95: 2022 | G95: 2023 | H95: 2024 | I95: 2025 | J95: 2026 | K95: 2027 | L95: 2028 | M95: 2029 | N95: 2030 | O95: 2031 | P95: 2032 | Q95: 2033 | R95: 2034 | S95: 2035 | T95: 2036 | U95: 2037 | V95: 2038 | W95: 2039 | X95: 2040 | Y95: 2041 | Z95: 2042 | AA95: 2043 | AB95: 2044 | AC95: 2045 | AD95: 2046 | AE95: 2047 | AF95: 2048 | AG95: 2049 | AH95: 2050 | AI95: 2051 | AJ95: 2052 | AK95: 2053 | AL95: 2054 | AM95: 2055 | AN95: 2056 | AO95: 2057 | AP95: 2058 | AQ95: 2059
E96: 1 | F96: 2 | G96: 3 | H96: 4 | I96: 5 | J96: 6 | K96: 7 | L96: 8 | M96: 9 | N96: 10 | O96: 11 | P96: 12 | Q96: 13 | R96: 14 | S96: 15 | T96: 16 | U96: 17 | V96: 18 | W96: 19 | X96: 20 | Y96: 21 | Z96: 22 | AA96: 23 | AB96: 24 | AC96: 25 | AD96: 26 | AE96: 27 | AF96: 28 | AG96: 29 | AH96: 30 | AI96: 31 | AJ96: 32 | AK96: 33 | AL96: 34 | AM96: 35 | AN96: 36 | AO96: 37 | AP96: 38 | AQ96: 39
B97: Tarifa 1 | C97: =C77 -> 6184365 | D97: =D77*(1) -> 8245820 | E97: =E77*(1+PARAMETROS!$G$89)*(1+PARAMETROS!$H$89)^E$64 -> 9120929.351 | F97: =F77*(1+PARAMETROS!$G$89)*(1+PARAMETROS!$H$89)^(F$64-1) -> 9280301.526 | G97: =G77*(1+PARAMETROS!$G$89)*(1+PARAMETROS!$H$89)^G$64 -> 10209951.07 | H97: =H77*(1+PARAMETROS!$G$89)*(1+PARAMETROS!$H$89)^(H$64-1) -> 10382328.02 | I97: =I77*(1+PARAMETROS!$G$89)*(1+PARAMETROS!$H$89)^I$64 -> 11415968.89 | J97: =J77*(1+PARAMETROS!$G$89)*(1+PARAMETROS!$H$89)^(J$64-1) -> 11599908.19 | K97: =K77*(1+PARAMETROS!$G$89)*(1+PARAMETROS!$H$89)^K$64 -> 12745409.45 | L97: =L77*(1+PARAMETROS!$G$89)*(1+PARAMETROS!$H$89)^(L$64-1) -> 12944358.2 | M97: =M77*(1+PARAMETROS!$G$89)*(1+PARAMETROS!$H$89)^M$64 -> 14215800.8 | N97: =N77*(1+PARAMETROS!$G$89)*(1+PARAMETROS!$H$89)^(N$64-1) -> 14430983.77 | O97: =O77*(1+PARAMETROS!$G$89)*(1+PARAMETROS!$H$89)^O$64 -> 15923592.61 | P97: =P77*(1+PARAMETROS!$G$89)*(1+PARAMETROS!$H$89)^(P$64-1) -> 16238633.18 | Q97: =Q77*(1+PARAMETROS!$G$89)*(1+PARAMETROS!$H$89)^Q$64 -> 17904453.52 | R97: =R77*(1+PARAMETROS!$G$89)*(1+PARAMETROS!$H$89)^(R$64-1) -> 18245201.4 | S97: =S77*(1+PARAMETROS!$G$89)*(1+PARAMETROS!$H$89)^S$64 -> 20102562.74 | T97: =T77*(1+PARAMETROS!$G$89)*(1+PARAMETROS!$H$89)^(T$64-1) -> 20675353.32 | U97: =U77*(1+PARAMETROS!$G$89)*(1+PARAMETROS!$H$89)^U$64 -> 22981992.44 | V97: =V77*(1+PARAMETROS!$G$89)*(1+PARAMETROS!$H$89)^(V$64-1) -> 23601522.73 | W97: =W77*(1+PARAMETROS!$G$89)*(1+PARAMETROS!$H$89)^W$64 -> 26197490.94 | X97: =X77*(1+PARAMETROS!$G$89)*(1+PARAMETROS!$H$89)^(X$64-1) -> 26867574.91 | Y97: =Y77*(1+PARAMETROS!$G$89)*(1+PARAMETROS!$H$89)^Y$64 -> 29059969.02 | Z97: =Z77*(1+PARAMETROS!$G$89)*(1+PARAMETROS!$H$89)^(Z$64-1) -> 29059969.02 | AA97: =AA77*(1+PARAMETROS!$G$89)*(1+PARAMETROS!$H$89)^AA$64 -> 31431262.49 | AB97: =AB77*(1+PARAMETROS!$G$89)*(1+PARAMETROS!$H$89)^(AB$64-1) -> 31431262.49 | AC97: =AC77*(1+PARAMETROS!$G$89)*(1+PARAMETROS!$H$89)^AC$64 -> 33996053.51 | AD97: =AD77*(1+PARAMETROS!$G$89)*(1+PARAMETROS!$H$89)^(AD$64-1) -> 33996053.51 | AE97: =AE77*(1+PARAMETROS!$G$89)*(1+PARAMETROS!$H$89)^AE$64 -> 36770131.47 | AF97: =AF77*(1+PARAMETROS!$G$89)*(1+PARAMETROS!$H$89)^(AF$64-1) -> 36770131.47 | AG97: =AG77*(1+PARAMETROS!$G$89)*(1+PARAMETROS!$H$89)^AG$64 -> 39770574.2 | AH97: =AH77*(1+PARAMETROS!$G$89)*(1+PARAMETROS!$H$89)^(AH$64-1) -> 39770574.2 | AI97: =AI77*(1+PARAMETROS!$G$89)*(1+PARAMETROS!$H$89)^AI$64 -> 43015853.06 | AJ97: =AJ77*(1+PARAMETROS!$G$89)*(1+PARAMETROS!$H$89)^(AJ$64-1) -> 43015853.06 | AK97: =AK77*(1+PARAMETROS!$G$89)*(1+PARAMETROS!$H$89)^AK$64 -> 46525946.67 | AL97: =AL77*(1+PARAMETROS!$G$89)*(1+PARAMETROS!$H$89)^(AL$64-1) -> 46525946.67 | AM97: =AM77*(1+PARAMETROS!$G$89)*(1+PARAMETROS!$H$89)^AM$64 -> 50322463.92 | AN97: =AN77*(1+PARAMETROS!$G$89)*(1+PARAMETROS!$H$89)^(AN$64-1) -> 50322463.92 | AO97: =AO77*(1+PARAMETROS!$G$89)*(1+PARAMETROS!$H$89)^AO$64 -> 54428776.97 | AP97: =AP77*(1+PARAMETROS!$G$89)*(1+PARAMETROS!$H$89)^(AP$64-1) -> 54428776.97 | AQ97: =AQ77*(1+PARAMETROS!$G$89)*(1+PARAMETROS!$H$89)^AQ$64 -> 58870165.17
B98: Tarifa 2 | C98: =C78 -> 7667074.931 | D98: =D78*(1) -> 10222766.57 | E98: =E78*(1+PARAMETROS!$G$89)*(1+PARAMETROS!$H$89)^E$64 -> 11300166.24 | F98: =F78*(1+PARAMETROS!$G$89)*(1+PARAMETROS!$H$89)^(F$64-1) -> 11490229.77 | G98: =G78*(1+PARAMETROS!$G$89)*(1+PARAMETROS!$H$89)^G$64 -> 12633405.23 | H98: =H78*(1+PARAMETROS!$G$89)*(1+PARAMETROS!$H$89)^(H$64-1) -> 12838977.94 | I98: =I78*(1+PARAMETROS!$G$89)*(1+PARAMETROS!$H$89)^I$64 -> 14108985.98 | J98: =J78*(1+PARAMETROS!$G$89)*(1+PARAMETROS!$H$89)^(J$64-1) -> 14329080.42 | K98: =K78*(1+PARAMETROS!$G$89)*(1+PARAMETROS!$H$89)^K$64 -> 15736387.53 | L98: =L78*(1+PARAMETROS!$G$89)*(1+PARAMETROS!$H$89)^(L$64-1) -> 15974441.68 | M98: =M78*(1+PARAMETROS!$G$89)*(1+PARAMETROS!$H$89)^M$64 -> 17535435.49 | N98: =N78*(1+PARAMETROS!$G$89)*(1+PARAMETROS!$H$89)^(N$64-1) -> 17792914.85 | O98: =O78*(1+PARAMETROS!$G$89)*(1+PARAMETROS!$H$89)^O$64 -> 19631055.06 | P98: =P78*(1+PARAMETROS!$G$89)*(1+PARAMETROS!$H$89)^(P$64-1) -> 20017293.41 | Q98: =Q78*(1+PARAMETROS!$G$89)*(1+PARAMETROS!$H$89)^Q$64 -> 22068459.96 | R98: =R78*(1+PARAMETROS!$G$89)*(1+PARAMETROS!$H$89)^(R$64-1) -> 22486215.36 | S98: =S78*(1+PARAMETROS!$G$89)*(1+PARAMETROS!$H$89)^S$64 -> 24772934.78 | T98: =T78*(1+PARAMETROS!$G$89)*(1+PARAMETROS!$H$89)^(T$64-1) -> 25451419.52 | U98: =U78*(1+PARAMETROS!$G$89)*(1+PARAMETROS!$H$89)^U$64 -> 28262104.45 | V98: =V78*(1+PARAMETROS!$G$89)*(1+PARAMETROS!$H$89)^(V$64-1) -> 28995953.55 | W98: =W78*(1+PARAMETROS!$G$89)*(1+PARAMETROS!$H$89)^W$64 -> 32155754.54 | X98: =X78*(1+PARAMETROS!$G$89)*(1+PARAMETROS!$H$89)^(X$64-1) -> 32949485.72 | Y98: =Y78*(1+PARAMETROS!$G$89)*(1+PARAMETROS!$H$89)^Y$64 -> 35638163.76 | Z98: =Z78*(1+PARAMETROS!$G$89)*(1+PARAMETROS!$H$89)^(Z$64-1) -> 35638163.76 | AA98: =AA78*(1+PARAMETROS!$G$89)*(1+PARAMETROS!$H$89)^AA$64 -> 38546237.92 | AB98: =AB78*(1+PARAMETROS!$G$89)*(1+PARAMETROS!$H$89)^(AB$64-1) -> 38546237.92 | AC98: =AC78*(1+PARAMETROS!$G$89)*(1+PARAMETROS!$H$89)^AC$64 -> 41691610.93 | AD98: =AD78*(1+PARAMETROS!$G$89)*(1+PARAMETROS!$H$89)^(AD$64-1) -> 41691610.93 | AE98: =AE78*(1+PARAMETROS!$G$89)*(1+PARAMETROS!$H$89)^AE$64 -> 45093646.39 | AF98: =AF78*(1+PARAMETROS!$G$89)*(1+PARAMETROS!$H$89)^(AF$64-1) -> 45093646.39 | AG98: =AG78*(1+PARAMETROS!$G$89)*(1+PARAMETROS!$H$89)^AG$64 -> 48773287.93 | AH98: =AH78*(1+PARAMETROS!$G$89)*(1+PARAMETROS!$H$89)^(AH$64-1) -> 48773287.93 | AI98: =AI78*(1+PARAMETROS!$G$89)*(1+PARAMETROS!$H$89)^AI$64 -> 52753188.23 | AJ98: =AJ78*(1+PARAMETROS!$G$89)*(1+PARAMETROS!$H$89)^(AJ$64-1) -> 52753188.23 | AK98: =AK78*(1+PARAMETROS!$G$89)*(1+PARAMETROS!$H$89)^AK$64 -> 57057848.39 | AL98: =AL78*(1+PARAMETROS!$G$89)*(1+PARAMETROS!$H$89)^(AL$64-1) -> 57057848.39 | AM98: =AM78*(1+PARAMETROS!$G$89)*(1+PARAMETROS!$H$89)^AM$64 -> 61713768.82 | AN98: =AN78*(1+PARAMETROS!$G$89)*(1+PARAMETROS!$H$89)^(AN$64-1) -> 61713768.82 | AO98: =AO78*(1+PARAMETROS!$G$89)*(1+PARAMETROS!$H$89)^AO$64 -> 66749612.35 | AP98: =AP78*(1+PARAMETROS!$G$89)*(1+PARAMETROS!$H$89)^(AP$64-1) -> 66749612.35 | AQ98: =AQ78*(1+PARAMETROS!$G$89)*(1+PARAMETROS!$H$89)^AQ$64 -> 72196380.72
B99: Tarifa 3 | C99: =C79 -> 10039568.59 | D99: =D79*(1) -> 13386091.46 | E99: =E79*(1+PARAMETROS!$G$89)*(1+PARAMETROS!$H$89)^E$64 -> 14794757.92 | F99: =F79*(1+PARAMETROS!$G$89)*(1+PARAMETROS!$H$89)^(F$64-1) -> 15041511.65 | G99: =G79*(1+PARAMETROS!$G$89)*(1+PARAMETROS!$H$89)^G$64 -> 16535787.84 | H99: =H79*(1+PARAMETROS!$G$89)*(1+PARAMETROS!$H$89)^(H$64-1) -> 16802676.67 | I99: =I79*(1+PARAMETROS!$G$89)*(1+PARAMETROS!$H$89)^I$64 -> 18462442.05 | J99: =J79*(1+PARAMETROS!$G$89)*(1+PARAMETROS!$H$89)^(J$64-1) -> 18724810.23 | K99: =K79*(1+PARAMETROS!$G$89)*(1+PARAMETROS!$H$89)^K$64 -> 20536532.17 | L99: =L79*(1+PARAMETROS!$G$89)*(1+PARAMETROS!$H$89)^(L$64-1) -> 20820309.59 | M99: =M79*(1+PARAMETROS!$G$89)*(1+PARAMETROS!$H$89)^M$64 -> 22826180.52 | N99: =N79*(1+PARAMETROS!$G$89)*(1+PARAMETROS!$H$89)^(N$64-1) -> 23133114.18 | O99: =O79*(1+PARAMETROS!$G$89)*(1+PARAMETROS!$H$89)^O$64 -> 25498187.18 | P99: =P79*(1+PARAMETROS!$G$89)*(1+PARAMETROS!$H$89)^(P$64-1) -> 25975598.06 | Q99: =Q79*(1+PARAMETROS!$G$89)*(1+PARAMETROS!$H$89)^Q$64 -> 28611574.47 | R99: =R79*(1+PARAMETROS!$G$89)*(1+PARAMETROS!$H$89)^(R$64-1) -> 29127942.08 | S99: =S79*(1+PARAMETROS!$G$89)*(1+PARAMETROS!$H$89)^S$64 -> 32063285.36 | T99: =T79*(1+PARAMETROS!$G$89)*(1+PARAMETROS!$H$89)^(T$64-1) -> 32951364.09 | U99: =U79*(1+PARAMETROS!$G$89)*(1+PARAMETROS!$H$89)^U$64 -> 36600741.35 | V99: =V79*(1+PARAMETROS!$G$89)*(1+PARAMETROS!$H$89)^(V$64-1) -> 37561287.3 | W99: =W79*(1+PARAMETROS!$G$89)*(1+PARAMETROS!$H$89)^W$64 -> 41665214.85 | X99: =X79*(1+PARAMETROS!$G$89)*(1+PARAMETROS!$H$89)^(X$64-1) -> 42704141.35 | Y99: =Y79*(1+PARAMETROS!$G$89)*(1+PARAMETROS!$H$89)^Y$64 -> 46188799.29 | Z99: =Z79*(1+PARAMETROS!$G$89)*(1+PARAMETROS!$H$89)^(Z$64-1) -> 46188799.29 | AA99: =AA79*(1+PARAMETROS!$G$89)*(1+PARAMETROS!$H$89)^AA$64 -> 49957805.31 | AB99: =AB79*(1+PARAMETROS!$G$89)*(1+PARAMETROS!$H$89)^(AB$64-1) -> 49957805.31 | AC99: =AC79*(1+PARAMETROS!$G$89)*(1+PARAMETROS!$H$89)^AC$64 -> 54034362.22 | AD99: =AD79*(1+PARAMETROS!$G$89)*(1+PARAMETROS!$H$89)^(AD$64-1) -> 54034362.22 | AE99: =AE79*(1+PARAMETROS!$G$89)*(1+PARAMETROS!$H$89)^AE$64 -> 58443566.18 | AF99: =AF79*(1+PARAMETROS!$G$89)*(1+PARAMETROS!$H$89)^(AF$64-1) -> 58443566.18 | AG99: =AG79*(1+PARAMETROS!$G$89)*(1+PARAMETROS!$H$89)^AG$64 -> 63212561.18 | AH99: =AH79*(1+PARAMETROS!$G$89)*(1+PARAMETROS!$H$89)^(AH$64-1) -> 63212561.18 | AI99: =AI79*(1+PARAMETROS!$G$89)*(1+PARAMETROS!$H$89)^AI$64 -> 68370706.17 | AJ99: =AJ79*(1+PARAMETROS!$G$89)*(1+PARAMETROS!$H$89)^(AJ$64-1) -> 68370706.17 | AK99: =AK79*(1+PARAMETROS!$G$89)*(1+PARAMETROS!$H$89)^AK$64 -> 73949755.8 | AL99: =AL79*(1+PARAMETROS!$G$89)*(1+PARAMETROS!$H$89)^(AL$64-1) -> 73949755.8 | AM99: =AM79*(1+PARAMETROS!$G$89)*(1+PARAMETROS!$H$89)^AM$64 -> 79984055.87 | AN99: =AN79*(1+PARAMETROS!$G$89)*(1+PARAMETROS!$H$89)^(AN$64-1) -> 79984055.87 | AO99: =AO79*(1+PARAMETROS!$G$89)*(1+PARAMETROS!$H$89)^AO$64 -> 86510754.83 | AP99: =AP79*(1+PARAMETROS!$G$89)*(1+PARAMETROS!$H$89)^(AP$64-1) -> 86510754.83 | AQ99: =AQ79*(1+PARAMETROS!$G$89)*(1+PARAMETROS!$H$89)^AQ$64 -> 93570032.42
B100: Tarifa 4 | C100: =C80 -> 12329456.6 | D100: =D80*(1) -> 16439275.47 | E100: =E80*(1+PARAMETROS!$G$89)*(1+PARAMETROS!$H$89)^E$64 -> 18161279.57 | F100: =F80*(1+PARAMETROS!$G$89)*(1+PARAMETROS!$H$89)^(F$64-1) -> 18456354.56 | G100: =G80*(1+PARAMETROS!$G$89)*(1+PARAMETROS!$H$89)^G$64 -> 20281546.21 | H100: =H80*(1+PARAMETROS!$G$89)*(1+PARAMETROS!$H$89)^(H$64-1) -> 20600699.32 | I100: =I80*(1+PARAMETROS!$G$89)*(1+PARAMETROS!$H$89)^I$64 -> 22626912.39 | J100: =J80*(1+PARAMETROS!$G$89)*(1+PARAMETROS!$H$89)^(J$64-1) -> 22955372.63 | K100: =K80*(1+PARAMETROS!$G$89)*(1+PARAMETROS!$H$89)^K$64 -> 25183793.63 | L100: =L80*(1+PARAMETROS!$G$89)*(1+PARAMETROS!$H$89)^(L$64-1) -> 25539056.23 | M100: =M80*(1+PARAMETROS!$G$89)*(1+PARAMETROS!$H$89)^M$64 -> 28007295.24 | N100: =N80*(1+PARAMETROS!$G$89)*(1+PARAMETROS!$H$89)^(N$64-1) -> 28391547.26 | O100: =O80*(1+PARAMETROS!$G$89)*(1+PARAMETROS!$H$89)^O$64 -> 31273799.42 | P100: =P80*(1+PARAMETROS!$G$89)*(1+PARAMETROS!$H$89)^(P$64-1) -> 31839301.32 | Q100: =Q80*(1+PARAMETROS!$G$89)*(1+PARAMETROS!$H$89)^Q$64 -> 35049035.15 | R100: =R80*(1+PARAMETROS!$G$89)*(1+PARAMETROS!$H$89)^(R$64-1) -> 35660682.01 | S100: =S80*(1+PARAMETROS!$G$89)*(1+PARAMETROS!$H$89)^S$64 -> 39232150.89 | T100: =T80*(1+PARAMETROS!$G$89)*(1+PARAMETROS!$H$89)^(T$64-1) -> 40284024.72 | U100: =U80*(1+PARAMETROS!$G$89)*(1+PARAMETROS!$H$89)^U$64 -> 44708907.87 | V100: =V80*(1+PARAMETROS!$G$89)*(1+PARAMETROS!$H$89)^(V$64-1) -> 45846614.6 | W100: =W80*(1+PARAMETROS!$G$89)*(1+PARAMETROS!$H$89)^W$64 -> 50818241.96 | X100: =X80*(1+PARAMETROS!$G$89)*(1+PARAMETROS!$H$89)^(X$64-1) -> 52048785.56 | Y100: =Y80*(1+PARAMETROS!$G$89)*(1+PARAMETROS!$H$89)^Y$64 -> 56295966.46 | Z100: =Z80*(1+PARAMETROS!$G$89)*(1+PARAMETROS!$H$89)^(Z$64-1) -> 56295966.46 | AA100: =AA80*(1+PARAMETROS!$G$89)*(1+PARAMETROS!$H$89)^AA$64 -> 60889717.32 | AB100: =AB80*(1+PARAMETROS!$G$89)*(1+PARAMETROS!$H$89)^(AB$64-1) -> 60889717.32 | AC100: =AC80*(1+PARAMETROS!$G$89)*(1+PARAMETROS!$H$89)^AC$64 -> 65858318.26 | AD100: =AD80*(1+PARAMETROS!$G$89)*(1+PARAMETROS!$H$89)^(AD$64-1) -> 65858318.26 | AE100: =AE80*(1+PARAMETROS!$G$89)*(1+PARAMETROS!$H$89)^AE$64 -> 71232357.03 | AF100: =AF80*(1+PARAMETROS!$G$89)*(1+PARAMETROS!$H$89)^(AF$64-1) -> 71232357.03 | AG100: =AG80*(1+PARAMETROS!$G$89)*(1+PARAMETROS!$H$89)^AG$64 -> 77044917.36 | AH100: =AH80*(1+PARAMETROS!$G$89)*(1+PARAMETROS!$H$89)^(AH$64-1) -> 77044917.36 | AI100: =AI80*(1+PARAMETROS!$G$89)*(1+PARAMETROS!$H$89)^AI$64 -> 83331782.62 | AJ100: =AJ80*(1+PARAMETROS!$G$89)*(1+PARAMETROS!$H$89)^(AJ$64-1) -> 83331782.62 | AK100: =AK80*(1+PARAMETROS!$G$89)*(1+PARAMETROS!$H$89)^AK$64 -> 90131656.08 | AL100: =AL80*(1+PARAMETROS!$G$89)*(1+PARAMETROS!$H$89)^(AL$64-1) -> 90131656.08 | AM100: =AM80*(1+PARAMETROS!$G$89)*(1+PARAMETROS!$H$89)^AM$64 -> 97486399.22 | AN100: =AN80*(1+PARAMETROS!$G$89)*(1+PARAMETROS!$H$89)^(AN$64-1) -> 97486399.22 | AO100: =AO80*(1+PARAMETROS!$G$89)*(1+PARAMETROS!$H$89)^AO$64 -> 105441289.4 | AP100: =AP80*(1+PARAMETROS!$G$89)*(1+PARAMETROS!$H$89)^(AP$64-1) -> 105441289.4 | AQ100: =AQ80*(1+PARAMETROS!$G$89)*(1+PARAMETROS!$H$89)^AQ$64 -> 114045298.6
B101: Tarifa 5 | C101: =C81 -> 14583116.8 | D101: =D81*(1) -> 19444155.73 | E101: =E81*(1+PARAMETROS!$G$89)*(1+PARAMETROS!$H$89)^E$64 -> 21464678.01 | F101: =F81*(1+PARAMETROS!$G$89)*(1+PARAMETROS!$H$89)^(F$64-1) -> 21797447.58 | G101: =G81*(1+PARAMETROS!$G$89)*(1+PARAMETROS!$H$89)^G$64 -> 23936042.87 | H101: =H81*(1+PARAMETROS!$G$89)*(1+PARAMETROS!$H$89)^(H$64-1) -> 24295966.43 | I101: =I81*(1+PARAMETROS!$G$89)*(1+PARAMETROS!$H$89)^I$64 -> 26667810.62 | J101: =J81*(1+PARAMETROS!$G$89)*(1+PARAMETROS!$H$89)^(J$64-1) -> 27045468.33 | K101: =K81*(1+PARAMETROS!$G$89)*(1+PARAMETROS!$H$89)^K$64 -> 29660853.12 | L101: =L81*(1+PARAMETROS!$G$89)*(1+PARAMETROS!$H$89)^(L$64-1) -> 30069327.69 | M101: =M81*(1+PARAMETROS!$G$89)*(1+PARAMETROS!$H$89)^M$64 -> 32964790.93 | N101: =N81*(1+PARAMETROS!$G$89)*(1+PARAMETROS!$H$89)^(N$64-1) -> 33406597.03 | O101: =O81*(1+PARAMETROS!$G$89)*(1+PARAMETROS!$H$89)^O$64 -> 36786108.71 | P101: =P81*(1+PARAMETROS!$G$89)*(1+PARAMETROS!$H$89)^(P$64-1) -> 37439642.08 | Q101: =Q81*(1+PARAMETROS!$G$89)*(1+PARAMETROS!$H$89)^Q$64 -> 41201578.57 | R101: =R81*(1+PARAMETROS!$G$89)*(1+PARAMETROS!$H$89)^(R$64-1) -> 41908440.26 | S101: =S81*(1+PARAMETROS!$G$89)*(1+PARAMETROS!$H$89)^S$64 -> 46092710.59 | T101: =T81*(1+PARAMETROS!$G$89)*(1+PARAMETROS!$H$89)^(T$64-1) -> 47303358.15 | U101: =U81*(1+PARAMETROS!$G$89)*(1+PARAMETROS!$H$89)^U$64 -> 52472748.58 | V101: =V81*(1+PARAMETROS!$G$89)*(1+PARAMETROS!$H$89)^(V$64-1) -> 53782184.99 | W101: =W81*(1+PARAMETROS!$G$89)*(1+PARAMETROS!$H$89)^W$64 -> 59587097.7 | X101: =X81*(1+PARAMETROS!$G$89)*(1+PARAMETROS!$H$89)^(X$64-1) -> 61003384.12 | Y101: =Y81*(1+PARAMETROS!$G$89)*(1+PARAMETROS!$H$89)^Y$64 -> 65981260.26 | Z101: =Z81*(1+PARAMETROS!$G$89)*(1+PARAMETROS!$H$89)^(Z$64-1) -> 65981260.26 | AA101: =AA81*(1+PARAMETROS!$G$89)*(1+PARAMETROS!$H$89)^AA$64 -> 71365331.1 | AB101: =AB81*(1+PARAMETROS!$G$89)*(1+PARAMETROS!$H$89)^(AB$64-1) -> 71365331.1 | AC101: =AC81*(1+PARAMETROS!$G$89)*(1+PARAMETROS!$H$89)^AC$64 -> 77188742.11 | AD101: =AD81*(1+PARAMETROS!$G$89)*(1+PARAMETROS!$H$89)^(AD$64-1) -> 77188742.11 | AE101: =AE81*(1+PARAMETROS!$G$89)*(1+PARAMETROS!$H$89)^AE$64 -> 83487343.47 | AF101: =AF81*(1+PARAMETROS!$G$89)*(1+PARAMETROS!$H$89)^(AF$64-1) -> 83487343.47 | AG101: =AG81*(1+PARAMETROS!$G$89)*(1+PARAMETROS!$H$89)^AG$64 -> 90299910.7 | AH101: =AH81*(1+PARAMETROS!$G$89)*(1+PARAMETROS!$H$89)^(AH$64-1) -> 90299910.7 | AI101: =AI81*(1+PARAMETROS!$G$89)*(1+PARAMETROS!$H$89)^AI$64 -> 97668383.41 | AJ101: =AJ81*(1+PARAMETROS!$G$89)*(1+PARAMETROS!$H$89)^(AJ$64-1) -> 97668383.41 | AK101: =AK81*(1+PARAMETROS!$G$89)*(1+PARAMETROS!$H$89)^AK$64 -> 105638123.5 | AL101: =AL81*(1+PARAMETROS!$G$89)*(1+PARAMETROS!$H$89)^(AL$64-1) -> 105638123.5 | AM101: =AM81*(1+PARAMETROS!$G$89)*(1+PARAMETROS!$H$89)^AM$64 -> 114258194.4 | AN101: =AN81*(1+PARAMETROS!$G$89)*(1+PARAMETROS!$H$89)^(AN$64-1) -> 114258194.4 | AO101: =AO81*(1+PARAMETROS!$G$89)*(1+PARAMETROS!$H$89)^AO$64 -> 123581663 | AP101: =AP81*(1+PARAMETROS!$G$89)*(1+PARAMETROS!$H$89)^(AP$64-1) -> 123581663 | AQ101: =AQ81*(1+PARAMETROS!$G$89)*(1+PARAMETROS!$H$89)^AQ$64 -> 133665926.7

Sheet Sintesis_Inversion_TC (hidden)
B5: Alternativa 22
B7: EN USD 2015 | C7: INVERSION TOTAL | D7: Parte local | E7: Parte extranjera | F7: 2015 | G7: 2016 | H7: 2017 | I7: 2018
B8: Obras de via y reubicacion de redes | C8: =CHIFFRAGE_TC!L45 -> 707188.1902 | D8: =CHIFFRAGE_TC!O45 -> 0.7987647467 | E8: =CHIFFRAGE_TC!P45 -> 0.2012352533 | F8: =INVERSION_ANUALIZADA_TC_Alt_22!E44:H44 -> 451634.3073 | G8: =INVERSION_ANUALIZADA_TC_Alt_22!F44:I44 -> 255553.8829 | H8: =INVERSION_ANUALIZADA_TC_Alt_22!G44:J44 -> 0 | I8: =INVERSION_ANUALIZADA_TC_Alt_22!H44:K44 -> 0 | K8: =SUM(F8:I8) -> 707188.1902 | L8: =IF(C8=K8,"OK!","NOK") -> OK!
B9: Proteccion anti-incendios de edificios (+ decontaminacion) | C9: =CHIFFRAGE_TC!L33 -> 95156.73212 | D9: =CHIFFRAGE_TC!O33 -> 1 | E9: =CHIFFRAGE_TC!P33 -> 0 | F9: =INVERSION_ANUALIZADA_TC_Alt_22!E32:H32 -> 95156.73212 | G9: =INVERSION_ANUALIZADA_TC_Alt_22!F32:I32 -> 0 | H9: =INVERSION_ANUALIZADA_TC_Alt_22!G32:J32 -> 0 | I9: =INVERSION_ANUALIZADA_TC_Alt_22!H32:K32 -> 0 | K9: =SUM(F9:I9) -> 95156.73212 | L9: =IF(C9=K9,"OK!","NOK") -> OK!
B10: Infraestructura de lineas (fundaciones, postes y cables) | C10: =CHIFFRAGE_TC!L38 -> 6005893.805 | D10: =CHIFFRAGE_TC!O38 -> 0.6086835866 | E10: =CHIFFRAGE_TC!P38 -> 0.3913164134 | F10: =INVERSION_ANUALIZADA_TC_Alt_22!E37:H37 -> 1201178.761 | G10: =INVERSION_ANUALIZADA_TC_Alt_22!F37:I37 -> 3603536.283 | H10: =INVERSION_ANUALIZADA_TC_Alt_22!G37:J37 -> 1201178.761 | I10: =INVERSION_ANUALIZADA_TC_Alt_22!H37:K37 -> 0 | K10: 6005893.805 | L10: OK!
B11: Cabinas | C11: =CHIFFRAGE_TC!L53 -> 1278895.301 | D11: =CHIFFRAGE_TC!O53 -> 0.05773402115 | E11: =CHIFFRAGE_TC!P53 -> 0.9422659788 | F11: =INVERSION_ANUALIZADA_TC_Alt_22!E52:H52 -> 255779.0601 | G11: =INVERSION_ANUALIZADA_TC_Alt_22!F52:I52 -> 767337.1803 | H11: =INVERSION_ANUALIZADA_TC_Alt_22!G52:J52 -> 255779.0601 | I11: =INVERSION_ANUALIZADA_TC_Alt_22!H52:K52 -> 0 | K11: 1278895.301 | L11: OK!
B12: Equipamiento electrico | C12: =CHIFFRAGE_TC!L61 -> 3366804.886 | D12: =CHIFFRAGE_TC!O61 -> 0.08727601896 | E12: =CHIFFRAGE_TC!P61 -> 0.912723981 | F12: =INVERSION_ANUALIZADA_TC_Alt_22!E60:H60 -> 702141.3416 | G12: =INVERSION_ANUALIZADA_TC_Alt_22!F60:I60 -> 2348197.54 | H12: =INVERSION_ANUALIZADA_TC_Alt_22!G60:J60 -> 316466.0046 | I12: =INVERSION_ANUALIZADA_TC_Alt_22!H60:K60 -> 0 | K12: 3366804.886 | L12: OK!
B13: Telecomunicaciones y boleteria | C13: =CHIFFRAGE_TC!L70 -> 2331485.619 | D13: =CHIFFRAGE_TC!O70 -> 0.5725953637 | E13: =CHIFFRAGE_TC!P70 -> 0.4274046363 | F13: =INVERSION_ANUALIZADA_TC_Alt_22!E69:H69 -> 97608.84791 | G13: =INVERSION_ANUALIZADA_TC_Alt_22!F69:I69 -> 1434659.178 | H13: =INVERSION_ANUALIZADA_TC_Alt_22!G69:J69 -> 799217.5931 | I13: =INVERSION_ANUALIZADA_TC_Alt_22!H69:K69 -> 0 | K13: 2331485.619 | L13: OK!
B14: Estaciones
B15: Tecnologias de cable en las estaciones | C15: =CHIFFRAGE_TC!L57 -> 5640648.863 | D15: =CHIFFRAGE_TC!O57 -> 0.07952283812 | E15: =CHIFFRAGE_TC!P57 -> 0.9204771619 | F15: =INVERSION_ANUALIZADA_TC_Alt_22!E56 -> 0 | G15: =INVERSION_ANUALIZADA_TC_Alt_22!F56 -> 0 | H15: =INVERSION_ANUALIZADA_TC_Alt_22!G56 -> 3948454.204 | I15: =INVERSION_ANUALIZADA_TC_Alt_22!H56 -> 1692194.659 | K15: 5640648.863 | L15: OK!
B16: Obra civil y arquitectura | C16: =CHIFFRAGE_TC!L85 -> 10225904.01 | D16: =CHIFFRAGE_TC!O85 -> 0.7989302972 | E16: =CHIFFRAGE_TC!P85 -> 0.2010697028 | F16: =INVERSION_ANUALIZADA_TC_Alt_22!E84 -> 0 | G16: =INVERSION_ANUALIZADA_TC_Alt_22!F84 -> 2993355.199 | H16: =INVERSION_ANUALIZADA_TC_Alt_22!G84 -> 4821737.316 | I16: =INVERSION_ANUALIZADA_TC_Alt_22!H84 -> 2410811.494 | K16: 10225904.01 | L16: OK!
B17: Centro de mantenimiento - Samborondon | C17: =CHIFFRAGE_TC!L175 -> 1974615.681 | D17: =CHIFFRAGE_TC!O175 -> 0.3187181436 | E17: =CHIFFRAGE_TC!P175 -> 0.6812818564 | F17: =INVERSION_ANUALIZADA_TC_Alt_22!E174 -> 0 | G17: =INVERSION_ANUALIZADA_TC_Alt_22!F174 -> 457448.6136 | H17: =INVERSION_ANUALIZADA_TC_Alt_22!G174 -> 1188984.263 | I17: =INVERSION_ANUALIZADA_TC_Alt_22!H174 -> 328182.8039 | K17: 1974615.681 | L17: OK!
B18: Operaciones adicionales : estacionamiento incitativo y buses alimentadores | C18: =CHIFFRAGE_TC!L184 -> 3304138.904 | D18: =CHIFFRAGE_TC!O184 -> 0.8036318706 | E18: =CHIFFRAGE_TC!P184 -> 0.1963681294 | F18: =INVERSION_ANUALIZADA_TC_Alt_22!E183 -> 0 | G18: =INVERSION_ANUALIZADA_TC_Alt_22!F183 -> 0 | H18: =INVERSION_ANUALIZADA_TC_Alt_22!G183 -> 1489947.477 | I18: =INVERSION_ANUALIZADA_TC_Alt_22!H183 -> 1814191.427 | K18: 3304138.904 | L18: OK!
B19: Estudios y supervision de obras | C19: =CHIFFRAGE_TC!L194+CHIFFRAGE_TC!L195 -> 4191687.839 | D19: 0 | E19: 1 | F19: =INVERSION_ANUALIZADA_TC_Alt_22!E193+INVERSION_ANUALIZADA_TC_Alt_22!E194 -> 2095843.919 | G19: =INVERSION_ANUALIZADA_TC_Alt_22!F193+INVERSION_ANUALIZADA_TC_Alt_22!F194 -> 2095843.919 | H19: =INVERSION_ANUALIZADA_TC_Alt_22!G193+INVERSION_ANUALIZADA_TC_Alt_22!G194 -> 0 | I19: =INVERSION_ANUALIZADA_TC_Alt_22!H193+INVERSION_ANUALIZADA_TC_Alt_22!H194 -> 0 | K19: 4191687.839
B20: =CHIFFRAGE_TC!B197 -> % gastos de Gestión externalizados (auditores, seguros) | C20: =CHIFFRAGE_TC!L197 -> 1047921.96 | D20: 0 | E20: 1 | F20: =INVERSION_ANUALIZADA_TC_Alt_22!E196 -> 261980.4899 | G20: =INVERSION_ANUALIZADA_TC_Alt_22!F196 -> 261980.4899 | H20: =INVERSION_ANUALIZADA_TC_Alt_22!G196 -> 261980.4899 | I20: =INVERSION_ANUALIZADA_TC_Alt_22!H196 -> 261980.4899 | K20: 1047921.96
B22: TOTAL (sin provisiones / sin contingencias) | C22: =SUM(C8:C20) -> 40170341.79 | D22: - | E22: - | F22: =SUM(F9:F19) -> 4447708.662 | G22: =SUM(G9:G19) -> 13700377.91 | H22: =SUM(H9:H19) -> 14021764.68 | I22: =SUM(I9:I19) -> 6245380.384 | K22: =CHIFFRAGE_TC!L228 -> 40170341.79 | L22: OK!
B23: TOTAL (sin provisiones / con contingencias) | C23: =CHIFFRAGE_TC!L230 -> 49101257.56
B25: Provisiones - Compra de terrenos para estaciones y servidumbres | C25: =CHIFFRAGE_TC!L12 -> 1237500
B26: Provisiones - Fiscalizacion y tramites administrativos | C26: =CHIFFRAGE_TC!L237 -> 2346536.6
B28: TOTAL (sin contingencias) | C28: =C22+C25+C26 -> 43754378.39
B29: TOTAL (con contingencias) | C29: =CHIFFRAGE_TC!L243 -> 53257161.5
B34: Alternativa 13
B36: EN USD 2015 | C36: INVERSION TOTAL | D36: Parte local | E36: Parte extranjera | F36: 2015 | G36: 2016 | H36: 2017 | I36: 2018
B37: Obras de via y reubicacion de redes | C37: =CHIFFRAGE_TC!M45 -> 1499864.723 | D37: =CHIFFRAGE_TC!Q45 -> 0.798932012 | E37: =CHIFFRAGE_TC!R45 -> 0.201067988 | F37: =INVERSION_ANUALIZADA_TC_Alt_13!E44 -> 0 | G37: =INVERSION_ANUALIZADA_TC_Alt_13!F44 -> 972411.3505 | H37: =INVERSION_ANUALIZADA_TC_Alt_13!G44 -> 527453.3726 | I37: =INVERSION_ANUALIZADA_TC_Alt_13!H44 -> 0 | K37: =SUM(F37:I37) -> 1499864.723 | L37: =IF(C37=K37,"OK!","NOK") -> OK!
B38: Proteccion anti-incendios de edificios (+ decontaminacion) | C38: =CHIFFRAGE_TC!M33 -> 5077160.64 | D38: =CHIFFRAGE_TC!Q33 -> 0.7975182144 | E38: =CHIFFRAGE_TC!R33 -> 0.2024817856 | F38: =INVERSION_ANUALIZADA_TC_Alt_13!E32 -> 0 | G38: =INVERSION_ANUALIZADA_TC_Alt_13!F32 -> 1340657.709 | H38: =INVERSION_ANUALIZADA_TC_Alt_13!G32 -> 1245500.977 | I38: =INVERSION_ANUALIZADA_TC_Alt_13!H32 -> 2491001.954 | K38: =SUM(F38:I38) -> 5077160.64 | L38: =IF(C38=K38,"OK!","NOK") -> OK!
B39: Infraestructura de lineas (fundaciones, postes y cables) | C39: =CHIFFRAGE_TC!M38 -> 17693193.55 | D39: =CHIFFRAGE_TC!Q38 -> 0.5980493159 | E39: =CHIFFRAGE_TC!R38 -> 0.4019506841 | F39: =INVERSION_ANUALIZADA_TC_Alt_13!E37 -> 0 | G39: =INVERSION_ANUALIZADA_TC_Alt_13!F37 -> 3538638.711 | H39: =INVERSION_ANUALIZADA_TC_Alt_13!G37 -> 10615916.13 | I39: =INVERSION_ANUALIZADA_TC_Alt_13!H37 -> 3538638.711 | K39: 17693193.55 | L39: OK!
B40: Cabinas | C40: =CHIFFRAGE_TC!M53 -> 8810167.626 | D40: =CHIFFRAGE_TC!Q53 -> 0.05773402115 | E40: =CHIFFRAGE_TC!R53 -> 0.9422659788 | F40: =INVERSION_ANUALIZADA_TC_Alt_13!E52 -> 0 | G40: =INVERSION_ANUALIZADA_TC_Alt_13!F52 -> 1762033.525 | H40: =INVERSION_ANUALIZADA_TC_Alt_13!G52 -> 5286100.575 | I40: =INVERSION_ANUALIZADA_TC_Alt_13!H52 -> 1762033.525 | K40: 8810167.626 | L40: OK!
B41: Equipamiento electrico | C41: =CHIFFRAGE_TC!M61 -> 7890748.907 | D41: =CHIFFRAGE_TC!Q61 -> 0.08614287798 | E41: =CHIFFRAGE_TC!R61 -> 0.913857122 | F41: =INVERSION_ANUALIZADA_TC_Alt_13!E60 -> 0 | G41: =INVERSION_ANUALIZADA_TC_Alt_13!F60 -> 1824564.35 | H41: =INVERSION_ANUALIZADA_TC_Alt_13!G60 -> 5116676.747 | I41: =INVERSION_ANUALIZADA_TC_Alt_13!H60 -> 949507.8102 | K41: 7890748.907 | L41: OK!
B42: Telecomunicaciones y boleteria | C42: =CHIFFRAGE_TC!M70 -> 6914137.826 | D42: =CHIFFRAGE_TC!Q70 -> 0.6400909585 | E42: =CHIFFRAGE_TC!R70 -> 0.3599090415 | F42: =INVERSION_ANUALIZADA_TC_Alt_13!E69 -> 0 | G42: =INVERSION_ANUALIZADA_TC_Alt_13!F69 -> 227753.9785 | H42: =INVERSION_ANUALIZADA_TC_Alt_13!G69 -> 4410908.422 | I42: =INVERSION_ANUALIZADA_TC_Alt_13!H69 -> 2275475.425 | K42: 6914137.826 | L42: OK!
B43: Estaciones
B44: Tecnologias de cable en las estaciones | C44: =CHIFFRAGE_TC!M57 -> 33843893.18 | D44: =CHIFFRAGE_TC!Q57 -> 0.07952283812 | E44: =CHIFFRAGE_TC!R57 -> 0.9204771619 | F44: =INVERSION_ANUALIZADA_TC_Alt_13!E56 -> 0 | G44: =INVERSION_ANUALIZADA_TC_Alt_13!F56 -> 0 | H44: =INVERSION_ANUALIZADA_TC_Alt_13!G56 -> 23690725.23 | I44: =INVERSION_ANUALIZADA_TC_Alt_13!H56 -> 10153167.95 | K44: 33843893.18 | L44: =IF(C44=K44,"OK!","NOK") -> OK!
B45: Obra civil y arquitectura | C45: =CHIFFRAGE_TC!M85 -> 32127602.67 | D45: =CHIFFRAGE_TC!Q85 -> 0.7984126151 | E45: =CHIFFRAGE_TC!R85 -> 0.2015873849 | F45: =INVERSION_ANUALIZADA_TC_Alt_13!E84 -> 0 | G45: =INVERSION_ANUALIZADA_TC_Alt_13!F84 -> 10198930.02 | H45: =INVERSION_ANUALIZADA_TC_Alt_13!G84 -> 17328242 | I45: =INVERSION_ANUALIZADA_TC_Alt_13!H84 -> 4600430.64 | K45: 32127602.67 | L45: OK!
B46: Centro de mantenimiento - Samborondon | C46: =CHIFFRAGE_TC!M175 -> 7395846.672 | D46: =CHIFFRAGE_TC!Q175 -> 0.334669861 | E46: =CHIFFRAGE_TC!R175 -> 0.665330139 | F46: =INVERSION_ANUALIZADA_TC_Alt_13!E174 -> 0 | G46: =INVERSION_ANUALIZADA_TC_Alt_13!F174 -> 1776551.055 | H46: =INVERSION_ANUALIZADA_TC_Alt_13!G174 -> 4424969.476 | I46: =INVERSION_ANUALIZADA_TC_Alt_13!H174 -> 1194326.141 | K46: 7395846.672 | L46: OK!
B47: Operaciones adicionales : estacionamiento incitativo y buses alimentadores | C47: =CHIFFRAGE_TC!M184 -> 5575553.201 | D47: =CHIFFRAGE_TC!Q184 -> 0.8032018027 | E47: =CHIFFRAGE_TC!R184 -> 0.1967981973 | F47: =INVERSION_ANUALIZADA_TC_Alt_13!E183 -> 0 | G47: =INVERSION_ANUALIZADA_TC_Alt_13!F183 -> 0 | H47: =INVERSION_ANUALIZADA_TC_Alt_13!G183 -> 2527528.167 | I47: =INVERSION_ANUALIZADA_TC_Alt_13!H183 -> 3048025.034 | K47: 5575553.201 | L47: OK!
B48: Estudios y supervision de obras | C48: =CHIFFRAGE_TC!M194+CHIFFRAGE_TC!M195 -> 15219380.28 | D48: 0 | E48: 1 | F48: =INVERSION_ANUALIZADA_TC_Alt_13!E193+INVERSION_ANUALIZADA_TC_Alt_13!E194 -> 7609690.14 | G48: =INVERSION_ANUALIZADA_TC_Alt_13!F193+INVERSION_ANUALIZADA_TC_Alt_13!F194 -> 7609690.14 | H48: =INVERSION_ANUALIZADA_TC_Alt_13!G193+INVERSION_ANUALIZADA_TC_Alt_13!G194 -> 0 | I48: =INVERSION_ANUALIZADA_TC_Alt_13!H193+INVERSION_ANUALIZADA_TC_Alt_13!H194 -> 0 | K48: 15219380.28
B49: =B20 -> % gastos de Gestión externalizados (auditores, seguros) | C49: =CHIFFRAGE_TC!M197 -> 3804845.07 | D49: 0 | E49: 1 | F49: =INVERSION_ANUALIZADA_TC_Alt_13!E196 -> 951211.2674 | G49: =INVERSION_ANUALIZADA_TC_Alt_13!F196 -> 951211.2674 | H49: =INVERSION_ANUALIZADA_TC_Alt_13!G196 -> 951211.2674 | I49: =INVERSION_ANUALIZADA_TC_Alt_13!H196 -> 951211.2674 | K49: 3804845.07
B51: TOTAL (sin provisiones / sin contingencias) | C51: =SUM(C37:C49) -> 145852394.3 | D51: - | E51: - | F51: =SUM(F38:F48) -> 7609690.14 | G51: =SUM(G38:G48) -> 28278819.49 | H51: =SUM(H38:H48) -> 74646567.72 | I51: =SUM(I38:I48) -> 30012607.2 | K51: =CHIFFRAGE_TC!M204 -> 145852394.3 | L51: OK!
B52: TOTAL (sin provisiones / con contingencias) | C52: =CHIFFRAGE_TC!M230 -> 178256782.6
B54: Provisiones - Compra de terrenos para estaciones y servidumbres | C54: =CHIFFRAGE_TC!M12 -> 10062500
B55: Provisiones - Fiscalizacion y tramites administrativos | C55: =CHIFFRAGE_TC!M237 -> 6941408.45
B57: TOTAL (sin contingencias) | C57: =C51+C54+C55 -> 162856302.8
B58: TOTAL (con contingencias) | C58: =CHIFFRAGE_TC!M243 -> 198494516.7

Sheet CHIFFRAGE_TC (hidden)
B2: Legenda | C2: Dato de entrada
C3: Celda llave
C4: Error
C5: Dato calculado
F9: Precio unitario | G9: Cantidades | J9: Contengias | L9: COSTOS | O9: COSTOS - Parte local vs Parte extranjera | T9: Programa | Y9: Notas
C11: Categoria | D11: Duracion de vida (años) | E11: Unidad | F11: ($ sin IVA) | G11: Alternativa 22 | H11: Alternativa 13 | J11: Alternativa 22 | K11: Alternativa 13 | L11: Alternativa 22 | M11: Alternativa 13 | O11: Alternativa 22 - Local | P11: Alternativa 22 - Extranjero | Q11: Alternativa 13 - Local | R11: Alternativa 13 - Extranjero | T11: 2015 | U11: 2016 | V11: 2017 | W11: 2018
B12: Compra de terrenos para estaciones y servidumbres | J12: =SUM(J13:J21)/L12 -> 0.25 | K12: =SUM(K13:K21)/M12 -> 0.25 | L12: =SUM(L13:L21) -> 1237500 | M12: =SUM(M13:M21) -> 10062500 | O12: =SUM(O13:O21)/L12 -> 1 | P12: =SUM(P13:P21)/L12 -> 0 | Q12: =SUM(Q13:Q21)/M12 -> 1 | R12: =SUM(R13:R21)/M12 -> 0 | T12: =T$11 -> 2015 | U12: =U$11 -> 2016 | V12: =V$11 -> 2017 | W12: =W$11 -> 2018
B13: Estacion Duran (Terminal) | C13: ='PRECIOS UNITARIOS'!C$16 -> PRED | D13: Infinida | E13: ='PRECIOS UNITARIOS'!D$16 -> m2 | F13: 0 | G13: 1600 | H13: 1600 | J13: =HLOOKUP($C13,PARAMETROS!$C$36:$F$38,3)*L13 -> 0 | K13: =HLOOKUP($C13,PARAMETROS!$C$36:$F$38,3)*M13 -> 0 | L13: =G13*$F13 -> 0 | M13: =H13*$F13 -> 0 | O13: ='PRECIOS UNITARIOS'!$Z$16*L13 -> 0 | P13: ='PRECIOS UNITARIOS'!$AA$16*L13 -> 0 | Q13: ='PRECIOS UNITARIOS'!$Z$16*M13 -> 0 | R13: ='PRECIOS UNITARIOS'!$AA$16*M13 -> 0 | U13: 1 | Y13: Municipal
B14: Estacion Samborondon (Terminal) | C14: ='PRECIOS UNITARIOS'!C$16 -> PRED | D14: Infinida | E14: ='PRECIOS UNITARIOS'!D$16 -> m2 | F14: 0 | G14: 0 | H14: 9900 | J14: =HLOOKUP($C14,PARAMETROS!$C$36:$F$38,3)*L14 -> 0 | K14: =HLOOKUP($C14,PARAMETROS!$C$36:$F$38,3)*M14 -> 0 | L14: 0 | M14: 0 | O14: ='PRECIOS UNITARIOS'!$Z$16*L14 -> 0 | P14: ='PRECIOS UNITARIOS'!$AA$16*L14 -> 0 | Q14: ='PRECIOS UNITARIOS'!$Z$16*M14 -> 0 | R14: ='PRECIOS UNITARIOS'!$AA$16*M14 -> 0 | U14: 1 | Y14: Privado
B15: Estacion Malecon (Terminal) | C15: ='PRECIOS UNITARIOS'!C$16 -> PRED | D15: Infinida | E15: ='PRECIOS UNITARIOS'!D$16 -> m2 | F15: 1000 | G15: 0 | H15: 0 | J15: =HLOOKUP($C15,PARAMETROS!$C$36:$F$38,3)*L15 -> 0 | K15: =HLOOKUP($C15,PARAMETROS!$C$36:$F$38,3)*M15 -> 0 | L15: 0 | M15: 0 | O15: ='PRECIOS UNITARIOS'!$Z$16*L15 -> 0 | P15: ='PRECIOS UNITARIOS'!$AA$16*L15 -> 0 | Q15: ='PRECIOS UNITARIOS'!$Z$16*M15 -> 0 | R15: ='PRECIOS UNITARIOS'!$AA$16*M15 -> 0 | U15: 1 | Y15: Privado
B16: Estacion Puerto Santa Ana (Sur) | C16: ='PRECIOS UNITARIOS'!C$16 -> PRED | D16: Infinida | E16: ='PRECIOS UNITARIOS'!D$16 -> m2 | F16: 1000 | G16: 0 | H16: 5250 | J16: =HLOOKUP($C16,PARAMETROS!$C$36:$F$38,3)*L16 -> 0 | K16: =HLOOKUP($C16,PARAMETROS!$C$36:$F$38,3)*M16 -> 1312500 | L16: 0 | M16: 5250000 | O16: ='PRECIOS UNITARIOS'!$Z$16*L16 -> 0 | P16: ='PRECIOS UNITARIOS'!$AA$16*L16 -> 0 | Q16: ='PRECIOS UNITARIOS'!$Z$16*M16 -> 5250000 | R16: ='PRECIOS UNITARIOS'!$AA$16*M16 -> 0 | U16: 1 | Y16: Privado
B17: Estacion Malecon Centro Cultural | C17: ='PRECIOS UNITARIOS'!C$16 -> PRED | D17: Infinida | E17: ='PRECIOS UNITARIOS'!D$16 -> m2 | F17: 0 | G17: 1600 | H17: 1600 | J17: =HLOOKUP($C17,PARAMETROS!$C$36:$F$38,3)*L17 -> 0 | K17: =HLOOKUP($C17,PARAMETROS!$C$36:$F$38,3)*M17 -> 0 | L17: 0 | M17: 0 | O17: ='PRECIOS UNITARIOS'!$Z$16*L17 -> 0 | P17: ='PRECIOS UNITARIOS'!$AA$16*L17 -> 0 | Q17: ='PRECIOS UNITARIOS'!$Z$16*M17 -> 0 | R17: ='PRECIOS UNITARIOS'!$AA$16*M17 -> 0 | U17: 1 | Y17: Municipal
B18: Estacion Cimentero (Tecnica) | C18: ='PRECIOS UNITARIOS'!C$16 -> PRED | D18: Infinida | E18: ='PRECIOS UNITARIOS'!D$16 -> m2 | F18: 500 | G18: 0 | H18: 400 | J18: =HLOOKUP($C18,PARAMETROS!$C$36:$F$38,3)*L18 -> 0 | K18: =HLOOKUP($C18,PARAMETROS!$C$36:$F$38,3)*M18 -> 50000 | L18: 0 | M18: 200000 | O18: ='PRECIOS UNITARIOS'!$Z$16*L18 -> 0 | P18: ='PRECIOS UNITARIOS'!$AA$16*L18 -> 0 | Q18: ='PRECIOS UNITARIOS'!$Z$16*M18 -> 200000 | R18: ='PRECIOS UNITARIOS'!$AA$16*M18 -> 0 | U18: 1 | Y18: Privado
B19: Estacion Avenida Quito | C19: ='PRECIOS UNITARIOS'!C$16 -> PRED | D19: Infinida | E19: ='PRECIOS UNITARIOS'!D$16 -> m2 | F19: 0 | G19: 0 | H19: 10000 | J19: =HLOOKUP($C19,PARAMETROS!$C$36:$F$38,3)*L19 -> 0 | K19: =HLOOKUP($C19,PARAMETROS!$C$36:$F$38,3)*M19 -> 0 | L19: 0 | M19: 0 | O19: ='PRECIOS UNITARIOS'!$Z$16*L19 -> 0 | P19: ='PRECIOS UNITARIOS'!$AA$16*L19 -> 0 | Q19: ='PRECIOS UNITARIOS'!$Z$16*M19 -> 0 | R19: ='PRECIOS UNITARIOS'!$AA$16*M19 -> 0 | U19: 1 | Y19: Municipal
B20: Estacion Centenario (Terminal) | C20: ='PRECIOS UNITARIOS'!C$16 -> PRED | D20: Infinida | E20: ='PRECIOS UNITARIOS'!D$16 -> m2 | F20: 0 | G20: 0 | H20: 1600 | J20: =HLOOKUP($C20,PARAMETROS!$C$36:$F$38,3)*L20 -> 0 | K20: =HLOOKUP($C20,PARAMETROS!$C$36:$F$38,3)*M20 -> 0 | L20: 0 | M20: 0 | O20: ='PRECIOS UNITARIOS'!$Z$16*L20 -> 0 | P20: ='PRECIOS UNITARIOS'!$AA$16*L20 -> 0 | Q20: ='PRECIOS UNITARIOS'!$Z$16*M20 -> 0 | R20: ='PRECIOS UNITARIOS'!$AA$16*M20 -> 0 | U20: 1 | Y20: Municipal
B21: Servidumbres en linea | C21: ='PRECIOS UNITARIOS'!C$16 -> PRED | D21: Infinida | E21: ='PRECIOS UNITARIOS'!D$16 -> m2 | F21: 500 | G21: 2475 | H21: 9225 | J21: =HLOOKUP($C21,PARAMETROS!$C$36:$F$38,3)*L21 -> 309375 | K21: =HLOOKUP($C21,PARAMETROS!$C$36:$F$38,3)*M21 -> 1153125 | L21: 1237500 | M21: 4612500 | O21: ='PRECIOS UNITARIOS'!$Z$16*L21 -> 1237500 | P21: ='PRECIOS UNITARIOS'!$AA$16*L21 -> 0 | Q21: ='PRECIOS UNITARIOS'!$Z$16*M21 -> 4612500 | R21: ='PRECIOS UNITARIOS'!$AA$16*M21 -> 0 | V21: 1
B23: Compra de terrenos para estacionamiento (operacion adicional) | L23: =SUM(L24:L31) -> 0 | M23: =SUM(M24:M31) -> 0 | T23: =T$11 -> 2015 | U23: =U$11 -> 2016 | V23: =V$11 -> 2017 | W23: =W$11 -> 2018
B24: Estacion Duran (Terminal) | C24: ='PRECIOS UNITARIOS'!C$16 -> PRED | D24: Infinida | E24: ='PRECIOS UNITARIOS'!D$16 -> m2 | F24: =F13 -> 0 | G24: 24000 | H24: 24000 | J24: =HLOOKUP($C24,PARAMETROS!$C$36:$F$38,3)*L24 -> 0 | K24: =HLOOKUP($C24,PARAMETROS!$C$36:$F$38,3)*M24 -> 0 | L24: =G24*$F24 -> 0 | M24: =H24*$F24 -> 0 | O24: ='PRECIOS UNITARIOS'!$Z$16*L24 -> 0 | P24: ='PRECIOS UNITARIOS'!$AA$16*L24 -> 0 | Q24: ='PRECIOS UNITARIOS'!$Z$16*M24 -> 0 | R24: ='PRECIOS UNITARIOS'!$AA$16*M24 -> 0 | U24: 1 | Y24: =Y13 -> Municipal
B25: Estacion Samborondon (Terminal) | C25: ='PRECIOS UNITARIOS'!C$16 -> PRED | D25: Infinida | E25: ='PRECIOS UNITARIOS'!D$16 -> m2 | F25: 0 | G25: 0 | H25: 24000 | J25: =HLOOKUP($C25,PARAMETROS!$C$36:$F$38,3)*L25 -> 0 | K25: =HLOOKUP($C25,PARAMETROS!$C$36:$F$38,3)*M25 -> 0 | L25: 0 | M25: 0 | O25: ='PRECIOS UNITARIOS'!$Z$16*L25 -> 0 | P25: ='PRECIOS UNITARIOS'!$AA$16*L25 -> 0 | Q25: ='PRECIOS UNITARIOS'!$Z$16*M25 -> 0 | R25: ='PRECIOS UNITARIOS'!$AA$16*M25 -> 0 | U25: 1 | Y25: Privado
B26: Estacion Malecon (Terminal) | C26: ='PRECIOS UNITARIOS'!C$16 -> PRED | D26: Infinida | E26: ='PRECIOS UNITARIOS'!D$16 -> m2 | F26: 1000 | J26: =HLOOKUP($C26,PARAMETROS!$C$36:$F$38,3)*L26 -> 0 | K26: =HLOOKUP($C26,PARAMETROS!$C$36:$F$38,3)*M26 -> 0 | L26: 0 | M26: 0 | O26: ='PRECIOS UNITARIOS'!$Z$16*L26 -> 0 | P26: ='PRECIOS UNITARIOS'!$AA$16*L26 -> 0 | Q26: ='PRECIOS UNITARIOS'!$Z$16*M26 -> 0 | R26: ='PRECIOS UNITARIOS'!$AA$16*M26 -> 0 | U26: 1 | Y26: Privado
B27: Estacion Puerto Santa Ana (Sur) | C27: ='PRECIOS UNITARIOS'!C$16 -> PRED | D27: Infinida | E27: ='PRECIOS UNITARIOS'!D$16 -> m2 | F27: 1000 | J27: =HLOOKUP($C27,PARAMETROS!$C$36:$F$38,3)*L27 -> 0 | K27: =HLOOKUP($C27,PARAMETROS!$C$36:$F$38,3)*M27 -> 0 | L27: 0 | M27: 0 | O27: ='PRECIOS UNITARIOS'!$Z$16*L27 -> 0 | P27: ='PRECIOS UNITARIOS'!$AA$16*L27 -> 0 | Q27: ='PRECIOS UNITARIOS'!$Z$16*M27 -> 0 | R27: ='PRECIOS UNITARIOS'!$AA$16*M27 -> 0 | U27: 1 | Y27: Privado
B28: Estacion Malecon Centro Cultural | C28: ='PRECIOS UNITARIOS'!C$16 -> PRED | D28: Infinida | E28: ='PRECIOS UNITARIOS'!D$16 -> m2 | F28: 0 | J28: =HLOOKUP($C28,PARAMETROS!$C$36:$F$38,3)*L28 -> 0 | K28: =HLOOKUP($C28,PARAMETROS!$C$36:$F$38,3)*M28 -> 0 | L28: 0 | M28: 0 | O28: ='PRECIOS UNITARIOS'!$Z$16*L28 -> 0 | P28: ='PRECIOS UNITARIOS'!$AA$16*L28 -> 0 | Q28: ='PRECIOS UNITARIOS'!$Z$16*M28 -> 0 | R28: ='PRECIOS UNITARIOS'!$AA$16*M28 -> 0 | U28: 1 | Y28: Municipal
B29: Estacion Cimentero (Tecnica) | C29: ='PRECIOS UNITARIOS'!C$16 -> PRED | D29: Infinida | E29: ='PRECIOS UNITARIOS'!D$16 -> m2 | F29: 500 | J29: =HLOOKUP($C29,PARAMETROS!$C$36:$F$38,3)*L29 -> 0 | K29: =HLOOKUP($C29,PARAMETROS!$C$36:$F$38,3)*M29 -> 0 | L29: 0 | M29: 0 | O29: ='PRECIOS UNITARIOS'!$Z$16*L29 -> 0 | P29: ='PRECIOS UNITARIOS'!$AA$16*L29 -> 0 | Q29: ='PRECIOS UNITARIOS'!$Z$16*M29 -> 0 | R29: ='PRECIOS UNITARIOS'!$AA$16*M29 -> 0 | U29: 1 | Y29: Privado
B30: Estacion Avenida Quito | C30: ='PRECIOS UNITARIOS'!C$16 -> PRED | D30: Infinida | E30: ='PRECIOS UNITARIOS'!D$16 -> m2 | F30: 0 | J30: =HLOOKUP($C30,PARAMETROS!$C$36:$F$38,3)*L30 -> 0 | K30: =HLOOKUP($C30,PARAMETROS!$C$36:$F$38,3)*M30 -> 0 | L30: 0 | M30: 0 | O30: ='PRECIOS UNITARIOS'!$Z$16*L30 -> 0 | P30: ='PRECIOS UNITARIOS'!$AA$16*L30 -> 0 | Q30: ='PRECIOS UNITARIOS'!$Z$16*M30 -> 0 | R30: ='PRECIOS UNITARIOS'!$AA$16*M30 -> 0 | U30: 1 | Y30: Municipal
B31: Estacion Centenario (Terminal) | C31: ='PRECIOS UNITARIOS'!C$16 -> PRED | D31: Infinida | E31: ='PRECIOS UNITARIOS'!D$16 -> m2 | F31: 0 | J31: =HLOOKUP($C31,PARAMETROS!$C$36:$F$38,3)*L31 -> 0 | K31: =HLOOKUP($C31,PARAMETROS!$C$36:$F$38,3)*M31 -> 0 | L31: 0 | M31: 0 | O31: ='PRECIOS UNITARIOS'!$Z$16*L31 -> 0 | P31: ='PRECIOS UNITARIOS'!$AA$16*L31 -> 0 | Q31: ='PRECIOS UNITARIOS'!$Z$16*M31 -> 0 | R31: ='PRECIOS UNITARIOS'!$AA$16*M31 -> 0 | U31: 1 | Y31: Municipal
B33: Decontaminacion y proteccion | J33: =SUM(J34:J36)/L33 -> 0.25 | K33: =SUM(K34:K36)/M33 -> 0.25 | L33: =SUM(L34:L36) -> 95156.73212 | M33: 5077160.64 | O33: =SUM(O34:O36)/L33 -> 1 | P33: =SUM(P34:P36)/L33 -> 0 | Q33: =SUM(Q34:Q36)/M33 -> 0.7975182144 | R33: =SUM(R34:R36)/M33 -> 0.2024817856 | T33: =T$11 -> 2015 | U33: =U$11 -> 2016 | V33: =V$11 -> 2017 | W33: =W$11 -> 2018
B34: ='PRECIOS UNITARIOS'!B19 -> Proteccion contra incendios (techos) | C34: ='PRECIOS UNITARIOS'!C19 -> INFRA | D34: 40 | E34: ='PRECIOS UNITARIOS'!D19 -> m2 | F34: ='PRECIOS UNITARIOS'!L19 -> 164.6943441 | G34: =CANTIDADES!B25 -> 0 | H34: =CANTIDADES!C25 -> 18000 | J34: =HLOOKUP($C34,PARAMETROS!$C$36:$F$38,3)*L34 -> 0 | K34: =HLOOKUP($C34,PARAMETROS!$C$36:$F$38,3)*M34 -> 741124.5483 | L34: =G34*$F34 -> 0 | M34: 2964498.193 | O34: ='PRECIOS UNITARIOS'!$Z19*CHIFFRAGE_TC!L34 -> 0 | P34: ='PRECIOS UNITARIOS'!$AA19*CHIFFRAGE_TC!L34 -> 0 | Q34: ='PRECIOS UNITARIOS'!$Z19*CHIFFRAGE_TC!M34 -> 2352776.344 | R34: ='PRECIOS UNITARIOS'!$AA19*CHIFFRAGE_TC!M34 -> 611721.8494 | U34: 0.25 | V34: 0.25 | W34: 0.5
B35: ='PRECIOS UNITARIOS'!B20 -> Proteccion contra incendios (fachadas) | C35: ='PRECIOS UNITARIOS'!C20 -> INFRA | D35: 40 | E35: ='PRECIOS UNITARIOS'!D20 -> m2 | F35: ='PRECIOS UNITARIOS'!L20 -> 164.6943441 | G35: =CANTIDADES!B26 -> 0 | H35: =CANTIDADES!C26 -> 12250 | J35: =HLOOKUP($C35,PARAMETROS!$C$36:$F$38,3)*L35 -> 0 | K35: =HLOOKUP($C35,PARAMETROS!$C$36:$F$38,3)*M35 -> 504376.4287 | L35: 0 | M35: 2017505.715 | O35: ='PRECIOS UNITARIOS'!$Z20*CHIFFRAGE_TC!L35 -> 0 | P35: ='PRECIOS UNITARIOS'!$AA20*CHIFFRAGE_TC!L35 -> 0 | Q35: ='PRECIOS UNITARIOS'!$Z20*CHIFFRAGE_TC!M35 -> 1601195.012 | R35: ='PRECIOS UNITARIOS'!$AA20*CHIFFRAGE_TC!M35 -> 416310.703 | U35: 0.25 | V35: 0.25 | W35: 0.5
B36: ='PRECIOS UNITARIOS'!B21 -> Decontaminacion de suelo | C36: ='PRECIOS UNITARIOS'!C21 -> INFRA | D36: Infinida | E36: ='PRECIOS UNITARIOS'!D21 -> U | F36: ='PRECIOS UNITARIOS'!L21 -> 95156.73212 | G36: =CANTIDADES!B34 -> 1 | H36: =CANTIDADES!C34 -> 1 | J36: =HLOOKUP($C36,PARAMETROS!$C$36:$F$38,3)*L36 -> 23789.18303 | K36: =HLOOKUP($C36,PARAMETROS!$C$36:$F$38,3)*M36 -> 23789.18303 | L36: 95156.73212 | M36: 95156.73212 | O36: ='PRECIOS UNITARIOS'!$Z21*CHIFFRAGE_TC!L36 -> 95156.73212 | P36: ='PRECIOS UNITARIOS'!$AA21*CHIFFRAGE_TC!L36 -> 0 | Q36: ='PRECIOS UNITARIOS'!$Z21*CHIFFRAGE_TC!M36 -> 95156.73212 | R36: ='PRECIOS UNITARIOS'!$AA21*CHIFFRAGE_TC!M36 -> 0 | U36: 1
B38: Infraestructura y estructuras de lineas | J38: =SUM(J39:J43)/L38 -> 0.25 | K38: =SUM(K39:K43)/M38 -> 0.25 | L38: =SUM(L39:L43) -> 6005893.805 | M38: 17693193.55 | O38: =SUM(O39:O43)/L38 -> 0.6086835866 | P38: =SUM(P39:P43)/L38 -> 0.3913164134 | Q38: =SUM(Q39:Q43)/M38 -> 0.5980493159 | R38: =SUM(R39:R43)/M38 -> 0.4019506841 | T38: =T$11 -> 2015 | U38: =U$11 -> 2016 | V38: =V$11 -> 2017 | W38: =W$11 -> 2018
B39: ='PRECIOS UNITARIOS'!B24 -> Cables de soportes | C39: ='PRECIOS UNITARIOS'!C24 -> EQUIP | D39: 10 | E39: ='PRECIOS UNITARIOS'!D24 -> ml | F39: 0 | G39: 0 | H39: 0 | J39: =HLOOKUP($C39,PARAMETROS!$C$36:$F$38,3)*L39 -> 0 | K39: =HLOOKUP($C39,PARAMETROS!$C$36:$F$38,3)*M39 -> 0 | L39: =$F39*G39 -> 0 | M39: 0 | O39: =L39 -> 0 | P39: =L39 -> 0 | Q39: =M39 -> 0 | R39: =M39 -> 0 | U39: 0.2 | V39: 0.6 | W39: 0.2
B40: ='PRECIOS UNITARIOS'!B25 -> Cable de traccion | C40: ='PRECIOS UNITARIOS'!C25 -> EQUIP | D40: 5 | E40: ='PRECIOS UNITARIOS'!D25 -> ml | F40: ='PRECIOS UNITARIOS'!L25 -> 66.20956623 | G40: =(2*CANTIDADES!B22)*1.05 -> 4620 | H40: =(2*CANTIDADES!C22)*1.05 -> 17115 | J40: =HLOOKUP($C40,PARAMETROS!$C$36:$F$38,3)*L40 -> 76472.04899 | K40: =HLOOKUP($C40,PARAMETROS!$C$36:$F$38,3)*M40 -> 283294.1815 | L40: 305888.196 | M40: 1133176.726 | O40: ='PRECIOS UNITARIOS'!$Z25*CHIFFRAGE_TC!L40 -> 49778.97529 | P40: ='PRECIOS UNITARIOS'!$AA25*CHIFFRAGE_TC!L40 -> 256109.2207 | Q40: ='PRECIOS UNITARIOS'!$Z25*CHIFFRAGE_TC!M40 -> 184408.4766 | R40: ='PRECIOS UNITARIOS'!$AA25*CHIFFRAGE_TC!M40 -> 948768.2494 | U40: 0.2 | V40: 0.6 | W40: 0.2
B41: ='PRECIOS UNITARIOS'!B26 -> Cabeza de poste (patibulo + pendulos y equipamientos) | C41: ='PRECIOS UNITARIOS'!C26 -> EQUIP | D41: 40 | E41: ='PRECIOS UNITARIOS'!D26 -> U | F41: ='PRECIOS UNITARIOS'!L26 -> 100000.3452 | G41: =CANTIDADES!B43 -> 15 | H41: =CANTIDADES!C43 -> 45 | J41: =HLOOKUP($C41,PARAMETROS!$C$36:$F$38,3)*L41 -> 375001.2946 | K41: =HLOOKUP($C41,PARAMETROS!$C$36:$F$38,3)*M41 -> 1125003.884 | L41: 1500005.178 | M41: 4500015.535 | O41: ='PRECIOS UNITARIOS'!$Z26*CHIFFRAGE_TC!L41 -> 333517.0331 | P41: ='PRECIOS UNITARIOS'!$AA26*CHIFFRAGE_TC!L41 -> 1166488.145 | Q41: ='PRECIOS UNITARIOS'!$Z26*CHIFFRAGE_TC!M41 -> 1000551.099 | R41: ='PRECIOS UNITARIOS'!$AA26*CHIFFRAGE_TC!M41 -> 3499464.436 | U41: 0.2 | V41: 0.6 | W41: 0.2
B42: ='PRECIOS UNITARIOS'!B27 -> Postes y fundaciones | C42: ='PRECIOS UNITARIOS'!C27 -> INFRA | D42: 50 | E42: ='PRECIOS UNITARIOS'!D27 -> U | F42: ='PRECIOS UNITARIOS'!L27 -> 100000.0287 | G42: =CANTIDADES!B43 -> 15 | H42: =CANTIDADES!C43 -> 45 | J42: =HLOOKUP($C42,PARAMETROS!$C$36:$F$38,3)*L42 -> 375000.1076 | K42: =HLOOKUP($C42,PARAMETROS!$C$36:$F$38,3)*M42 -> 1125000.323 | L42: 1500000.431 | M42: 4500001.292 | O42: ='PRECIOS UNITARIOS'!$Z27*CHIFFRAGE_TC!L42 -> 1168711.992 | P42: ='PRECIOS UNITARIOS'!$AA27*CHIFFRAGE_TC!L42 -> 331288.4386 | Q42: ='PRECIOS UNITARIOS'!$Z27*CHIFFRAGE_TC!M42 -> 3506135.976 | R42: ='PRECIOS UNITARIOS'!$AA27*CHIFFRAGE_TC!M42 -> 993865.3159 | U42: 0.2 | V42: 0.6 | W42: 0.2
B43: ='PRECIOS UNITARIOS'!B28 -> Sobrecostos para fundaciones con pilotes | C43: ='PRECIOS UNITARIOS'!C28 -> INFRA | D43: 50 | E43: ='PRECIOS UNITARIOS'!D28 -> U | F43: ='PRECIOS UNITARIOS'!L28 -> 180000 | G43: =CANTIDADES!B46 -> 15 | H43: =CANTIDADES!C46 -> 42 | J43: =HLOOKUP($C43,PARAMETROS!$C$36:$F$38,3)*L43 -> 675000 | K43: =HLOOKUP($C43,PARAMETROS!$C$36:$F$38,3)*M43 -> 1890000 | L43: 2700000 | M43: 7560000 | O43: ='PRECIOS UNITARIOS'!$Z28*CHIFFRAGE_TC!L43 -> 2103680.982 | P43: ='PRECIOS UNITARIOS'!$AA28*CHIFFRAGE_TC!L43 -> 596319.0184 | Q43: ='PRECIOS UNITARIOS'!$Z28*CHIFFRAGE_TC!M43 -> 5890306.748 | R43: ='PRECIOS UNITARIOS'!$AA28*CHIFFRAGE_TC!M43 -> 1669693.252 | U43: 0.2 | V43: 0.6 | W43: 0.2
B45: Obras de via y reubicacion de redes | J45: =SUM(J46:J51)/L45 -> 0.25 | K45: =SUM(K46:K51)/M45 -> 0.25 | L45: =SUM(L46:L51) -> 707188.1902 | M45: 1499864.723 | O45: =SUM(O46:O51)/L45 -> 0.7987647467 | P45: =SUM(P46:P51)/L45 -> 0.2012352533 | Q45: =SUM(Q46:Q51)/M45 -> 0.798932012 | R45: =SUM(R46:R51)/M45 -> 0.201067988 | T45: =T$11 -> 2015 | U45: =U$11 -> 2016 | V45: =V$11 -> 2017 | W45: =W$11 -> 2018
B46: ='PRECIOS UNITARIOS'!B31 -> Obras de via | C46: ='PRECIOS UNITARIOS'!C31 -> INFRA | D46: 50 | E46: ='PRECIOS UNITARIOS'!D31 -> m2 | F46: ='PRECIOS UNITARIOS'!L31 -> 197.6332129 | G46: 1344 | H46: 3728 | J46: =HLOOKUP($C46,PARAMETROS!$C$36:$F$38,3)*L46 -> 66404.75953 | K46: =HLOOKUP($C46,PARAMETROS!$C$36:$F$38,3)*M46 -> 184194.1544 | L46: =$F46*G46 -> 265619.0381 | M46: 736776.6176 | O46: ='PRECIOS UNITARIOS'!$Z31*CHIFFRAGE_TC!L46 -> 210808.7604 | P46: ='PRECIOS UNITARIOS'!$AA31*CHIFFRAGE_TC!L46 -> 54810.2777 | Q46: ='PRECIOS UNITARIOS'!$Z31*CHIFFRAGE_TC!M46 -> 584743.3473 | R46: ='PRECIOS UNITARIOS'!$AA31*CHIFFRAGE_TC!M46 -> 152033.2703 | U46: 0.5 | V46: 0.5
B47: ='PRECIOS UNITARIOS'!B32 -> Redes aereas de alta tension | C47: ='PRECIOS UNITARIOS'!C32 -> INFRA | D47: 50 | E47: ='PRECIOS UNITARIOS'!D32 -> ml (de la red) | F47: ='PRECIOS UNITARIOS'!L32 -> 633.7229224 | G47: 0 | H47: 0 | J47: =HLOOKUP($C47,PARAMETROS!$C$36:$F$38,3)*L47 -> 0 | K47: =HLOOKUP($C47,PARAMETROS!$C$36:$F$38,3)*M47 -> 0 | L47: 0 | M47: 0 | O47: ='PRECIOS UNITARIOS'!$Z32*CHIFFRAGE_TC!L47 -> 0 | P47: ='PRECIOS UNITARIOS'!$AA32*CHIFFRAGE_TC!L47 -> 0 | Q47: ='PRECIOS UNITARIOS'!$Z32*CHIFFRAGE_TC!M47 -> 0 | R47: ='PRECIOS UNITARIOS'!$AA32*CHIFFRAGE_TC!M47 -> 0 | U47: 1
B48: ='PRECIOS UNITARIOS'!B33 -> Redes aereas | C48: ='PRECIOS UNITARIOS'!C33 -> INFRA | D48: 50 | E48: ='PRECIOS UNITARIOS'!D33 -> ml (de linea) | F48: ='PRECIOS UNITARIOS'!L33 -> 83.4 | G48: 2200 | H48: 3492 | J48: =HLOOKUP($C48,PARAMETROS!$C$36:$F$38,3)*L48 -> 45870 | K48: =HLOOKUP($C48,PARAMETROS!$C$36:$F$38,3)*M48 -> 72808.2 | L48: 183480 | M48: 291232.8 | O48: ='PRECIOS UNITARIOS'!$Z33*CHIFFRAGE_TC!L48 -> 147180 | P48: ='PRECIOS UNITARIOS'!$AA33*CHIFFRAGE_TC!L48 -> 36300 | Q48: ='PRECIOS UNITARIOS'!$Z33*CHIFFRAGE_TC!M48 -> 233614.8 | R48: ='PRECIOS UNITARIOS'!$AA33*CHIFFRAGE_TC!M48 -> 57618 | U48: 1
B49: ='PRECIOS UNITARIOS'!B34 -> Desplazamiento de lamparas | C49: ='PRECIOS UNITARIOS'!C34 -> INFRA | D49: 50 | E49: ='PRECIOS UNITARIOS'!D34 -> U | F49: ='PRECIOS UNITARIOS'!L34 -> 2520.084884 | G49: 5 | H49: 61 | J49: =HLOOKUP($C49,PARAMETROS!$C$36:$F$38,3)*L49 -> 3150.106105 | K49: =HLOOKUP($C49,PARAMETROS!$C$36:$F$38,3)*M49 -> 38431.29448 | L49: 12600.42442 | M49: 153725.1779 | O49: ='PRECIOS UNITARIOS'!$Z34*CHIFFRAGE_TC!L49 -> 10247.64807 | P49: ='PRECIOS UNITARIOS'!$AA34*CHIFFRAGE_TC!L49 -> 2352.776344 | Q49: ='PRECIOS UNITARIOS'!$Z34*CHIFFRAGE_TC!M49 -> 125021.3065 | R49: ='PRECIOS UNITARIOS'!$AA34*CHIFFRAGE_TC!M49 -> 28703.87139 | U49: 1
B50: ='PRECIOS UNITARIOS'!B35 -> Redes subterraneas | C50: ='PRECIOS UNITARIOS'!C35 -> INFRA | D50: 50 | E50: ='PRECIOS UNITARIOS'!D35 -> ml (de linea) | F50: ='PRECIOS UNITARIOS'!L35 -> 83.4 | G50: =CANTIDADES!B22 -> 2200 | H50: 3071 | J50: =HLOOKUP($C50,PARAMETROS!$C$36:$F$38,3)*L50 -> 45870 | K50: =HLOOKUP($C50,PARAMETROS!$C$36:$F$38,3)*M50 -> 64030.35 | L50: 183480 | M50: 256121.4 | O50: ='PRECIOS UNITARIOS'!$Z35*CHIFFRAGE_TC!L50 -> 147180 | P50: ='PRECIOS UNITARIOS'!$AA35*CHIFFRAGE_TC!L50 -> 36300 | Q50: ='PRECIOS UNITARIOS'!$Z35*CHIFFRAGE_TC!M50 -> 205449.9 | R50: ='PRECIOS UNITARIOS'!$AA35*CHIFFRAGE_TC!M50 -> 50671.5 | U50: 0.5 | V50: 0.5
B51: ='PRECIOS UNITARIOS'!B36 -> Mantenimiento de transito | C51: ='PRECIOS UNITARIOS'!C36 -> INFRA | D51: 50 | E51: ='PRECIOS UNITARIOS'!D36 -> U | F51: ='PRECIOS UNITARIOS'!L36 -> 62008.72764 | G51: 1 | H51: 1 | J51: =HLOOKUP($C51,PARAMETROS!$C$36:$F$38,3)*L51 -> 15502.18191 | K51: =HLOOKUP($C51,PARAMETROS!$C$36:$F$38,3)*M51 -> 15502.18191 | L51: 62008.72764 | M51: 62008.72764 | O51: ='PRECIOS UNITARIOS'!$Z36*CHIFFRAGE_TC!L51 -> 49460.58714 | P51: ='PRECIOS UNITARIOS'!$AA36*CHIFFRAGE_TC!L51 -> 12548.1405 | Q51: ='PRECIOS UNITARIOS'!$Z36*CHIFFRAGE_TC!M51 -> 49460.58714 | R51: ='PRECIOS UNITARIOS'!$AA36*CHIFFRAGE_TC!M51 -> 12548.1405 | U51: 0.5 | V51: 0.5
B53: Cabinas | J53: =SUM(J54:J55)/L53 -> 0.15 | K53: =SUM(K54:K55)/M53 -> 0.15 | L53: =SUM(L54:L55) -> 1278895.301 | M53: 8810167.626 | O53: =SUM(O54:O55)/L53 -> 0.05773402115 | P53: =SUM(P54:P55)/L53 -> 0.9422659788 | Q53: =SUM(Q54:Q55)/M53 -> 0.05773402115 | R53: =SUM(R54:R55)/M53 -> 0.9422659788 | T53: =T$11 -> 2015 | U53: =U$11 -> 2016 | V53: =V$11 -> 2017 | W53: =W$11 -> 2018
B54: ='PRECIOS UNITARIOS'!B39 -> Cabinas y soportes | C54: ='PRECIOS UNITARIOS'!C39 -> VEH | D54: 40 | E54: ='PRECIOS UNITARIOS'!D39 -> U | F54: ='PRECIOS UNITARIOS'!L39 -> 37545.57257 | G54: =CANTIDADES!B69 -> 27 | H54: =CANTIDADES!C69 -> 186 | J54: =HLOOKUP($C54,PARAMETROS!$C$36:$F$38,3)*L54 -> 152059.5689 | K54: =HLOOKUP($C54,PARAMETROS!$C$36:$F$38,3)*M54 -> 1047521.475 | L54: =$F54*G54 -> 1013730.459 | M54: =$F54*H54 -> 6983476.499 | O54: ='PRECIOS UNITARIOS'!$Z39*CHIFFRAGE_TC!L54 -> 47574.74611 | P54: ='PRECIOS UNITARIOS'!$AA39*CHIFFRAGE_TC!L54 -> 966155.7133 | Q54: ='PRECIOS UNITARIOS'!$Z39*CHIFFRAGE_TC!M54 -> 327737.1399 | R54: ='PRECIOS UNITARIOS'!$AA39*CHIFFRAGE_TC!M54 -> 6655739.359 | U54: 0.2 | V54: 0.6 | W54: 0.2
B55: ='PRECIOS UNITARIOS'!B40 -> Equipamiento de conforte en las cabinas | C55: ='PRECIOS UNITARIOS'!C40 -> VEH | D55: 15 | E55: ='PRECIOS UNITARIOS'!D40 -> U | F55: ='PRECIOS UNITARIOS'!L40 -> 9820.920039 | G55: =G54 -> 27 | H55: =H54 -> 186 | J55: =HLOOKUP($C55,PARAMETROS!$C$36:$F$38,3)*L55 -> 39774.72616 | K55: =HLOOKUP($C55,PARAMETROS!$C$36:$F$38,3)*M55 -> 274003.6691 | L55: =$F55*G55 -> 265164.841 | M55: =$F55*H55 -> 1826691.127 | O55: ='PRECIOS UNITARIOS'!$Z40*CHIFFRAGE_TC!L55 -> 26261.02222 | P55: ='PRECIOS UNITARIOS'!$AA40*CHIFFRAGE_TC!L55 -> 238903.8188 | Q55: ='PRECIOS UNITARIOS'!$Z40*CHIFFRAGE_TC!M55 -> 180909.2642 | R55: ='PRECIOS UNITARIOS'!$AA40*CHIFFRAGE_TC!M55 -> 1645781.863 | U55: 0.2 | V55: 0.6 | W55: 0.2
B57: Tecnologias en las estaciones | J57: =SUM(J58:J59)/L57 -> 0.25 | K57: =SUM(K58:K59)/M57 -> 0.25 | L57: =SUM(L58:L59) -> 5640648.863 | M57: 33843893.18 | O57: =SUM(O58:O59)/L57 -> 0.07952283812 | P57: =SUM(P58:P59)/L57 -> 0.9204771619 | Q57: =SUM(Q58:Q59)/M57 -> 0.07952283812 | R57: =SUM(R58:R59)/M57 -> 0.9204771619 | T57: =T$11 -> 2015 | U57: =U$11 -> 2016 | V57: =V$11 -> 2017 | W57: =W$11 -> 2018
B58: ='PRECIOS UNITARIOS'!B43 -> Lanzador (por ramita y por media-estacion) | C58: ='PRECIOS UNITARIOS'!C43 -> EQUIP | D58: 40 | E58: ='PRECIOS UNITARIOS'!D43 -> U | F58: ='PRECIOS UNITARIOS'!L43 -> 709328.8911 | G58: =2*CANTIDADES!B30+4*CANTIDADES!B31+4*CANTIDADES!B32 -> 4 | H58: =2*CANTIDADES!C30+4*CANTIDADES!C31+4*CANTIDADES!C32 -> 24 | J58: =HLOOKUP($C58,PARAMETROS!$C$36:$F$38,3)*L58 -> 709328.8911 | K58: =HLOOKUP($C58,PARAMETROS!$C$36:$F$38,3)*M58 -> 4255973.347 | L58: =$F58*G58 -> 2837315.564 | M58: =$F58*H58 -> 17023893.39 | O58: ='PRECIOS UNITARIOS'!$Z43*CHIFFRAGE_TC!L58 -> 225558.2757 | P58: ='PRECIOS UNITARIOS'!$AA43*CHIFFRAGE_TC!L58 -> 2611757.289 | Q58: ='PRECIOS UNITARIOS'!$Z43*CHIFFRAGE_TC!M58 -> 1353349.654 | R58: ='PRECIOS UNITARIOS'!$AA43*CHIFFRAGE_TC!M58 -> 15670543.73 | V58: 0.7 | W58: 0.3
B59: ='PRECIOS UNITARIOS'!B44 -> Cola y andenes (por numero de andenes, y/c puertas de anden) | C59: ='PRECIOS UNITARIOS'!C44 -> EQUIP | D59: 40 | E59: ='PRECIOS UNITARIOS'!D44 -> U | F59: ='PRECIOS UNITARIOS'!L44 -> 700833.3247 | G59: =G58 -> 4 | H59: =H58 -> 24 | J59: =HLOOKUP($C59,PARAMETROS!$C$36:$F$38,3)*L59 -> 700833.3247 | K59: =HLOOKUP($C59,PARAMETROS!$C$36:$F$38,3)*M59 -> 4204999.948 | L59: =$F59*G59 -> 2803333.299 | M59: =$F59*H59 -> 16819999.79 | O59: ='PRECIOS UNITARIOS'!$Z44*CHIFFRAGE_TC!L59 -> 223002.1307 | P59: ='PRECIOS UNITARIOS'!$AA44*CHIFFRAGE_TC!L59 -> 2580331.168 | Q59: ='PRECIOS UNITARIOS'!$Z44*CHIFFRAGE_TC!M59 -> 1338012.784 | R59: ='PRECIOS UNITARIOS'!$AA44*CHIFFRAGE_TC!M59 -> 15481987.01 | V59: 0.7 | W59: 0.3
B61: Equipamiento electrico | J61: =SUM(J62:J68)/L61 -> 0.25 | K61: =SUM(K62:K68)/M61 -> 0.25 | L61: =SUM(L62:L68) -> 3366804.886 | M61: 7890748.907 | O61: =SUM(O62:O68)/L61 -> 0.08727601896 | P61: =SUM(P62:P68)/L61 -> 0.912723981 | Q61: =SUM(Q62:Q68)/M61 -> 0.08614287798 | R61: =SUM(R62:R68)/M61 -> 0.913857122 | T61: =T$11 -> 2015 | U61: =U$11 -> 2016 | V61: =V$11 -> 2017 | W61: =W$11 -> 2018
B62: ='PRECIOS UNITARIOS'!B47 -> Cuarto de mandos | C62: ='PRECIOS UNITARIOS'!C47 -> EQUIP | D62: 15 | E62: ='PRECIOS UNITARIOS'!D47 -> N° de estaciones | F62: ='PRECIOS UNITARIOS'!L47 -> 261993.7662 | G62: =CANTIDADES!B30+CANTIDADES!B31 -> 2 | H62: =CANTIDADES!C30+CANTIDADES!C31 -> 6 | J62: =HLOOKUP($C62,PARAMETROS!$C$36:$F$38,3)*L62 -> 130996.8831 | K62: =HLOOKUP($C62,PARAMETROS!$C$36:$F$38,3)*M62 -> 392990.6494 | L62: =$F62*G62 -> 523987.5325 | M62: 1571962.597 | O62: ='PRECIOS UNITARIOS'!$Z47*CHIFFRAGE_TC!L62 -> 41682.64126 | P62: ='PRECIOS UNITARIOS'!$AA47*CHIFFRAGE_TC!L62 -> 482304.8912 | Q62: ='PRECIOS UNITARIOS'!$Z47*CHIFFRAGE_TC!M62 -> 125047.9238 | R62: ='PRECIOS UNITARIOS'!$AA47*CHIFFRAGE_TC!M62 -> 1446914.674 | U62: 0.5 | V62: 0.5 | W62: 0
B63: ='PRECIOS UNITARIOS'!B48 -> Cuarto de electricidad (400V tres fases) | C63: ='PRECIOS UNITARIOS'!C48 -> EQUIP | D63: 15 | E63: ='PRECIOS UNITARIOS'!D48 -> U | F63: ='PRECIOS UNITARIOS'!L48 -> 179471.3639 | G63: 2 | H63: =2*2 -> 4 | J63: =HLOOKUP($C63,PARAMETROS!$C$36:$F$38,3)*L63 -> 89735.68193 | K63: =HLOOKUP($C63,PARAMETROS!$C$36:$F$38,3)*M63 -> 179471.3639 | L63: 358942.7277 | M63: 717885.4554 | O63: ='PRECIOS UNITARIOS'!$Z48*CHIFFRAGE_TC!L63 -> 35986.54597 | P63: ='PRECIOS UNITARIOS'!$AA48*CHIFFRAGE_TC!L63 -> 322956.1818 | Q63: ='PRECIOS UNITARIOS'!$Z48*CHIFFRAGE_TC!M63 -> 71973.09193 | R63: ='PRECIOS UNITARIOS'!$AA48*CHIFFRAGE_TC!M63 -> 645912.3635 | U63: 0.5 | V63: 0.5 | W63: 0
B64: ='PRECIOS UNITARIOS'!B49 -> Cuarto de manejo del traslado y zona de mantenimiento | C64: ='PRECIOS UNITARIOS'!C49 -> EQUIP | D64: 15 | E64: ='PRECIOS UNITARIOS'!D49 -> U | F64: ='PRECIOS UNITARIOS'!L49 -> 72776.04618 | G64: 1 | H64: =1*2 -> 2 | J64: =HLOOKUP($C64,PARAMETROS!$C$36:$F$38,3)*L64 -> 18194.01154 | K64: =HLOOKUP($C64,PARAMETROS!$C$36:$F$38,3)*M64 -> 36388.02309 | L64: 72776.04618 | M64: 145552.0924 | O64: ='PRECIOS UNITARIOS'!$Z49*CHIFFRAGE_TC!L64 -> 5789.255731 | P64: ='PRECIOS UNITARIOS'!$AA49*CHIFFRAGE_TC!L64 -> 66986.79045 | Q64: ='PRECIOS UNITARIOS'!$Z49*CHIFFRAGE_TC!M64 -> 11578.51146 | R64: ='PRECIOS UNITARIOS'!$AA49*CHIFFRAGE_TC!M64 -> 133973.5809 | U64: 0 | V64: 0 | W64: 1
B65: ='PRECIOS UNITARIOS'!B50 -> Alimentacion de auxilio de emergencia de la estacion motrice y del centro de mando | C65: ='PRECIOS UNITARIOS'!C50 -> EQUIP | D65: 15 | E65: ='PRECIOS UNITARIOS'!D50 -> U | F65: ='PRECIOS UNITARIOS'!L50 -> 69027.44764 | G65: 1 | H65: =1*2 -> 2 | J65: =HLOOKUP($C65,PARAMETROS!$C$36:$F$38,3)*L65 -> 17256.86191 | K65: =HLOOKUP($C65,PARAMETROS!$C$36:$F$38,3)*M65 -> 34513.72382 | L65: 69027.44764 | M65: 138054.8953 | O65: ='PRECIOS UNITARIOS'!$Z50*CHIFFRAGE_TC!L65 -> 6920.489609 | P65: ='PRECIOS UNITARIOS'!$AA50*CHIFFRAGE_TC!L65 -> 62106.95803 | Q65: ='PRECIOS UNITARIOS'!$Z50*CHIFFRAGE_TC!M65 -> 13840.97922 | R65: ='PRECIOS UNITARIOS'!$AA50*CHIFFRAGE_TC!M65 -> 124213.9161 | U65: 0 | V65: 0 | W65: 1
B66: ='PRECIOS UNITARIOS'!B51 -> Alimentaciones auxiliarias y equipamientos electricos en las estaciones y en el taller (aire acondicionado, alumbrado, mando de las puertas de anden, etc.) | C66: ='PRECIOS UNITARIOS'!C51 -> EQUIP | D66: 15 | E66: ='PRECIOS UNITARIOS'!D51 -> Superficies cerradas (m²) | F66: ='PRECIOS UNITARIOS'!L51 -> 109.1640693 | G66: =ROUNDUP(SUM(G89:G93,G100:G104,G111:G115,G122:G126,G133:G137,G144:G148,G155:G159,G166:G170,G176:G178),-2) -> 3200 | H66: =ROUNDUP(SUM(H89:H93,H100:H104,H111:H115,H122:H126,H133:H137,H144:H148,H155:H159,H166:H170,H176:H178),-2) -> 12200 | J66: =HLOOKUP($C66,PARAMETROS!$C$36:$F$38,3)*L66 -> 87331.25541 | K66: =HLOOKUP($C66,PARAMETROS!$C$36:$F$38,3)*M66 -> 332950.4113 | L66: 349325.0217 | M66: 1331801.645 | O66: ='PRECIOS UNITARIOS'!$Z51*CHIFFRAGE_TC!L66 -> 27788.42751 | P66: ='PRECIOS UNITARIOS'!$AA51*CHIFFRAGE_TC!L66 -> 321536.5941 | Q66: ='PRECIOS UNITARIOS'!$Z51*CHIFFRAGE_TC!M66 -> 105943.3799 | R66: ='PRECIOS UNITARIOS'!$AA51*CHIFFRAGE_TC!M66 -> 1225858.265 | U66: 0.25 | V66: 0.25 | W66: 0.5
B67: ='PRECIOS UNITARIOS'!B52 -> Doble motorizacion, reductores y traccion del cable | C67: ='PRECIOS UNITARIOS'!C52 -> EQUIP | D67: 40 | E67: ='PRECIOS UNITARIOS'!D52 -> U | F67: ='PRECIOS UNITARIOS'!L52 -> 909700.5772 | G67: 2 | H67: =2*2 -> 4 | J67: =HLOOKUP($C67,PARAMETROS!$C$36:$F$38,3)*L67 -> 454850.2886 | K67: =HLOOKUP($C67,PARAMETROS!$C$36:$F$38,3)*M67 -> 909700.5772 | L67: 1819401.154 | M67: 3638802.309 | O67: ='PRECIOS UNITARIOS'!$Z52*CHIFFRAGE_TC!L67 -> 144731.3933 | P67: ='PRECIOS UNITARIOS'!$AA52*CHIFFRAGE_TC!L67 -> 1674669.761 | Q67: ='PRECIOS UNITARIOS'!$Z52*CHIFFRAGE_TC!M67 -> 289462.7865 | R67: ='PRECIOS UNITARIOS'!$AA52*CHIFFRAGE_TC!M67 -> 3349339.522 | U67: 0 | V67: 1 | W67: 0
B68: ='PRECIOS UNITARIOS'!B53 -> Constitucion de una linea de reserva para la estacion motrice | C68: ='PRECIOS UNITARIOS'!C53 -> EQUIP | D68: 15 | E68: ='PRECIOS UNITARIOS'!D53 -> U | F68: ='PRECIOS UNITARIOS'!L53 -> 173344.9561 | G68: 1 | H68: =1*2 -> 2 | J68: =HLOOKUP($C68,PARAMETROS!$C$36:$F$38,3)*L68 -> 43336.23902 | K68: =HLOOKUP($C68,PARAMETROS!$C$36:$F$38,3)*M68 -> 86672.47804 | L68: 173344.9561 | M68: 346689.9121 | O68: ='PRECIOS UNITARIOS'!$Z53*CHIFFRAGE_TC!L68 -> 30942.57373 | P68: ='PRECIOS UNITARIOS'!$AA53*CHIFFRAGE_TC!L68 -> 142402.3823 | Q68: ='PRECIOS UNITARIOS'!$Z53*CHIFFRAGE_TC!M68 -> 61885.14747 | R68: ='PRECIOS UNITARIOS'!$AA53*CHIFFRAGE_TC!M68 -> 284804.7647 | U68: 1 | V68: 0 | W68: 0
B70: Telecomunicaciones y boleteria | J70: =SUM(J71:J83)/L70 -> 0.25 | K70: =SUM(K71:K83)/M70 -> 0.25 | L70: =SUM(L71:L83) -> 2331485.619 | M70: 6914137.826 | O70: =SUM(O71:O83)/L70 -> 0.5725953637 | P70: =SUM(P71:P83)/L70 -> 0.4274046363 | Q70: =SUM(Q71:Q83)/M70 -> 0.6400909585 | R70: =SUM(R71:R83)/M70 -> 0.3599090415 | T70: =T$11 -> 2015 | U70: =U$11 -> 2016 | V70: =V$11 -> 2017 | W70: =W$11 -> 2018
B71: ='PRECIOS UNITARIOS'!B56 -> Consola de mandos y Tablero de control optico | C71: ='PRECIOS UNITARIOS'!C56 -> EQUIP | D71: 15 | E71: ='PRECIOS UNITARIOS'!D56 -> Forfait | F71: ='PRECIOS UNITARIOS'!L56 -> 82832.93717 | G71: 1 | H71: 1 | J71: =HLOOKUP($C71,PARAMETROS!$C$36:$F$38,3)*L71 -> 20708.23429 | K71: =HLOOKUP($C71,PARAMETROS!$C$36:$F$38,3)*M71 -> 20708.23429 | L71: =$F71*G71 -> 82832.93717 | M71: =$F71*H71 -> 82832.93717 | O71: ='PRECIOS UNITARIOS'!$Z56*CHIFFRAGE_TC!L71 -> 8304.587531 | P71: ='PRECIOS UNITARIOS'!$AA56*CHIFFRAGE_TC!L71 -> 74528.34964 | Q71: ='PRECIOS UNITARIOS'!$Z56*CHIFFRAGE_TC!M71 -> 8304.587531 | R71: ='PRECIOS UNITARIOS'!$AA56*CHIFFRAGE_TC!M71 -> 74528.34964 | U71: 0 | V71: 0.2307692308 | W71: 0.7692307692
B72: ='PRECIOS UNITARIOS'!B57 -> Red de telefonia entre estaciones | C72: ='PRECIOS UNITARIOS'!C57 -> EQUIP | D72: 15 | E72: ='PRECIOS UNITARIOS'!D57 -> N° de estaciones + 1 | F72: ='PRECIOS UNITARIOS'!L57 -> 55745.11417 | G72: =CANTIDADES!B30+CANTIDADES!B31+1 -> 3 | H72: =CANTIDADES!C30+CANTIDADES!C31+1 -> 7 | J72: =HLOOKUP($C72,PARAMETROS!$C$36:$F$38,3)*L72 -> 41808.83563 | K72: =HLOOKUP($C72,PARAMETROS!$C$36:$F$38,3)*M72 -> 97553.9498 | L72: 167235.3425 | M72: 390215.7992 | O72: ='PRECIOS UNITARIOS'!$Z57*CHIFFRAGE_TC!L72 -> 14775.43544 | P72: ='PRECIOS UNITARIOS'!$AA57*CHIFFRAGE_TC!L72 -> 152459.9071 | Q72: ='PRECIOS UNITARIOS'!$Z57*CHIFFRAGE_TC!M72 -> 34476.01602 | R72: ='PRECIOS UNITARIOS'!$AA57*CHIFFRAGE_TC!M72 -> 355739.7832 | U72: 0 | V72: 0.75 | W72: 0.25
B73: ='PRECIOS UNITARIOS'!B58 -> Sonorizacion de anuncios publicos en estaciones | C73: ='PRECIOS UNITARIOS'!C58 -> EQUIP | D73: 15 | E73: ='PRECIOS UNITARIOS'!D58 -> N° de estaciones + 1 | F73: ='PRECIOS UNITARIOS'!L58 -> 44245.26624 | G73: =G72 -> 3 | H73: =H72 -> 7 | J73: =HLOOKUP($C73,PARAMETROS!$C$36:$F$38,3)*L73 -> 33183.94968 | K73: =HLOOKUP($C73,PARAMETROS!$C$36:$F$38,3)*M73 -> 77429.21592 | L73: 132735.7987 | M73: 309716.8637 | O73: ='PRECIOS UNITARIOS'!$Z58*CHIFFRAGE_TC!L73 -> 14312.72276 | P73: ='PRECIOS UNITARIOS'!$AA58*CHIFFRAGE_TC!L73 -> 118423.076 | Q73: ='PRECIOS UNITARIOS'!$Z58*CHIFFRAGE_TC!M73 -> 33396.3531 | R73: ='PRECIOS UNITARIOS'!$AA58*CHIFFRAGE_TC!M73 -> 276320.5106 | U73: 0 | V73: 0.6 | W73: 0.4
B74: ='PRECIOS UNITARIOS'!B59 -> Sistema de informacion a los pasajeros en las estaciones | C74: ='PRECIOS UNITARIOS'!C59 -> EQUIP | D74: 15 | E74: ='PRECIOS UNITARIOS'!D59 -> N° de estaciones + 1 | F74: ='PRECIOS UNITARIOS'!L59 -> 34513.72382 | G74: =G72 -> 3 | H74: =H72 -> 7 | J74: =HLOOKUP($C74,PARAMETROS!$C$36:$F$38,3)*L74 -> 25885.29286 | K74: =HLOOKUP($C74,PARAMETROS!$C$36:$F$38,3)*M74 -> 60399.01668 | L74: 103541.1715 | M74: 241596.0667 | O74: ='PRECIOS UNITARIOS'!$Z59*CHIFFRAGE_TC!L74 -> 10380.73441 | P74: ='PRECIOS UNITARIOS'!$AA59*CHIFFRAGE_TC!L74 -> 93160.43705 | Q74: ='PRECIOS UNITARIOS'!$Z59*CHIFFRAGE_TC!M74 -> 24221.71363 | R74: ='PRECIOS UNITARIOS'!$AA59*CHIFFRAGE_TC!M74 -> 217374.3531 | U74: 0 | V74: 0.5 | W74: 0.5
B75: ='PRECIOS UNITARIOS'!B60 -> Sistema de supervision SCADA del centro de mando | C75: ='PRECIOS UNITARIOS'!C60 -> EQUIP | D75: 15 | E75: ='PRECIOS UNITARIOS'!D60 -> U | F75: ='PRECIOS UNITARIOS'!L60 -> 52223.07928 | G75: 2 | H75: 2 | J75: =HLOOKUP($C75,PARAMETROS!$C$36:$F$38,3)*L75 -> 26111.53964 | K75: =HLOOKUP($C75,PARAMETROS!$C$36:$F$38,3)*M75 -> 26111.53964 | L75: 104446.1586 | M75: 104446.1586 | O75: ='PRECIOS UNITARIOS'!$Z60*CHIFFRAGE_TC!L75 -> 12882.75758 | P75: ='PRECIOS UNITARIOS'!$AA60*CHIFFRAGE_TC!L75 -> 91563.40098 | Q75: ='PRECIOS UNITARIOS'!$Z60*CHIFFRAGE_TC!M75 -> 12882.75758 | R75: ='PRECIOS UNITARIOS'!$AA60*CHIFFRAGE_TC!M75 -> 91563.40098 | U75: 0 | V75: 0.625 | W75: 0.375
B76: ='PRECIOS UNITARIOS'!B61 -> Cronometria, relojes marcadores | C76: ='PRECIOS UNITARIOS'!C61 -> EQUIP | D76: 15 | E76: ='PRECIOS UNITARIOS'!D61 -> N° de estaciones + 1 | F76: ='PRECIOS UNITARIOS'!L61 -> 22272.94939 | G76: =G72 -> 3 | H76: =H72 -> 7 | J76: =HLOOKUP($C76,PARAMETROS!$C$36:$F$38,3)*L76 -> 16704.71204 | K76: =HLOOKUP($C76,PARAMETROS!$C$36:$F$38,3)*M76 -> 38977.66143 | L76: 66818.84816 | M76: 155910.6457 | O76: ='PRECIOS UNITARIOS'!$Z61*CHIFFRAGE_TC!L76 -> 51917.93132 | P76: ='PRECIOS UNITARIOS'!$AA61*CHIFFRAGE_TC!L76 -> 14900.91684 | Q76: ='PRECIOS UNITARIOS'!$Z61*CHIFFRAGE_TC!M76 -> 121141.8397 | R76: ='PRECIOS UNITARIOS'!$AA61*CHIFFRAGE_TC!M76 -> 34768.80597 | U76: 0 | V76: 0 | W76: 1
B77: ='PRECIOS UNITARIOS'!B62 -> Equipamiento embarcado en la cabinas (videocamara/interponia/DI/LCD/WIFI) | C77: ='PRECIOS UNITARIOS'!C62 -> EQUIP | D77: 15 | E77: ='PRECIOS UNITARIOS'!D62 -> N° de cabinas + reserva | F77: ='PRECIOS UNITARIOS'!L62 -> 4454.589877 | G77: =CANTIDADES!B69 -> 27 | H77: =CANTIDADES!C69 -> 186 | J77: =HLOOKUP($C77,PARAMETROS!$C$36:$F$38,3)*L77 -> 30068.48167 | K77: =HLOOKUP($C77,PARAMETROS!$C$36:$F$38,3)*M77 -> 207138.4293 | L77: 120273.9267 | M77: 828553.7172 | O77: ='PRECIOS UNITARIOS'!$Z62*CHIFFRAGE_TC!L77 -> 93452.27637 | P77: ='PRECIOS UNITARIOS'!$AA62*CHIFFRAGE_TC!L77 -> 26821.65032 | Q77: ='PRECIOS UNITARIOS'!$Z62*CHIFFRAGE_TC!M77 -> 643782.3484 | R77: ='PRECIOS UNITARIOS'!$AA62*CHIFFRAGE_TC!M77 -> 184771.3689 | U77: 0 | V77: 0.6 | W77: 0.4
B78: ='PRECIOS UNITARIOS'!B63 -> Sistema de antenas y de mando securizado WIFI | C78: ='PRECIOS UNITARIOS'!C63 -> EQUIP | D78: 15 | E78: ='PRECIOS UNITARIOS'!D63 -> ml | F78: ='PRECIOS UNITARIOS'!L63 -> 204.5346901 | G78: =CANTIDADES!B22 -> 2200 | H78: =CANTIDADES!C22 -> 8150 | J78: =HLOOKUP($C78,PARAMETROS!$C$36:$F$38,3)*L78 -> 112494.0796 | K78: =HLOOKUP($C78,PARAMETROS!$C$36:$F$38,3)*M78 -> 416739.4312 | L78: 449976.3183 | M78: 1666957.725 | O78: ='PRECIOS UNITARIOS'!$Z63*CHIFFRAGE_TC!L78 -> 350595.0456 | P78: ='PRECIOS UNITARIOS'!$AA63*CHIFFRAGE_TC!L78 -> 99381.27276 | Q78: ='PRECIOS UNITARIOS'!$Z63*CHIFFRAGE_TC!M78 -> 1298795.282 | R78: ='PRECIOS UNITARIOS'!$AA63*CHIFFRAGE_TC!M78 -> 368162.4423 | U78: 0 | V78: 0.7692307692 | W78: 0.2307692308
B79: ='PRECIOS UNITARIOS'!B64 -> Sistema de vigilancia visio + termica por postes | C79: ='PRECIOS UNITARIOS'!C64 -> EQUIP | D79: 15 | E79: ='PRECIOS UNITARIOS'!D64 -> N° de postes + estaciones | F79: ='PRECIOS UNITARIOS'!L64 -> 33890.43613 | G79: =CANTIDADES!B29+CANTIDADES!B43 -> 17 | H79: =CANTIDADES!C29+CANTIDADES!C43 -> 53 | J79: =HLOOKUP($C79,PARAMETROS!$C$36:$F$38,3)*L79 -> 144034.3536 | K79: =HLOOKUP($C79,PARAMETROS!$C$36:$F$38,3)*M79 -> 449048.2788 | L79: 576137.4143 | M79: 1796193.115 | O79: ='PRECIOS UNITARIOS'!$Z64*CHIFFRAGE_TC!L79 -> 445479.9013 | P79: ='PRECIOS UNITARIOS'!$AA64*CHIFFRAGE_TC!L79 -> 130657.513 | Q79: ='PRECIOS UNITARIOS'!$Z64*CHIFFRAGE_TC!M79 -> 1388849.104 | R79: ='PRECIOS UNITARIOS'!$AA64*CHIFFRAGE_TC!M79 -> 407344.011 | U79: 0 | V79: 0.6666666667 | W79: 0.3333333333
B80: ='PRECIOS UNITARIOS'!B65 -> Sistema de vigilancia con video en estaciones | C80: ='PRECIOS UNITARIOS'!C65 -> EQUIP | D80: 15 | E80: ='PRECIOS UNITARIOS'!D65 -> N° de estaciones + 1 | F80: ='PRECIOS UNITARIOS'!L65 -> 46480.40377 | G80: =G72 -> 3 | H80: =H72 -> 7 | J80: =HLOOKUP($C80,PARAMETROS!$C$36:$F$38,3)*L80 -> 34860.30283 | K80: =HLOOKUP($C80,PARAMETROS!$C$36:$F$38,3)*M80 -> 81340.7066 | L80: 139441.2113 | M80: 325362.8264 | O80: ='PRECIOS UNITARIOS'!$Z65*CHIFFRAGE_TC!L80 -> 108070.8601 | P80: ='PRECIOS UNITARIOS'!$AA65*CHIFFRAGE_TC!L80 -> 31370.35125 | Q80: ='PRECIOS UNITARIOS'!$Z65*CHIFFRAGE_TC!M80 -> 252165.3401 | R80: ='PRECIOS UNITARIOS'!$AA65*CHIFFRAGE_TC!M80 -> 73197.48625 | U80: 0 | V80: 0.6 | W80: 0.4
B81: ='PRECIOS UNITARIOS'!B66 -> Sistema de deteccion incendio y de control de acceso | C81: ='PRECIOS UNITARIOS'!C66 -> EQUIP | D81: 15 | E81: ='PRECIOS UNITARIOS'!D66 -> Forfait | F81: ='PRECIOS UNITARIOS'!L66 -> 106910.1571 | G81: 0 | H81: 1 | J81: =HLOOKUP($C81,PARAMETROS!$C$36:$F$38,3)*L81 -> 0 | K81: =HLOOKUP($C81,PARAMETROS!$C$36:$F$38,3)*M81 -> 26727.53926 | L81: 0 | M81: 106910.1571 | O81: ='PRECIOS UNITARIOS'!$Z66*CHIFFRAGE_TC!L81 -> 0 | P81: ='PRECIOS UNITARIOS'!$AA66*CHIFFRAGE_TC!L81 -> 0 | Q81: ='PRECIOS UNITARIOS'!$Z66*CHIFFRAGE_TC!M81 -> 83068.69011 | R81: ='PRECIOS UNITARIOS'!$AA66*CHIFFRAGE_TC!M81 -> 23841.46695 | U81: 0 | V81: 0.6666666667 | W81: 0.3333333333
B82: ='PRECIOS UNITARIOS'!B67 -> Fibra de seguridad y equipos de transmision Ethernet | C82: ='PRECIOS UNITARIOS'!C67 -> EQUIP | D82: 15 | E82: ='PRECIOS UNITARIOS'!D67 -> N° de estaciones + 1 | F82: ='PRECIOS UNITARIOS'!L67 -> 92960.80754 | G82: =G72 -> 3 | H82: =H72 -> 7 | J82: =HLOOKUP($C82,PARAMETROS!$C$36:$F$38,3)*L82 -> 69720.60565 | K82: =HLOOKUP($C82,PARAMETROS!$C$36:$F$38,3)*M82 -> 162681.4132 | L82: 278882.4226 | M82: 650725.6528 | O82: ='PRECIOS UNITARIOS'!$Z67*CHIFFRAGE_TC!L82 -> 216141.7201 | P82: ='PRECIOS UNITARIOS'!$AA67*CHIFFRAGE_TC!L82 -> 62740.7025 | Q82: ='PRECIOS UNITARIOS'!$Z67*CHIFFRAGE_TC!M82 -> 504330.6803 | R82: ='PRECIOS UNITARIOS'!$AA67*CHIFFRAGE_TC!M82 -> 146394.9725 | U82: 0.35 | V82: 0.45 | W82: 0.2
B83: ='PRECIOS UNITARIOS'!B68 -> Sistema de boleteria | C83: ='PRECIOS UNITARIOS'!C68 -> EQUIP | D83: 15 | E83: ='PRECIOS UNITARIOS'!D68 -> N° de estaciones + 1 | F83: ='PRECIOS UNITARIOS'!L68 -> 36388.02309 | G83: =G72 -> 3 | H83: =H72 -> 7 | J83: =HLOOKUP($C83,PARAMETROS!$C$36:$F$38,3)*L83 -> 27291.01732 | K83: =HLOOKUP($C83,PARAMETROS!$C$36:$F$38,3)*M83 -> 63679.04041 | L83: 109164.0693 | M83: 254716.1616 | O83: ='PRECIOS UNITARIOS'!$Z68*CHIFFRAGE_TC!L83 -> 8683.883596 | P83: ='PRECIOS UNITARIOS'!$AA68*CHIFFRAGE_TC!L83 -> 100480.1857 | Q83: ='PRECIOS UNITARIOS'!$Z68*CHIFFRAGE_TC!M83 -> 20262.39506 | R83: ='PRECIOS UNITARIOS'!$AA68*CHIFFRAGE_TC!M83 -> 234453.7666 | U83: 0 | V83: 0.75 | W83: 0.25
B85: Estaciones | J85: =SUM(J86:J173)/L85 -> 0.25 | K85: =SUM(K86:K173)/M85 -> 0.25 | L85: =L86+L97+L108+L119+L130+L141+L152+L163 -> 10225904.01 | M85: =M86+M97+M108+M119+M130+M141+M152+M163 -> 32127602.67 | O85: =(O86+O97+O108+O119+O130+O141+O152+O163)/L85 -> 0.7989302972 | P85: =(P86+P97+P108+P119+P130+P141+P152+P163)/L85 -> 0.2010697028 | Q85: =(Q86+Q97+Q108+Q119+Q130+Q141+Q152+Q163)/M85 -> 0.7984126151 | R85: =(R86+R97+R108+R119+R130+R141+R152+R163)/M85 -> 0.2015873849 | T85: =T$11 -> 2015 | U85: =U$11 -> 2016 | V85: =V$11 -> 2017 | W85: =W$11 -> 2018
B86: Edificio - Estacion Duran (Terminal) | L86: =SUM(L87:L96) -> 5112952.004 | M86: =SUM(M87:M96) -> 5112952.004 | O86: =SUM(O87:O96) -> 4084892.264 | P86: =SUM(P87:P96) -> 1028059.74 | Q86: =SUM(Q87:Q96) -> 4084892.264 | R86: =SUM(R87:R96) -> 1028059.74 | T86: =T85 -> 2015 | U86: =U85 -> 2016 | V86: 2017 | W86: 2018
B87: ='PRECIOS UNITARIOS'!B72 -> Fundaciones tipicas (edificio con piso tierra y primer piso) | C87: ='PRECIOS UNITARIOS'!C72 -> INFRA | D87: 50 | E87: ='PRECIOS UNITARIOS'!D72 -> U | F87: ='PRECIOS UNITARIOS'!L72 -> 161184.0018 | G87: 0 | H87: 0 | J87: =HLOOKUP($C87,PARAMETROS!$C$36:$F$38,3)*L87 -> 0 | K87: =HLOOKUP($C87,PARAMETROS!$C$36:$F$38,3)*M87 -> 0 | L87: =$F87*G87 -> 0 | M87: =$F87*H87 -> 0 | O87: ='PRECIOS UNITARIOS'!$Z72*CHIFFRAGE_TC!L87 -> 0 | P87: ='PRECIOS UNITARIOS'!$AA72*CHIFFRAGE_TC!L87 -> 0 | Q87: ='PRECIOS UNITARIOS'!$Z72*CHIFFRAGE_TC!M87 -> 0 | R87: ='PRECIOS UNITARIOS'!$AA72*CHIFFRAGE_TC!M87 -> 0 | U87: 0.75 | V87: 0.25
B88: ='PRECIOS UNITARIOS'!B73 -> Piso tierra sobrelevado y fundaciones | C88: ='PRECIOS UNITARIOS'!C73 -> INFRA | D88: 50 | E88: ='PRECIOS UNITARIOS'!D73 -> m2 | F88: ='PRECIOS UNITARIOS'!L73 -> 2170.828306 | G88: =(G89+G90+G92+G93+G94)/2 -> 715 | H88: =(H89+H90+H92+H93+H94)/2 -> 715 | J88: =HLOOKUP($C88,PARAMETROS!$C$36:$F$38,3)*L88 -> 388035.5598 | K88: =HLOOKUP($C88,PARAMETROS!$C$36:$F$38,3)*M88 -> 388035.5598 | L88: 1552142.239 | M88: 1552142.239 | O88: ='PRECIOS UNITARIOS'!$Z73*CHIFFRAGE_TC!L88 -> 1253078.224 | P88: ='PRECIOS UNITARIOS'!$AA73*CHIFFRAGE_TC!L88 -> 299064.0153 | Q88: ='PRECIOS UNITARIOS'!$Z73*CHIFFRAGE_TC!M88 -> 1253078.224 | R88: ='PRECIOS UNITARIOS'!$AA73*CHIFFRAGE_TC!M88 -> 299064.0153 | U88: 0.5 | V88: 0.5
B89: ='PRECIOS UNITARIOS'!B74 -> Superficies comerciales | C89: ='PRECIOS UNITARIOS'!C74 -> INFRA | D89: 50 | E89: ='PRECIOS UNITARIOS'!D74 -> m2 | F89: ='PRECIOS UNITARIOS'!L74 -> 700.6348359 | G89: 250 | H89: 250 | J89: =HLOOKUP($C89,PARAMETROS!$C$36:$F$38,3)*L89 -> 43789.67725 | K89: =HLOOKUP($C89,PARAMETROS!$C$36:$F$38,3)*M89 -> 43789.67725 | L89: 175158.709 | M89: 175158.709 | O89: ='PRECIOS UNITARIOS'!$Z74*CHIFFRAGE_TC!L89 -> 141409.4394 | P89: ='PRECIOS UNITARIOS'!$AA74*CHIFFRAGE_TC!L89 -> 33749.26955 | Q89: ='PRECIOS UNITARIOS'!$Z74*CHIFFRAGE_TC!M89 -> 141409.4394 | R89: ='PRECIOS UNITARIOS'!$AA74*CHIFFRAGE_TC!M89 -> 33749.26955 | U89: 0.25 | V89: 0.75
B90: ='PRECIOS UNITARIOS'!B75 -> Ingreso y circulaciones al piso tierra (y/c servicios, escaleras mecanicas, escaleras y ascencores) | C90: ='PRECIOS UNITARIOS'!C75 -> INFRA | D90: 40 | E90: ='PRECIOS UNITARIOS'!D75 -> m2 | F90: ='PRECIOS UNITARIOS'!L75 -> 1838.595373 | G90: 600 | H90: 600 | J90: =HLOOKUP($C90,PARAMETROS!$C$36:$F$38,3)*L90 -> 275789.306 | K90: =HLOOKUP($C90,PARAMETROS!$C$36:$F$38,3)*M90 -> 275789.306 | L90: 1103157.224 | M90: 1103157.224 | O90: ='PRECIOS UNITARIOS'!$Z75*CHIFFRAGE_TC!L90 -> 862107.4449 | P90: ='PRECIOS UNITARIOS'!$AA75*CHIFFRAGE_TC!L90 -> 241049.779 | Q90: ='PRECIOS UNITARIOS'!$Z75*CHIFFRAGE_TC!M90 -> 862107.4449 | R90: ='PRECIOS UNITARIOS'!$AA75*CHIFFRAGE_TC!M90 -> 241049.779 | U90: 0.25 | V90: 0.75
B91: ='PRECIOS UNITARIOS'!B76 -> Escaleras mecanicas, escaleras y ascencores adicionales (piso tierra sobrelevado) | C91: ='PRECIOS UNITARIOS'!C76 -> EQUIP | D91: 15 | E91: ='PRECIOS UNITARIOS'!D76 -> U | F91: ='PRECIOS UNITARIOS'!L76 -> 373031.25 | G91: 0 | H91: 0 | J91: =HLOOKUP($C91,PARAMETROS!$C$36:$F$38,3)*L91 -> 0 | K91: =HLOOKUP($C91,PARAMETROS!$C$36:$F$38,3)*M91 -> 0 | L91: 0 | M91: 0 | O91: ='PRECIOS UNITARIOS'!$Z76*CHIFFRAGE_TC!L91 -> 0 | P91: ='PRECIOS UNITARIOS'!$AA76*CHIFFRAGE_TC!L91 -> 0 | Q91: ='PRECIOS UNITARIOS'!$Z76*CHIFFRAGE_TC!M91 -> 0 | R91: ='PRECIOS UNITARIOS'!$AA76*CHIFFRAGE_TC!M91 -> 0 | U91: 0.25 | V91: 0.75
B92: ='PRECIOS UNITARIOS'!B77 -> Anden al primer piso | C92: ='PRECIOS UNITARIOS'!C77 -> INFRA | D92: 50 | E92: ='PRECIOS UNITARIOS'!D77 -> m2 | F92: ='PRECIOS UNITARIOS'!L77 -> 1051.223607 | G92: 250 | H92: 250 | J92: =HLOOKUP($C92,PARAMETROS!$C$36:$F$38,3)*L92 -> 65701.47546 | K92: =HLOOKUP($C92,PARAMETROS!$C$36:$F$38,3)*M92 -> 65701.47546 | L92: 262805.9019 | M92: 262805.9019 | O92: ='PRECIOS UNITARIOS'!$Z77*CHIFFRAGE_TC!L92 -> 212168.9265 | P92: ='PRECIOS UNITARIOS'!$AA77*CHIFFRAGE_TC!L92 -> 50636.97531 | Q92: ='PRECIOS UNITARIOS'!$Z77*CHIFFRAGE_TC!M92 -> 212168.9265 | R92: ='PRECIOS UNITARIOS'!$AA77*CHIFFRAGE_TC!M92 -> 50636.97531 | U92: 0.25 | V92: 0.75
B93: ='PRECIOS UNITARIOS'!B78 -> Centro de mando + Locales tecnicos cubiertos | C93: ='PRECIOS UNITARIOS'!C78 -> INFRA | D93: 50 | E93: ='PRECIOS UNITARIOS'!D78 -> m2 | F93: ='PRECIOS UNITARIOS'!L78 -> 1401.269672 | G93: 80 | H93: 80 | J93: =HLOOKUP($C93,PARAMETROS!$C$36:$F$38,3)*L93 -> 28025.39344 | K93: =HLOOKUP($C93,PARAMETROS!$C$36:$F$38,3)*M93 -> 28025.39344 | L93: 112101.5737 | M93: 112101.5737 | O93: ='PRECIOS UNITARIOS'!$Z78*CHIFFRAGE_TC!L93 -> 90502.04123 | P93: ='PRECIOS UNITARIOS'!$AA78*CHIFFRAGE_TC!L93 -> 21599.53251 | Q93: ='PRECIOS UNITARIOS'!$Z78*CHIFFRAGE_TC!M93 -> 90502.04123 | R93: ='PRECIOS UNITARIOS'!$AA78*CHIFFRAGE_TC!M93 -> 21599.53251 | U93: 0.25 | V93: 0.75
B94: ='PRECIOS UNITARIOS'!B79 -> Locales tecnicos non cerrados | C94: ='PRECIOS UNITARIOS'!C79 -> INFRA | D94: 50 | E94: ='PRECIOS UNITARIOS'!D79 -> m2 | F94: ='PRECIOS UNITARIOS'!L79 -> 700.6348359 | G94: 250 | H94: 250 | J94: =HLOOKUP($C94,PARAMETROS!$C$36:$F$38,3)*L94 -> 43789.67725 | K94: =HLOOKUP($C94,PARAMETROS!$C$36:$F$38,3)*M94 -> 43789.67725 | L94: 175158.709 | M94: 175158.709 | O94: ='PRECIOS UNITARIOS'!$Z79*CHIFFRAGE_TC!L94 -> 141409.4394 | P94: ='PRECIOS UNITARIOS'!$AA79*CHIFFRAGE_TC!L94 -> 33749.26955 | Q94: ='PRECIOS UNITARIOS'!$Z79*CHIFFRAGE_TC!M94 -> 141409.4394 | R94: ='PRECIOS UNITARIOS'!$AA79*CHIFFRAGE_TC!M94 -> 33749.26955 | U94: 0.25 | V94: 0.75
B95: ='PRECIOS UNITARIOS'!B80 -> Adecuacion urbana (demolicion, reconstruccion, mobiliario urbano, paisaje) | C95: ='PRECIOS UNITARIOS'!C80 -> INFRA | D95: 50 | E95: ='PRECIOS UNITARIOS'!D80 -> m2 | F95: ='PRECIOS UNITARIOS'!L80 -> 527.021901 | G95: 2000 | H95: 2000 | J95: =HLOOKUP($C95,PARAMETROS!$C$36:$F$38,3)*L95 -> 263510.9505 | K95: =HLOOKUP($C95,PARAMETROS!$C$36:$F$38,3)*M95 -> 263510.9505 | L95: 1054043.802 | M95: 1054043.802 | O95: ='PRECIOS UNITARIOS'!$Z80*CHIFFRAGE_TC!L95 -> 836542.7 | P95: ='PRECIOS UNITARIOS'!$AA80*CHIFFRAGE_TC!L95 -> 217501.102 | Q95: ='PRECIOS UNITARIOS'!$Z80*CHIFFRAGE_TC!M95 -> 836542.7 | R95: ='PRECIOS UNITARIOS'!$AA80*CHIFFRAGE_TC!M95 -> 217501.102 | U95: 0.25 | V95: 0.25 | W95: 0.5
B96: ='PRECIOS UNITARIOS'!B81 -> Pasarela | C96: ='PRECIOS UNITARIOS'!C81 -> INFRA | D96: 50 | E96: ='PRECIOS UNITARIOS'!D81 -> m2 | F96: ='PRECIOS UNITARIOS'!L81 -> 1356.767692 | G96: =200*2.5 -> 500 | H96: =200*2.5 -> 500 | J96: =HLOOKUP($C96,PARAMETROS!$C$36:$F$38,3)*L96 -> 169595.9614 | K96: =HLOOKUP($C96,PARAMETROS!$C$36:$F$38,3)*M96 -> 169595.9614 | L96: 678383.8458 | M96: 678383.8458 | O96: ='PRECIOS UNITARIOS'!$Z81*CHIFFRAGE_TC!L96 -> 547674.0489 | P96: ='PRECIOS UNITARIOS'!$AA81*CHIFFRAGE_TC!L96 -> 130709.7969 | Q96: ='PRECIOS UNITARIOS'!$Z81*CHIFFRAGE_TC!M96 -> 547674.0489 | R96: ='PRECIOS UNITARIOS'!$AA81*CHIFFRAGE_TC!M96 -> 130709.7969 | W96: 1
B97: Edificio - Estacion Samborondon (Terminal) | L97: =SUM(L98:L107) -> 0 | M97: =SUM(M98:M107) -> 3754556.192 | O97: =SUM(O98:O107) -> 0 | P97: =SUM(P98:P107) -> 0 | Q97: =SUM(Q98:Q107) -> 2988229.749 | R97: =SUM(R98:R107) -> 766326.4428 | T97: =T86 -> 2015 | U97: =U86 -> 2016 | V97: =V86 -> 2017 | W97: =W86 -> 2018
B98: ='PRECIOS UNITARIOS'!B83 -> Fundaciones tipicas (edificio con piso tierra y primer piso) | C98: ='PRECIOS UNITARIOS'!C83 -> INFRA | D98: 50 | E98: ='PRECIOS UNITARIOS'!D83 -> U | F98: ='PRECIOS UNITARIOS'!L83 -> 193746.4264 | G98: 0 | H98: 1 | J98: =HLOOKUP($C98,PARAMETROS!$C$36:$F$38,3)*L98 -> 0 | K98: =HLOOKUP($C98,PARAMETROS!$C$36:$F$38,3)*M98 -> 48436.60659 | L98: =$F98*G98 -> 0 | M98: =$F98*H98 -> 193746.4264 | O98: ='PRECIOS UNITARIOS'!$Z83*CHIFFRAGE_TC!L98 -> 0 | P98: ='PRECIOS UNITARIOS'!$AA83*CHIFFRAGE_TC!L98 -> 0 | Q98: ='PRECIOS UNITARIOS'!$Z83*CHIFFRAGE_TC!M98 -> 156415.7084 | R98: ='PRECIOS UNITARIOS'!$AA83*CHIFFRAGE_TC!M98 -> 37330.71799 | U98: 0.75 | V98: 0.25
B99: ='PRECIOS UNITARIOS'!B84 -> Piso tierra sobrelevado y fundaciones | C99: ='PRECIOS UNITARIOS'!C84 -> INFRA | D99: 50 | E99: ='PRECIOS UNITARIOS'!D84 -> m2 | F99: ='PRECIOS UNITARIOS'!L84 -> 2170.828306 | G99: 0 | H99: 0 | J99: =HLOOKUP($C99,PARAMETROS!$C$36:$F$38,3)*L99 -> 0 | K99: =HLOOKUP($C99,PARAMETROS!$C$36:$F$38,3)*M99 -> 0 | L99: 0 | M99: 0 | O99: ='PRECIOS UNITARIOS'!$Z84*CHIFFRAGE_TC!L99 -> 0 | P99: ='PRECIOS UNITARIOS'!$AA84*CHIFFRAGE_TC!L99 -> 0 | Q99: ='PRECIOS UNITARIOS'!$Z84*CHIFFRAGE_TC!M99 -> 0 | R99: ='PRECIOS UNITARIOS'!$AA84*CHIFFRAGE_TC!M99 -> 0 | U99: 0.5 | V99: 0.5
B100: ='PRECIOS UNITARIOS'!B85 -> Superficies comerciales | C100: ='PRECIOS UNITARIOS'!C85 -> INFRA | D100: 50 | E100: ='PRECIOS UNITARIOS'!D85 -> m2 | F100: ='PRECIOS UNITARIOS'!L85 -> 700.6348359 | G100: 0 | H100: 250 | J100: =HLOOKUP($C100,PARAMETROS!$C$36:$F$38,3)*L100 -> 0 | K100: =HLOOKUP($C100,PARAMETROS!$C$36:$F$38,3)*M100 -> 43789.67725 | L100: 0 | M100: 175158.709 | O100: ='PRECIOS UNITARIOS'!$Z85*CHIFFRAGE_TC!L100 -> 0 | P100: ='PRECIOS UNITARIOS'!$AA85*CHIFFRAGE_TC!L100 -> 0 | Q100: ='PRECIOS UNITARIOS'!$Z85*CHIFFRAGE_TC!M100 -> 141409.4394 | R100: ='PRECIOS UNITARIOS'!$AA85*CHIFFRAGE_TC!M100 -> 33749.26955 | U100: 0.25 | V100: 0.75
B101: ='PRECIOS UNITARIOS'!B86 -> Ingreso y circulaciones al piso tierra (y/c servicios, escaleras mecanicas, escaleras y ascencores) | C101: ='PRECIOS UNITARIOS'!C86 -> INFRA | D101: 40 | E101: ='PRECIOS UNITARIOS'!D86 -> m2 | F101: ='PRECIOS UNITARIOS'!L86 -> 1838.595373 | G101: 0 | H101: 600 | J101: =HLOOKUP($C101,PARAMETROS!$C$36:$F$38,3)*L101 -> 0 | K101: =HLOOKUP($C101,PARAMETROS!$C$36:$F$38,3)*M101 -> 275789.306 | L101: 0 | M101: 1103157.224 | O101: ='PRECIOS UNITARIOS'!$Z86*CHIFFRAGE_TC!L101 -> 0 | P101: ='PRECIOS UNITARIOS'!$AA86*CHIFFRAGE_TC!L101 -> 0 | Q101: ='PRECIOS UNITARIOS'!$Z86*CHIFFRAGE_TC!M101 -> 862107.4449 | R101: ='PRECIOS UNITARIOS'!$AA86*CHIFFRAGE_TC!M101 -> 241049.779 | U101: 0.25 | V101: 0.75
B102: ='PRECIOS UNITARIOS'!B87 -> Escaleras mecanicas, escaleras y ascencores adicionales (piso tierra sobrelevado) | C102: ='PRECIOS UNITARIOS'!C87 -> EQUIP | D102: 15 | E102: ='PRECIOS UNITARIOS'!D87 -> U | F102: ='PRECIOS UNITARIOS'!L87 -> 373031.25 | G102: 0 | H102: 0 | J102: =HLOOKUP($C102,PARAMETROS!$C$36:$F$38,3)*L102 -> 0 | K102: =HLOOKUP($C102,PARAMETROS!$C$36:$F$38,3)*M102 -> 0 | L102: 0 | M102: 0 | O102: ='PRECIOS UNITARIOS'!$Z87*CHIFFRAGE_TC!L102 -> 0 | P102: ='PRECIOS UNITARIOS'!$AA87*CHIFFRAGE_TC!L102 -> 0 | Q102: ='PRECIOS UNITARIOS'!$Z87*CHIFFRAGE_TC!M102 -> 0 | R102: ='PRECIOS UNITARIOS'!$AA87*CHIFFRAGE_TC!M102 -> 0 | U102: 0.25 | V102: 0.75
B103: ='PRECIOS UNITARIOS'!B88 -> Anden al primer piso | C103: ='PRECIOS UNITARIOS'!C88 -> INFRA | D103: 50 | E103: ='PRECIOS UNITARIOS'!D88 -> m2 | F103: ='PRECIOS UNITARIOS'!L88 -> 1051.223607 | G103: 0 | H103: 250 | J103: =HLOOKUP($C103,PARAMETROS!$C$36:$F$38,3)*L103 -> 0 | K103: =HLOOKUP($C103,PARAMETROS!$C$36:$F$38,3)*M103 -> 65701.47546 | L103: 0 | M103: 262805.9019 | O103: ='PRECIOS UNITARIOS'!$Z88*CHIFFRAGE_TC!L103 -> 0 | P103: ='PRECIOS UNITARIOS'!$AA88*CHIFFRAGE_TC!L103 -> 0 | Q103: ='PRECIOS UNITARIOS'!$Z88*CHIFFRAGE_TC!M103 -> 212168.9265 | R103: ='PRECIOS UNITARIOS'!$AA88*CHIFFRAGE_TC!M103 -> 50636.97531 | U103: 0.25 | V103: 0.75
B104: ='PRECIOS UNITARIOS'!B89 -> Centro de mando + Locales tecnicos cubiertos | C104: ='PRECIOS UNITARIOS'!C89 -> INFRA | D104: 50 | E104: ='PRECIOS UNITARIOS'!D89 -> m2 | F104: ='PRECIOS UNITARIOS'!L89 -> 1401.269672 | G104: 0 | H104: 80 | J104: =HLOOKUP($C104,PARAMETROS!$C$36:$F$38,3)*L104 -> 0 | K104: =HLOOKUP($C104,PARAMETROS!$C$36:$F$38,3)*M104 -> 28025.39344 | L104: 0 | M104: 112101.5737 | O104: ='PRECIOS UNITARIOS'!$Z89*CHIFFRAGE_TC!L104 -> 0 | P104: ='PRECIOS UNITARIOS'!$AA89*CHIFFRAGE_TC!L104 -> 0 | Q104: ='PRECIOS UNITARIOS'!$Z89*CHIFFRAGE_TC!M104 -> 90502.04123 | R104: ='PRECIOS UNITARIOS'!$AA89*CHIFFRAGE_TC!M104 -> 21599.53251 | U104: 0.25 | V104: 0.75
B105: ='PRECIOS UNITARIOS'!B90 -> Locales tecnicos non cerrados | C105: ='PRECIOS UNITARIOS'!C90 -> INFRA | D105: 50 | E105: ='PRECIOS UNITARIOS'!D90 -> m2 | F105: ='PRECIOS UNITARIOS'!L90 -> 700.6348359 | G105: 0 | H105: 250 | J105: =HLOOKUP($C105,PARAMETROS!$C$36:$F$38,3)*L105 -> 0 | K105: =HLOOKUP($C105,PARAMETROS!$C$36:$F$38,3)*M105 -> 43789.67725 | L105: 0 | M105: 175158.709 | O105: ='PRECIOS UNITARIOS'!$Z90*CHIFFRAGE_TC!L105 -> 0 | P105: ='PRECIOS UNITARIOS'!$AA90*CHIFFRAGE_TC!L105 -> 0 | Q105: ='PRECIOS UNITARIOS'!$Z90*CHIFFRAGE_TC!M105 -> 141409.4394 | R105: ='PRECIOS UNITARIOS'!$AA90*CHIFFRAGE_TC!M105 -> 33749.26955 | U105: 0.25 | V105: 0.75
B106: ='PRECIOS UNITARIOS'!B91 -> Adecuacion urbana (demolicion, reconstruccion, mobiliario urbano, paisaje) | C106: ='PRECIOS UNITARIOS'!C91 -> INFRA | D106: 50 | E106: ='PRECIOS UNITARIOS'!D91 -> m2 | F106: ='PRECIOS UNITARIOS'!L91 -> 527.021901 | G106: 0 | H106: 2000 | J106: =HLOOKUP($C106,PARAMETROS!$C$36:$F$38,3)*L106 -> 0 | K106: =HLOOKUP($C106,PARAMETROS!$C$36:$F$38,3)*M106 -> 263510.9505 | L106: 0 | M106: 1054043.802 | O106: ='PRECIOS UNITARIOS'!$Z91*CHIFFRAGE_TC!L106 -> 0 | P106: ='PRECIOS UNITARIOS'!$AA91*CHIFFRAGE_TC!L106 -> 0 | Q106: ='PRECIOS UNITARIOS'!$Z91*CHIFFRAGE_TC!M106 -> 836542.7 | R106: ='PRECIOS UNITARIOS'!$AA91*CHIFFRAGE_TC!M106 -> 217501.102 | U106: 0.25 | V106: 0.25 | W106: 0.5
B107: ='PRECIOS UNITARIOS'!B92 -> Pasarela | C107: ='PRECIOS UNITARIOS'!C92 -> INFRA | D107: 50 | E107: ='PRECIOS UNITARIOS'!D92 -> m2 | F107: ='PRECIOS UNITARIOS'!L92 -> 1356.767692 | G107: 0 | H107: =200*2.5 -> 500 | J107: =HLOOKUP($C107,PARAMETROS!$C$36:$F$38,3)*L107 -> 0 | K107: =HLOOKUP($C107,PARAMETROS!$C$36:$F$38,3)*M107 -> 169595.9614 | L107: 0 | M107: 678383.8458 | O107: ='PRECIOS UNITARIOS'!$Z92*CHIFFRAGE_TC!L107 -> 0 | P107: ='PRECIOS UNITARIOS'!$AA92*CHIFFRAGE_TC!L107 -> 0 | Q107: ='PRECIOS UNITARIOS'!$Z92*CHIFFRAGE_TC!M107 -> 547674.0489 | R107: ='PRECIOS UNITARIOS'!$AA92*CHIFFRAGE_TC!M107 -> 130709.7969 | W107: 1
B108: Edificio - Estacion Malecon (Terminal) | L108: =SUM(L109:L118) -> 5112952.004 | M108: =SUM(M109:M118) -> 5112952.004 | O108: =SUM(O109:O118) -> 4084892.264 | P108: =SUM(P109:P118) -> 1028059.74 | Q108: =SUM(Q109:Q118) -> 4084892.264 | R108: =SUM(R109:R118) -> 1028059.74 | T108: =T97 -> 2015 | U108: =U97 -> 2016 | V108: =V97 -> 2017 | W108: =W97 -> 2018
B109: =B98 -> Fundaciones tipicas (edificio con piso tierra y primer piso) | C109: INFRA | D109: 50 | E109: U | F109: 193746.4264 | G109: 0 | H109: 0 | J109: =HLOOKUP($C109,PARAMETROS!$C$36:$F$38,3)*L109 -> 0 | K109: =HLOOKUP($C109,PARAMETROS!$C$36:$F$38,3)*M109 -> 0 | L109: =$F109*G109 -> 0 | M109: =$F109*H109 -> 0 | O109: ='PRECIOS UNITARIOS'!$Z83*CHIFFRAGE_TC!L109 -> 0 | P109: ='PRECIOS UNITARIOS'!$AA83*CHIFFRAGE_TC!L109 -> 0 | Q109: ='PRECIOS UNITARIOS'!$Z83*CHIFFRAGE_TC!M109 -> 0 | R109: ='PRECIOS UNITARIOS'!$AA83*CHIFFRAGE_TC!M109 -> 0 | U109: 0.75 | V109: 0.25
B110: Piso tierra sobrelevado y fundaciones | C110: INFRA | D110: 50 | E110: m2 | F110: 2170.828306 | G110: =(G111+G112+G114+G115+G116)/2 -> 715 | H110: =(H111+H112+H114+H115+H116)/2 -> 715 | J110: =HLOOKUP($C110,PARAMETROS!$C$36:$F$38,3)*L110 -> 388035.5598 | K110: =HLOOKUP($C110,PARAMETROS!$C$36:$F$38,3)*M110 -> 388035.5598 | L110: 1552142.239 | M110: 1552142.239 | O110: ='PRECIOS UNITARIOS'!$Z84*CHIFFRAGE_TC!L110 -> 1253078.224 | P110: ='PRECIOS UNITARIOS'!$AA84*CHIFFRAGE_TC!L110 -> 299064.0153 | Q110: ='PRECIOS UNITARIOS'!$Z84*CHIFFRAGE_TC!M110 -> 1253078.224 | R110: ='PRECIOS UNITARIOS'!$AA84*CHIFFRAGE_TC!M110 -> 299064.0153 | U110: 0.5 | V110: 0.5
B111: Superficies comerciales | C111: INFRA | D111: 50 | E111: m2 | F111: 700.6348359 | G111: 250 | H111: 250 | J111: =HLOOKUP($C111,PARAMETROS!$C$36:$F$38,3)*L111 -> 43789.67725 | K111: =HLOOKUP($C111,PARAMETROS!$C$36:$F$38,3)*M111 -> 43789.67725 | L111: 175158.709 | M111: 175158.709 | O111: ='PRECIOS UNITARIOS'!$Z85*CHIFFRAGE_TC!L111 -> 141409.4394 | P111: ='PRECIOS UNITARIOS'!$AA85*CHIFFRAGE_TC!L111 -> 33749.26955 | Q111: ='PRECIOS UNITARIOS'!$Z85*CHIFFRAGE_TC!M111 -> 141409.4394 | R111: ='PRECIOS UNITARIOS'!$AA85*CHIFFRAGE_TC!M111 -> 33749.26955 | U111: 0.25 | V111: 0.75
B112: Ingreso y circulaciones al piso tierra (y/c servicios, escaleras mecanicas, escaleras y ascencores) | C112: INFRA | D112: 40 | E112: m2 | F112: 1838.595373 | G112: 600 | H112: 600 | J112: =HLOOKUP($C112,PARAMETROS!$C$36:$F$38,3)*L112 -> 275789.306 | K112: =HLOOKUP($C112,PARAMETROS!$C$36:$F$38,3)*M112 -> 275789.306 | L112: 1103157.224 | M112: 1103157.224 | O112: ='PRECIOS UNITARIOS'!$Z86*CHIFFRAGE_TC!L112 -> 862107.4449 | P112: ='PRECIOS UNITARIOS'!$AA86*CHIFFRAGE_TC!L112 -> 241049.779 | Q112: ='PRECIOS UNITARIOS'!$Z86*CHIFFRAGE_TC!M112 -> 862107.4449 | R112: ='PRECIOS UNITARIOS'!$AA86*CHIFFRAGE_TC!M112 -> 241049.779 | U112: 0.25 | V112: 0.75
B113: Escaleras mecanicas, escaleras y ascencores adicionales (piso tierra sobrelevado) | C113: EQUIP | D113: 15 | E113: U | F113: 373031.25 | G113: 0 | H113: 0 | J113: =HLOOKUP($C113,PARAMETROS!$C$36:$F$38,3)*L113 -> 0 | K113: =HLOOKUP($C113,PARAMETROS!$C$36:$F$38,3)*M113 -> 0 | L113: 0 | M113: 0 | O113: ='PRECIOS UNITARIOS'!$Z87*CHIFFRAGE_TC!L113 -> 0 | P113: ='PRECIOS UNITARIOS'!$AA87*CHIFFRAGE_TC!L113 -> 0 | Q113: ='PRECIOS UNITARIOS'!$Z87*CHIFFRAGE_TC!M113 -> 0 | R113: ='PRECIOS UNITARIOS'!$AA87*CHIFFRAGE_TC!M113 -> 0 | U113: 0.25 | V113: 0.75
B114: Anden al primer piso | C114: INFRA | D114: 50 | E114: m2 | F114: 1051.223607 | G114: 250 | H114: 250 | J114: =HLOOKUP($C114,PARAMETROS!$C$36:$F$38,3)*L114 -> 65701.47546 | K114: =HLOOKUP($C114,PARAMETROS!$C$36:$F$38,3)*M114 -> 65701.47546 | L114: 262805.9019 | M114: 262805.9019 | O114: ='PRECIOS UNITARIOS'!$Z88*CHIFFRAGE_TC!L114 -> 212168.9265 | P114: ='PRECIOS UNITARIOS'!$AA88*CHIFFRAGE_TC!L114 -> 50636.97531 | Q114: ='PRECIOS UNITARIOS'!$Z88*CHIFFRAGE_TC!M114 -> 212168.9265 | R114: ='PRECIOS UNITARIOS'!$AA88*CHIFFRAGE_TC!M114 -> 50636.97531 | U114: 0.25 | V114: 0.75
B115: Centro de mando + Locales tecnicos cubiertos | C115: INFRA | D115: 50 | E115: m2 | F115: 1401.269672 | G115: 80 | H115: 80 | J115: =HLOOKUP($C115,PARAMETROS!$C$36:$F$38,3)*L115 -> 28025.39344 | K115: =HLOOKUP($C115,PARAMETROS!$C$36:$F$38,3)*M115 -> 28025.39344 | L115: 112101.5737 | M115: 112101.5737 | O115: ='PRECIOS UNITARIOS'!$Z89*CHIFFRAGE_TC!L115 -> 90502.04123 | P115: ='PRECIOS UNITARIOS'!$AA89*CHIFFRAGE_TC!L115 -> 21599.53251 | Q115: ='PRECIOS UNITARIOS'!$Z89*CHIFFRAGE_TC!M115 -> 90502.04123 | R115: ='PRECIOS UNITARIOS'!$AA89*CHIFFRAGE_TC!M115 -> 21599.53251 | U115: 0.25 | V115: 0.75
B116: Locales tecnicos non cerrados | C116: INFRA | D116: 50 | E116: m2 | F116: 700.6348359 | G116: 250 | H116: 250 | J116: =HLOOKUP($C116,PARAMETROS!$C$36:$F$38,3)*L116 -> 43789.67725 | K116: =HLOOKUP($C116,PARAMETROS!$C$36:$F$38,3)*M116 -> 43789.67725 | L116: 175158.709 | M116: 175158.709 | O116: ='PRECIOS UNITARIOS'!$Z90*CHIFFRAGE_TC!L116 -> 141409.4394 | P116: ='PRECIOS UNITARIOS'!$AA90*CHIFFRAGE_TC!L116 -> 33749.26955 | Q116: ='PRECIOS UNITARIOS'!$Z90*CHIFFRAGE_TC!M116 -> 141409.4394 | R116: ='PRECIOS UNITARIOS'!$AA90*CHIFFRAGE_TC!M116 -> 33749.26955 | U116: 0.25 | V116: 0.75
B117: Adecuacion urbana (demolicion, reconstruccion, mobiliario urbano, paisaje) | C117: INFRA | D117: 50 | E117: m2 | F117: 527.021901 | G117: 2000 | H117: 2000 | J117: =HLOOKUP($C117,PARAMETROS!$C$36:$F$38,3)*L117 -> 263510.9505 | K117: =HLOOKUP($C117,PARAMETROS!$C$36:$F$38,3)*M117 -> 263510.9505 | L117: 1054043.802 | M117: 1054043.802 | O117: ='PRECIOS UNITARIOS'!$Z91*CHIFFRAGE_TC!L117 -> 836542.7 | P117: ='PRECIOS UNITARIOS'!$AA91*CHIFFRAGE_TC!L117 -> 217501.102 | Q117: ='PRECIOS UNITARIOS'!$Z91*CHIFFRAGE_TC!M117 -> 836542.7 | R117: ='PRECIOS UNITARIOS'!$AA91*CHIFFRAGE_TC!M117 -> 217501.102 | U117: 0.25 | V117: 0.25 | W117: 0.5
B118: Pasarela | C118: INFRA | D118: 50 | E118: m2 | F118: 1356.767692 | G118: =200*2.5 -> 500 | H118: =200*2.5 -> 500 | J118: =HLOOKUP($C118,PARAMETROS!$C$36:$F$38,3)*L118 -> 169595.9614 | K118: =HLOOKUP($C118,PARAMETROS!$C$36:$F$38,3)*M118 -> 169595.9614 | L118: 678383.8458 | M118: 678383.8458 | O118: ='PRECIOS UNITARIOS'!$Z92*CHIFFRAGE_TC!L118 -> 547674.0489 | P118: ='PRECIOS UNITARIOS'!$AA92*CHIFFRAGE_TC!L118 -> 130709.7969 | Q118: ='PRECIOS UNITARIOS'!$Z92*CHIFFRAGE_TC!M118 -> 547674.0489 | R118: ='PRECIOS UNITARIOS'!$AA92*CHIFFRAGE_TC!M118 -> 130709.7969 | W118: 1
B119: Edificio - Estacion Puerto Santa Ana (Sur) | L119: =SUM(L120:L129) -> 0 | M119: =SUM(M120:M129) -> 551070.1927 | O119: =SUM(O120:O129) -> 0 | P119: =SUM(P120:P129) -> 0 | Q119: =SUM(Q120:Q129) -> 444890.9648 | R119: =SUM(R120:R129) -> 106179.2279 | T119: =T108 -> 2015 | U119: =U108 -> 2016 | V119: =V108 -> 2017 | W119: =W108 -> 2018
B120: =B98 -> Fundaciones tipicas (edificio con piso tierra y primer piso) | C120: INFRA | D120: 50 | E120: U | F120: 193746.4264 | G120: 0 | H120: 1 | J120: =HLOOKUP($C120,PARAMETROS!$C$36:$F$38,3)*L120 -> 0 | K120: =HLOOKUP($C120,PARAMETROS!$C$36:$F$38,3)*M120 -> 48436.60659 | L120: =$F120*G120 -> 0 | M120: =$F120*H120 -> 193746.4264 | O120: ='PRECIOS UNITARIOS'!$Z83*CHIFFRAGE_TC!L120 -> 0 | P120: ='PRECIOS UNITARIOS'!$AA83*CHIFFRAGE_TC!L120 -> 0 | Q120: ='PRECIOS UNITARIOS'!$Z83*CHIFFRAGE_TC!M120 -> 156415.7084 | R120: ='PRECIOS UNITARIOS'!$AA83*CHIFFRAGE_TC!M120 -> 37330.71799 | U120: 0.75 | V120: 0.25
B121: Piso tierra sobrelevado y fundaciones | C121: INFRA | D121: 50 | E121: m2 | F121: 2170.828306 | G121: 0 | H121: 0 | J121: =HLOOKUP($C121,PARAMETROS!$C$36:$F$38,3)*L121 -> 0 | K121: =HLOOKUP($C121,PARAMETROS!$C$36:$F$38,3)*M121 -> 0 | L121: 0 | M121: 0 | O121: ='PRECIOS UNITARIOS'!$Z84*CHIFFRAGE_TC!L121 -> 0 | P121: ='PRECIOS UNITARIOS'!$AA84*CHIFFRAGE_TC!L121 -> 0 | Q121: ='PRECIOS UNITARIOS'!$Z84*CHIFFRAGE_TC!M121 -> 0 | R121: ='PRECIOS UNITARIOS'!$AA84*CHIFFRAGE_TC!M121 -> 0 | U121: 0.5 | V121: 0.5
B122: Superficies comerciales | C122: INFRA | D122: 50 | E122: m2 | F122: 700.6348359 | G122: 0 | H122: 0 | J122: =HLOOKUP($C122,PARAMETROS!$C$36:$F$38,3)*L122 -> 0 | K122: =HLOOKUP($C122,PARAMETROS!$C$36:$F$38,3)*M122 -> 0 | L122: 0 | M122: 0 | O122: ='PRECIOS UNITARIOS'!$Z85*CHIFFRAGE_TC!L122 -> 0 | P122: ='PRECIOS UNITARIOS'!$AA85*CHIFFRAGE_TC!L122 -> 0 | Q122: ='PRECIOS UNITARIOS'!$Z85*CHIFFRAGE_TC!M122 -> 0 | R122: ='PRECIOS UNITARIOS'!$AA85*CHIFFRAGE_TC!M122 -> 0 | U122: 0.25 | V122: 0.75
B123: Ingreso y circulaciones al piso tierra (y/c servicios, escaleras mecanicas, escaleras y ascencores) | C123: INFRA | D123: 40 | E123: m2 | F123: 1838.595373 | G123: 0 | H123: 0 | J123: =HLOOKUP($C123,PARAMETROS!$C$36:$F$38,3)*L123 -> 0 | K123: =HLOOKUP($C123,PARAMETROS!$C$36:$F$38,3)*M123 -> 0 | L123: 0 | M123: 0 | O123: ='PRECIOS UNITARIOS'!$Z86*CHIFFRAGE_TC!L123 -> 0 | P123: ='PRECIOS UNITARIOS'!$AA86*CHIFFRAGE_TC!L123 -> 0 | Q123: ='PRECIOS UNITARIOS'!$Z86*CHIFFRAGE_TC!M123 -> 0 | R123: ='PRECIOS UNITARIOS'!$AA86*CHIFFRAGE_TC!M123 -> 0 | U123: 0.25 | V123: 0.75
B124: Escaleras mecanicas, escaleras y ascencores adicionales (piso tierra sobrelevado) | C124: EQUIP | D124: 15 | E124: U | F124: 373031.25 | G124: 0 | H124: 0 | J124: =HLOOKUP($C124,PARAMETROS!$C$36:$F$38,3)*L124 -> 0 | K124: =HLOOKUP($C124,PARAMETROS!$C$36:$F$38,3)*M124 -> 0 | L124: 0 | M124: 0 | O124: ='PRECIOS UNITARIOS'!$Z87*CHIFFRAGE_TC!L124 -> 0 | P124: ='PRECIOS UNITARIOS'!$AA87*CHIFFRAGE_TC!L124 -> 0 | Q124: ='PRECIOS UNITARIOS'!$Z87*CHIFFRAGE_TC!M124 -> 0 | R124: ='PRECIOS UNITARIOS'!$AA87*CHIFFRAGE_TC!M124 -> 0 | U124: 0.25 | V124: 0.75
B125: Anden al primer piso | C125: INFRA | D125: 50 | E125: m2 | F125: 1051.223607 | G125: 0 | H125: 0 | J125: =HLOOKUP($C125,PARAMETROS!$C$36:$F$38,3)*L125 -> 0 | K125: =HLOOKUP($C125,PARAMETROS!$C$36:$F$38,3)*M125 -> 0 | L125: 0 | M125: 0 | O125: ='PRECIOS UNITARIOS'!$Z88*CHIFFRAGE_TC!L125 -> 0 | P125: ='PRECIOS UNITARIOS'!$AA88*CHIFFRAGE_TC!L125 -> 0 | Q125: ='PRECIOS UNITARIOS'!$Z88*CHIFFRAGE_TC!M125 -> 0 | R125: ='PRECIOS UNITARIOS'!$AA88*CHIFFRAGE_TC!M125 -> 0 | U125: 0.25 | V125: 0.75
B126: Centro de mando + Locales tecnicos cubiertos | C126: INFRA | D126: 50 | E126: m2 | F126: 1401.269672 | G126: 0 | H126: 80 | J126: =HLOOKUP($C126,PARAMETROS!$C$36:$F$38,3)*L126 -> 0 | K126: =HLOOKUP($C126,PARAMETROS!$C$36:$F$38,3)*M126 -> 28025.39344 | L126: 0 | M126: 112101.5737 | O126: ='PRECIOS UNITARIOS'!$Z89*CHIFFRAGE_TC!L126 -> 0 | P126: ='PRECIOS UNITARIOS'!$AA89*CHIFFRAGE_TC!L126 -> 0 | Q126: ='PRECIOS UNITARIOS'!$Z89*CHIFFRAGE_TC!M126 -> 90502.04123 | R126: ='PRECIOS UNITARIOS'!$AA89*CHIFFRAGE_TC!M126 -> 21599.53251 | U126: 0.25 | V126: 0.75
B127: Locales tecnicos non cerrados | C127: INFRA | D127: 50 | E127: m2 | F127: 700.6348359 | G127: 0 | H127: 350 | J127: =HLOOKUP($C127,PARAMETROS!$C$36:$F$38,3)*L127 -> 0 | K127: =HLOOKUP($C127,PARAMETROS!$C$36:$F$38,3)*M127 -> 61305.54814 | L127: 0 | M127: 245222.1926 | O127: ='PRECIOS UNITARIOS'!$Z90*CHIFFRAGE_TC!L127 -> 0 | P127: ='PRECIOS UNITARIOS'!$AA90*CHIFFRAGE_TC!L127 -> 0 | Q127: ='PRECIOS UNITARIOS'!$Z90*CHIFFRAGE_TC!M127 -> 197973.2152 | R127: ='PRECIOS UNITARIOS'!$AA90*CHIFFRAGE_TC!M127 -> 47248.97737 | U127: 0.25 | V127: 0.75
B128: Adecuacion urbana (demolicion, reconstruccion, mobiliario urbano, paisaje) | C128: INFRA | D128: 50 | E128: m2 | F128: 527.021901 | G128: 0 | H128: 0 | J128: =HLOOKUP($C128,PARAMETROS!$C$36:$F$38,3)*L128 -> 0 | K128: =HLOOKUP($C128,PARAMETROS!$C$36:$F$38,3)*M128 -> 0 | L128: 0 | M128: 0 | O128: ='PRECIOS UNITARIOS'!$Z91*CHIFFRAGE_TC!L128 -> 0 | P128: ='PRECIOS UNITARIOS'!$AA91*CHIFFRAGE_TC!L128 -> 0 | Q128: ='PRECIOS UNITARIOS'!$Z91*CHIFFRAGE_TC!M128 -> 0 | R128: ='PRECIOS UNITARIOS'!$AA91*CHIFFRAGE_TC!M128 -> 0 | U128: 0.25 | V128: 0.25 | W128: 0.5
B129: Pasarela | C129: INFRA | D129: 50 | E129: m2 | F129: 1356.767692 | G129: 0 | H129: 0 | J129: =HLOOKUP($C129,PARAMETROS!$C$36:$F$38,3)*L129 -> 0 | K129: =HLOOKUP($C129,PARAMETROS!$C$36:$F$38,3)*M129 -> 0 | L129: 0 | M129: 0 | O129: ='PRECIOS UNITARIOS'!$Z92*CHIFFRAGE_TC!L129 -> 0 | P129: ='PRECIOS UNITARIOS'!$AA92*CHIFFRAGE_TC!L129 -> 0 | Q129: ='PRECIOS UNITARIOS'!$Z92*CHIFFRAGE_TC!M129 -> 0 | R129: ='PRECIOS UNITARIOS'!$AA92*CHIFFRAGE_TC!M129 -> 0 | W129: 1
B130: Edificio - Estacion Malecon Centro Cultural | L130: =SUM(L131:L140) -> 0 | M130: =SUM(M131:M140) -> 7508471.522 | O130: =SUM(O131:O140) -> 0 | P130: =SUM(P131:P140) -> 0 | Q130: =SUM(Q131:Q140) -> 5979787.735 | R130: =SUM(R131:R140) -> 1528683.787 | T130: =T119 -> 2015 | U130: =U119 -> 2016 | V130: =V119 -> 2017 | W130: =W119 -> 2018
B131: =B98 -> Fundaciones tipicas (edificio con piso tierra y primer piso) | C131: INFRA | D131: 50 | E131: U | F131: 193746.4264 | G131: 0 | H131: 0 | J131: =HLOOKUP($C131,PARAMETROS!$C$36:$F$38,3)*L131 -> 0 | K131: =HLOOKUP($C131,PARAMETROS!$C$36:$F$38,3)*M131 -> 0 | L131: =$F131*G131 -> 0 | M131: =$F131*H131 -> 0 | O131: ='PRECIOS UNITARIOS'!$Z83*CHIFFRAGE_TC!L131 -> 0 | P131: ='PRECIOS UNITARIOS'!$AA83*CHIFFRAGE_TC!L131 -> 0 | Q131: ='PRECIOS UNITARIOS'!$Z83*CHIFFRAGE_TC!M131 -> 0 | R131: ='PRECIOS UNITARIOS'!$AA83*CHIFFRAGE_TC!M131 -> 0 | U131: 0.75 | V131: 0.25
B132: Piso tierra sobrelevado y fundaciones | C132: INFRA | D132: 50 | E132: m2 | F132: 2170.828306 | G132: 0 | H132: 1200 | J132: =HLOOKUP($C132,PARAMETROS!$C$36:$F$38,3)*L132 -> 0 | K132: =HLOOKUP($C132,PARAMETROS!$C$36:$F$38,3)*M132 -> 651248.4919 | L132: 0 | M132: 2604993.968 | O132: ='PRECIOS UNITARIOS'!$Z84*CHIFFRAGE_TC!L132 -> 0 | P132: ='PRECIOS UNITARIOS'!$AA84*CHIFFRAGE_TC!L132 -> 0 | Q132: ='PRECIOS UNITARIOS'!$Z84*CHIFFRAGE_TC!M132 -> 2103068.348 | R132: ='PRECIOS UNITARIOS'!$AA84*CHIFFRAGE_TC!M132 -> 501925.62 | U132: 0.5 | V132: 0.5
B133: Superficies comerciales | C133: INFRA | D133: 50 | E133: m2 | F133: 700.6348359 | G133: 0 | H133: 500 | J133: =HLOOKUP($C133,PARAMETROS!$C$36:$F$38,3)*L133 -> 0 | K133: =HLOOKUP($C133,PARAMETROS!$C$36:$F$38,3)*M133 -> 87579.35449 | L133: 0 | M133: 350317.418 | O133: ='PRECIOS UNITARIOS'!$Z85*CHIFFRAGE_TC!L133 -> 0 | P133: ='PRECIOS UNITARIOS'!$AA85*CHIFFRAGE_TC!L133 -> 0 | Q133: ='PRECIOS UNITARIOS'!$Z85*CHIFFRAGE_TC!M133 -> 282818.8789 | R133: ='PRECIOS UNITARIOS'!$AA85*CHIFFRAGE_TC!M133 -> 67498.53911 | U133: 0.25 | V133: 0.75
B134: Ingreso y circulaciones al piso tierra (y/c servicios, escaleras mecanicas, escaleras y ascencores) | C134: INFRA | D134: 40 | E134: m2 | F134: 1838.595373 | G134: 0 | H134: 1650 | J134: =HLOOKUP($C134,PARAMETROS!$C$36:$F$38,3)*L134 -> 0 | K134: =HLOOKUP($C134,PARAMETROS!$C$36:$F$38,3)*M134 -> 758420.5914 | L134: 0 | M134: 3033682.366 | O134: ='PRECIOS UNITARIOS'!$Z86*CHIFFRAGE_TC!L134 -> 0 | P134: ='PRECIOS UNITARIOS'!$AA86*CHIFFRAGE_TC!L134 -> 0 | Q134: ='PRECIOS UNITARIOS'!$Z86*CHIFFRAGE_TC!M134 -> 2370795.474 | R134: ='PRECIOS UNITARIOS'!$AA86*CHIFFRAGE_TC!M134 -> 662886.8923 | U134: 0.25 | V134: 0.75
B135: Escaleras mecanicas, escaleras y ascencores adicionales (piso tierra sobrelevado) | C135: EQUIP | D135: 15 | E135: U | F135: 373031.25 | G135: 0 | H135: 1 | J135: =HLOOKUP($C135,PARAMETROS!$C$36:$F$38,3)*L135 -> 0 | K135: =HLOOKUP($C135,PARAMETROS!$C$36:$F$38,3)*M135 -> 93257.8125 | L135: 0 | M135: 373031.25 | O135: ='PRECIOS UNITARIOS'!$Z87*CHIFFRAGE_TC!L135 -> 0 | P135: ='PRECIOS UNITARIOS'!$AA87*CHIFFRAGE_TC!L135 -> 0 | Q135: ='PRECIOS UNITARIOS'!$Z87*CHIFFRAGE_TC!M135 -> 301156.25 | R135: ='PRECIOS UNITARIOS'!$AA87*CHIFFRAGE_TC!M135 -> 71875 | U135: 0.25 | V135: 0.75
B136: Anden al primer piso | C136: INFRA | D136: 50 | E136: m2 | F136: 1051.223607 | G136: 0 | H136: 500 | J136: =HLOOKUP($C136,PARAMETROS!$C$36:$F$38,3)*L136 -> 0 | K136: =HLOOKUP($C136,PARAMETROS!$C$36:$F$38,3)*M136 -> 131402.9509 | L136: 0 | M136: 525611.8037 | O136: ='PRECIOS UNITARIOS'!$Z88*CHIFFRAGE_TC!L136 -> 0 | P136: ='PRECIOS UNITARIOS'!$AA88*CHIFFRAGE_TC!L136 -> 0 | Q136: ='PRECIOS UNITARIOS'!$Z88*CHIFFRAGE_TC!M136 -> 424337.8531 | R136: ='PRECIOS UNITARIOS'!$AA88*CHIFFRAGE_TC!M136 -> 101273.9506 | U136: 0.25 | V136: 0.75
B137: Centro de mando + Locales tecnicos cubiertos | C137: INFRA | D137: 50 | E137: m2 | F137: 1401.269672 | G137: 0 | H137: 80 | J137: =HLOOKUP($C137,PARAMETROS!$C$36:$F$38,3)*L137 -> 0 | K137: =HLOOKUP($C137,PARAMETROS!$C$36:$F$38,3)*M137 -> 28025.39344 | L137: 0 | M137: 112101.5737 | O137: ='PRECIOS UNITARIOS'!$Z89*CHIFFRAGE_TC!L137 -> 0 | P137: ='PRECIOS UNITARIOS'!$AA89*CHIFFRAGE_TC!L137 -> 0 | Q137: ='PRECIOS UNITARIOS'!$Z89*CHIFFRAGE_TC!M137 -> 90502.04123 | R137: ='PRECIOS UNITARIOS'!$AA89*CHIFFRAGE_TC!M137 -> 21599.53251 | U137: 0.25 | V137: 0.75
B138: Locales tecnicos non cerrados | C138: INFRA | D138: 50 | E138: m2 | F138: 700.6348359 | G138: 0 | H138: 350 | J138: =HLOOKUP($C138,PARAMETROS!$C$36:$F$38,3)*L138 -> 0 | K138: =HLOOKUP($C138,PARAMETROS!$C$36:$F$38,3)*M138 -> 61305.54814 | L138: 0 | M138: 245222.1926 | O138: ='PRECIOS UNITARIOS'!$Z90*CHIFFRAGE_TC!L138 -> 0 | P138: ='PRECIOS UNITARIOS'!$AA90*CHIFFRAGE_TC!L138 -> 0 | Q138: ='PRECIOS UNITARIOS'!$Z90*CHIFFRAGE_TC!M138 -> 197973.2152 | R138: ='PRECIOS UNITARIOS'!$AA90*CHIFFRAGE_TC!M138 -> 47248.97737 | U138: 0.25 | V138: 0.75
B139: Adecuacion urbana (demolicion, reconstruccion, mobiliario urbano, paisaje) | C139: INFRA | D139: 50 | E139: m2 | F139: 527.021901 | G139: 0 | H139: 500 | J139: =HLOOKUP($C139,PARAMETROS!$C$36:$F$38,3)*L139 -> 0 | K139: =HLOOKUP($C139,PARAMETROS!$C$36:$F$38,3)*M139 -> 65877.73762 | L139: 0 | M139: 263510.9505 | O139: ='PRECIOS UNITARIOS'!$Z91*CHIFFRAGE_TC!L139 -> 0 | P139: ='PRECIOS UNITARIOS'!$AA91*CHIFFRAGE_TC!L139 -> 0 | Q139: ='PRECIOS UNITARIOS'!$Z91*CHIFFRAGE_TC!M139 -> 209135.675 | R139: ='PRECIOS UNITARIOS'!$AA91*CHIFFRAGE_TC!M139 -> 54375.2755 | U139: 0.25 | V139: 0.25 | W139: 0.5
B140: Pasarela | C140: INFRA | D140: 50 | E140: m2 | F140: 1356.767692 | G140: 0 | H140: 0 | J140: =HLOOKUP($C140,PARAMETROS!$C$36:$F$38,3)*L140 -> 0 | K140: =HLOOKUP($C140,PARAMETROS!$C$36:$F$38,3)*M140 -> 0 | L140: 0 | M140: 0 | O140: ='PRECIOS UNITARIOS'!$Z92*CHIFFRAGE_TC!L140 -> 0 | P140: ='PRECIOS UNITARIOS'!$AA92*CHIFFRAGE_TC!L140 -> 0 | Q140: ='PRECIOS UNITARIOS'!$Z92*CHIFFRAGE_TC!M140 -> 0 | R140: ='PRECIOS UNITARIOS'!$AA92*CHIFFRAGE_TC!M140 -> 0 | W140: 1
B141: Edificio - Estacion Cimentero (Tecnica) | L141: =SUM(L142:L151) -> 0 | M141: =SUM(M142:M151) -> 551070.1927 | O141: =SUM(O142:O151) -> 0 | P141: =SUM(P142:P151) -> 0 | Q141: =SUM(Q142:Q151) -> 444890.9648 | R141: =SUM(R142:R151) -> 106179.2279 | T141: =T130 -> 2015 | U141: =U130 -> 2016 | V141: =V130 -> 2017 | W141: =W130 -> 2018
B142: =B98 -> Fundaciones tipicas (edificio con piso tierra y primer piso) | C142: INFRA | D142: 50 | E142: U | F142: 193746.4264 | G142: 0 | H142: 1 | J142: =HLOOKUP($C142,PARAMETROS!$C$36:$F$38,3)*L142 -> 0 | K142: =HLOOKUP($C142,PARAMETROS!$C$36:$F$38,3)*M142 -> 48436.60659 | L142: =$F142*G142 -> 0 | M142: =$F142*H142 -> 193746.4264 | O142: ='PRECIOS UNITARIOS'!$Z83*CHIFFRAGE_TC!L142 -> 0 | P142: ='PRECIOS UNITARIOS'!$AA83*CHIFFRAGE_TC!L142 -> 0 | Q142: ='PRECIOS UNITARIOS'!$Z83*CHIFFRAGE_TC!M142 -> 156415.7084 | R142: ='PRECIOS UNITARIOS'!$AA83*CHIFFRAGE_TC!M142 -> 37330.71799 | U142: 0.75 | V142: 0.25
B143: Piso tierra sobrelevado y fundaciones | C143: INFRA | D143: 50 | E143: m2 | F143: 2170.828306 | G143: 0 | H143: 0 | J143: =HLOOKUP($C143,PARAMETROS!$C$36:$F$38,3)*L143 -> 0 | K143: =HLOOKUP($C143,PARAMETROS!$C$36:$F$38,3)*M143 -> 0 | L143: 0 | M143: 0 | O143: ='PRECIOS UNITARIOS'!$Z84*CHIFFRAGE_TC!L143 -> 0 | P143: ='PRECIOS UNITARIOS'!$AA84*CHIFFRAGE_TC!L143 -> 0 | Q143: ='PRECIOS UNITARIOS'!$Z84*CHIFFRAGE_TC!M143 -> 0 | R143: ='PRECIOS UNITARIOS'!$AA84*CHIFFRAGE_TC!M143 -> 0 | U143: 0.5 | V143: 0.5
B144: Superficies comerciales | C144: INFRA | D144: 50 | E144: m2 | F144: 700.6348359 | G144: 0 | H144: 0 | J144: =HLOOKUP($C144,PARAMETROS!$C$36:$F$38,3)*L144 -> 0 | K144: =HLOOKUP($C144,PARAMETROS!$C$36:$F$38,3)*M144 -> 0 | L144: 0 | M144: 0 | O144: ='PRECIOS UNITARIOS'!$Z85*CHIFFRAGE_TC!L144 -> 0 | P144: ='PRECIOS UNITARIOS'!$AA85*CHIFFRAGE_TC!L144 -> 0 | Q144: ='PRECIOS UNITARIOS'!$Z85*CHIFFRAGE_TC!M144 -> 0 | R144: ='PRECIOS UNITARIOS'!$AA85*CHIFFRAGE_TC!M144 -> 0 | U144: 0.25 | V144: 0.75
B145: Ingreso y circulaciones al piso tierra (y/c servicios, escaleras mecanicas, escaleras y ascencores) | C145: INFRA | D145: 40 | E145: m2 | F145: 1838.595373 | G145: 0 | H145: 0 | J145: =HLOOKUP($C145,PARAMETROS!$C$36:$F$38,3)*L145 -> 0 | K145: =HLOOKUP($C145,PARAMETROS!$C$36:$F$38,3)*M145 -> 0 | L145: 0 | M145: 0 | O145: ='PRECIOS UNITARIOS'!$Z86*CHIFFRAGE_TC!L145 -> 0 | P145: ='PRECIOS UNITARIOS'!$AA86*CHIFFRAGE_TC!L145 -> 0 | Q145: ='PRECIOS UNITARIOS'!$Z86*CHIFFRAGE_TC!M145 -> 0 | R145: ='PRECIOS UNITARIOS'!$AA86*CHIFFRAGE_TC!M145 -> 0 | U145: 0.25 | V145: 0.75
B146: Escaleras mecanicas, escaleras y ascencores adicionales (piso tierra sobrelevado) | C146: EQUIP | D146: 15 | E146: U | F146: 373031.25 | G146: 0 | H146: 0 | J146: =HLOOKUP($C146,PARAMETROS!$C$36:$F$38,3)*L146 -> 0 | K146: =HLOOKUP($C146,PARAMETROS!$C$36:$F$38,3)*M146 -> 0 | L146: 0 | M146: 0 | O146: ='PRECIOS UNITARIOS'!$Z87*CHIFFRAGE_TC!L146 -> 0 | P146: ='PRECIOS UNITARIOS'!$AA87*CHIFFRAGE_TC!L146 -> 0 | Q146: ='PRECIOS UNITARIOS'!$Z87*CHIFFRAGE_TC!M146 -> 0 | R146: ='PRECIOS UNITARIOS'!$AA87*CHIFFRAGE_TC!M146 -> 0 | U146: 0.25 | V146: 0.75
B147: Anden al primer piso | C147: INFRA | D147: 50 | E147: m2 | F147: 1051.223607 | G147: 0 | H147: 0 | J147: =HLOOKUP($C147,PARAMETROS!$C$36:$F$38,3)*L147 -> 0 | K147: =HLOOKUP($C147,PARAMETROS!$C$36:$F$38,3)*M147 -> 0 | L147: 0 | M147: 0 | O147: ='PRECIOS UNITARIOS'!$Z88*CHIFFRAGE_TC!L147 -> 0 | P147: ='PRECIOS UNITARIOS'!$AA88*CHIFFRAGE_TC!L147 -> 0 | Q147: ='PRECIOS UNITARIOS'!$Z88*CHIFFRAGE_TC!M147 -> 0 | R147: ='PRECIOS UNITARIOS'!$AA88*CHIFFRAGE_TC!M147 -> 0 | U147: 0.25 | V147: 0.75
B148: Centro de mando + Locales tecnicos cubiertos | C148: INFRA | D148: 50 | E148: m2 | F148: 1401.269672 | G148: 0 | H148: 80 | J148: =HLOOKUP($C148,PARAMETROS!$C$36:$F$38,3)*L148 -> 0 | K148: =HLOOKUP($C148,PARAMETROS!$C$36:$F$38,3)*M148 -> 28025.39344 | L148: 0 | M148: 112101.5737 | O148: ='PRECIOS UNITARIOS'!$Z89*CHIFFRAGE_TC!L148 -> 0 | P148: ='PRECIOS UNITARIOS'!$AA89*CHIFFRAGE_TC!L148 -> 0 | Q148: ='PRECIOS UNITARIOS'!$Z89*CHIFFRAGE_TC!M148 -> 90502.04123 | R148: ='PRECIOS UNITARIOS'!$AA89*CHIFFRAGE_TC!M148 -> 21599.53251 | U148: 0.25 | V148: 0.75
B149: Locales tecnicos non cerrados | C149: INFRA | D149: 50 | E149: m2 | F149: 700.6348359 | G149: 0 | H149: 350 | J149: =HLOOKUP($C149,PARAMETROS!$C$36:$F$38,3)*L149 -> 0 | K149: =HLOOKUP($C149,PARAMETROS!$C$36:$F$38,3)*M149 -> 61305.54814 | L149: 0 | M149: 245222.1926 | O149: ='PRECIOS UNITARIOS'!$Z90*CHIFFRAGE_TC!L149 -> 0 | P149: ='PRECIOS UNITARIOS'!$AA90*CHIFFRAGE_TC!L149 -> 0 | Q149: ='PRECIOS UNITARIOS'!$Z90*CHIFFRAGE_TC!M149 -> 197973.2152 | R149: ='PRECIOS UNITARIOS'!$AA90*CHIFFRAGE_TC!M149 -> 47248.97737 | U149: 0.25 | V149: 0.75
B150: Adecuacion urbana (demolicion, reconstruccion, mobiliario urbano, paisaje) | C150: INFRA | D150: 50 | E150: m2 | F150: 527.021901 | G150: 0 | H150: 0 | J150: =HLOOKUP($C150,PARAMETROS!$C$36:$F$38,3)*L150 -> 0 | K150: =HLOOKUP($C150,PARAMETROS!$C$36:$F$38,3)*M150 -> 0 | L150: 0 | M150: 0 | O150: ='PRECIOS UNITARIOS'!$Z91*CHIFFRAGE_TC!L150 -> 0 | P150: ='PRECIOS UNITARIOS'!$AA91*CHIFFRAGE_TC!L150 -> 0 | Q150: ='PRECIOS UNITARIOS'!$Z91*CHIFFRAGE_TC!M150 -> 0 | R150: ='PRECIOS UNITARIOS'!$AA91*CHIFFRAGE_TC!M150 -> 0 | U150: 0.25 | V150: 0.25 | W150: 0.5
B151: Pasarela | C151: INFRA | D151: 50 | E151: m2 | F151: 1356.767692 | G151: 0 | H151: 0 | J151: =HLOOKUP($C151,PARAMETROS!$C$36:$F$38,3)*L151 -> 0 | K151: =HLOOKUP($C151,PARAMETROS!$C$36:$F$38,3)*M151 -> 0 | L151: 0 | M151: 0 | O151: ='PRECIOS UNITARIOS'!$Z92*CHIFFRAGE_TC!L151 -> 0 | P151: ='PRECIOS UNITARIOS'!$AA92*CHIFFRAGE_TC!L151 -> 0 | Q151: ='PRECIOS UNITARIOS'!$Z92*CHIFFRAGE_TC!M151 -> 0 | R151: ='PRECIOS UNITARIOS'!$AA92*CHIFFRAGE_TC!M151 -> 0 | W151: 1
B152: Edificio - Avenida Quito | L152: =SUM(L153:L162) -> 0 | M152: =SUM(M153:M162) -> 7284142.14 | O152: =SUM(O153:O162) -> 0 | P152: =SUM(P153:P162) -> 0 | Q152: =SUM(Q153:Q162) -> 5817477.537 | R152: =SUM(R153:R162) -> 1466664.603 | T152: =T141 -> 2015 | U152: =U141 -> 2016 | V152: =V141 -> 2017 | W152: =W141 -> 2018
B153: =B98 -> Fundaciones tipicas (edificio con piso tierra y primer piso) | C153: INFRA | D153: 50 | E153: U | F153: 193746.4264 | G153: 0 | H153: 0 | J153: =HLOOKUP($C153,PARAMETROS!$C$36:$F$38,3)*L153 -> 0 | K153: =HLOOKUP($C153,PARAMETROS!$C$36:$F$38,3)*M153 -> 0 | L153: =$F153*G153 -> 0 | M153: =$F153*H153 -> 0 | O153: ='PRECIOS UNITARIOS'!$Z83*CHIFFRAGE_TC!L153 -> 0 | P153: ='PRECIOS UNITARIOS'!$AA83*CHIFFRAGE_TC!L153 -> 0 | Q153: ='PRECIOS UNITARIOS'!$Z83*CHIFFRAGE_TC!M153 -> 0 | R153: ='PRECIOS UNITARIOS'!$AA83*CHIFFRAGE_TC!M153 -> 0 | U153: 0.75 | V153: 0.25
B154: Piso tierra sobrelevado y fundaciones | C154: INFRA | D154: 50 | E154: m2 | F154: 2170.828306 | G154: 0 | H154: =(H155+H156+H158+H159+H160)/2 -> 1165 | J154: =HLOOKUP($C154,PARAMETROS!$C$36:$F$38,3)*L154 -> 0 | K154: =HLOOKUP($C154,PARAMETROS!$C$36:$F$38,3)*M154 -> 632253.7443 | L154: 0 | M154: 2529014.977 | O154: ='PRECIOS UNITARIOS'!$Z84*CHIFFRAGE_TC!L154 -> 0 | P154: ='PRECIOS UNITARIOS'!$AA84*CHIFFRAGE_TC!L154 -> 0 | Q154: ='PRECIOS UNITARIOS'!$Z84*CHIFFRAGE_TC!M154 -> 2041728.854 | R154: ='PRECIOS UNITARIOS'!$AA84*CHIFFRAGE_TC!M154 -> 487286.1228 | U154: 0.5 | V154: 0.5
B155: Superficies comerciales | C155: INFRA | D155: 50 | E155: m2 | F155: 700.6348359 | G155: 0 | H155: 500 | J155: =HLOOKUP($C155,PARAMETROS!$C$36:$F$38,3)*L155 -> 0 | K155: =HLOOKUP($C155,PARAMETROS!$C$36:$F$38,3)*M155 -> 87579.35449 | L155: 0 | M155: 350317.418 | O155: ='PRECIOS UNITARIOS'!$Z85*CHIFFRAGE_TC!L155 -> 0 | P155: ='PRECIOS UNITARIOS'!$AA85*CHIFFRAGE_TC!L155 -> 0 | Q155: ='PRECIOS UNITARIOS'!$Z85*CHIFFRAGE_TC!M155 -> 282818.8789 | R155: ='PRECIOS UNITARIOS'!$AA85*CHIFFRAGE_TC!M155 -> 67498.53911 | U155: 0.25 | V155: 0.75
B156: Ingreso y circulaciones al piso tierra (y/c servicios, escaleras mecanicas, escaleras y ascencores) | C156: INFRA | D156: 40 | E156: m2 | F156: 1838.595373 | G156: 0 | H156: 900 | J156: =HLOOKUP($C156,PARAMETROS!$C$36:$F$38,3)*L156 -> 0 | K156: =HLOOKUP($C156,PARAMETROS!$C$36:$F$38,3)*M156 -> 413683.959 | L156: 0 | M156: 1654735.836 | O156: ='PRECIOS UNITARIOS'!$Z86*CHIFFRAGE_TC!L156 -> 0 | P156: ='PRECIOS UNITARIOS'!$AA86*CHIFFRAGE_TC!L156 -> 0 | Q156: ='PRECIOS UNITARIOS'!$Z86*CHIFFRAGE_TC!M156 -> 1293161.167 | R156: ='PRECIOS UNITARIOS'!$AA86*CHIFFRAGE_TC!M156 -> 361574.6685 | U156: 0.25 | V156: 0.75
B157: Escaleras mecanicas, escaleras y ascencores adicionales (piso tierra sobrelevado) | C157: EQUIP | D157: 15 | E157: U | F157: 373031.25 | G157: 0 | H157: 1 | J157: =HLOOKUP($C157,PARAMETROS!$C$36:$F$38,3)*L157 -> 0 | K157: =HLOOKUP($C157,PARAMETROS!$C$36:$F$38,3)*M157 -> 93257.8125 | L157: 0 | M157: 373031.25 | O157: ='PRECIOS UNITARIOS'!$Z87*CHIFFRAGE_TC!L157 -> 0 | P157: ='PRECIOS UNITARIOS'!$AA87*CHIFFRAGE_TC!L157 -> 0 | Q157: ='PRECIOS UNITARIOS'!$Z87*CHIFFRAGE_TC!M157 -> 301156.25 | R157: ='PRECIOS UNITARIOS'!$AA87*CHIFFRAGE_TC!M157 -> 71875 | U157: 0.25 | V157: 0.75
B158: Anden al primer piso | C158: INFRA | D158: 50 | E158: m2 | F158: 1051.223607 | G158: 0 | H158: 500 | J158: =HLOOKUP($C158,PARAMETROS!$C$36:$F$38,3)*L158 -> 0 | K158: =HLOOKUP($C158,PARAMETROS!$C$36:$F$38,3)*M158 -> 131402.9509 | L158: 0 | M158: 525611.8037 | O158: ='PRECIOS UNITARIOS'!$Z88*CHIFFRAGE_TC!L158 -> 0 | P158: ='PRECIOS UNITARIOS'!$AA88*CHIFFRAGE_TC!L158 -> 0 | Q158: ='PRECIOS UNITARIOS'!$Z88*CHIFFRAGE_TC!M158 -> 424337.8531 | R158: ='PRECIOS UNITARIOS'!$AA88*CHIFFRAGE_TC!M158 -> 101273.9506 | U158: 0.25 | V158: 0.75
B159: Centro de mando + Locales tecnicos cubiertos | C159: INFRA | D159: 50 | E159: m2 | F159: 1401.269672 | G159: 0 | H159: 80 | J159: =HLOOKUP($C159,PARAMETROS!$C$36:$F$38,3)*L159 -> 0 | K159: =HLOOKUP($C159,PARAMETROS!$C$36:$F$38,3)*M159 -> 28025.39344 | L159: 0 | M159: 112101.5737 | O159: ='PRECIOS UNITARIOS'!$Z89*CHIFFRAGE_TC!L159 -> 0 | P159: ='PRECIOS UNITARIOS'!$AA89*CHIFFRAGE_TC!L159 -> 0 | Q159: ='PRECIOS UNITARIOS'!$Z89*CHIFFRAGE_TC!M159 -> 90502.04123 | R159: ='PRECIOS UNITARIOS'!$AA89*CHIFFRAGE_TC!M159 -> 21599.53251 | U159: 0.25 | V159: 0.75
B160: Locales tecnicos non cerrados | C160: INFRA | D160: 50 | E160: m2 | F160: 700.6348359 | G160: 0 | H160: 350 | J160: =HLOOKUP($C160,PARAMETROS!$C$36:$F$38,3)*L160 -> 0 | K160: =HLOOKUP($C160,PARAMETROS!$C$36:$F$38,3)*M160 -> 61305.54814 | L160: 0 | M160: 245222.1926 | O160: ='PRECIOS UNITARIOS'!$Z90*CHIFFRAGE_TC!L160 -> 0 | P160: ='PRECIOS UNITARIOS'!$AA90*CHIFFRAGE_TC!L160 -> 0 | Q160: ='PRECIOS UNITARIOS'!$Z90*CHIFFRAGE_TC!M160 -> 197973.2152 | R160: ='PRECIOS UNITARIOS'!$AA90*CHIFFRAGE_TC!M160 -> 47248.97737 | U160: 0.25 | V160: 0.75
B161: Adecuacion urbana (demolicion, reconstruccion, mobiliario urbano, paisaje) | C161: INFRA | D161: 50 | E161: m2 | F161: 527.021901 | G161: 0 | H161: =4000-(H155+H156+H158+H159+H160)/2 -> 2835 | J161: =HLOOKUP($C161,PARAMETROS!$C$36:$F$38,3)*L161 -> 0 | K161: =HLOOKUP($C161,PARAMETROS!$C$36:$F$38,3)*M161 -> 373526.7723 | L161: 0 | M161: 1494107.089 | O161: ='PRECIOS UNITARIOS'!$Z91*CHIFFRAGE_TC!L161 -> 0 | P161: ='PRECIOS UNITARIOS'!$AA91*CHIFFRAGE_TC!L161 -> 0 | Q161: ='PRECIOS UNITARIOS'!$Z91*CHIFFRAGE_TC!M161 -> 1185799.277 | R161: ='PRECIOS UNITARIOS'!$AA91*CHIFFRAGE_TC!M161 -> 308307.8121 | U161: 0.25 | V161: 0.25 | W161: 0.5
B162: Pasarela | C162: INFRA | D162: 50 | E162: m2 | F162: 1356.767692 | G162: 0 | H162: 0 | J162: =HLOOKUP($C162,PARAMETROS!$C$36:$F$38,3)*L162 -> 0 | K162: =HLOOKUP($C162,PARAMETROS!$C$36:$F$38,3)*M162 -> 0 | L162: 0 | M162: 0 | O162: ='PRECIOS UNITARIOS'!$Z92*CHIFFRAGE_TC!L162 -> 0 | P162: ='PRECIOS UNITARIOS'!$AA92*CHIFFRAGE_TC!L162 -> 0 | Q162: ='PRECIOS UNITARIOS'!$Z92*CHIFFRAGE_TC!M162 -> 0 | R162: ='PRECIOS UNITARIOS'!$AA92*CHIFFRAGE_TC!M162 -> 0 | W162: 1
B163: Edificio - Estacion Centenario (Terminal) | L163: =SUM(L164:L173) -> 0 | M163: =SUM(M164:M173) -> 2252388.417 | O163: =SUM(O164:O173) -> 0 | P163: =SUM(P164:P173) -> 0 | Q163: =SUM(Q164:Q173) -> 1806021.781 | R163: =SUM(R164:R173) -> 446366.6366 | T163: =T152 -> 2015 | U163: =U152 -> 2016 | V163: =V152 -> 2017 | W163: =W152 -> 2018
B164: =B87 -> Fundaciones tipicas (edificio con piso tierra y primer piso) | C164: INFRA | D164: 50 | E164: U | F164: 161184.0018 | G164: 0 | H164: 0 | J164: =HLOOKUP($C164,PARAMETROS!$C$36:$F$38,3)*L164 -> 0 | K164: =HLOOKUP($C164,PARAMETROS!$C$36:$F$38,3)*M164 -> 0 | L164: =$F164*G164 -> 0 | M164: =$F164*H164 -> 0 | O164: ='PRECIOS UNITARIOS'!$Z72*CHIFFRAGE_TC!L164 -> 0 | P164: ='PRECIOS UNITARIOS'!$AA72*CHIFFRAGE_TC!L164 -> 0 | Q164: ='PRECIOS UNITARIOS'!$Z72*CHIFFRAGE_TC!M164 -> 0 | R164: ='PRECIOS UNITARIOS'!$AA72*CHIFFRAGE_TC!M164 -> 0 | U164: 0.75 | V164: 0.25
B165: Piso tierra sobrelevado y fundaciones | C165: INFRA | D165: 50 | E165: m2 | F165: 2170.828306 | G165: 0 | H165: =(H166+H167+H169+H170+H171) -> 600 | J165: =HLOOKUP($C165,PARAMETROS!$C$36:$F$38,3)*L165 -> 0 | K165: =HLOOKUP($C165,PARAMETROS!$C$36:$F$38,3)*M165 -> 325624.246 | L165: 0 | M165: 1302496.984 | O165: ='PRECIOS UNITARIOS'!$Z73*CHIFFRAGE_TC!L165 -> 0 | P165: ='PRECIOS UNITARIOS'!$AA73*CHIFFRAGE_TC!L165 -> 0 | Q165: ='PRECIOS UNITARIOS'!$Z73*CHIFFRAGE_TC!M165 -> 1051534.174 | R165: ='PRECIOS UNITARIOS'!$AA73*CHIFFRAGE_TC!M165 -> 250962.81 | U165: 0.5 | V165: 0.5
B166: Superficies comerciales | C166: INFRA | D166: 50 | E166: m2 | F166: 700.6348359 | G166: 0 | H166: 0 | J166: =HLOOKUP($C166,PARAMETROS!$C$36:$F$38,3)*L166 -> 0 | K166: =HLOOKUP($C166,PARAMETROS!$C$36:$F$38,3)*M166 -> 0 | L166: 0 | M166: 0 | O166: ='PRECIOS UNITARIOS'!$Z74*CHIFFRAGE_TC!L166 -> 0 | P166: ='PRECIOS UNITARIOS'!$AA74*CHIFFRAGE_TC!L166 -> 0 | Q166: ='PRECIOS UNITARIOS'!$Z74*CHIFFRAGE_TC!M166 -> 0 | R166: ='PRECIOS UNITARIOS'!$AA74*CHIFFRAGE_TC!M166 -> 0 | U166: 0.25 | V166: 0.75
B167: Ingreso y circulaciones al piso tierra (y/c servicios, escaleras mecanicas, escaleras y ascencores) | C167: INFRA | D167: 40 | E167: m2 | F167: 1838.595373 | G167: 0 | H167: 200 | J167: =HLOOKUP($C167,PARAMETROS!$C$36:$F$38,3)*L167 -> 0 | K167: =HLOOKUP($C167,PARAMETROS!$C$36:$F$38,3)*M167 -> 91929.76866 | L167: 0 | M167: 367719.0746 | O167: ='PRECIOS UNITARIOS'!$Z75*CHIFFRAGE_TC!L167 -> 0 | P167: ='PRECIOS UNITARIOS'!$AA75*CHIFFRAGE_TC!L167 -> 0 | Q167: ='PRECIOS UNITARIOS'!$Z75*CHIFFRAGE_TC!M167 -> 287369.1483 | R167: ='PRECIOS UNITARIOS'!$AA75*CHIFFRAGE_TC!M167 -> 80349.92633 | U167: 0.25 | V167: 0.75
B168: Escaleras mecanicas, escaleras y ascencores adicionales (piso tierra sobrelevado) | C168: EQUIP | D168: 15 | E168: U | F168: 373031.25 | G168: 0 | H168: 0 | J168: =HLOOKUP($C168,PARAMETROS!$C$36:$F$38,3)*L168 -> 0 | K168: =HLOOKUP($C168,PARAMETROS!$C$36:$F$38,3)*M168 -> 0 | L168: 0 | M168: 0 | O168: ='PRECIOS UNITARIOS'!$Z76*CHIFFRAGE_TC!L168 -> 0 | P168: ='PRECIOS UNITARIOS'!$AA76*CHIFFRAGE_TC!L168 -> 0 | Q168: ='PRECIOS UNITARIOS'!$Z76*CHIFFRAGE_TC!M168 -> 0 | R168: ='PRECIOS UNITARIOS'!$AA76*CHIFFRAGE_TC!M168 -> 0 | U168: 0.25 | V168: 0.75
B169: Anden al primer piso | C169: INFRA | D169: 50 | E169: m2 | F169: 1051.223607 | G169: 0 | H169: 100 | J169: =HLOOKUP($C169,PARAMETROS!$C$36:$F$38,3)*L169 -> 0 | K169: =HLOOKUP($C169,PARAMETROS!$C$36:$F$38,3)*M169 -> 26280.59019 | L169: 0 | M169: 105122.3607 | O169: ='PRECIOS UNITARIOS'!$Z77*CHIFFRAGE_TC!L169 -> 0 | P169: ='PRECIOS UNITARIOS'!$AA77*CHIFFRAGE_TC!L169 -> 0 | Q169: ='PRECIOS UNITARIOS'!$Z77*CHIFFRAGE_TC!M169 -> 84867.57062 | R169: ='PRECIOS UNITARIOS'!$AA77*CHIFFRAGE_TC!M169 -> 20254.79012 | U169: 0.25 | V169: 0.75
B170: Centro de mando + Locales tecnicos cubiertos | C170: INFRA | D170: 50 | E170: m2 | F170: 1401.269672 | G170: 0 | H170: 80 | J170: =HLOOKUP($C170,PARAMETROS!$C$36:$F$38,3)*L170 -> 0 | K170: =HLOOKUP($C170,PARAMETROS!$C$36:$F$38,3)*M170 -> 28025.39344 | L170: 0 | M170: 112101.5737 | O170: ='PRECIOS UNITARIOS'!$Z78*CHIFFRAGE_TC!L170 -> 0 | P170: ='PRECIOS UNITARIOS'!$AA78*CHIFFRAGE_TC!L170 -> 0 | Q170: ='PRECIOS UNITARIOS'!$Z78*CHIFFRAGE_TC!M170 -> 90502.04123 | R170: ='PRECIOS UNITARIOS'!$AA78*CHIFFRAGE_TC!M170 -> 21599.53251 | U170: 0.25 | V170: 0.75
B171: Locales tecnicos non cerrados | C171: INFRA | D171: 50 | E171: m2 | F171: 700.6348359 | G171: 0 | H171: 220 | J171: =HLOOKUP($C171,PARAMETROS!$C$36:$F$38,3)*L171 -> 0 | K171: =HLOOKUP($C171,PARAMETROS!$C$36:$F$38,3)*M171 -> 38534.91598 | L171: 0 | M171: 154139.6639 | O171: ='PRECIOS UNITARIOS'!$Z79*CHIFFRAGE_TC!L171 -> 0 | P171: ='PRECIOS UNITARIOS'!$AA79*CHIFFRAGE_TC!L171 -> 0 | Q171: ='PRECIOS UNITARIOS'!$Z79*CHIFFRAGE_TC!M171 -> 124440.3067 | R171: ='PRECIOS UNITARIOS'!$AA79*CHIFFRAGE_TC!M171 -> 29699.35721 | U171: 0.25 | V171: 0.75
B172: Adecuacion urbana (demolicion, reconstruccion, mobiliario urbano, paisaje) | C172: INFRA | D172: 50 | E172: m2 | F172: 527.021901 | G172: 0 | H172: 400 | J172: =HLOOKUP($C172,PARAMETROS!$C$36:$F$38,3)*L172 -> 0 | K172: =HLOOKUP($C172,PARAMETROS!$C$36:$F$38,3)*M172 -> 52702.1901 | L172: 0 | M172: 210808.7604 | O172: ='PRECIOS UNITARIOS'!$Z80*CHIFFRAGE_TC!L172 -> 0 | P172: ='PRECIOS UNITARIOS'!$AA80*CHIFFRAGE_TC!L172 -> 0 | Q172: ='PRECIOS UNITARIOS'!$Z80*CHIFFRAGE_TC!M172 -> 167308.54 | R172: ='PRECIOS UNITARIOS'!$AA80*CHIFFRAGE_TC!M172 -> 43500.2204 | U172: 0.25 | V172: 0.25 | W172: 0.5
B173: Pasarela | C173: INFRA | D173: 50 | E173: m2 | F173: 1356.767692 | G173: 0 | H173: 0 | J173: =HLOOKUP($C173,PARAMETROS!$C$36:$F$38,3)*L173 -> 0 | K173: =HLOOKUP($C173,PARAMETROS!$C$36:$F$38,3)*M173 -> 0 | L173: 0 | M173: 0 | O173: ='PRECIOS UNITARIOS'!$Z81*CHIFFRAGE_TC!L173 -> 0 | P173: ='PRECIOS UNITARIOS'!$AA81*CHIFFRAGE_TC!L173 -> 0 | Q173: ='PRECIOS UNITARIOS'!$Z81*CHIFFRAGE_TC!M173 -> 0 | R173: ='PRECIOS UNITARIOS'!$AA81*CHIFFRAGE_TC!M173 -> 0 | W173: 1
B175: Centro(s) de mantenimiento | J175: =SUM(J176:J182)/L175 -> 0.25 | K175: =SUM(K176:K182)/M175 -> 0.25 | L175: =SUM(L176:L182) -> 1974615.681 | M175: =SUM(M176:M182) -> 7395846.672 | O175: =SUM(O176:O182)/L175 -> 0.3187181436 | P175: =SUM(P176:P182)/L175 -> 0.6812818564 | Q175: =SUM(Q176:Q182)/M175 -> 0.334669861 | R175: =SUM(R176:R182)/M175 -> 0.665330139 | T175: =T$11 -> 2015 | U175: =U$11 -> 2016 | V175: =V$11 -> 2017 | W175: =W$11 -> 2018
B176: ='PRECIOS UNITARIOS'!B95 -> Zona de almacenamiento de tipo local industrial | C176: ='PRECIOS UNITARIOS'!C95 -> INFRA | D176: 50 | E176: ='PRECIOS UNITARIOS'!D95 -> m2 | F176: ='PRECIOS UNITARIOS'!L95 -> 700.6348359 | G176: =CANTIDADES!B74 -> 378 | H176: =CANTIDADES!C74 -> 2604 | J176: =HLOOKUP($C176,PARAMETROS!$C$36:$F$38,3)*L176 -> 66209.99199 | K176: =HLOOKUP($C176,PARAMETROS!$C$36:$F$38,3)*M176 -> 456113.2782 | L176: =$F176*G176 -> 264839.968 | M176: 1824453.113 | O176: ='PRECIOS UNITARIOS'!$Z95*CHIFFRAGE_TC!L176 -> 213811.0724 | P176: ='PRECIOS UNITARIOS'!$AA95*CHIFFRAGE_TC!L176 -> 51028.89556 | Q176: ='PRECIOS UNITARIOS'!$Z95*CHIFFRAGE_TC!M176 -> 1472920.721 | R176: ='PRECIOS UNITARIOS'!$AA95*CHIFFRAGE_TC!M176 -> 351532.3917 | U176: 0.25 | V176: 0.75
B177: ='PRECIOS UNITARIOS'!B96 -> Almacen y taller | C177: ='PRECIOS UNITARIOS'!C96 -> INFRA | D177: 50 | E177: ='PRECIOS UNITARIOS'!D96 -> m2 | F177: ='PRECIOS UNITARIOS'!L96 -> 992.6112431 | G177: =CANTIDADES!B77 -> 250 | H177: =CANTIDADES!C77 -> 500 | J177: =HLOOKUP($C177,PARAMETROS!$C$36:$F$38,3)*L177 -> 62038.2027 | K177: =HLOOKUP($C177,PARAMETROS!$C$36:$F$38,3)*M177 -> 124076.4054 | L177: 248152.8108 | M177: 496305.6216 | O177: ='PRECIOS UNITARIOS'!$Z96*CHIFFRAGE_TC!L177 -> 200339.1671 | P177: ='PRECIOS UNITARIOS'!$AA96*CHIFFRAGE_TC!L177 -> 47813.6437 | Q177: ='PRECIOS UNITARIOS'!$Z96*CHIFFRAGE_TC!M177 -> 400678.3342 | R177: ='PRECIOS UNITARIOS'!$AA96*CHIFFRAGE_TC!M177 -> 95627.28739 | U177: 0.25 | V177: 0.75
B178: ='PRECIOS UNITARIOS'!B97 -> Local de supervision | C178: ='PRECIOS UNITARIOS'!C97 -> INFRA | D178: 50 | E178: ='PRECIOS UNITARIOS'!D97 -> m2 | F178: ='PRECIOS UNITARIOS'!L97 -> 992.6112431 | G178: =CANTIDADES!B80 -> 150 | H178: =CANTIDADES!C80 -> 300 | J178: =HLOOKUP($C178,PARAMETROS!$C$36:$F$38,3)*L178 -> 37222.92162 | K178: =HLOOKUP($C178,PARAMETROS!$C$36:$F$38,3)*M178 -> 74445.84324 | L178: 148891.6865 | M178: 297783.3729 | O178: ='PRECIOS UNITARIOS'!$Z97*CHIFFRAGE_TC!L178 -> 120203.5003 | P178: ='PRECIOS UNITARIOS'!$AA97*CHIFFRAGE_TC!L178 -> 28688.18622 | Q178: ='PRECIOS UNITARIOS'!$Z97*CHIFFRAGE_TC!M178 -> 240407.0005 | R178: ='PRECIOS UNITARIOS'!$AA97*CHIFFRAGE_TC!M178 -> 57376.37244 | U178: 0.25 | V178: 0.75
B179: ='PRECIOS UNITARIOS'!B98 -> Transporte cabinas | C179: ='PRECIOS UNITARIOS'!C98 -> EQUIP | D179: 40 | E179: ='PRECIOS UNITARIOS'!D98 -> m2 | F179: ='PRECIOS UNITARIOS'!L98 -> 1164.416739 | G179: =CANTIDADES!B83 -> 378 | H179: =CANTIDADES!C83 -> 2604 | J179: =HLOOKUP($C179,PARAMETROS!$C$36:$F$38,3)*L179 -> 110037.3818 | K179: =HLOOKUP($C179,PARAMETROS!$C$36:$F$38,3)*M179 -> 758035.297 | L179: 440149.5273 | M179: 3032141.188 | O179: ='PRECIOS UNITARIOS'!$Z98*CHIFFRAGE_TC!L179 -> 35013.41866 | P179: ='PRECIOS UNITARIOS'!$AA98*CHIFFRAGE_TC!L179 -> 405136.1086 | Q179: ='PRECIOS UNITARIOS'!$Z98*CHIFFRAGE_TC!M179 -> 241203.5508 | R179: ='PRECIOS UNITARIOS'!$AA98*CHIFFRAGE_TC!M179 -> 2790937.637 | U179: 0.25 | V179: 0.5 | W179: 0.25
B180: ='PRECIOS UNITARIOS'!B99 -> Instrumentos, elevador y piezas de recambio | C180: ='PRECIOS UNITARIOS'!C99 -> EQUIP | D180: 15 | E180: ='PRECIOS UNITARIOS'!D99 -> U | F180: ='PRECIOS UNITARIOS'!L99 -> 144821.2265 | G180: 1 | H180: =1*2 -> 2 | J180: =HLOOKUP($C180,PARAMETROS!$C$36:$F$38,3)*L180 -> 36205.30664 | K180: =HLOOKUP($C180,PARAMETROS!$C$36:$F$38,3)*M180 -> 72410.61327 | L180: 144821.2265 | M180: 289642.4531 | O180: ='PRECIOS UNITARIOS'!$Z99*CHIFFRAGE_TC!L180 -> 2086.128358 | P180: ='PRECIOS UNITARIOS'!$AA99*CHIFFRAGE_TC!L180 -> 142735.0982 | Q180: ='PRECIOS UNITARIOS'!$Z99*CHIFFRAGE_TC!M180 -> 4172.256716 | R180: ='PRECIOS UNITARIOS'!$AA99*CHIFFRAGE_TC!M180 -> 285470.1964 | V180: 0.75 | W180: 0.25
B181: ='PRECIOS UNITARIOS'!B100 -> Ascensores inclinados para las cabinas | C181: ='PRECIOS UNITARIOS'!C100 -> EQUIP | D181: 40 | E181: ='PRECIOS UNITARIOS'!D100 -> U | F181: ='PRECIOS UNITARIOS'!L100 -> 727760.4618 | G181: 1 | H181: =1*2 -> 2 | J181: =HLOOKUP($C181,PARAMETROS!$C$36:$F$38,3)*L181 -> 181940.1154 | K181: =HLOOKUP($C181,PARAMETROS!$C$36:$F$38,3)*M181 -> 363880.2309 | L181: 727760.4618 | M181: 1455520.924 | O181: ='PRECIOS UNITARIOS'!$Z100*CHIFFRAGE_TC!L181 -> 57892.55731 | P181: ='PRECIOS UNITARIOS'!$AA100*CHIFFRAGE_TC!L181 -> 669867.9045 | Q181: ='PRECIOS UNITARIOS'!$Z100*CHIFFRAGE_TC!M181 -> 115785.1146 | R181: ='PRECIOS UNITARIOS'!$AA100*CHIFFRAGE_TC!M181 -> 1339735.809 | U181: 0.25 | V181: 0.5 | W181: 0.25
B182: ='PRECIOS UNITARIOS'!B101 -> Adecuacion urbana (demolicion, reconstruccion, mobiliario urbano, paisaje) | C182: ='PRECIOS UNITARIOS'!C101 -> INFRA | D182: 50 | E182: ='PRECIOS UNITARIOS'!D101 -> m2 | F182: ='PRECIOS UNITARIOS'!L101 -> 197.6332129 | G182: 0 | H182: 0 | J182: =HLOOKUP($C182,PARAMETROS!$C$36:$F$38,3)*L182 -> 0 | K182: =HLOOKUP($C182,PARAMETROS!$C$36:$F$38,3)*M182 -> 0 | L182: 0 | M182: 0 | O182: ='PRECIOS UNITARIOS'!$Z101*CHIFFRAGE_TC!L182 -> 0 | P182: ='PRECIOS UNITARIOS'!$AA101*CHIFFRAGE_TC!L182 -> 0 | Q182: ='PRECIOS UNITARIOS'!$Z101*CHIFFRAGE_TC!M182 -> 0 | R182: ='PRECIOS UNITARIOS'!$AA101*CHIFFRAGE_TC!M182 -> 0 | U182: 0.25 | V182: 0.5 | W182: 0.25
B184: Operaciones adicionales : estacionamiento incitativo y buses | J184: =SUM(J185:J191)/L184 -> 0.1713108142 | K184: =SUM(K185:K191)/M184 -> 0.1800517839 | L184: =SUM(L185:L191) -> 3304138.904 | M184: 5575553.201 | O184: =SUM(O185:O191)/L184 -> 0.8036318706 | P184: =SUM(P185:P191)/L184 -> 0.1963681294 | Q184: =SUM(Q185:Q191)/M184 -> 0.8032018027 | R184: =SUM(R185:R191)/M184 -> 0.1967981973 | T184: =T$11 -> 2015 | U184: =U$11 -> 2016 | V184: =V$11 -> 2017 | W184: =W$11 -> 2018
B185: ='PRECIOS UNITARIOS'!B104 -> Estacionamiento incitativo | C185: ='PRECIOS UNITARIOS'!C104 -> INFRA | D185: 10 | E185: ='PRECIOS UNITARIOS'!D104 -> Plaza | F185: ='PRECIOS UNITARIOS'!L104 -> 1899.474768 | G185: =DEMANDA!E16 -> 200 | H185: =DEMANDA!E17 -> 400 | J185: =HLOOKUP($C185,PARAMETROS!$C$36:$F$38,3)*L185 -> 94973.73841 | K185: =HLOOKUP($C185,PARAMETROS!$C$36:$F$38,3)*M185 -> 189947.4768 | L185: =$F185*G185 -> 379894.9536 | M185: 759789.9073 | O185: ='PRECIOS UNITARIOS'!$Z104*CHIFFRAGE_TC!L185 -> 306697.4674 | P185: ='PRECIOS UNITARIOS'!$AA104*CHIFFRAGE_TC!L185 -> 73197.48625 | Q185: ='PRECIOS UNITARIOS'!$Z104*CHIFFRAGE_TC!M185 -> 613394.9348 | R185: ='PRECIOS UNITARIOS'!$AA104*CHIFFRAGE_TC!M185 -> 146394.9725 | V185: 0.5 | W185: 0.5
B186: ='PRECIOS UNITARIOS'!B105 -> Creacion de vias de acceso en Samborondon | C186: ='PRECIOS UNITARIOS'!C105 -> INFRA | D186: 10 | E186: ='PRECIOS UNITARIOS'!D105 -> m² | F186: ='PRECIOS UNITARIOS'!L105 -> 197.6332129 | G186: 0 | H186: 2000 | J186: =HLOOKUP($C186,PARAMETROS!$C$36:$F$38,3)*L186 -> 0 | K186: =HLOOKUP($C186,PARAMETROS!$C$36:$F$38,3)*M186 -> 98816.60644 | L186: 0 | M186: 395266.4257 | O186: ='PRECIOS UNITARIOS'!$Z105*CHIFFRAGE_TC!L186 -> 0 | P186: ='PRECIOS UNITARIOS'!$AA105*CHIFFRAGE_TC!L186 -> 0 | Q186: ='PRECIOS UNITARIOS'!$Z105*CHIFFRAGE_TC!M186 -> 313703.5125 | R186: ='PRECIOS UNITARIOS'!$AA105*CHIFFRAGE_TC!M186 -> 81562.91325 | V186: 0.5 | W186: 0.5
B187: ='PRECIOS UNITARIOS'!B106 -> Compra de buses alimentadores para Samborondon (12 m) | C187: ='PRECIOS UNITARIOS'!C106 -> VEH | D187: 10 | E187: ='PRECIOS UNITARIOS'!D106 -> U | F187: ='PRECIOS UNITARIOS'!L106 -> 130000 | G187: 0 | H187: ='OFERTA ALIMENTADORA'!F31 -> 10 | J187: =HLOOKUP($C187,PARAMETROS!$C$36:$F$38,3)*L187 -> 0 | K187: =HLOOKUP($C187,PARAMETROS!$C$36:$F$38,3)*M187 -> 195000 | L187: 0 | M187: 1300000 | O187: ='PRECIOS UNITARIOS'!$Z106*CHIFFRAGE_TC!L187 -> 0 | P187: ='PRECIOS UNITARIOS'!$AA106*CHIFFRAGE_TC!L187 -> 0 | Q187: ='PRECIOS UNITARIOS'!$Z106*CHIFFRAGE_TC!M187 -> 1040000 | R187: ='PRECIOS UNITARIOS'!$AA106*CHIFFRAGE_TC!M187 -> 260000 | V187: 0.5 | W187: 0.5
B188: ='PRECIOS UNITARIOS'!B107 -> Compra de buses alimentadores para Duran (12 m) | C188: ='PRECIOS UNITARIOS'!C107 -> VEH | D188: 10 | E188: ='PRECIOS UNITARIOS'!D107 -> U | F188: ='PRECIOS UNITARIOS'!L107 -> 130000 | G188: ='OFERTA ALIMENTADORA'!F32+'OFERTA ALIMENTADORA'!F33 -> 20 | H188: ='OFERTA ALIMENTADORA'!F32+'OFERTA ALIMENTADORA'!F33 -> 20 | J188: =HLOOKUP($C188,PARAMETROS!$C$36:$F$38,3)*L188 -> 390000 | K188: =HLOOKUP($C188,PARAMETROS!$C$36:$F$38,3)*M188 -> 390000 | L188: 2600000 | M188: 2600000 | O188: ='PRECIOS UNITARIOS'!$Z107*CHIFFRAGE_TC!L188 -> 2080000 | P188: ='PRECIOS UNITARIOS'!$AA107*CHIFFRAGE_TC!L188 -> 520000 | Q188: ='PRECIOS UNITARIOS'!$Z107*CHIFFRAGE_TC!M188 -> 2080000 | R188: ='PRECIOS UNITARIOS'!$AA107*CHIFFRAGE_TC!M188 -> 520000 | V188: 0.5 | W188: 0.5
B189: ='PRECIOS UNITARIOS'!B108 -> Creacion de paraderos en Samborondon | C189: ='PRECIOS UNITARIOS'!C108 -> INFRA | D189: 10 | E189: ='PRECIOS UNITARIOS'!D108 -> U | F189: ='PRECIOS UNITARIOS'!L108 -> 4266.36777 | G189: 0 | H189: =ROUNDUP('OFERTA ALIMENTADORA'!C17/200*2,0) -> 38 | J189: =HLOOKUP($C189,PARAMETROS!$C$36:$F$38,3)*L189 -> 0 | K189: =HLOOKUP($C189,PARAMETROS!$C$36:$F$38,3)*M189 -> 40530.49381 | L189: 0 | M189: 162121.9753 | O189: ='PRECIOS UNITARIOS'!$Z108*CHIFFRAGE_TC!L189 -> 0 | P189: ='PRECIOS UNITARIOS'!$AA108*CHIFFRAGE_TC!L189 -> 0 | Q189: ='PRECIOS UNITARIOS'!$Z108*CHIFFRAGE_TC!M189 -> 134306.9305 | R189: ='PRECIOS UNITARIOS'!$AA108*CHIFFRAGE_TC!M189 -> 27815.04477 | W189: 1
B190: ='PRECIOS UNITARIOS'!B109 -> Creacion de paraderos en Duran | C190: ='PRECIOS UNITARIOS'!C109 -> INFRA | D190: 10 | E190: ='PRECIOS UNITARIOS'!D109 -> U | F190: ='PRECIOS UNITARIOS'!L109 -> 4266.36777 | G190: =ROUNDUP('OFERTA ALIMENTADORA'!C18/200*2,0) -> 72 | H190: =ROUNDUP('OFERTA ALIMENTADORA'!C18/200*2,0) -> 72 | J190: =HLOOKUP($C190,PARAMETROS!$C$36:$F$38,3)*L190 -> 76794.61986 | K190: =HLOOKUP($C190,PARAMETROS!$C$36:$F$38,3)*M190 -> 76794.61986 | L190: 307178.4794 | M190: 307178.4794 | O190: ='PRECIOS UNITARIOS'!$Z109*CHIFFRAGE_TC!L190 -> 254476.2893 | P190: ='PRECIOS UNITARIOS'!$AA109*CHIFFRAGE_TC!L190 -> 52702.1901 | Q190: ='PRECIOS UNITARIOS'!$Z109*CHIFFRAGE_TC!M190 -> 254476.2893 | R190: ='PRECIOS UNITARIOS'!$AA109*CHIFFRAGE_TC!M190 -> 52702.1901 | W190: 1
B191: ='PRECIOS UNITARIOS'!B110 -> Modificacion de parada de bus | C191: ='PRECIOS UNITARIOS'!C110 -> INFRA | D191: 10 | E191: ='PRECIOS UNITARIOS'!D110 -> forfait | F191: ='PRECIOS UNITARIOS'!L110 -> 4266.36777 | G191: =2*(CANTIDADES!B30+CANTIDADES!B31) -> 4 | H191: =2*(CANTIDADES!C30+CANTIDADES!C31) -> 12 | J191: =HLOOKUP($C191,PARAMETROS!$C$36:$F$38,3)*L191 -> 4266.36777 | K191: =HLOOKUP($C191,PARAMETROS!$C$36:$F$38,3)*M191 -> 12799.10331 | L191: 17065.47108 | M191: 51196.41324 | O191: ='PRECIOS UNITARIOS'!$Z110*CHIFFRAGE_TC!L191 -> 14137.57163 | P191: ='PRECIOS UNITARIOS'!$AA110*CHIFFRAGE_TC!L191 -> 2927.89945 | Q191: ='PRECIOS UNITARIOS'!$Z110*CHIFFRAGE_TC!M191 -> 42412.71489 | R191: ='PRECIOS UNITARIOS'!$AA110*CHIFFRAGE_TC!M191 -> 8783.69835 | W191: 1
B193: Gastos de estudios, gestion y administracion del proyecto | J193: =SUM(J194:J198)/L193 -> 0.111863731 | K193: =SUM(K194:K198)/M193 -> 0.1034661199 | L193: =SUM(L194:L198) -> 7586146.398 | M193: 25965633.8 | O193: =SUM(O194:O198)/L193 -> 0.3093186549 | P193: =SUM(P194:P198)/L193 -> 0.6906813451 | Q193: =SUM(Q194:Q198)/M193 -> 0.2673305995 | R193: =SUM(R194:R198)/M193 -> 0.7326694005 | T193: =T$11 -> 2015 | U193: =U$11 -> 2016 | V193: =V$11 -> 2017 | W193: =W$11 -> 2018
B194: =PARAMETROS!B30 -> Estudios y diseños | C194: ESTUDIOS | D194: Infinida | E194: % costo de la obra | F194: =PARAMETROS!D30 -> 0.08 | G194: =L33+L38+L45+L53+L57+L61+L70+L85+L184+L175 -> 34930731.99 | H194: =M33+M38+M45+M53+M57+M61+M70+M85+M184+M175 -> 126828169 | J194: =PARAMETROS!$E30*L194 -> 279445.8559 | K194: =PARAMETROS!$E30*M194 -> 1014625.352 | L194: =$F194*G194 -> 2794458.559 | M194: 10146253.52 | O194: 0 | P194: =L194 -> 2794458.559 | Q194: 0 | R194: =M194 -> 10146253.52 | T194: 0.5 | U194: 0.5 | Y194: Consultor en asesoria al Municipio o Concesionario
B195: =PARAMETROS!B31 -> Supervision de obras | C195: ESTUDIOS | D195: Infinida | E195: % costo de la obra | F195: =PARAMETROS!D31 -> 0.04 | G195: =L33+L38+L45+L53+L57+L61+L70+L85+L184+L175 -> 34930731.99 | H195: =M33+M38+M45+M53+M57+M61+M70+M85+M184+M175 -> 126828169 | J195: =PARAMETROS!$E31*L195 -> 139722.928 | K195: =PARAMETROS!$E31*M195 -> 507312.676 | L195: 1397229.28 | M195: 5073126.76 | O195: 0 | P195: =L195 -> 1397229.28 | Q195: 0 | R195: =M195 -> 5073126.76 | T195: 0.5 | U195: 0.5
B196: =PARAMETROS!B32 -> Fiscalizacion del proyecto | C196: ESTUDIOS | D196: Infinida | E196: % costo de la obra | F196: =PARAMETROS!D32 -> 0.05 | G196: =L33+L38+L45+L53+L57+L61+L70+L85+L184+L175 -> 34930731.99 | H196: =M33+M38+M45+M53+M57+M61+M70+M85+M184+M175 -> 126828169 | J196: =PARAMETROS!$E32*L196 -> 174653.66 | K196: =PARAMETROS!$E32*M196 -> 634140.845 | L196: 1746536.6 | M196: 6341408.45 | O196: =L196 -> 1746536.6 | P196: 0 | Q196: =M196 -> 6341408.45 | R196: 0 | T196: 0.15 | U196: 0.25 | V196: 0.4 | W196: 0.2 | Y196: Consultor en asesoria al municipio
B197: =PARAMETROS!B33 -> % gastos de Gestión externalizados (auditores, seguros) | C197: ESTUDIOS | D197: Infinida | E197: % costo de obra | F197: =PARAMETROS!D33 -> 0.03 | G197: =L33+L38+L45+L53+L57+L61+L70+L85+L184+L175 -> 34930731.99 | H197: =M33+M38+M45+M53+M57+M61+M70+M85+M184+M175 -> 126828169 | J197: =PARAMETROS!$E33*L197 -> 104792.196 | K197: =PARAMETROS!$E33*M197 -> 380484.507 | L197: 1047921.96 | M197: 3804845.07 | O197: 0 | P197: =L197 -> 1047921.96 | Q197: 0 | R197: =M197 -> 3804845.07 | T197: 0.25 | U197: 0.25 | V197: 0.25 | W197: 0.25 | Y197: Municipio
B198: =PARAMETROS!B34 -> Tramites administrativos | C198: ESTUDIOS | D198: Infinida | E198: U | F198: =PARAMETROS!D34 -> 600000 | G198: 1 | H198: 1 | J198: =PARAMETROS!$E34*L198 -> 150000 | K198: =PARAMETROS!$E34*M198 -> 150000 | L198: 600000 | M198: 600000 | O198: =L198 -> 600000 | P198: 0 | Q198: =M198 -> 600000 | R198: 0 | T198: 1
K200: Costo total sin operaciones adicionales (sin contingencias) | L200: =L33+L38+L45+L53+L57+L61+L70+L85+L175+L194+L195+L197 -> 36866202.88 | M200: =M33+M38+M45+M53+M57+M61+M70+M85+M175+M194+M195+M197 -> 140276841.1
K201: Contingencias | L201: =L33*J33+L38*J38+L45*J45+L53*J53+L57*J57+L61*J61+L70*J70+L85*J85+L175*J175+(L194+L195+L197)*J193 -> 8364881.042 | M201: =M33*K33+M38*K38+M45*K45+M53*K53+M57*K57+M61*K61+M70*K70+M85*K85+M175*K175+(M194+M195+M197)*K193 -> 31400499.97
B202: Superficies comerciales | E202: m2 | G202: =G89+G100+G111+G122+G133+G144+G155+G166 -> 500 | H202: =H89+H100+H111+H122+H133+H144+H155+H166 -> 1750 | K202: Costo total sin operaciones adicionales | L202: =L200+L201 -> 45231083.93 | M202: =M200+M201 -> 171677341.1
B203: Superficies funcionales | E203: m2 | G203: =G90+G92+G101+G103+G112+G114+G123+G125+G134+G136+G145+G147+G156+G158+G167+G169 -> 1700 | H203: =H90+H92+H101+H103+H112+H114+H123+H125+H134+H136+H145+H147+H156+H158+H167+H169 -> 6400
B204: Superficies tecnicas | E204: m2 | G204: =G93+G94+G104+G105+G115+G116+G126+G127+G137+G138+G148+G149+G159+G160+G170+G171 -> 660 | H204: =H93+H94+H104+H105+H115+H116+H126+H127+H137+H138+H148+H149+H159+H160+H170+H171 -> 3010 | K204: Costo total incluyendo operaciones adicionales (sin contingencias) | L204: =L23+L33+L38+L45+L53+L57+L61+L70+L85+L175+L184+L194+L195+L197 -> 40170341.79 | M204: =M23+M33+M38+M45+M53+M57+M61+M70+M85+M175+M184+M194+M195+M197 -> 145852394.3
K205: Contingencias | L205: =L201+L23*J23+L184*J184 -> 8930915.768 | M205: =M201+M23*K23+M184*K184 -> 32404388.27
K206: Costo total incluyendo operaciones adicionales | L206: =L204+L205 -> 49101257.56 | M206: =M204+M205 -> 178256782.6
K209: costo/km | L209: =L204/CANTIDADES!B22*1000 -> 18259246.27 | M209: =M204/CANTIDADES!C22*1000 -> 17895999.31
L210: =L206/CANTIDADES!B22*1000 -> 22318753.43 | M210: =M206/CANTIDADES!C22*1000 -> 21871997.87
K213: Supervision | L213: =L193 -> 7586146.398 | M213: =M193 -> 25965633.8
L214: =J193*L213 -> 848614.6398 | M214: =K193*M213 -> 2686563.38
L215: =L213+L214 -> 8434761.038 | M215: 28652197.18
K218: Sin depreciacion | L218: =SUMIF($D$12:$D$198,"Infinida",(L12:L198))/L204 -> 0.2220245767 | M218: =SUMIF($D$12:$D$198,"Infinida",(M12:M198))/M204 -> 0.2476701921
K219: Depreciacion 50 años | L219: =SUMIF($D$12:$D$198,50,(L12:L198))/L204 -> 0.3382760027 | M219: =SUMIF($D$12:$D$198,50,(M12:M198))/M204 -> 0.2687260605
K220: Depreciacion 40 años | L220: =SUMIF($D$12:$D$198,40,(L12:L198))/L204 -> 0.3322852009 | M220: =SUMIF($D$12:$D$198,40,(M12:M198))/M204 -> 0.4580073079
K221: Depreciacion 15 años | L221: =SUMIF($D$12:$D$198,15,(L12:L198))/L204 -> 0.1067672125 | M221: =SUMIF($D$12:$D$198,15,(M12:M198))/M204 -> 0.09618272341
K222: Depreciacion 10 años | L222: =SUMIF($D$12:$D$198,10,(L12:L198))/L204 -> 0.0822531937 | M222: =SUMIF($D$12:$D$198,10,(M12:M198))/M204 -> 0.03822736833
K223: Depreciacion 5 años | L223: =SUMIF($D$12:$D$198,5,(L12:L198))/L204 -> 0.007614777031 | M223: =SUMIF($D$12:$D$198,5,(M12:M198))/M204 -> 0.007769339209
L225: =SUM(L218:L223) -> 1.089220964 | M225: =SUM(M218:M223) -> 1.116582991
... 11 more rows

Sheet INVERSION_ANUALIZADA_TC_Alt_22 (hidden)
B2: Legenda | C2: Dato de entrada
C3: Celda llave
C4: Error
C5: Dato calculado
E8: Alternativa A - Inversion anualizada
C9: Duracion de vida | D9: Contingencias | E9: 2015 | F9: 2016 | G9: 2017 | H9: 2018 | I9: 2019 | J9: 2020 | K9: 2021 | L9: 2022 | M9: 2023 | N9: 2024 | O9: 2025 | P9: 2026 | Q9: 2027 | R9: 2028 | S9: 2029 | T9: 2030 | U9: 2031 | V9: 2032 | W9: 2033 | X9: 2034 | Y9: 2035 | Z9: 2036 | AA9: 2037 | AB9: 2038 | AC9: 2039 | AD9: 2040 | AE9: 2041 | AF9: 2042 | AG9: 2043 | AH9: 2044 | AI9: 2045 | AJ9: 2046 | AK9: 2047 | AL9: 2048 | AM9: 2049 | AN9: 2050 | AO9: 2051 | AP9: 2052 | AQ9: 2053 | AR9: 2054 | AS9: 2055 | AT9: 2056 | AU9: 2057 | AV9: 2058 | AW9: 2059 | AX9: 2060
B11: =CHIFFRAGE_TC!B12 -> Compra de terrenos para estaciones y servidumbres | D11: =CHIFFRAGE_TC!J12 -> 0.25 | E11: =SUM(E12:E20) -> 0 | F11: 0 | G11: 0 | H11: 0 | I11: 0 | J11: 0 | K11: 0 | L11: 0 | M11: 0 | N11: 0 | O11: 0 | P11: 0 | Q11: 0 | R11: 0 | S11: 0 | T11: 0 | U11: 0 | V11: 0 | W11: 0 | X11: 0 | Y11: 0 | Z11: 0 | AA11: 0 | AB11: 0 | AC11: 0 | AD11: 0 | AE11: 0 | AF11: 0 | AG11: 0 | AH11: 0 | AI11: 0 | AJ11: 0 | AK11: 0 | AL11: 0 | AM11: 0 | AN11: 0 | AO11: 0 | AP11: 0 | AQ11: 0 | AR11: 0 | AS11: 0 | AT11: 0 | AU11: 0 | AV11: 0 | AW11: 0 | AX11: 0
B12: =CHIFFRAGE_TC!B13 -> Estacion Duran (Terminal) | C12: =CHIFFRAGE_TC!D13 -> Infinida | I12: 0 | J12: 0 | K12: 0 | L12: 0 | M12: 0 | N12: 0 | O12: 0 | P12: 0 | Q12: 0 | R12: 0 | S12: 0 | T12: 0 | U12: 0 | V12: 0 | W12: 0 | X12: 0 | Y12: 0 | Z12: 0 | AA12: 0 | AB12: 0 | AC12: 0 | AD12: 0 | AE12: 0 | AF12: 0 | AG12: 0 | AH12: 0 | AI12: 0 | AJ12: 0 | AK12: 0 | AL12: 0 | AM12: 0 | AN12: 0 | AO12: 0 | AP12: 0 | AQ12: 0 | AR12: 0 | AS12: 0 | AT12: 0 | AU12: 0 | AV12: 0 | AW12: 0 | AX12: 0
B13: =CHIFFRAGE_TC!B14 -> Estacion Samborondon (Terminal) | C13: =CHIFFRAGE_TC!D14 -> Infinida | I13: 0 | J13: 0 | K13: 0 | L13: 0 | M13: 0 | N13: 0 | O13: 0 | P13: 0 | Q13: 0 | R13: 0 | S13: 0 | T13: 0 | U13: 0 | V13: 0 | W13: 0 | X13: 0 | Y13: 0 | Z13: 0 | AA13: 0 | AB13: 0 | AC13: 0 | AD13: 0 | AE13: 0 | AF13: 0 | AG13: 0 | AH13: 0 | AI13: 0 | AJ13: 0 | AK13: 0 | AL13: 0 | AM13: 0 | AN13: 0 | AO13: 0 | AP13: 0 | AQ13: 0 | AR13: 0 | AS13: 0 | AT13: 0 | AU13: 0 | AV13: 0 | AW13: 0 | AX13: 0
B14: =CHIFFRAGE_TC!B15 -> Estacion Malecon (Terminal) | C14: =CHIFFRAGE_TC!D15 -> Infinida | I14: 0 | J14: 0 | K14: 0 | L14: 0 | M14: 0 | N14: 0 | O14: 0 | P14: 0 | Q14: 0 | R14: 0 | S14: 0 | T14: 0 | U14: 0 | V14: 0 | W14: 0 | X14: 0 | Y14: 0 | Z14: 0 | AA14: 0 | AB14: 0 | AC14: 0 | AD14: 0 | AE14: 0 | AF14: 0 | AG14: 0 | AH14: 0 | AI14: 0 | AJ14: 0 | AK14: 0 | AL14: 0 | AM14: 0 | AN14: 0 | AO14: 0 | AP14: 0 | AQ14: 0 | AR14: 0 | AS14: 0 | AT14: 0 | AU14: 0 | AV14: 0 | AW14: 0 | AX14: 0
B15: =CHIFFRAGE_TC!B16 -> Estacion Puerto Santa Ana (Sur) | C15: =CHIFFRAGE_TC!D16 -> Infinida | I15: 0 | J15: 0 | K15: 0 | L15: 0 | M15: 0 | N15: 0 | O15: 0 | P15: 0 | Q15: 0 | R15: 0 | S15: 0 | T15: 0 | U15: 0 | V15: 0 | W15: 0 | X15: 0 | Y15: 0 | Z15: 0 | AA15: 0 | AB15: 0 | AC15: 0 | AD15: 0 | AE15: 0 | AF15: 0 | AG15: 0 | AH15: 0 | AI15: 0 | AJ15: 0 | AK15: 0 | AL15: 0 | AM15: 0 | AN15: 0 | AO15: 0 | AP15: 0 | AQ15: 0 | AR15: 0 | AS15: 0 | AT15: 0 | AU15: 0 | AV15: 0 | AW15: 0 | AX15: 0
B16: =CHIFFRAGE_TC!B17 -> Estacion Malecon Centro Cultural | C16: =CHIFFRAGE_TC!D17 -> Infinida | I16: 0 | J16: 0 | K16: 0 | L16: 0 | M16: 0 | N16: 0 | O16: 0 | P16: 0 | Q16: 0 | R16: 0 | S16: 0 | T16: 0 | U16: 0 | V16: 0 | W16: 0 | X16: 0 | Y16: 0 | Z16: 0 | AA16: 0 | AB16: 0 | AC16: 0 | AD16: 0 | AE16: 0 | AF16: 0 | AG16: 0 | AH16: 0 | AI16: 0 | AJ16: 0 | AK16: 0 | AL16: 0 | AM16: 0 | AN16: 0 | AO16: 0 | AP16: 0 | AQ16: 0 | AR16: 0 | AS16: 0 | AT16: 0 | AU16: 0 | AV16: 0 | AW16: 0 | AX16: 0
B17: =CHIFFRAGE_TC!B18 -> Estacion Cimentero (Tecnica) | C17: =CHIFFRAGE_TC!D18 -> Infinida | I17: 0 | J17: 0 | K17: 0 | L17: 0 | M17: 0 | N17: 0 | O17: 0 | P17: 0 | Q17: 0 | R17: 0 | S17: 0 | T17: 0 | U17: 0 | V17: 0 | W17: 0 | X17: 0 | Y17: 0 | Z17: 0 | AA17: 0 | AB17: 0 | AC17: 0 | AD17: 0 | AE17: 0 | AF17: 0 | AG17: 0 | AH17: 0 | AI17: 0 | AJ17: 0 | AK17: 0 | AL17: 0 | AM17: 0 | AN17: 0 | AO17: 0 | AP17: 0 | AQ17: 0 | AR17: 0 | AS17: 0 | AT17: 0 | AU17: 0 | AV17: 0 | AW17: 0 | AX17: 0
B18: =CHIFFRAGE_TC!B19 -> Estacion Avenida Quito | C18: =CHIFFRAGE_TC!D19 -> Infinida | I18: 0 | J18: 0 | K18: 0 | L18: 0 | M18: 0 | N18: 0 | O18: 0 | P18: 0 | Q18: 0 | R18: 0 | S18: 0 | T18: 0 | U18: 0 | V18: 0 | W18: 0 | X18: 0 | Y18: 0 | Z18: 0 | AA18: 0 | AB18: 0 | AC18: 0 | AD18: 0 | AE18: 0 | AF18: 0 | AG18: 0 | AH18: 0 | AI18: 0 | AJ18: 0 | AK18: 0 | AL18: 0 | AM18: 0 | AN18: 0 | AO18: 0 | AP18: 0 | AQ18: 0 | AR18: 0 | AS18: 0 | AT18: 0 | AU18: 0 | AV18: 0 | AW18: 0 | AX18: 0
B19: =CHIFFRAGE_TC!B20 -> Estacion Centenario (Terminal) | C19: =CHIFFRAGE_TC!D20 -> Infinida | I19: 0 | J19: 0 | K19: 0 | L19: 0 | M19: 0 | N19: 0 | O19: 0 | P19: 0 | Q19: 0 | R19: 0 | S19: 0 | T19: 0 | U19: 0 | V19: 0 | W19: 0 | X19: 0 | Y19: 0 | Z19: 0 | AA19: 0 | AB19: 0 | AC19: 0 | AD19: 0 | AE19: 0 | AF19: 0 | AG19: 0 | AH19: 0 | AI19: 0 | AJ19: 0 | AK19: 0 | AL19: 0 | AM19: 0 | AN19: 0 | AO19: 0 | AP19: 0 | AQ19: 0 | AR19: 0 | AS19: 0 | AT19: 0 | AU19: 0 | AV19: 0 | AW19: 0 | AX19: 0
B20: =CHIFFRAGE_TC!B21 -> Servidumbres en linea | C20: =CHIFFRAGE_TC!D21 -> Infinida | I20: 0 | J20: 0 | K20: 0 | L20: 0 | M20: 0 | N20: 0 | O20: 0 | P20: 0 | Q20: 0 | R20: 0 | S20: 0 | T20: 0 | U20: 0 | V20: 0 | W20: 0 | X20: 0 | Y20: 0 | Z20: 0 | AA20: 0 | AB20: 0 | AC20: 0 | AD20: 0 | AE20: 0 | AF20: 0 | AG20: 0 | AH20: 0 | AI20: 0 | AJ20: 0 | AK20: 0 | AL20: 0 | AM20: 0 | AN20: 0 | AO20: 0 | AP20: 0 | AQ20: 0 | AR20: 0 | AS20: 0 | AT20: 0 | AU20: 0 | AV20: 0 | AW20: 0 | AX20: 0
B22: =CHIFFRAGE_TC!B23 -> Compra de terrenos para estacionamiento (operacion adicional) | D22: =CHIFFRAGE_TC!J23 -> 0 | E22: =SUM(E23:E30) -> 0 | F22: 0 | G22: 0 | H22: 0 | I22: 0 | J22: 0 | K22: 0 | L22: 0 | M22: 0 | N22: 0 | O22: 0 | P22: 0 | Q22: 0 | R22: 0 | S22: 0 | T22: 0 | U22: 0 | V22: 0 | W22: 0 | X22: 0 | Y22: 0 | Z22: 0 | AA22: 0 | AB22: 0 | AC22: 0 | AD22: 0 | AE22: 0 | AF22: 0 | AG22: 0 | AH22: 0 | AI22: 0 | AJ22: 0 | AK22: 0 | AL22: 0 | AM22: 0 | AN22: 0 | AO22: 0 | AP22: 0 | AQ22: 0 | AR22: 0 | AS22: 0 | AT22: 0 | AU22: 0 | AV22: 0 | AW22: 0 | AX22: 0
B23: =CHIFFRAGE_TC!B24 -> Estacion Duran (Terminal) | C23: =CHIFFRAGE_TC!D24 -> Infinida | I23: 0 | J23: 0 | K23: 0 | L23: 0 | M23: 0 | N23: 0 | O23: 0 | P23: 0 | Q23: 0 | R23: 0 | S23: 0 | T23: 0 | U23: 0 | V23: 0 | W23: 0 | X23: 0 | Y23: 0 | Z23: 0 | AA23: 0 | AB23: 0 | AC23: 0 | AD23: 0 | AE23: 0 | AF23: 0 | AG23: 0 | AH23: 0 | AI23: 0 | AJ23: 0 | AK23: 0 | AL23: 0 | AM23: 0 | AN23: 0 | AO23: 0 | AP23: 0 | AQ23: 0 | AR23: 0 | AS23: 0 | AT23: 0 | AU23: 0 | AV23: 0 | AW23: 0 | AX23: 0
B24: =CHIFFRAGE_TC!B25 -> Estacion Samborondon (Terminal) | C24: =CHIFFRAGE_TC!D25 -> Infinida | I24: 0 | J24: 0 | K24: 0 | L24: 0 | M24: 0 | N24: 0 | O24: 0 | P24: 0 | Q24: 0 | R24: 0 | S24: 0 | T24: 0 | U24: 0 | V24: 0 | W24: 0 | X24: 0 | Y24: 0 | Z24: 0 | AA24: 0 | AB24: 0 | AC24: 0 | AD24: 0 | AE24: 0 | AF24: 0 | AG24: 0 | AH24: 0 | AI24: 0 | AJ24: 0 | AK24: 0 | AL24: 0 | AM24: 0 | AN24: 0 | AO24: 0 | AP24: 0 | AQ24: 0 | AR24: 0 | AS24: 0 | AT24: 0 | AU24: 0 | AV24: 0 | AW24: 0 | AX24: 0
B25: =CHIFFRAGE_TC!B26 -> Estacion Malecon (Terminal) | C25: =CHIFFRAGE_TC!D26 -> Infinida | I25: 0 | J25: 0 | K25: 0 | L25: 0 | M25: 0 | N25: 0 | O25: 0 | P25: 0 | Q25: 0 | R25: 0 | S25: 0 | T25: 0 | U25: 0 | V25: 0 | W25: 0 | X25: 0 | Y25: 0 | Z25: 0 | AA25: 0 | AB25: 0 | AC25: 0 | AD25: 0 | AE25: 0 | AF25: 0 | AG25: 0 | AH25: 0 | AI25: 0 | AJ25: 0 | AK25: 0 | AL25: 0 | AM25: 0 | AN25: 0 | AO25: 0 | AP25: 0 | AQ25: 0 | AR25: 0 | AS25: 0 | AT25: 0 | AU25: 0 | AV25: 0 | AW25: 0 | AX25: 0
B26: =CHIFFRAGE_TC!B27 -> Estacion Puerto Santa Ana (Sur) | C26: =CHIFFRAGE_TC!D27 -> Infinida | I26: 0 | J26: 0 | K26: 0 | L26: 0 | M26: 0 | N26: 0 | O26: 0 | P26: 0 | Q26: 0 | R26: 0 | S26: 0 | T26: 0 | U26: 0 | V26: 0 | W26: 0 | X26: 0 | Y26: 0 | Z26: 0 | AA26: 0 | AB26: 0 | AC26: 0 | AD26: 0 | AE26: 0 | AF26: 0 | AG26: 0 | AH26: 0 | AI26: 0 | AJ26: 0 | AK26: 0 | AL26: 0 | AM26: 0 | AN26: 0 | AO26: 0 | AP26: 0 | AQ26: 0 | AR26: 0 | AS26: 0 | AT26: 0 | AU26: 0 | AV26: 0 | AW26: 0 | AX26: 0
B27: =CHIFFRAGE_TC!B28 -> Estacion Malecon Centro Cultural | C27: =CHIFFRAGE_TC!D28 -> Infinida | I27: 0 | J27: 0 | K27: 0 | L27: 0 | M27: 0 | N27: 0 | O27: 0 | P27: 0 | Q27: 0 | R27: 0 | S27: 0 | T27: 0 | U27: 0 | V27: 0 | W27: 0 | X27: 0 | Y27: 0 | Z27: 0 | AA27: 0 | AB27: 0 | AC27: 0 | AD27: 0 | AE27: 0 | AF27: 0 | AG27: 0 | AH27: 0 | AI27: 0 | AJ27: 0 | AK27: 0 | AL27: 0 | AM27: 0 | AN27: 0 | AO27: 0 | AP27: 0 | AQ27: 0 | AR27: 0 | AS27: 0 | AT27: 0 | AU27: 0 | AV27: 0 | AW27: 0 | AX27: 0
B28: =CHIFFRAGE_TC!B29 -> Estacion Cimentero (Tecnica) | C28: =CHIFFRAGE_TC!D29 -> Infinida | I28: 0 | J28: 0 | K28: 0 | L28: 0 | M28: 0 | N28: 0 | O28: 0 | P28: 0 | Q28: 0 | R28: 0 | S28: 0 | T28: 0 | U28: 0 | V28: 0 | W28: 0 | X28: 0 | Y28: 0 | Z28: 0 | AA28: 0 | AB28: 0 | AC28: 0 | AD28: 0 | AE28: 0 | AF28: 0 | AG28: 0 | AH28: 0 | AI28: 0 | AJ28: 0 | AK28: 0 | AL28: 0 | AM28: 0 | AN28: 0 | AO28: 0 | AP28: 0 | AQ28: 0 | AR28: 0 | AS28: 0 | AT28: 0 | AU28: 0 | AV28: 0 | AW28: 0 | AX28: 0
B29: =CHIFFRAGE_TC!B30 -> Estacion Avenida Quito | C29: =CHIFFRAGE_TC!D30 -> Infinida | I29: 0 | J29: 0 | K29: 0 | L29: 0 | M29: 0 | N29: 0 | O29: 0 | P29: 0 | Q29: 0 | R29: 0 | S29: 0 | T29: 0 | U29: 0 | V29: 0 | W29: 0 | X29: 0 | Y29: 0 | Z29: 0 | AA29: 0 | AB29: 0 | AC29: 0 | AD29: 0 | AE29: 0 | AF29: 0 | AG29: 0 | AH29: 0 | AI29: 0 | AJ29: 0 | AK29: 0 | AL29: 0 | AM29: 0 | AN29: 0 | AO29: 0 | AP29: 0 | AQ29: 0 | AR29: 0 | AS29: 0 | AT29: 0 | AU29: 0 | AV29: 0 | AW29: 0 | AX29: 0
B30: =CHIFFRAGE_TC!B31 -> Estacion Centenario (Terminal) | C30: =CHIFFRAGE_TC!D31 -> Infinida | I30: 0 | J30: 0 | K30: 0 | L30: 0 | M30: 0 | N30: 0 | O30: 0 | P30: 0 | Q30: 0 | R30: 0 | S30: 0 | T30: 0 | U30: 0 | V30: 0 | W30: 0 | X30: 0 | Y30: 0 | Z30: 0 | AA30: 0 | AB30: 0 | AC30: 0 | AD30: 0 | AE30: 0 | AF30: 0 | AG30: 0 | AH30: 0 | AI30: 0 | AJ30: 0 | AK30: 0 | AL30: 0 | AM30: 0 | AN30: 0 | AO30: 0 | AP30: 0 | AQ30: 0 | AR30: 0 | AS30: 0 | AT30: 0 | AU30: 0 | AV30: 0 | AW30: 0 | AX30: 0
B32: =CHIFFRAGE_TC!B33 -> Decontaminacion y proteccion | D32: =CHIFFRAGE_TC!J33 -> 0.25 | E32: =SUM(E33:E35) -> 0 | F32: =SUM(F33:F35) -> 95156.73212 | G32: =SUM(G33:G35) -> 0 | H32: =SUM(H33:H35) -> 0 | I32: =SUM(I33:I35) -> 0 | J32: 0 | K32: 0 | L32: 0 | M32: 0 | N32: 0 | O32: 0 | P32: 0 | Q32: 0 | R32: 0 | S32: 0 | T32: 0 | U32: 0 | V32: 0 | W32: 0 | X32: 0 | Y32: 0 | Z32: 0 | AA32: 0 | AB32: 0 | AC32: 0 | AD32: 0 | AE32: 0 | AF32: 0 | AG32: 0 | AH32: 0 | AI32: 0 | AJ32: 0 | AK32: 0 | AL32: 0 | AM32: 0 | AN32: 0 | AO32: =SUM(AO33:AO35) -> 0 | AP32: =SUM(AP33:AP35) -> 0 | AQ32: =SUM(AQ33:AQ35) -> 0 | AR32: =SUM(AR33:AR35) -> 0 | AS32: =SUM(AS33:AS35) -> 0 | AT32: =SUM(AT33:AT35) -> 0 | AU32: =SUM(AU33:AU35) -> 0 | AV32: =SUM(AV33:AV35) -> 0 | AW32: =SUM(AW33:AW35) -> 0 | AX32: =SUM(AX33:AX35) -> 0
B33: =CHIFFRAGE_TC!B34 -> Proteccion contra incendios (techos) | C33: =CHIFFRAGE_TC!D34 -> 40 | E33: =CHIFFRAGE_TC!$L34*CHIFFRAGE_TC!$T34 -> 0 | F33: =CHIFFRAGE_TC!$L34*CHIFFRAGE_TC!$U34 -> 0 | G33: =CHIFFRAGE_TC!$L34*CHIFFRAGE_TC!$V34 -> 0 | H33: =CHIFFRAGE_TC!$L34*CHIFFRAGE_TC!$W34 -> 0 | I33: 0 | J33: 0 | K33: 0 | L33: 0 | M33: 0 | N33: 0 | O33: 0 | P33: 0 | Q33: 0 | R33: 0 | S33: 0 | T33: 0 | U33: 0 | V33: 0 | W33: 0 | X33: 0 | Y33: 0 | Z33: 0 | AA33: 0 | AB33: 0 | AC33: 0 | AD33: 0 | AE33: 0 | AF33: 0 | AG33: 0 | AH33: 0 | AI33: 0 | AJ33: 0 | AK33: 0 | AL33: 0 | AM33: 0 | AN33: 0 | AO33: 0 | AP33: 0 | AQ33: 0 | AR33: 0 | AS33: 0 | AT33: 0 | AU33: 0 | AV33: 0 | AW33: 0 | AX33: 0
B34: =CHIFFRAGE_TC!B35 -> Proteccion contra incendios (fachadas) | C34: =CHIFFRAGE_TC!D35 -> 40 | E34: =CHIFFRAGE_TC!$L35*CHIFFRAGE_TC!$T35 -> 0 | F34: =CHIFFRAGE_TC!$L35*CHIFFRAGE_TC!$U35 -> 0 | G34: =CHIFFRAGE_TC!$L35*CHIFFRAGE_TC!$V35 -> 0 | H34: =CHIFFRAGE_TC!$L35*CHIFFRAGE_TC!$W35 -> 0 | I34: 0 | J34: 0 | K34: 0 | L34: 0 | M34: 0 | N34: 0 | O34: 0 | P34: 0 | Q34: 0 | R34: 0 | S34: 0 | T34: 0 | U34: 0 | V34: 0 | W34: 0 | X34: 0 | Y34: 0 | Z34: 0 | AA34: 0 | AB34: 0 | AC34: 0 | AD34: 0 | AE34: 0 | AF34: 0 | AG34: 0 | AH34: 0 | AI34: 0 | AJ34: 0 | AK34: 0 | AL34: 0 | AM34: 0 | AN34: 0 | AO34: 0 | AP34: 0 | AQ34: 0 | AR34: 0 | AS34: 0 | AT34: 0 | AU34: 0 | AV34: 0 | AW34: 0 | AX34: 0
